Workbook

Sheet Palmares pourcent (hidden)
A1: PALMARES GAM QUALITE DE GYM STRASBOURG, 31 MAI et 1er JUIN 2008
A2: TOUTES CATEGORIES
A4: Classement | B4: Total | C4: DIVISION | D4: CLUB
C5: 1 | D5: Club 1 D1
C6: 1 | D6: Club 2 D1
C7: 1 | D7: Club 3 D1
C8: 1 | D8: Club 4 D1
C9: 1 | D9: Club 5 D1
C10: 1 | D10: Club 5 D1
C11: 2 | D11: Club 1 D2
C12: 2 | D12: Club 2 D2
C13: 2 | D13: Club 3 D2
C14: 2 | D14: Club 4 D2
C15: 2 | D15: Club 5 D2
C16: 2 | D16: Club 6 D2
C17: 3 | D17: Club 1 D3
C18: 3 | D18: Club 2 D3
C19: 3 | D19: Club 3 D3
C20: 3 | D20: Club 4 D3
C21: 3 | D21: Club 5 D3
C22: 3 | D22: Club 6 D3
C23: 5 | D23: Club 1 D4
C24: 5 | D24: Club 2 D4
C25: 5 | D25: Club 3 D4
C26: 5 | D26: Club 4 D5
C27: 5 | D27: Club 5 D5
C28: 5 | D28: Club 6 D5
C29: 6 | D29: Club 1 D6
C30: 6 | D30: Club 2 D6
C31: 6 | D31: Club 3 D6
C32: 6 | D32: Club 4 D6
C33: 6 | D33: Club 5 D6
C34: 6 | D34: Club 6 D6
C35: 4 | D35: Club 1 D4
C36: 4 | D36: Club 2 D4
C37: 4 | D37: Club 3 D4
C38: 4 | D38: Club 4 D4
C39: 4 | D39: Club 5 D4
C40: 4 | D40: Club 6 D4

Sheet Pourcent D1 (hidden)
A1: =détail_D4_TC!C1 -> COURTRY TC 1 | D1: SOL | G1: ARCONS | J1: ANNEAUX | M1: SAUT | P1: BARRES | S1: FIXE | V1: MOYENNE
A2: =détail_D4_TC!C2 -> Nom des gymnastes | B2: =détail_D4_TC!D2 -> AN | C2: =détail_D4_TC!E2 -> CAT | D2: Note Finale | E2: Note Départ | F2: Rapport | G2: Note Finale | H2: Note Départ | I2: Rapport | J2: Note Finale | K2: Note Départ | L2: Rapport | M2: Note Finale | N2: Note Départ | O2: Rapport | P2: Note Finale | Q2: Note Départ | R2: Rapport | S2: Note Finale | T2: Note Départ | U2: Rapport
A3: =détail_D4_TC!C3 -> AMADO Clarisse | B3: =détail_D4_TC!D3 -> 2006 | C3: =détail_D4_TC!E3 -> Ju | D3: =détail_D4_TC!F3 -> 11.575 | E3: =saisie_D4_TC!E9 -> 12.4 | F3: =IF(E3=0,"",D3/E3) -> 0.9334677419 | G3: =détail_D4_TC!G3 -> 11.725 | H3: =saisie_D4_TC!M9 -> 12.9 | I3: =IF(H3=0,"",G3/H3) -> 0.9089147287 | J3: =détail_D4_TC!H3 -> 11.425 | K3: =saisie_D4_TC!U9 -> 13.9 | L3: =IF(K3=0,"",J3/K3) -> 0.821942446 | M3: =détail_D4_TC!I3 -> 12.575 | N3: =saisie_D4_TC!AC9 -> 13.7 | O3: =IF(N3=0,"",M3/N3) -> 0.9178832117 | P3: =détail_D4_TC!J3 -> FALSE | Q3: =saisie_D4_TC!AK9 -> 0 | R3: =IF(Q3=0,"",P3/Q3) ->  | S3: =détail_D4_TC!K3 -> FALSE | T3: =saisie_D4_TC!AS9 -> 0 | U3: =IF(T3=0,"",S3/T3) -> 
A4: =détail_D4_TC!C4 -> CHAMPAGNE Maewen | B4: =détail_D4_TC!D4 -> 2007 | C4: =détail_D4_TC!E4 -> Ju | D4: =détail_D4_TC!F4 -> 11.425 | E4: =saisie_D4_TC!E10 -> 12.4 | F4: 0.9213709677 | G4: =détail_D4_TC!G4 -> 10.75 | H4: =saisie_D4_TC!M10 -> 12.9 | I4: 0.8333333333 | J4: =détail_D4_TC!H4 -> 7.825 | K4: =saisie_D4_TC!U10 -> 12.1 | L4: 0.6466942149 | M4: =détail_D4_TC!I4 -> 12.05 | N4: =saisie_D4_TC!AC10 -> 13.7 | O4: 0.8795620438 | P4: =détail_D4_TC!J4 -> FALSE | Q4: =saisie_D4_TC!AK10 -> 0 | S4: =détail_D4_TC!K4 -> FALSE | T4: =saisie_D4_TC!AS10 -> 0
A5: =détail_D4_TC!C5 -> CONSIGLIO Calie | B5: =détail_D4_TC!D5 -> 2010 | C5: =détail_D4_TC!E5 -> Mi | D5: =détail_D4_TC!F5 -> 11.4 | E5: =saisie_D4_TC!E11 -> 12.4 | F5: 0.9193548387 | G5: =détail_D4_TC!G5 -> 10.025 | H5: =saisie_D4_TC!M11 -> 11.7 | I5: 0.8568376068 | J5: =détail_D4_TC!H5 -> 9.15 | K5: =saisie_D4_TC!U11 -> 12.7 | L5: 0.7204724409 | M5: =détail_D4_TC!I5 -> 11.95 | N5: =saisie_D4_TC!AC11 -> 13.5 | O5: 0.8851851852 | P5: =détail_D4_TC!J5 -> FALSE | Q5: =saisie_D4_TC!AK11 -> 0 | S5: =détail_D4_TC!K5 -> FALSE | T5: =saisie_D4_TC!AS11 -> 0
A6: =détail_D4_TC!C6 -> DELZONGLES Liona | B6: =détail_D4_TC!D6 -> 2006 | C6: =détail_D4_TC!E6 -> Ju | D6: =détail_D4_TC!F6 -> 0 | E6: =saisie_D4_TC!E12 -> 0 | G6: =détail_D4_TC!G6 -> 0 | H6: =saisie_D4_TC!M12 -> 0 | J6: =détail_D4_TC!H6 -> 10 | K6: =saisie_D4_TC!U12 -> 13.4 | L6: 0.7462686567 | M6: =détail_D4_TC!I6 -> 12.575 | N6: =saisie_D4_TC!AC12 -> 13.6 | O6: 0.9246323529 | P6: =détail_D4_TC!J6 -> FALSE | Q6: =saisie_D4_TC!AK12 -> 0 | S6: =détail_D4_TC!K6 -> FALSE | T6: =saisie_D4_TC!AS12 -> 0
A7: =détail_D4_TC!C7 -> DUFRENE Eva | B7: =détail_D4_TC!D7 -> 2009 | C7: =détail_D4_TC!E7 -> Ca | D7: =détail_D4_TC!F7 -> 10.425 | E7: =saisie_D4_TC!E13 -> 11.6 | F7: 0.8987068966 | G7: =détail_D4_TC!G7 -> 9.3 | H7: =saisie_D4_TC!M13 -> 11.1 | I7: 0.8378378378 | J7: =détail_D4_TC!H7 -> 11.95 | K7: =saisie_D4_TC!U13 -> 13.5 | L7: 0.8851851852 | M7: =détail_D4_TC!I7 -> 11.1 | N7: =saisie_D4_TC!AC13 -> 13.7 | O7: 0.8102189781 | P7: =détail_D4_TC!J7 -> FALSE | Q7: =saisie_D4_TC!AK13 -> 0 | S7: =détail_D4_TC!K7 -> FALSE | T7: =saisie_D4_TC!AS13 -> 0
A8: =détail_D4_TC!C8 -> ZAEPFFEL Chloe | B8: =détail_D4_TC!D8 -> 2005 | C8: =détail_D4_TC!E8 -> Sé | D8: =détail_D4_TC!F8 -> 11.475 | E8: =saisie_D4_TC!E14 -> 12.4 | F8: 0.9254032258 | G8: =détail_D4_TC!G8 -> 12.275 | H8: =saisie_D4_TC!M14 -> 12.9 | I8: 0.9515503876 | J8: =détail_D4_TC!H8 -> 8.625 | K8: =saisie_D4_TC!U14 -> 12.2 | L8: 0.7069672131 | M8: =détail_D4_TC!I8 -> 12.05 | N8: =saisie_D4_TC!AC14 -> 13.7 | O8: 0.8795620438 | P8: =détail_D4_TC!J8 -> FALSE | Q8: =saisie_D4_TC!AK14 -> 0 | S8: =détail_D4_TC!K8 -> FALSE | T8: =saisie_D4_TC!AS14 -> 0
A9: =détail_D4_TC!C9 -> PROMO Toutes Catégories | F9: =AVERAGE(LARGE(F3:F8,1),LARGE(F3:F8,2),LARGE(F3:F8,3),LARGE(F3:F8,4)) -> 0.9248991935 | I9: =AVERAGE(LARGE(I3:I8,1),LARGE(I3:I8,2),LARGE(I3:I8,3),LARGE(I3:I8,4)) -> 0.8887851402 | L9: =AVERAGE(LARGE(L3:L8,1),LARGE(L3:L8,2),LARGE(L3:L8,3),LARGE(L3:L8,4)) -> 0.7934671822 | O9: =AVERAGE(LARGE(O3:O8,1),LARGE(O3:O8,2),LARGE(O3:O8,3),LARGE(O3:O8,4)) -> 0.9018156984 | R9: =AVERAGE(LARGE(R3:R8,1),LARGE(R3:R8,2),LARGE(R3:R8,3),LARGE(R3:R8,4)) ->  | U9: =AVERAGE(LARGE(U3:U8,1),LARGE(U3:U8,2),LARGE(U3:U8,3),LARGE(U3:U8,4)) ->  | V9: =AVERAGE(F9,I9,L9,O9,R9,U9) -> 
A11: =détail_D4_TC!C12 -> TREMBLAY TC | D11: SOL | G11: ARCONS | J11: ANNEAUX | M11: SAUT | P11: BARRES | S11: FIXE | V11: MOYENNE
A12: =détail_D4_TC!C13 -> Nom des gymnastes | B12: =détail_D4_TC!D13 -> AN | C12: =détail_D4_TC!E13 -> CAT | D12: Note Finale | E12: Note Départ | F12: Rapport | G12: Note Finale | H12: Note Départ | I12: Rapport | J12: Note Finale | K12: Note Départ | L12: Rapport | M12: Note Finale | N12: Note Départ | O12: Rapport | P12: Note Finale | Q12: Note Départ | R12: Rapport | S12: Note Finale | T12: Note Départ | U12: Rapport
A13: =détail_D4_TC!C14 -> PANETTA Laura | B13: =détail_D4_TC!D14 -> 2003 | C13: =détail_D4_TC!E14 -> Sé | D13: =détail_D4_TC!F14 -> 10.5 | E13: =saisie_D4_TC!E20 -> 11.6 | F13: =IF(E13=0,"",D13/E13) -> 0.9051724138 | G13: =détail_D4_TC!G14 -> 11.075 | H13: =saisie_D4_TC!M20 -> 13 | I13: =IF(H13=0,"",G13/H13) -> 0.8519230769 | J13: =détail_D4_TC!H14 -> 5.6 | K13: =saisie_D4_TC!U20 -> 10.4 | L13: =IF(K13=0,"",J13/K13) -> 0.5384615385 | M13: =détail_D4_TC!I14 -> 12.3 | N13: =saisie_D4_TC!AC20 -> 13.6 | O13: =IF(N13=0,"",M13/N13) -> 0.9044117647 | P13: =détail_D4_TC!J14 -> FALSE | Q13: =saisie_D4_TC!AK20 -> 0 | R13: =IF(Q13=0,"",P13/Q13) ->  | S13: =détail_D4_TC!K14 -> FALSE | T13: =saisie_D4_TC!AS20 -> 0 | U13: =IF(T13=0,"",S13/T13) -> 
A14: =détail_D4_TC!C15 -> DE OLIVEIRA Eva | B14: =détail_D4_TC!D15 -> 2005 | C14: =détail_D4_TC!E15 -> Sé | D14: =détail_D4_TC!F15 -> 11.125 | E14: =saisie_D4_TC!E21 -> 11.6 | F14: 0.9590517241 | G14: =détail_D4_TC!G15 -> 4.325 | H14: =saisie_D4_TC!M21 -> 6.9 | I14: 0.6268115942 | J14: =détail_D4_TC!H15 -> 9.425 | K14: =saisie_D4_TC!U21 -> 12.2 | L14: 0.7725409836 | M14: =détail_D4_TC!I15 -> 9.375 | N14: =saisie_D4_TC!AC21 -> 11.2 | O14: 0.8370535714 | P14: =détail_D4_TC!J15 -> FALSE | Q14: =saisie_D4_TC!AK21 -> 0 | S14: =détail_D4_TC!K15 -> FALSE | T14: =saisie_D4_TC!AS21 -> 0
A15: =détail_D4_TC!C16 -> ANDREA | B15: =détail_D4_TC!D16 -> 2008 | C15: =détail_D4_TC!E16 -> Ca | D15: =détail_D4_TC!F16 -> 0 | E15: =saisie_D4_TC!E22 -> 0 | G15: =détail_D4_TC!G16 -> 7.575 | H15: =saisie_D4_TC!M22 -> 12.3 | I15: 0.6158536585 | J15: =détail_D4_TC!H16 -> 8.325 | K15: =saisie_D4_TC!U22 -> 13.3 | L15: 0.6259398496 | M15: =détail_D4_TC!I16 -> 0 | N15: =saisie_D4_TC!AC22 -> 0 | P15: =détail_D4_TC!J16 -> FALSE | Q15: =saisie_D4_TC!AK22 -> 0 | S15: =détail_D4_TC!K16 -> FALSE | T15: =saisie_D4_TC!AS22 -> 0
A16: =détail_D4_TC!C17 -> DUBOIS Lisa | B16: =détail_D4_TC!D17 -> 2006 | C16: =détail_D4_TC!E17 -> Ju | D16: =détail_D4_TC!F17 -> 10.425 | E16: =saisie_D4_TC!E23 -> 11.6 | F16: 0.8987068966 | G16: =détail_D4_TC!G17 -> 7.2 | H16: =saisie_D4_TC!M23 -> 11.1 | I16: 0.6486486486 | J16: =détail_D4_TC!H17 -> 4.85 | K16: =saisie_D4_TC!U23 -> 10.4 | L16: 0.4663461538 | M16: =détail_D4_TC!I17 -> 10.75 | N16: =saisie_D4_TC!AC23 -> 12.4 | O16: 0.8669354839 | P16: =détail_D4_TC!J17 -> FALSE | Q16: =saisie_D4_TC!AK23 -> 0 | S16: =détail_D4_TC!K17 -> FALSE | T16: =saisie_D4_TC!AS23 -> 0
A17: =détail_D4_TC!C18 -> VARANDA Marie | B17: =détail_D4_TC!D18 -> 2008 | C17: =détail_D4_TC!E18 -> Ca | D17: =détail_D4_TC!F18 -> 10.925 | E17: =saisie_D4_TC!E24 -> 12.4 | F17: 0.8810483871 | G17: =détail_D4_TC!G18 -> 4.2 | H17: =saisie_D4_TC!M24 -> 6.9 | I17: 0.6086956522 | J17: =détail_D4_TC!H18 -> 10.5 | K17: =saisie_D4_TC!U24 -> 13.3 | L17: 0.7894736842 | M17: =détail_D4_TC!I18 -> 10.475 | N17: =saisie_D4_TC!AC24 -> 11.7 | O17: 0.8952991453 | P17: =détail_D4_TC!J18 -> FALSE | Q17: =saisie_D4_TC!AK24 -> 0 | S17: =détail_D4_TC!K18 -> FALSE | T17: =saisie_D4_TC!AS24 -> 0
A18: =détail_D4_TC!C19 -> GASMI Louisa | B18: =détail_D4_TC!D19 -> 2005 | C18: =détail_D4_TC!E19 -> Sé | D18: =détail_D4_TC!F19 -> 10.5 | E18: =saisie_D4_TC!E25 -> 11.6 | F18: 0.9051724138 | G18: =détail_D4_TC!G19 -> 9.125 | H18: =saisie_D4_TC!M25 -> 11.7 | I18: 0.7799145299 | J18: =détail_D4_TC!H19 -> 7.875 | K18: =saisie_D4_TC!U25 -> 11.8 | L18: 0.6673728814 | M18: =détail_D4_TC!I19 -> 9.8 | N18: =saisie_D4_TC!AC25 -> 13.1 | O18: 0.7480916031 | P18: =détail_D4_TC!J19 -> FALSE | Q18: =saisie_D4_TC!AK25 -> 0 | S18: =détail_D4_TC!K19 -> FALSE | T18: =saisie_D4_TC!AS25 -> 0
A19: =détail_D4_TC!C20 -> PROMO Toutes Catégories | F19: =AVERAGE(LARGE(F13:F18,1),LARGE(F13:F18,2),LARGE(F13:F18,3),LARGE(F13:F18,4)) -> 0.9170258621 | I19: =AVERAGE(LARGE(I13:I18,1),LARGE(I13:I18,2),LARGE(I13:I18,3),LARGE(I13:I18,4)) -> 0.7268244624 | L19: =AVERAGE(LARGE(L13:L18,1),LARGE(L13:L18,2),LARGE(L13:L18,3),LARGE(L13:L18,4)) -> 0.7138318497 | O19: =AVERAGE(LARGE(O13:O18,1),LARGE(O13:O18,2),LARGE(O13:O18,3),LARGE(O13:O18,4)) -> 0.8759249913 | R19: =AVERAGE(LARGE(R13:R18,1),LARGE(R13:R18,2),LARGE(R13:R18,3),LARGE(R13:R18,4)) ->  | U19: =AVERAGE(LARGE(U13:U18,1),LARGE(U13:U18,2),LARGE(U13:U18,3),LARGE(U13:U18,4)) ->  | V19: =AVERAGE(F19,I19,L19,O19,R19,U19) -> 
A21: =détail_D4_TC!C23 -> VITRY TC | D21: SOL | G21: ARCONS | J21: ANNEAUX | M21: SAUT | P21: BARRES | S21: FIXE | V21: MOYENNE
A22: =détail_D4_TC!C24 -> Nom des gymnastes | B22: =détail_D4_TC!D24 -> AN | C22: =détail_D4_TC!E24 -> CAT | D22: Note Finale | E22: Note Départ | F22: Rapport | G22: Note Finale | H22: Note Départ | I22: Rapport | J22: Note Finale | K22: Note Départ | L22: Rapport | M22: Note Finale | N22: Note Départ | O22: Rapport | P22: Note Finale | Q22: Note Départ | R22: Rapport | S22: Note Finale | T22: Note Départ | U22: Rapport
A23: =détail_D4_TC!C25 -> ADIHOU Tiffanie | B23: =détail_D4_TC!D25 -> 2004 | C23: =détail_D4_TC!E25 -> Sé | D23: =détail_D4_TC!F25 -> 10.125 | E23: =saisie_D4_TC!E31 -> 11.6 | F23: =IF(E23=0,"",D23/E23) -> 0.8728448276 | G23: =détail_D4_TC!G25 -> 7.6 | H23: =saisie_D4_TC!M31 -> 9.3 | I23: =IF(H23=0,"",G23/H23) -> 0.8172043011 | J23: =détail_D4_TC!H25 -> 5.15 | K23: =saisie_D4_TC!U31 -> 9.7 | L23: =IF(K23=0,"",J23/K23) -> 0.5309278351 | M23: =détail_D4_TC!I25 -> 11.25 | N23: =saisie_D4_TC!AC31 -> 13.7 | O23: =IF(N23=0,"",M23/N23) -> 0.8211678832 | P23: =détail_D4_TC!J25 -> FALSE | Q23: =saisie_D4_TC!AK31 -> 0 | R23: =IF(Q23=0,"",P23/Q23) ->  | S23: =détail_D4_TC!K25 -> FALSE | T23: =saisie_D4_TC!AS31 -> 0 | U23: =IF(T23=0,"",S23/T23) -> 
A24: =détail_D4_TC!C26 -> BOULEDROUA Katia | B24: =détail_D4_TC!D26 -> 2009 | C24: =détail_D4_TC!E26 -> Ca | D24: =détail_D4_TC!F26 -> 10.4 | E24: =saisie_D4_TC!E32 -> 11.6 | F24: 0.8965517241 | G24: =détail_D4_TC!G26 -> 8.675 | H24: =saisie_D4_TC!M32 -> 11 | I24: 0.7886363636 | J24: =détail_D4_TC!H26 -> 8.325 | K24: =saisie_D4_TC!U32 -> 12.1 | L24: 0.6880165289 | M24: =détail_D4_TC!I26 -> 11.675 | N24: =saisie_D4_TC!AC32 -> 13.5 | O24: 0.8648148148 | P24: =détail_D4_TC!J26 -> FALSE | Q24: =saisie_D4_TC!AK32 -> 0 | S24: =détail_D4_TC!K26 -> FALSE | T24: =saisie_D4_TC!AS32 -> 0
A25: =détail_D4_TC!C27 -> CHAUMONT Lilou | B25: =détail_D4_TC!D27 -> 2007 | C25: =détail_D4_TC!E27 -> Ju | D25: =détail_D4_TC!F27 -> 10.725 | E25: =saisie_D4_TC!E33 -> 11.6 | F25: 0.9245689655 | G25: =détail_D4_TC!G27 -> 11.375 | H25: =saisie_D4_TC!M33 -> 12.9 | I25: 0.8817829457 | J25: =détail_D4_TC!H27 -> 9.4 | K25: =saisie_D4_TC!U33 -> 13.5 | L25: 0.6962962963 | M25: =détail_D4_TC!I27 -> 11.7 | N25: =saisie_D4_TC!AC33 -> 13.7 | O25: 0.8540145985 | P25: =détail_D4_TC!J27 -> FALSE | Q25: =saisie_D4_TC!AK33 -> 0 | S25: =détail_D4_TC!K27 -> FALSE | T25: =saisie_D4_TC!AS33 -> 0
A26: =détail_D4_TC!C28 -> FRANK Johanna | B26: =détail_D4_TC!D28 -> 2007 | C26: =détail_D4_TC!E28 -> Ju | D26: =détail_D4_TC!F28 -> 11.6 | E26: =saisie_D4_TC!E34 -> 12.4 | F26: 0.935483871 | G26: =détail_D4_TC!G28 -> 11.2 | H26: =saisie_D4_TC!M34 -> 13 | I26: 0.8615384615 | J26: =détail_D4_TC!H28 -> 11.2 | K26: =saisie_D4_TC!U34 -> 13.5 | L26: 0.8296296296 | M26: =détail_D4_TC!I28 -> 12.225 | N26: =saisie_D4_TC!AC34 -> 13.7 | O26: 0.8923357664 | P26: =détail_D4_TC!J28 -> FALSE | Q26: =saisie_D4_TC!AK34 -> 0 | S26: =détail_D4_TC!K28 -> FALSE | T26: =saisie_D4_TC!AS34 -> 0
A27: =détail_D4_TC!C29 -> THOMAS Leah | B27: =détail_D4_TC!D29 -> 2006 | C27: =détail_D4_TC!E29 -> Ju | D27: =détail_D4_TC!F29 -> 11.575 | E27: =saisie_D4_TC!E35 -> 12.4 | F27: 0.9334677419 | G27: =détail_D4_TC!G29 -> 12.1 | H27: =saisie_D4_TC!M35 -> 13 | I27: 0.9307692308 | J27: =détail_D4_TC!H29 -> 10.4 | K27: =saisie_D4_TC!U35 -> 13.5 | L27: 0.7703703704 | M27: =détail_D4_TC!I29 -> 12.05 | N27: =saisie_D4_TC!AC35 -> 13.7 | O27: 0.8795620438 | P27: =détail_D4_TC!J29 -> FALSE | Q27: =saisie_D4_TC!AK35 -> 0 | S27: =détail_D4_TC!K29 -> FALSE | T27: =saisie_D4_TC!AS35 -> 0
A28: =détail_D4_TC!C30 -> STAAT Elise | B28: =détail_D4_TC!D30 -> 1998 | C28: =détail_D4_TC!E30 -> Sé | D28: =détail_D4_TC!F30 -> 11.65 | E28: =saisie_D4_TC!E36 -> 12.4 | F28: 0.939516129 | G28: =détail_D4_TC!G30 -> 11.125 | H28: =saisie_D4_TC!M36 -> 13.1 | I28: 0.8492366412 | J28: =détail_D4_TC!H30 -> 8.375 | K28: =saisie_D4_TC!U36 -> 11.1 | L28: 0.7545045045 | M28: =détail_D4_TC!I30 -> 12.05 | N28: =saisie_D4_TC!AC36 -> 13.6 | O28: 0.8860294118 | P28: =détail_D4_TC!J30 -> FALSE | Q28: =saisie_D4_TC!AK36 -> 0 | S28: =détail_D4_TC!K30 -> FALSE | T28: =saisie_D4_TC!AS36 -> 0
A29: =détail_D4_TC!C31 -> PROMO Toutes Catégories | F29: =AVERAGE(LARGE(F23:F28,1),LARGE(F23:F28,2),LARGE(F23:F28,3),LARGE(F23:F28,4)) -> 0.9332591769 | I29: =AVERAGE(LARGE(I23:I28,1),LARGE(I23:I28,2),LARGE(I23:I28,3),LARGE(I23:I28,4)) -> 0.8808318198 | L29: =AVERAGE(LARGE(L23:L28,1),LARGE(L23:L28,2),LARGE(L23:L28,3),LARGE(L23:L28,4)) -> 0.7627002002 | O29: =AVERAGE(LARGE(O23:O28,1),LARGE(O23:O28,2),LARGE(O23:O28,3),LARGE(O23:O28,4)) -> 0.8806855092 | R29: =AVERAGE(LARGE(R23:R28,1),LARGE(R23:R28,2),LARGE(R23:R28,3),LARGE(R23:R28,4)) ->  | U29: =AVERAGE(LARGE(U23:U28,1),LARGE(U23:U28,2),LARGE(U23:U28,3),LARGE(U23:U28,4)) ->  | V29: =AVERAGE(F29,I29,L29,O29,R29,U29) -> 
A31: =détail_D4_TC!C34 -> NOISY LE SEC TC | D31: SOL | G31: ARCONS | J31: ANNEAUX | M31: SAUT | P31: BARRES | S31: FIXE | V31: MOYENNE
A32: =détail_D4_TC!C35 -> Nom des gymnastes | B32: =détail_D4_TC!D35 -> AN | C32: =détail_D4_TC!E35 -> CAT | D32: Note Finale | E32: Note Départ | F32: Rapport | G32: Note Finale | H32: Note Départ | I32: Rapport | J32: Note Finale | K32: Note Départ | L32: Rapport | M32: Note Finale | N32: Note Départ | O32: Rapport | P32: Note Finale | Q32: Note Départ | R32: Rapport | S32: Note Finale | T32: Note Départ | U32: Rapport
A33: =détail_D4_TC!C36 -> ARGAND Myriam | B33: =détail_D4_TC!D36 -> 2002 | C33: =détail_D4_TC!E36 -> Sé | D33: =détail_D4_TC!F36 -> 11.6 | E33: =saisie_D4_TC!E42 -> 12.4 | F33: =IF(E33=0,"",D33/E33) -> 0.935483871 | G33: =détail_D4_TC!G36 -> 12.4 | H33: =saisie_D4_TC!M42 -> 13 | I33: =IF(H33=0,"",G33/H33) -> 0.9538461538 | J33: =détail_D4_TC!H36 -> 10.575 | K33: =saisie_D4_TC!U42 -> 13.4 | L33: =IF(K33=0,"",J33/K33) -> 0.7891791045 | M33: =détail_D4_TC!I36 -> 11.8 | N33: =saisie_D4_TC!AC42 -> 13.5 | O33: =IF(N33=0,"",M33/N33) -> 0.8740740741 | P33: =détail_D4_TC!J36 -> FALSE | Q33: =saisie_D4_TC!AK42 -> 0 | R33: =IF(Q33=0,"",P33/Q33) ->  | S33: =détail_D4_TC!K36 -> FALSE | T33: =saisie_D4_TC!AS42 -> 0 | U33: =IF(T33=0,"",S33/T33) -> 
A34: =détail_D4_TC!C37 -> DUVAL Marie | B34: =détail_D4_TC!D37 -> 2002 | C34: =détail_D4_TC!E37 -> Sé | D34: =détail_D4_TC!F37 -> 11.75 | E34: =saisie_D4_TC!E43 -> 12.4 | F34: 0.9475806452 | G34: =détail_D4_TC!G37 -> 11.775 | H34: =saisie_D4_TC!M43 -> 12.9 | I34: 0.9127906977 | J34: =détail_D4_TC!H37 -> 10.925 | K34: =saisie_D4_TC!U43 -> 13.3 | L34: 0.8214285714 | M34: =détail_D4_TC!I37 -> 11.925 | N34: =saisie_D4_TC!AC43 -> 13.4 | O34: 0.8899253731 | P34: =détail_D4_TC!J37 -> FALSE | Q34: =saisie_D4_TC!AK43 -> 0 | S34: =détail_D4_TC!K37 -> FALSE | T34: =saisie_D4_TC!AS43 -> 0
A35: =détail_D4_TC!C38 -> GRENECHE Salma | B35: =détail_D4_TC!D38 -> 2005 | C35: =détail_D4_TC!E38 -> Sé | D35: =détail_D4_TC!F38 -> 11.525 | E35: =saisie_D4_TC!E44 -> 12.4 | F35: 0.9294354839 | G35: =détail_D4_TC!G38 -> 12.375 | H35: =saisie_D4_TC!M44 -> 13 | I35: 0.9519230769 | J35: =détail_D4_TC!H38 -> 11.3 | K35: =saisie_D4_TC!U44 -> 13.4 | L35: 0.8432835821 | M35: =détail_D4_TC!I38 -> 11.775 | N35: =saisie_D4_TC!AC44 -> 13.6 | O35: 0.8658088235 | P35: =détail_D4_TC!J38 -> FALSE | Q35: =saisie_D4_TC!AK44 -> 0 | S35: =détail_D4_TC!K38 -> FALSE | T35: =saisie_D4_TC!AS44 -> 0
A36: =détail_D4_TC!C39 -> MIMOUNI Amel | B36: =détail_D4_TC!D39 -> 1998 | C36: =détail_D4_TC!E39 -> Sé | D36: =détail_D4_TC!F39 -> 0 | E36: =saisie_D4_TC!E45 -> 0 | G36: =détail_D4_TC!G39 -> 11.375 | H36: =saisie_D4_TC!M45 -> 12.9 | I36: 0.8817829457 | J36: =détail_D4_TC!H39 -> 11.475 | K36: =saisie_D4_TC!U45 -> 13.2 | L36: 0.8693181818 | M36: =détail_D4_TC!I39 -> 10.575 | N36: =saisie_D4_TC!AC45 -> 13.5 | O36: 0.7833333333 | P36: =détail_D4_TC!J39 -> FALSE | Q36: =saisie_D4_TC!AK45 -> 0 | S36: =détail_D4_TC!K39 -> FALSE | T36: =saisie_D4_TC!AS45 -> 0
A37: =détail_D4_TC!C40 -> MALLET Laurine | B37: =détail_D4_TC!D40 -> 1998 | C37: =détail_D4_TC!E40 -> Sé | D37: =détail_D4_TC!F40 -> 11.275 | E37: =saisie_D4_TC!E46 -> 12.4 | F37: 0.9092741935 | G37: =détail_D4_TC!G40 -> 11.8 | H37: =saisie_D4_TC!M46 -> 12.9 | I37: 0.9147286822 | J37: =détail_D4_TC!H40 -> 11.475 | K37: =saisie_D4_TC!U46 -> 13.1 | L37: 0.8759541985 | M37: =détail_D4_TC!I40 -> 11.875 | N37: =saisie_D4_TC!AC46 -> 13.5 | O37: 0.8796296296 | P37: =détail_D4_TC!J40 -> FALSE | Q37: =saisie_D4_TC!AK46 -> 0 | S37: =détail_D4_TC!K40 -> FALSE | T37: =saisie_D4_TC!AS46 -> 0
A38: =détail_D4_TC!C41 -> 0 | B38: =détail_D4_TC!D41 -> 0 | C38: =détail_D4_TC!E41 ->  | D38: =détail_D4_TC!F41 -> 0 | E38: =saisie_D4_TC!E47 -> 0 | G38: =détail_D4_TC!G41 -> 0 | H38: =saisie_D4_TC!M47 -> 0 | J38: =détail_D4_TC!H41 -> 0 | K38: =saisie_D4_TC!U47 -> 0 | M38: =détail_D4_TC!I41 -> 0 | N38: =saisie_D4_TC!AC47 -> 0 | P38: =détail_D4_TC!J41 -> FALSE | Q38: =saisie_D4_TC!AK47 -> 0 | S38: =détail_D4_TC!K41 -> FALSE | T38: =saisie_D4_TC!AS47 -> 0
A39: =détail_D4_TC!C42 -> PROMO Toutes Catégories | F39: =AVERAGE(LARGE(F33:F38,1),LARGE(F33:F38,2),LARGE(F33:F38,3),LARGE(F33:F38,4)) -> 0.9304435484 | I39: =AVERAGE(LARGE(I33:I38,1),LARGE(I33:I38,2),LARGE(I33:I38,3),LARGE(I33:I38,4)) -> 0.9333221527 | L39: =AVERAGE(LARGE(L33:L38,1),LARGE(L33:L38,2),LARGE(L33:L38,3),LARGE(L33:L38,4)) -> 0.8524961335 | O39: =AVERAGE(LARGE(O33:O38,1),LARGE(O33:O38,2),LARGE(O33:O38,3),LARGE(O33:O38,4)) -> 0.8773594751 | R39: =AVERAGE(LARGE(R33:R38,1),LARGE(R33:R38,2),LARGE(R33:R38,3),LARGE(R33:R38,4)) ->  | U39: =AVERAGE(LARGE(U33:U38,1),LARGE(U33:U38,2),LARGE(U33:U38,3),LARGE(U33:U38,4)) ->  | V39: =AVERAGE(F39,I39,L39,O39,R39,U39) -> 
A41: =détail_D4_TC!C45 -> LE PIN TC | D41: SOL | G41: ARCONS | J41: ANNEAUX | M41: SAUT | P41: BARRES | S41: FIXE | V41: MOYENNE
A42: =détail_D4_TC!C46 -> Nom des gymnastes | B42: =détail_D4_TC!D46 -> AN | C42: =détail_D4_TC!E46 -> CAT | D42: Note Finale | E42: Note Départ | F42: Rapport | G42: Note Finale | H42: Note Départ | I42: Rapport | J42: Note Finale | K42: Note Départ | L42: Rapport | M42: Note Finale | N42: Note Départ | O42: Rapport | P42: Note Finale | Q42: Note Départ | R42: Rapport | S42: Note Finale | T42: Note Départ | U42: Rapport
A43: =détail_D4_TC!C47 -> FAGEGALTIER Jade | B43: =détail_D4_TC!D47 -> 2009 | C43: =détail_D4_TC!E47 -> Ca | D43: =détail_D4_TC!F47 -> 11.125 | E43: =saisie_D4_TC!E53 -> 12.4 | F43: =IF(E43=0,"",D43/E43) -> 0.8971774194 | G43: =détail_D4_TC!G47 -> 11.975 | H43: =saisie_D4_TC!M53 -> 12.9 | I43: =IF(H43=0,"",G43/H43) -> 0.9282945736 | J43: =détail_D4_TC!H47 -> 9.925 | K43: =saisie_D4_TC!U53 -> 13.5 | L43: =IF(K43=0,"",J43/K43) -> 0.7351851852 | M43: =détail_D4_TC!I47 -> 12.425 | N43: =saisie_D4_TC!AC53 -> 13.7 | O43: =IF(N43=0,"",M43/N43) -> 0.9069343066 | P43: =détail_D4_TC!J47 -> FALSE | Q43: =saisie_D4_TC!AK53 -> 0 | R43: =IF(Q43=0,"",P43/Q43) ->  | S43: =détail_D4_TC!K47 -> FALSE | T43: =saisie_D4_TC!AS53 -> 0 | U43: =IF(T43=0,"",S43/T43) -> 
A44: =détail_D4_TC!C48 -> MELICIANO Maelys | B44: =détail_D4_TC!D48 -> 2006 | C44: =détail_D4_TC!E48 -> Ju | D44: =détail_D4_TC!F48 -> 11.725 | E44: =saisie_D4_TC!E54 -> 12.4 | F44: 0.9455645161 | G44: =détail_D4_TC!G48 -> 11.625 | H44: =saisie_D4_TC!M54 -> 12.9 | I44: 0.9011627907 | J44: =détail_D4_TC!H48 -> 10.825 | K44: =saisie_D4_TC!U54 -> 13.3 | L44: 0.8139097744 | M44: =détail_D4_TC!I48 -> 13.025 | N44: =saisie_D4_TC!AC54 -> 13.6 | O44: 0.9577205882 | P44: =détail_D4_TC!J48 -> FALSE | Q44: =saisie_D4_TC!AK54 -> 0 | S44: =détail_D4_TC!K48 -> FALSE | T44: =saisie_D4_TC!AS54 -> 0
A45: =détail_D4_TC!C49 -> LEBLANC Judith | B45: =détail_D4_TC!D49 -> 2005 | C45: =détail_D4_TC!E49 -> Sé | D45: =détail_D4_TC!F49 -> 12 | E45: =saisie_D4_TC!E55 -> 12.4 | F45: 0.9677419355 | G45: =détail_D4_TC!G49 -> 12.25 | H45: =saisie_D4_TC!M55 -> 13 | I45: 0.9423076923 | J45: =détail_D4_TC!H49 -> 11.7 | K45: =saisie_D4_TC!U55 -> 13.4 | L45: 0.8731343284 | M45: =détail_D4_TC!I49 -> 13.075 | N45: =saisie_D4_TC!AC55 -> 13.7 | O45: 0.954379562 | P45: =détail_D4_TC!J49 -> FALSE | Q45: =saisie_D4_TC!AK55 -> 0 | S45: =détail_D4_TC!K49 -> FALSE | T45: =saisie_D4_TC!AS55 -> 0
A46: =détail_D4_TC!C50 -> RATNAKUMAR Celine | B46: =détail_D4_TC!D50 -> 2005 | C46: =détail_D4_TC!E50 -> Sé | D46: =détail_D4_TC!F50 -> 11.35 | E46: =saisie_D4_TC!E56 -> 12.4 | F46: 0.9153225806 | G46: =détail_D4_TC!G50 -> 11.2 | H46: =saisie_D4_TC!M56 -> 12.9 | I46: 0.8682170543 | J46: =détail_D4_TC!H50 -> 10.625 | K46: =saisie_D4_TC!U56 -> 13.4 | L46: 0.7929104478 | M46: =détail_D4_TC!I50 -> 12.975 | N46: =saisie_D4_TC!AC56 -> 13.7 | O46: 0.947080292 | P46: =détail_D4_TC!J50 -> FALSE | Q46: =saisie_D4_TC!AK56 -> 0 | S46: =détail_D4_TC!K50 -> FALSE | T46: =saisie_D4_TC!AS56 -> 0
A47: =détail_D4_TC!C51 -> SANCHEZ MIRRE Jessica | B47: =détail_D4_TC!D51 -> 1997 | C47: =détail_D4_TC!E51 -> Sé | D47: =détail_D4_TC!F51 -> 10.625 | E47: =saisie_D4_TC!E57 -> 11.6 | F47: 0.9159482759 | G47: =détail_D4_TC!G51 -> 12.625 | H47: =saisie_D4_TC!M57 -> 13.1 | I47: 0.963740458 | J47: =détail_D4_TC!H51 -> 10.725 | K47: =saisie_D4_TC!U57 -> 13.4 | L47: 0.8003731343 | M47: =détail_D4_TC!I51 -> 12.7 | N47: =saisie_D4_TC!AC57 -> 13.6 | O47: 0.9338235294 | P47: =détail_D4_TC!J51 -> FALSE | Q47: =saisie_D4_TC!AK57 -> 0 | S47: =détail_D4_TC!K51 -> FALSE | T47: =saisie_D4_TC!AS57 -> 0
A48: =détail_D4_TC!C52 -> 0 | B48: =détail_D4_TC!D52 -> 0 | C48: =détail_D4_TC!E52 ->  | D48: =détail_D4_TC!F52 -> 0 | E48: =saisie_D4_TC!E58 -> 0 | G48: =détail_D4_TC!G52 -> 0 | H48: =saisie_D4_TC!M58 -> 0 | J48: =détail_D4_TC!H52 -> 0 | K48: =saisie_D4_TC!U58 -> 0 | M48: =détail_D4_TC!I52 -> 0 | N48: =saisie_D4_TC!AC58 -> 0 | P48: =détail_D4_TC!J52 -> FALSE | Q48: =saisie_D4_TC!AK58 -> 0 | S48: =détail_D4_TC!K52 -> FALSE | T48: =saisie_D4_TC!AS58 -> 0
A49: =détail_D4_TC!C53 -> PROMO Toutes Catégories | F49: =AVERAGE(LARGE(F43:F48,1),LARGE(F43:F48,2),LARGE(F43:F48,3),LARGE(F43:F48,4)) -> 0.936144327 | I49: =AVERAGE(LARGE(I43:I48,1),LARGE(I43:I48,2),LARGE(I43:I48,3),LARGE(I43:I48,4)) -> 0.9338763787 | L49: =AVERAGE(LARGE(L43:L48,1),LARGE(L43:L48,2),LARGE(L43:L48,3),LARGE(L43:L48,4)) -> 0.8200819212 | O49: =AVERAGE(LARGE(O43:O48,1),LARGE(O43:O48,2),LARGE(O43:O48,3),LARGE(O43:O48,4)) -> 0.9482509929 | R49: =AVERAGE(LARGE(R43:R48,1),LARGE(R43:R48,2),LARGE(R43:R48,3),LARGE(R43:R48,4)) ->  | U49: =AVERAGE(LARGE(U43:U48,1),LARGE(U43:U48,2),LARGE(U43:U48,3),LARGE(U43:U48,4)) ->  | V49: =AVERAGE(F49,I49,L49,O49,R49,U49) -> 
A51: =détail_D4_TC!C56 -> LE PIN INDIV | D51: SOL | G51: ARCONS | J51: ANNEAUX | M51: SAUT | P51: BARRES | S51: FIXE | V51: MOYENNE
A52: =détail_D4_TC!C57 -> Nom des gymnastes | B52: =détail_D4_TC!D57 -> AN | C52: =détail_D4_TC!E57 -> CAT | D52: Note Finale | E52: Note Départ | F52: Rapport | G52: Note Finale | H52: Note Départ | I52: Rapport | J52: Note Finale | K52: Note Départ | L52: Rapport | M52: Note Finale | N52: Note Départ | O52: Rapport | P52: Note Finale | Q52: Note Départ | R52: Rapport | S52: Note Finale | T52: Note Départ | U52: Rapport
A53: =détail_D4_TC!C58 -> MELICIANO Shaily | B53: =détail_D4_TC!D58 -> 2008 | C53: =détail_D4_TC!E58 -> Ca | D53: =détail_D4_TC!F58 -> 10.8 | E53: =saisie_D4_TC!E64 -> 11.6 | F53: =IF(E53=0,"",D53/E53) -> 0.9310344828 | G53: =détail_D4_TC!G58 -> 11.175 | H53: =saisie_D4_TC!M64 -> 12.9 | I53: =IF(H53=0,"",G53/H53) -> 0.8662790698 | J53: =détail_D4_TC!H58 -> 9.475 | K53: =saisie_D4_TC!U64 -> 13.4 | L53: =IF(K53=0,"",J53/K53) -> 0.7070895522 | M53: =détail_D4_TC!I58 -> 12.55 | N53: =saisie_D4_TC!AC64 -> 13.7 | O53: =IF(N53=0,"",M53/N53) -> 0.9160583942 | P53: =détail_D4_TC!J58 -> FALSE | Q53: =saisie_D4_TC!AK64 -> 0 | R53: =IF(Q53=0,"",P53/Q53) ->  | S53: =détail_D4_TC!K58 -> FALSE | T53: =saisie_D4_TC!AS64 -> 0 | U53: =IF(T53=0,"",S53/T53) -> 
A54: =détail_D4_TC!C59 -> 0 | B54: =détail_D4_TC!D59 -> 0 | C54: =détail_D4_TC!E59 ->  | D54: =détail_D4_TC!F59 -> 0 | E54: =saisie_D4_TC!E65 -> 0 | G54: =détail_D4_TC!G59 -> 0 | H54: =saisie_D4_TC!M65 -> 0 | J54: =détail_D4_TC!H59 -> 0 | K54: =saisie_D4_TC!U65 -> 0 | M54: =détail_D4_TC!I59 -> 0 | N54: =saisie_D4_TC!AC65 -> 0 | P54: =détail_D4_TC!J59 -> FALSE | Q54: =saisie_D4_TC!AK65 -> 0 | S54: =détail_D4_TC!K59 -> FALSE | T54: =saisie_D4_TC!AS65 -> 0
A55: =détail_D4_TC!C60 -> 0 | B55: =détail_D4_TC!D60 -> 0 | C55: =détail_D4_TC!E60 ->  | D55: =détail_D4_TC!F60 -> 0 | E55: =saisie_D4_TC!E66 -> 0 | G55: =détail_D4_TC!G60 -> 0 | H55: =saisie_D4_TC!M66 -> 0 | J55: =détail_D4_TC!H60 -> 0 | K55: =saisie_D4_TC!U66 -> 0 | M55: =détail_D4_TC!I60 -> 0 | N55: =saisie_D4_TC!AC66 -> 0 | P55: =détail_D4_TC!J60 -> FALSE | Q55: =saisie_D4_TC!AK66 -> 0 | S55: =détail_D4_TC!K60 -> FALSE | T55: =saisie_D4_TC!AS66 -> 0
A56: =détail_D4_TC!C61 -> 0 | B56: =détail_D4_TC!D61 -> 0 | C56: =détail_D4_TC!E61 ->  | D56: =détail_D4_TC!F61 -> 0 | E56: =saisie_D4_TC!E67 -> 0 | G56: =détail_D4_TC!G61 -> 0 | H56: =saisie_D4_TC!M67 -> 0 | J56: =détail_D4_TC!H61 -> 0 | K56: =saisie_D4_TC!U67 -> 0 | M56: =détail_D4_TC!I61 -> 0 | N56: =saisie_D4_TC!AC67 -> 0 | P56: =détail_D4_TC!J61 -> FALSE | Q56: =saisie_D4_TC!AK67 -> 0 | S56: =détail_D4_TC!K61 -> FALSE | T56: =saisie_D4_TC!AS67 -> 0
A57: =détail_D4_TC!C62 -> 0 | B57: =détail_D4_TC!D62 -> 0 | C57: =détail_D4_TC!E62 ->  | D57: =détail_D4_TC!F62 -> 0 | E57: =saisie_D4_TC!E68 -> 0 | G57: =détail_D4_TC!G62 -> 0 | H57: =saisie_D4_TC!M68 -> 0 | J57: =détail_D4_TC!H62 -> 0 | K57: =saisie_D4_TC!U68 -> 0 | M57: =détail_D4_TC!I62 -> 0 | N57: =saisie_D4_TC!AC68 -> 0 | P57: =détail_D4_TC!J62 -> FALSE | Q57: =saisie_D4_TC!AK68 -> 0 | S57: =détail_D4_TC!K62 -> FALSE | T57: =saisie_D4_TC!AS68 -> 0
A58: =détail_D4_TC!C63 -> 0 | B58: =détail_D4_TC!D63 -> 0 | C58: =détail_D4_TC!E63 ->  | D58: =détail_D4_TC!F63 -> 0 | E58: =saisie_D4_TC!E69 -> 0 | G58: =détail_D4_TC!G63 -> 0 | H58: =saisie_D4_TC!M69 -> 0 | J58: =détail_D4_TC!H63 -> 0 | K58: =saisie_D4_TC!U69 -> 0 | M58: =détail_D4_TC!I63 -> 0 | N58: =saisie_D4_TC!AC69 -> 0 | P58: =détail_D4_TC!J63 -> FALSE | Q58: =saisie_D4_TC!AK69 -> 0 | S58: =détail_D4_TC!K63 -> FALSE | T58: =saisie_D4_TC!AS69 -> 0
A59: =détail_D4_TC!C64 -> PROMO Toutes Catégories | F59: =AVERAGE(LARGE(F53:F58,1),LARGE(F53:F58,2),LARGE(F53:F58,3),LARGE(F53:F58,4)) ->  | I59: =AVERAGE(LARGE(I53:I58,1),LARGE(I53:I58,2),LARGE(I53:I58,3),LARGE(I53:I58,4)) ->  | L59: =AVERAGE(LARGE(L53:L58,1),LARGE(L53:L58,2),LARGE(L53:L58,3),LARGE(L53:L58,4)) ->  | O59: =AVERAGE(LARGE(O53:O58,1),LARGE(O53:O58,2),LARGE(O53:O58,3),LARGE(O53:O58,4)) ->  | R59: =AVERAGE(LARGE(R53:R58,1),LARGE(R53:R58,2),LARGE(R53:R58,3),LARGE(R53:R58,4)) ->  | U59: =AVERAGE(LARGE(U53:U58,1),LARGE(U53:U58,2),LARGE(U53:U58,3),LARGE(U53:U58,4)) ->  | V59: =AVERAGE(F59,I59,L59,O59,R59,U59) -> 

Sheet Macro1 (hidden)
A1: Macro_Effacer_Détail
A2: =IF(ALERT("Cette Macro va effacer les données contenues dans un onglet 'détail' Voulez-vous continuer ?",1)=FALSE,GOTO(A12)) -> FALSE
A3: =ECHO(FALSE) -> TRUE
A4: =PROTECT.DOCUMENT(FALSE,,"",FALSE) -> TRUE
A5: =FOR("i",1,20) -> TRUE
A6: =SELECT("L"&(i-1)*10+(i*1)&"C3") -> TRUE
A7: =FORMULA("NOM DU CLUB") -> TRUE
A8: =SELECT("L(2)C:L(7)C(1)") -> TRUE
A9: =CLEAR(3) -> TRUE
A10: =NEXT() -> TRUE
A11: =PROTECT.DOCUMENT(TRUE,,"",TRUE) -> FALSE | B11: =ECHO(FALSE) -> FALSE | C11: FALSE | D11: FALSE | E11: FALSE | F11: FALSE | G11: FALSE | H11: FALSE | I11: FALSE | J11: FALSE | K11: FALSE | L11: FALSE | M11: FALSE | N11: FALSE | O11: FALSE | P11: FALSE | Q11: FALSE | R11: FALSE | S11: FALSE | T11: FALSE | U11: FALSE | V11: FALSE | W11: FALSE | X11: FALSE | Y11: FALSE | Z11: FALSE | AA11: FALSE | AB11: FALSE | AC11: FALSE | AD11: FALSE | AE11: FALSE | AF11: FALSE | AG11: FALSE | AH11: FALSE | AI11: FALSE | AJ11: FALSE | AK11: FALSE | AL11: FALSE | AM11: FALSE | AN11: FALSE | AO11: FALSE | AP11: FALSE | AQ11: FALSE | AR11: FALSE | AS11: FALSE | AT11: FALSE | AU11: FALSE | AV11: FALSE | AW11: FALSE | AX11: FALSE | AY11: FALSE | AZ11: FALSE | BA11: FALSE | BB11: FALSE | BC11: FALSE | BD11: FALSE | BE11: FALSE | BF11: FALSE | BG11: FALSE | BH11: FALSE | BI11: FALSE | BJ11: FALSE | BK11: FALSE | BL11: FALSE | BM11: FALSE | BN11: =ECHO(FALSE) -> FALSE | BO11: FALSE | BP11: FALSE | BQ11: FALSE | BR11: FALSE | BS11: FALSE | BT11: FALSE | BU11: FALSE | BV11: FALSE | BW11: FALSE | BX11: FALSE | BY11: FALSE | BZ11: FALSE | CA11: FALSE | CB11: FALSE | CC11: FALSE | CD11: FALSE | CE11: FALSE | CF11: FALSE | CG11: FALSE | CH11: FALSE | CI11: FALSE | CJ11: FALSE | CK11: FALSE | CL11: FALSE | CM11: FALSE | CN11: FALSE | CO11: FALSE | CP11: FALSE | CQ11: FALSE | CR11: FALSE | CS11: FALSE | CT11: FALSE | CU11: FALSE | CV11: FALSE | CW11: FALSE | CX11: FALSE | CY11: FALSE | CZ11: FALSE | DA11: FALSE | DB11: FALSE | DC11: FALSE | DD11: FALSE | DE11: FALSE | DF11: FALSE | DG11: FALSE | DH11: FALSE | DI11: FALSE | DJ11: FALSE | DK11: FALSE | DL11: FALSE | DM11: FALSE | DN11: FALSE | DO11: FALSE | DP11: FALSE | DQ11: FALSE | DR11: FALSE | DS11: FALSE | DT11: FALSE | DU11: FALSE | DV11: FALSE | DW11: FALSE | DX11: FALSE | DY11: FALSE | DZ11: =ECHO(FALSE) -> FALSE | EA11: FALSE | EB11: FALSE | EC11: FALSE | ED11: FALSE | EE11: FALSE | EF11: FALSE | EG11: FALSE | EH11: FALSE | EI11: FALSE | EJ11: FALSE | EK11: FALSE | EL11: FALSE | EM11: FALSE | EN11: FALSE | EO11: FALSE | EP11: FALSE | EQ11: FALSE | ER11: FALSE | ES11: FALSE | ET11: FALSE | EU11: FALSE | EV11: FALSE | EW11: FALSE | EX11: FALSE | EY11: FALSE | EZ11: FALSE | FA11: FALSE | FB11: FALSE | FC11: FALSE | FD11: FALSE | FE11: FALSE | FF11: FALSE | FG11: FALSE | FH11: FALSE | FI11: FALSE | FJ11: FALSE | FK11: FALSE | FL11: FALSE | FM11: FALSE | FN11: FALSE | FO11: FALSE | FP11: FALSE | FQ11: FALSE | FR11: FALSE | FS11: FALSE | FT11: FALSE | FU11: FALSE | FV11: FALSE | FW11: FALSE | FX11: FALSE | FY11: FALSE | FZ11: FALSE | GA11: FALSE | GB11: FALSE | GC11: FALSE | GD11: FALSE | GE11: FALSE | GF11: FALSE | GG11: FALSE | GH11: FALSE | GI11: FALSE | GJ11: FALSE | GK11: FALSE | GL11: =ECHO(FALSE) -> FALSE | GM11: FALSE | GN11: FALSE | GO11: FALSE | GP11: FALSE | GQ11: FALSE | GR11: FALSE | GS11: FALSE | GT11: FALSE | GU11: FALSE | GV11: FALSE | GW11: FALSE | GX11: FALSE | GY11: FALSE | GZ11: FALSE | HA11: FALSE | HB11: FALSE | HC11: FALSE | HD11: FALSE | HE11: FALSE | HF11: FALSE | HG11: FALSE | HH11: FALSE | HI11: FALSE | HJ11: FALSE | HK11: FALSE | HL11: FALSE | HM11: FALSE | HN11: FALSE | HO11: FALSE | HP11: FALSE | HQ11: FALSE | HR11: FALSE | HS11: FALSE | HT11: FALSE | HU11: FALSE | HV11: FALSE | HW11: FALSE | HX11: FALSE | HY11: FALSE | HZ11: FALSE | IA11: FALSE | IB11: FALSE | IC11: FALSE | ID11: FALSE | IE11: FALSE | IF11: FALSE | IG11: FALSE | IH11: FALSE | II11: FALSE | IJ11: FALSE | IK11: FALSE | IL11: FALSE | IM11: FALSE | IN11: FALSE | IO11: FALSE | IP11: FALSE | IQ11: FALSE | IR11: FALSE | IS11: FALSE | IT11: FALSE | IU11: FALSE | IV11: FALSE | IW11: FALSE | IX11: =ECHO(FALSE) -> FALSE | IY11: FALSE | IZ11: FALSE | JA11: FALSE | JB11: FALSE | JC11: FALSE | JD11: FALSE | JE11: FALSE | JF11: FALSE | JG11: FALSE | JH11: FALSE | JI11: FALSE | JJ11: FALSE | JK11: FALSE | JL11: FALSE | JM11: FALSE | JN11: FALSE | JO11: FALSE | JP11: FALSE | JQ11: FALSE | JR11: FALSE | JS11: FALSE | JT11: FALSE | JU11: FALSE | JV11: FALSE | JW11: FALSE | JX11: FALSE | JY11: FALSE | JZ11: FALSE | KA11: FALSE | KB11: FALSE | KC11: FALSE | KD11: FALSE | KE11: FALSE | KF11: FALSE | KG11: FALSE | KH11: FALSE | KI11: FALSE | KJ11: FALSE | KK11: FALSE | KL11: FALSE | KM11: FALSE | KN11: FALSE | KO11: FALSE | KP11: FALSE | KQ11: FALSE | KR11: FALSE | KS11: FALSE | KT11: FALSE | KU11: FALSE | KV11: FALSE | KW11: FALSE | KX11: FALSE | KY11: FALSE | KZ11: FALSE | LA11: FALSE | LB11: FALSE | LC11: FALSE | LD11: FALSE | LE11: FALSE | LF11: FALSE | LG11: FALSE | LH11: FALSE | LI11: FALSE | LJ11: =ECHO(FALSE) -> FALSE | LK11: FALSE | LL11: FALSE | LM11: FALSE | LN11: FALSE | LO11: FALSE | LP11: FALSE | LQ11: FALSE | LR11: FALSE | LS11: FALSE | LT11: FALSE | LU11: FALSE | LV11: FALSE | LW11: FALSE | LX11: FALSE | LY11: FALSE | LZ11: FALSE | MA11: FALSE | MB11: FALSE | MC11: FALSE | MD11: FALSE | ME11: FALSE | MF11: FALSE | MG11: FALSE | MH11: FALSE | MI11: FALSE | MJ11: FALSE | MK11: FALSE | ML11: FALSE | MM11: FALSE | MN11: FALSE | MO11: FALSE | MP11: FALSE | MQ11: FALSE | MR11: FALSE | MS11: FALSE | MT11: FALSE | MU11: FALSE | MV11: FALSE | MW11: FALSE | MX11: FALSE | MY11: FALSE | MZ11: FALSE | NA11: FALSE | NB11: FALSE | NC11: FALSE | ND11: FALSE | NE11: FALSE | NF11: FALSE | NG11: FALSE | NH11: FALSE | NI11: FALSE | NJ11: FALSE | NK11: FALSE | NL11: FALSE | NM11: FALSE | NN11: FALSE | NO11: FALSE | NP11: FALSE | NQ11: FALSE | NR11: FALSE | NS11: FALSE | NT11: FALSE | NU11: FALSE | NV11: =ECHO(FALSE) -> FALSE | NW11: FALSE | NX11: FALSE | NY11: FALSE | NZ11: FALSE | OA11: FALSE | OB11: FALSE | OC11: FALSE | OD11: FALSE | OE11: FALSE | OF11: FALSE | OG11: FALSE | OH11: FALSE | OI11: FALSE | OJ11: FALSE | OK11: FALSE | OL11: FALSE | OM11: FALSE | ON11: FALSE | OO11: FALSE | OP11: FALSE | OQ11: FALSE | OR11: FALSE | OS11: FALSE | OT11: FALSE | OU11: FALSE | OV11: FALSE | OW11: FALSE | OX11: FALSE | OY11: FALSE | OZ11: FALSE | PA11: FALSE | PB11: FALSE | PC11: FALSE | PD11: FALSE | PE11: FALSE | PF11: FALSE | PG11: FALSE | PH11: FALSE | PI11: FALSE | PJ11: FALSE | PK11: FALSE | PL11: FALSE | PM11: FALSE | PN11: FALSE | PO11: FALSE | PP11: FALSE | PQ11: FALSE | PR11: FALSE | PS11: FALSE | PT11: FALSE | PU11: FALSE | PV11: FALSE | PW11: FALSE | PX11: FALSE | PY11: FALSE | PZ11: FALSE | QA11: FALSE | QB11: FALSE | QC11: FALSE | QD11: FALSE | QE11: FALSE | QF11: FALSE | QG11: FALSE | QH11: =ECHO(FALSE) -> FALSE | QI11: FALSE | QJ11: FALSE | QK11: FALSE | QL11: FALSE | QM11: FALSE | QN11: FALSE | QO11: FALSE | QP11: FALSE | QQ11: FALSE | QR11: FALSE | QS11: FALSE | QT11: FALSE | QU11: FALSE | QV11: FALSE | QW11: FALSE | QX11: FALSE | QY11: FALSE | QZ11: FALSE | RA11: FALSE | RB11: FALSE | RC11: FALSE | RD11: FALSE | RE11: FALSE | RF11: FALSE | RG11: FALSE | RH11: FALSE | RI11: FALSE | RJ11: FALSE | RK11: FALSE | RL11: FALSE | RM11: FALSE | RN11: FALSE | RO11: FALSE | RP11: FALSE | RQ11: FALSE | RR11: FALSE | RS11: FALSE | RT11: FALSE | RU11: FALSE | RV11: FALSE | RW11: FALSE | RX11: FALSE | RY11: FALSE | RZ11: FALSE | SA11: FALSE | SB11: FALSE | SC11: FALSE | SD11: FALSE | SE11: FALSE | SF11: FALSE | SG11: FALSE | SH11: FALSE | SI11: FALSE | SJ11: FALSE | SK11: FALSE | SL11: FALSE | SM11: FALSE | SN11: FALSE | SO11: FALSE | SP11: FALSE | SQ11: FALSE | SR11: FALSE | SS11: FALSE | ST11: =ECHO(FALSE) -> FALSE | SU11: FALSE | SV11: FALSE | SW11: FALSE | SX11: FALSE | SY11: FALSE | SZ11: FALSE | TA11: FALSE | TB11: FALSE | TC11: FALSE | TD11: FALSE | TE11: FALSE | TF11: FALSE | TG11: FALSE | TH11: FALSE | TI11: FALSE | TJ11: FALSE | TK11: FALSE | TL11: FALSE | TM11: FALSE | TN11: FALSE | TO11: FALSE | TP11: FALSE | TQ11: FALSE | TR11: FALSE | TS11: FALSE | TT11: FALSE | TU11: FALSE | TV11: FALSE | TW11: FALSE | TX11: FALSE | TY11: FALSE | TZ11: FALSE | UA11: FALSE | UB11: FALSE | UC11: FALSE | UD11: FALSE | UE11: FALSE | UF11: FALSE | UG11: FALSE | UH11: FALSE | UI11: FALSE | UJ11: FALSE | UK11: FALSE | UL11: FALSE | UM11: FALSE | UN11: FALSE | UO11: FALSE | UP11: FALSE | UQ11: FALSE | UR11: FALSE | US11: FALSE | UT11: FALSE | UU11: FALSE | UV11: FALSE | UW11: FALSE | UX11: FALSE | UY11: FALSE | UZ11: FALSE | VA11: FALSE | VB11: FALSE | VC11: FALSE | VD11: FALSE | VE11: FALSE | VF11: =ECHO(FALSE) -> FALSE | VG11: FALSE | VH11: FALSE | VI11: FALSE | VJ11: FALSE | VK11: FALSE | VL11: FALSE | VM11: FALSE | VN11: FALSE | VO11: FALSE | VP11: FALSE | VQ11: FALSE | VR11: FALSE | VS11: FALSE | VT11: FALSE | VU11: FALSE | VV11: FALSE | VW11: FALSE | VX11: FALSE | VY11: FALSE | VZ11: FALSE | WA11: FALSE | WB11: FALSE | WC11: FALSE | WD11: FALSE | WE11: FALSE | WF11: FALSE | WG11: FALSE | WH11: FALSE | WI11: FALSE | WJ11: FALSE | WK11: FALSE | WL11: FALSE | WM11: FALSE | WN11: FALSE | WO11: FALSE | WP11: FALSE | WQ11: FALSE | WR11: FALSE | WS11: FALSE | WT11: FALSE | WU11: FALSE | WV11: FALSE | WW11: FALSE | WX11: FALSE | WY11: FALSE | WZ11: FALSE | XA11: FALSE | XB11: FALSE | XC11: FALSE | XD11: FALSE | XE11: FALSE | XF11: FALSE | XG11: FALSE | XH11: FALSE | XI11: FALSE | XJ11: FALSE | XK11: FALSE | XL11: FALSE | XM11: FALSE | XN11: FALSE | XO11: FALSE | XP11: FALSE | XQ11: FALSE | XR11: =ECHO(FALSE) -> FALSE | XS11: FALSE | XT11: FALSE | XU11: FALSE | XV11: FALSE | XW11: FALSE | XX11: FALSE | XY11: FALSE | XZ11: FALSE | YA11: FALSE | YB11: FALSE | YC11: FALSE | YD11: FALSE | YE11: FALSE | YF11: FALSE | YG11: FALSE | YH11: FALSE | YI11: FALSE | YJ11: FALSE | YK11: FALSE | YL11: FALSE | YM11: FALSE | YN11: FALSE | YO11: FALSE | YP11: FALSE | YQ11: FALSE | YR11: FALSE | YS11: FALSE | YT11: FALSE | YU11: FALSE | YV11: FALSE | YW11: FALSE | YX11: FALSE | YY11: FALSE | YZ11: FALSE | ZA11: FALSE | ZB11: FALSE | ZC11: FALSE | ZD11: FALSE | ZE11: FALSE | ZF11: FALSE | ZG11: FALSE | ZH11: FALSE | ZI11: FALSE | ZJ11: FALSE | ZK11: FALSE | ZL11: FALSE | ZM11: FALSE | ZN11: FALSE | ZO11: FALSE | ZP11: FALSE | ZQ11: FALSE | ZR11: FALSE | ZS11: FALSE | ZT11: FALSE | ZU11: FALSE | ZV11: FALSE | ZW11: FALSE | ZX11: FALSE | ZY11: FALSE | ZZ11: FALSE | AAA11: FALSE | AAB11: FALSE | AAC11: FALSE | AAD11: =ECHO(FALSE) -> FALSE | AAE11: FALSE | AAF11: FALSE | AAG11: FALSE | AAH11: FALSE | AAI11: FALSE | AAJ11: FALSE | AAK11: FALSE | AAL11: FALSE | AAM11: FALSE | AAN11: FALSE | AAO11: FALSE | AAP11: FALSE | AAQ11: FALSE | AAR11: FALSE | AAS11: FALSE | AAT11: FALSE | AAU11: FALSE | AAV11: FALSE | AAW11: FALSE | AAX11: FALSE | AAY11: FALSE | AAZ11: FALSE | ABA11: FALSE | ABB11: FALSE | ABC11: FALSE | ABD11: FALSE | ABE11: FALSE | ABF11: FALSE | ABG11: FALSE | ABH11: FALSE | ABI11: FALSE | ABJ11: FALSE | ABK11: FALSE | ABL11: FALSE | ABM11: FALSE | ABN11: FALSE | ABO11: FALSE | ABP11: FALSE | ABQ11: FALSE | ABR11: FALSE | ABS11: FALSE | ABT11: FALSE | ABU11: FALSE | ABV11: FALSE | ABW11: FALSE | ABX11: FALSE | ABY11: FALSE | ABZ11: FALSE | ACA11: FALSE | ACB11: FALSE | ACC11: FALSE | ACD11: FALSE | ACE11: FALSE | ACF11: FALSE | ACG11: FALSE | ACH11: FALSE | ACI11: FALSE | ACJ11: FALSE | ACK11: FALSE | ACL11: FALSE | ACM11: FALSE | ACN11: FALSE | ACO11: FALSE | ACP11: =ECHO(FALSE) -> FALSE | ACQ11: FALSE | ACR11: FALSE | ACS11: FALSE | ACT11: FALSE | ACU11: FALSE | ACV11: FALSE | ACW11: FALSE | ACX11: FALSE | ACY11: FALSE | ACZ11: FALSE | ADA11: FALSE | ADB11: FALSE | ADC11: FALSE | ADD11: FALSE | ADE11: FALSE | ADF11: FALSE | ADG11: FALSE | ADH11: FALSE | ADI11: FALSE | ADJ11: FALSE | ADK11: FALSE | ADL11: FALSE | ADM11: FALSE | ADN11: FALSE | ADO11: FALSE | ADP11: FALSE | ADQ11: FALSE | ADR11: FALSE | ADS11: FALSE | ADT11: FALSE | ADU11: FALSE | ADV11: FALSE | ADW11: FALSE | ADX11: FALSE | ADY11: FALSE | ADZ11: FALSE | AEA11: FALSE | AEB11: FALSE | AEC11: FALSE | AED11: FALSE | AEE11: FALSE | AEF11: FALSE | AEG11: FALSE | AEH11: FALSE | AEI11: FALSE | AEJ11: FALSE | AEK11: FALSE | AEL11: FALSE | AEM11: FALSE | AEN11: FALSE | AEO11: FALSE | AEP11: FALSE | AEQ11: FALSE | AER11: FALSE | AES11: FALSE | AET11: FALSE | AEU11: FALSE | AEV11: FALSE | AEW11: FALSE | AEX11: FALSE | AEY11: FALSE | AEZ11: FALSE | AFA11: FALSE | AFB11: =ECHO(FALSE) -> FALSE | AFC11: FALSE | AFD11: FALSE | AFE11: FALSE | AFF11: FALSE | AFG11: FALSE | AFH11: FALSE | AFI11: FALSE | AFJ11: FALSE | AFK11: FALSE | AFL11: FALSE | AFM11: FALSE | AFN11: FALSE | AFO11: FALSE | AFP11: FALSE | AFQ11: FALSE | AFR11: FALSE | AFS11: FALSE | AFT11: FALSE | AFU11: FALSE | AFV11: FALSE | AFW11: FALSE | AFX11: FALSE | AFY11: FALSE | AFZ11: FALSE | AGA11: FALSE | AGB11: FALSE | AGC11: FALSE | AGD11: FALSE | AGE11: FALSE | AGF11: FALSE | AGG11: FALSE | AGH11: FALSE | AGI11: FALSE | AGJ11: FALSE | AGK11: FALSE | AGL11: FALSE | AGM11: FALSE | AGN11: FALSE | AGO11: FALSE | AGP11: FALSE | AGQ11: FALSE | AGR11: FALSE | AGS11: FALSE | AGT11: FALSE | AGU11: FALSE | AGV11: FALSE | AGW11: FALSE | AGX11: FALSE | AGY11: FALSE | AGZ11: FALSE | AHA11: FALSE | AHB11: FALSE | AHC11: FALSE | AHD11: FALSE | AHE11: FALSE | AHF11: FALSE | AHG11: FALSE | AHH11: FALSE | AHI11: FALSE | AHJ11: FALSE | AHK11: FALSE | AHL11: FALSE | AHM11: FALSE | AHN11: =ECHO(FALSE) -> FALSE | AHO11: FALSE | AHP11: FALSE | AHQ11: FALSE | AHR11: FALSE | AHS11: FALSE | AHT11: FALSE | AHU11: FALSE | AHV11: FALSE | AHW11: FALSE | AHX11: FALSE | AHY11: FALSE | AHZ11: FALSE | AIA11: FALSE | AIB11: FALSE | AIC11: FALSE | AID11: FALSE | AIE11: FALSE | AIF11: FALSE | AIG11: FALSE | AIH11: FALSE | AII11: FALSE | AIJ11: FALSE | AIK11: FALSE | AIL11: FALSE | AIM11: FALSE | AIN11: FALSE | AIO11: FALSE | AIP11: FALSE | AIQ11: FALSE | AIR11: FALSE | AIS11: FALSE | AIT11: FALSE | AIU11: FALSE | AIV11: FALSE | AIW11: FALSE | AIX11: FALSE | AIY11: FALSE | AIZ11: FALSE | AJA11: FALSE | AJB11: FALSE | AJC11: FALSE | AJD11: FALSE | AJE11: FALSE | AJF11: FALSE | AJG11: FALSE | AJH11: FALSE | AJI11: FALSE | AJJ11: FALSE | AJK11: FALSE | AJL11: FALSE | AJM11: FALSE | AJN11: FALSE | AJO11: FALSE | AJP11: FALSE | AJQ11: FALSE | AJR11: FALSE | AJS11: FALSE | AJT11: FALSE | AJU11: FALSE | AJV11: FALSE | AJW11: FALSE | AJX11: FALSE | AJY11: FALSE | AJZ11: =ECHO(FALSE) -> FALSE | AKA11: FALSE | AKB11: FALSE | AKC11: FALSE | AKD11: FALSE | AKE11: FALSE | AKF11: FALSE | AKG11: FALSE | AKH11: FALSE | AKI11: FALSE | AKJ11: FALSE | AKK11: FALSE | AKL11: FALSE | AKM11: FALSE | AKN11: FALSE | AKO11: FALSE | AKP11: FALSE | AKQ11: FALSE | AKR11: FALSE | AKS11: FALSE | AKT11: FALSE | AKU11: FALSE | AKV11: FALSE | AKW11: FALSE | AKX11: FALSE | AKY11: FALSE | AKZ11: FALSE | ALA11: FALSE | ALB11: FALSE | ALC11: FALSE | ALD11: FALSE | ALE11: FALSE | ALF11: FALSE | ALG11: FALSE | ALH11: FALSE | ALI11: FALSE | ALJ11: FALSE | ALK11: FALSE | ALL11: FALSE | ALM11: FALSE | ALN11: FALSE | ALO11: FALSE | ALP11: FALSE | ALQ11: FALSE | ALR11: FALSE | ALS11: FALSE | ALT11: FALSE | ALU11: FALSE | ALV11: FALSE | ALW11: FALSE | ALX11: FALSE | ALY11: FALSE | ALZ11: FALSE | AMA11: FALSE | AMB11: FALSE | AMC11: FALSE | AMD11: FALSE | AME11: FALSE | AMF11: FALSE | AMG11: FALSE | AMH11: FALSE | AMI11: FALSE | AMJ11: FALSE | AMK11: FALSE | AML11: =ECHO(FALSE) -> FALSE | AMM11: FALSE | AMN11: FALSE | AMO11: FALSE | AMP11: FALSE | AMQ11: FALSE | AMR11: FALSE | AMS11: FALSE | AMT11: FALSE | AMU11: FALSE | AMV11: FALSE | AMW11: FALSE | AMX11: FALSE | AMY11: FALSE | AMZ11: FALSE | ANA11: FALSE | ANB11: FALSE | ANC11: FALSE | AND11: FALSE | ANE11: FALSE | ANF11: FALSE | ANG11: FALSE | ANH11: FALSE | ANI11: FALSE | ANJ11: FALSE | ANK11: FALSE | ANL11: FALSE | ANM11: FALSE | ANN11: FALSE | ANO11: FALSE | ANP11: FALSE | ANQ11: FALSE | ANR11: FALSE | ANS11: FALSE | ANT11: FALSE | ANU11: FALSE | ANV11: FALSE | ANW11: FALSE | ANX11: FALSE | ANY11: FALSE | ANZ11: FALSE | AOA11: FALSE | AOB11: FALSE | AOC11: FALSE | AOD11: FALSE | AOE11: FALSE | AOF11: FALSE | AOG11: FALSE | AOH11: FALSE | AOI11: FALSE | AOJ11: FALSE | AOK11: FALSE | AOL11: FALSE | AOM11: FALSE | AON11: FALSE | AOO11: FALSE | AOP11: FALSE | AOQ11: FALSE | AOR11: FALSE | AOS11: FALSE | AOT11: FALSE | AOU11: FALSE | AOV11: FALSE | AOW11: FALSE | AOX11: =ECHO(FALSE) -> FALSE | AOY11: FALSE | AOZ11: FALSE | APA11: FALSE | APB11: FALSE | APC11: FALSE | APD11: FALSE | APE11: FALSE | APF11: FALSE | APG11: FALSE | APH11: FALSE | API11: FALSE | APJ11: FALSE | APK11: FALSE | APL11: FALSE | APM11: FALSE | APN11: FALSE | APO11: FALSE | APP11: FALSE | APQ11: FALSE | APR11: FALSE | APS11: FALSE | APT11: FALSE | APU11: FALSE | APV11: FALSE | APW11: FALSE | APX11: FALSE | APY11: FALSE | APZ11: FALSE | AQA11: FALSE | AQB11: FALSE | AQC11: FALSE | AQD11: FALSE | AQE11: FALSE | AQF11: FALSE | AQG11: FALSE | AQH11: FALSE | AQI11: FALSE | AQJ11: FALSE | AQK11: FALSE | AQL11: FALSE | AQM11: FALSE | AQN11: FALSE | AQO11: FALSE | AQP11: FALSE | AQQ11: FALSE | AQR11: FALSE | AQS11: FALSE | AQT11: FALSE | AQU11: FALSE | AQV11: FALSE | AQW11: FALSE | AQX11: FALSE | AQY11: FALSE | AQZ11: FALSE | ARA11: FALSE | ARB11: FALSE | ARC11: FALSE | ARD11: FALSE | ARE11: FALSE | ARF11: FALSE | ARG11: FALSE | ARH11: FALSE | ARI11: FALSE | ARJ11: =ECHO(FALSE) -> FALSE | ARK11: FALSE | ARL11: FALSE | ARM11: FALSE | ARN11: FALSE | ARO11: FALSE | ARP11: FALSE | ARQ11: FALSE | ARR11: FALSE | ARS11: FALSE | ART11: FALSE | ARU11: FALSE | ARV11: FALSE | ARW11: FALSE | ARX11: FALSE | ARY11: FALSE | ARZ11: FALSE | ASA11: FALSE | ASB11: FALSE | ASC11: FALSE | ASD11: FALSE | ASE11: FALSE | ASF11: FALSE | ASG11: FALSE | ASH11: FALSE | ASI11: FALSE | ASJ11: FALSE | ASK11: FALSE | ASL11: FALSE | ASM11: FALSE | ASN11: FALSE | ASO11: FALSE | ASP11: FALSE | ASQ11: FALSE | ASR11: FALSE | ASS11: FALSE | AST11: FALSE | ASU11: FALSE | ASV11: FALSE | ASW11: FALSE | ASX11: FALSE | ASY11: FALSE | ASZ11: FALSE | ATA11: FALSE | ATB11: FALSE | ATC11: FALSE | ATD11: FALSE | ATE11: FALSE | ATF11: FALSE | ATG11: FALSE | ATH11: FALSE | ATI11: FALSE | ATJ11: FALSE | ATK11: FALSE | ATL11: FALSE | ATM11: FALSE | ATN11: FALSE | ATO11: FALSE | ATP11: FALSE | ATQ11: FALSE | ATR11: FALSE | ATS11: FALSE | ATT11: FALSE | ATU11: FALSE | ATV11: =ECHO(FALSE) -> FALSE | ATW11: FALSE | ATX11: FALSE | ATY11: FALSE | ATZ11: FALSE | AUA11: FALSE | AUB11: FALSE | AUC11: FALSE | AUD11: FALSE | AUE11: FALSE | AUF11: FALSE | AUG11: FALSE | AUH11: FALSE | AUI11: FALSE | AUJ11: FALSE | AUK11: FALSE | AUL11: FALSE | AUM11: FALSE | AUN11: FALSE | AUO11: FALSE | AUP11: FALSE | AUQ11: FALSE | AUR11: FALSE | AUS11: FALSE | AUT11: FALSE | AUU11: FALSE | AUV11: FALSE | AUW11: FALSE | AUX11: FALSE | AUY11: FALSE | AUZ11: FALSE | AVA11: FALSE | AVB11: FALSE | AVC11: FALSE | AVD11: FALSE | AVE11: FALSE | AVF11: FALSE | AVG11: FALSE | AVH11: FALSE | AVI11: FALSE | AVJ11: FALSE | AVK11: FALSE | AVL11: FALSE | AVM11: FALSE | AVN11: FALSE | AVO11: FALSE | AVP11: FALSE | AVQ11: FALSE | AVR11: FALSE | AVS11: FALSE | AVT11: FALSE | AVU11: FALSE | AVV11: FALSE | AVW11: FALSE | AVX11: FALSE | AVY11: FALSE | AVZ11: FALSE | AWA11: FALSE | AWB11: FALSE | AWC11: FALSE | AWD11: FALSE | AWE11: FALSE | AWF11: FALSE | AWG11: FALSE | AWH11: =ECHO(FALSE) -> FALSE | AWI11: FALSE | AWJ11: FALSE | AWK11: FALSE | AWL11: FALSE | AWM11: FALSE | AWN11: FALSE | AWO11: FALSE | AWP11: FALSE | AWQ11: FALSE | AWR11: FALSE | AWS11: FALSE | AWT11: FALSE | AWU11: FALSE | AWV11: FALSE | AWW11: FALSE | AWX11: FALSE | AWY11: FALSE | AWZ11: FALSE | AXA11: FALSE | AXB11: FALSE | AXC11: FALSE | AXD11: FALSE | AXE11: FALSE | AXF11: FALSE | AXG11: FALSE | AXH11: FALSE | AXI11: FALSE | AXJ11: FALSE | AXK11: FALSE | AXL11: FALSE | AXM11: FALSE | AXN11: FALSE | AXO11: FALSE | AXP11: FALSE | AXQ11: FALSE | AXR11: FALSE | AXS11: FALSE | AXT11: FALSE | AXU11: FALSE | AXV11: FALSE | AXW11: FALSE | AXX11: FALSE | AXY11: FALSE | AXZ11: FALSE | AYA11: FALSE | AYB11: FALSE | AYC11: FALSE | AYD11: FALSE | AYE11: FALSE | AYF11: FALSE | AYG11: FALSE | AYH11: FALSE | AYI11: FALSE | AYJ11: FALSE | AYK11: FALSE | AYL11: FALSE | AYM11: FALSE | AYN11: FALSE | AYO11: FALSE | AYP11: FALSE | AYQ11: FALSE | AYR11: FALSE | AYS11: FALSE | AYT11: =ECHO(FALSE) -> FALSE | AYU11: FALSE | AYV11: FALSE | AYW11: FALSE | AYX11: FALSE | AYY11: FALSE | AYZ11: FALSE | AZA11: FALSE | AZB11: FALSE | AZC11: FALSE | AZD11: FALSE | AZE11: FALSE | AZF11: FALSE | AZG11: FALSE | AZH11: FALSE | AZI11: FALSE | AZJ11: FALSE | AZK11: FALSE | AZL11: FALSE | AZM11: FALSE | AZN11: FALSE | AZO11: FALSE | AZP11: FALSE | AZQ11: FALSE | AZR11: FALSE | AZS11: FALSE | AZT11: FALSE | AZU11: FALSE | AZV11: FALSE | AZW11: FALSE | AZX11: FALSE | AZY11: FALSE | AZZ11: FALSE | BAA11: FALSE | BAB11: FALSE | BAC11: FALSE | BAD11: FALSE | BAE11: FALSE | BAF11: FALSE | BAG11: FALSE | BAH11: FALSE | BAI11: FALSE | BAJ11: FALSE | BAK11: FALSE | BAL11: FALSE | BAM11: FALSE | BAN11: FALSE | BAO11: FALSE | BAP11: FALSE | BAQ11: FALSE | BAR11: FALSE | BAS11: FALSE | BAT11: FALSE | BAU11: FALSE | BAV11: FALSE | BAW11: FALSE | BAX11: FALSE | BAY11: FALSE | BAZ11: FALSE | BBA11: FALSE | BBB11: FALSE | BBC11: FALSE | BBD11: FALSE | BBE11: FALSE | BBF11: =ECHO(FALSE) -> FALSE | BBG11: FALSE | BBH11: FALSE | BBI11: FALSE | BBJ11: FALSE | BBK11: FALSE | BBL11: FALSE | BBM11: FALSE | BBN11: FALSE | BBO11: FALSE | BBP11: FALSE | BBQ11: FALSE | BBR11: FALSE | BBS11: FALSE | BBT11: FALSE | BBU11: FALSE | BBV11: FALSE | BBW11: FALSE | BBX11: FALSE | BBY11: FALSE | BBZ11: FALSE | BCA11: FALSE | BCB11: FALSE | BCC11: FALSE | BCD11: FALSE | BCE11: FALSE | BCF11: FALSE | BCG11: FALSE | BCH11: FALSE | BCI11: FALSE | BCJ11: FALSE | BCK11: FALSE | BCL11: FALSE | BCM11: FALSE | BCN11: FALSE | BCO11: FALSE | BCP11: FALSE | BCQ11: FALSE | BCR11: FALSE | BCS11: FALSE | BCT11: FALSE | BCU11: FALSE | BCV11: FALSE | BCW11: FALSE | BCX11: FALSE | BCY11: FALSE | BCZ11: FALSE | BDA11: FALSE | BDB11: FALSE | BDC11: FALSE | BDD11: FALSE | BDE11: FALSE | BDF11: FALSE | BDG11: FALSE | BDH11: FALSE | BDI11: FALSE | BDJ11: FALSE | BDK11: FALSE | BDL11: FALSE | BDM11: FALSE | BDN11: FALSE | BDO11: FALSE | BDP11: FALSE | BDQ11: FALSE | BDR11: =ECHO(FALSE) -> FALSE | BDS11: FALSE | BDT11: FALSE | BDU11: FALSE | BDV11: FALSE | BDW11: FALSE | BDX11: FALSE | BDY11: FALSE | BDZ11: FALSE | BEA11: FALSE | BEB11: FALSE | BEC11: FALSE | BED11: FALSE | BEE11: FALSE | BEF11: FALSE | BEG11: FALSE | BEH11: FALSE | BEI11: FALSE | BEJ11: FALSE | BEK11: FALSE | BEL11: FALSE | BEM11: FALSE | BEN11: FALSE | BEO11: FALSE | BEP11: FALSE | BEQ11: FALSE | BER11: FALSE | BES11: FALSE | BET11: FALSE | BEU11: FALSE | BEV11: FALSE | BEW11: FALSE | BEX11: FALSE | BEY11: FALSE | BEZ11: FALSE | BFA11: FALSE | BFB11: FALSE | BFC11: FALSE | BFD11: FALSE | BFE11: FALSE | BFF11: FALSE | BFG11: FALSE | BFH11: FALSE | BFI11: FALSE | BFJ11: FALSE | BFK11: FALSE | BFL11: FALSE | BFM11: FALSE | BFN11: FALSE | BFO11: FALSE | BFP11: FALSE | BFQ11: FALSE | BFR11: FALSE | BFS11: FALSE | BFT11: FALSE | BFU11: FALSE | BFV11: FALSE | BFW11: FALSE | BFX11: FALSE | BFY11: FALSE | BFZ11: FALSE | BGA11: FALSE | BGB11: FALSE | BGC11: FALSE | BGD11: =ECHO(FALSE) -> FALSE | BGE11: FALSE | BGF11: FALSE | BGG11: FALSE | BGH11: FALSE | BGI11: FALSE | BGJ11: FALSE | BGK11: FALSE | BGL11: FALSE | BGM11: FALSE | BGN11: FALSE | BGO11: FALSE | BGP11: FALSE | BGQ11: FALSE | BGR11: FALSE | BGS11: FALSE | BGT11: FALSE | BGU11: FALSE | BGV11: FALSE | BGW11: FALSE | BGX11: FALSE | BGY11: FALSE | BGZ11: FALSE | BHA11: FALSE | BHB11: FALSE | BHC11: FALSE | BHD11: FALSE | BHE11: FALSE | BHF11: FALSE | BHG11: FALSE | BHH11: FALSE | BHI11: FALSE | BHJ11: FALSE | BHK11: FALSE | BHL11: FALSE | BHM11: FALSE | BHN11: FALSE | BHO11: FALSE | BHP11: FALSE | BHQ11: FALSE | BHR11: FALSE | BHS11: FALSE | BHT11: FALSE | BHU11: FALSE | BHV11: FALSE | BHW11: FALSE | BHX11: FALSE | BHY11: FALSE | BHZ11: FALSE | BIA11: FALSE | BIB11: FALSE | BIC11: FALSE | BID11: FALSE | BIE11: FALSE | BIF11: FALSE | BIG11: FALSE | BIH11: FALSE | BII11: FALSE | BIJ11: FALSE | BIK11: FALSE | BIL11: FALSE | BIM11: FALSE | BIN11: FALSE | BIO11: FALSE | BIP11: =ECHO(FALSE) -> FALSE | BIQ11: FALSE | BIR11: FALSE | BIS11: FALSE | BIT11: FALSE | BIU11: FALSE | BIV11: FALSE | BIW11: FALSE | BIX11: FALSE | BIY11: FALSE | BIZ11: FALSE | BJA11: FALSE | BJB11: FALSE | BJC11: FALSE | BJD11: FALSE | BJE11: FALSE | BJF11: FALSE | BJG11: FALSE | BJH11: FALSE | BJI11: FALSE | BJJ11: FALSE | BJK11: FALSE | BJL11: FALSE | BJM11: FALSE | BJN11: FALSE | BJO11: FALSE | BJP11: FALSE | BJQ11: FALSE | BJR11: FALSE | BJS11: FALSE | BJT11: FALSE | BJU11: FALSE | BJV11: FALSE | BJW11: FALSE | BJX11: FALSE | BJY11: FALSE | BJZ11: FALSE | BKA11: FALSE | BKB11: FALSE | BKC11: FALSE | BKD11: FALSE | BKE11: FALSE | BKF11: FALSE | BKG11: FALSE | BKH11: FALSE | BKI11: FALSE | BKJ11: FALSE | BKK11: FALSE | BKL11: FALSE | BKM11: FALSE | BKN11: FALSE | BKO11: FALSE | BKP11: FALSE | BKQ11: FALSE | BKR11: FALSE | BKS11: FALSE | BKT11: FALSE | BKU11: FALSE | BKV11: FALSE | BKW11: FALSE | BKX11: FALSE | BKY11: FALSE | BKZ11: FALSE | BLA11: FALSE | BLB11: =ECHO(FALSE) -> FALSE | BLC11: FALSE | BLD11: FALSE | BLE11: FALSE | BLF11: FALSE | BLG11: FALSE | BLH11: FALSE | BLI11: FALSE | BLJ11: FALSE | BLK11: FALSE | BLL11: FALSE | BLM11: FALSE | BLN11: FALSE | BLO11: FALSE | BLP11: FALSE | BLQ11: FALSE | BLR11: FALSE | BLS11: FALSE | BLT11: FALSE | BLU11: FALSE | BLV11: FALSE | BLW11: FALSE | BLX11: FALSE | BLY11: FALSE | BLZ11: FALSE | BMA11: FALSE | BMB11: FALSE | BMC11: FALSE | BMD11: FALSE | BME11: FALSE | BMF11: FALSE | BMG11: FALSE | BMH11: FALSE | BMI11: FALSE | BMJ11: FALSE | BMK11: FALSE | BML11: FALSE | BMM11: FALSE | BMN11: FALSE | BMO11: FALSE | BMP11: FALSE | BMQ11: FALSE | BMR11: FALSE | BMS11: FALSE | BMT11: FALSE | BMU11: FALSE | BMV11: FALSE | BMW11: FALSE | BMX11: FALSE | BMY11: FALSE | BMZ11: FALSE | BNA11: FALSE | BNB11: FALSE | BNC11: FALSE | BND11: FALSE | BNE11: FALSE | BNF11: FALSE | BNG11: FALSE | BNH11: FALSE | BNI11: FALSE | BNJ11: FALSE | BNK11: FALSE | BNL11: FALSE | BNM11: FALSE | BNN11: =ECHO(FALSE) -> FALSE | BNO11: FALSE | BNP11: FALSE | BNQ11: FALSE | BNR11: FALSE | BNS11: FALSE | BNT11: FALSE | BNU11: FALSE | BNV11: FALSE | BNW11: FALSE | BNX11: FALSE | BNY11: FALSE | BNZ11: FALSE | BOA11: FALSE | BOB11: FALSE | BOC11: FALSE | BOD11: FALSE | BOE11: FALSE | BOF11: FALSE | BOG11: FALSE | BOH11: FALSE | BOI11: FALSE | BOJ11: FALSE | BOK11: FALSE | BOL11: FALSE | BOM11: FALSE | BON11: FALSE | BOO11: FALSE | BOP11: FALSE | BOQ11: FALSE | BOR11: FALSE | BOS11: FALSE | BOT11: FALSE | BOU11: FALSE | BOV11: FALSE | BOW11: FALSE | BOX11: FALSE | BOY11: FALSE | BOZ11: FALSE | BPA11: FALSE | BPB11: FALSE | BPC11: FALSE | BPD11: FALSE | BPE11: FALSE | BPF11: FALSE | BPG11: FALSE | BPH11: FALSE | BPI11: FALSE | BPJ11: FALSE | BPK11: FALSE | BPL11: FALSE | BPM11: FALSE | BPN11: FALSE | BPO11: FALSE | BPP11: FALSE | BPQ11: FALSE | BPR11: FALSE | BPS11: FALSE | BPT11: FALSE | BPU11: FALSE | BPV11: FALSE | BPW11: FALSE | BPX11: FALSE | BPY11: FALSE | BPZ11: =ECHO(FALSE) -> FALSE | BQA11: FALSE | BQB11: FALSE | BQC11: FALSE | BQD11: FALSE | BQE11: FALSE | BQF11: FALSE | BQG11: FALSE | BQH11: FALSE | BQI11: FALSE | BQJ11: FALSE | BQK11: FALSE | BQL11: FALSE | BQM11: FALSE | BQN11: FALSE | BQO11: FALSE | BQP11: FALSE | BQQ11: FALSE | BQR11: FALSE | BQS11: FALSE | BQT11: FALSE | BQU11: FALSE | BQV11: FALSE | BQW11: FALSE | BQX11: FALSE | BQY11: FALSE | BQZ11: FALSE | BRA11: FALSE | BRB11: FALSE | BRC11: FALSE | BRD11: FALSE | BRE11: FALSE | BRF11: FALSE | BRG11: FALSE | BRH11: FALSE | BRI11: FALSE | BRJ11: FALSE | BRK11: FALSE | BRL11: FALSE | BRM11: FALSE | BRN11: FALSE | BRO11: FALSE | BRP11: FALSE | BRQ11: FALSE | BRR11: FALSE | BRS11: FALSE | BRT11: FALSE | BRU11: FALSE | BRV11: FALSE | BRW11: FALSE | BRX11: FALSE | BRY11: FALSE | BRZ11: FALSE | BSA11: FALSE | BSB11: FALSE | BSC11: FALSE | BSD11: FALSE | BSE11: FALSE | BSF11: FALSE | BSG11: FALSE | BSH11: FALSE | BSI11: FALSE | BSJ11: FALSE | BSK11: FALSE | BSL11: =ECHO(FALSE) -> FALSE | BSM11: FALSE | BSN11: FALSE | BSO11: FALSE | BSP11: FALSE | BSQ11: FALSE | BSR11: FALSE | BSS11: FALSE | BST11: FALSE | BSU11: FALSE | BSV11: FALSE | BSW11: FALSE | BSX11: FALSE | BSY11: FALSE | BSZ11: FALSE | BTA11: FALSE | BTB11: FALSE | BTC11: FALSE | BTD11: FALSE | BTE11: FALSE | BTF11: FALSE | BTG11: FALSE | BTH11: FALSE | BTI11: FALSE | BTJ11: FALSE | BTK11: FALSE | BTL11: FALSE | BTM11: FALSE | BTN11: FALSE | BTO11: FALSE | BTP11: FALSE | BTQ11: FALSE | BTR11: FALSE | BTS11: FALSE | BTT11: FALSE | BTU11: FALSE | BTV11: FALSE | BTW11: FALSE | BTX11: FALSE | BTY11: FALSE | BTZ11: FALSE | BUA11: FALSE | BUB11: FALSE | BUC11: FALSE | BUD11: FALSE | BUE11: FALSE | BUF11: FALSE | BUG11: FALSE | BUH11: FALSE | BUI11: FALSE | BUJ11: FALSE | BUK11: FALSE | BUL11: FALSE | BUM11: FALSE | BUN11: FALSE | BUO11: FALSE | BUP11: FALSE | BUQ11: FALSE | BUR11: FALSE | BUS11: FALSE | BUT11: FALSE | BUU11: FALSE | BUV11: FALSE | BUW11: FALSE | BUX11: =ECHO(FALSE) -> FALSE | BUY11: FALSE | BUZ11: FALSE | BVA11: FALSE | BVB11: FALSE | BVC11: FALSE | BVD11: FALSE | BVE11: FALSE | BVF11: FALSE | BVG11: FALSE | BVH11: FALSE | BVI11: FALSE | BVJ11: FALSE | BVK11: FALSE | BVL11: FALSE | BVM11: FALSE | BVN11: FALSE | BVO11: FALSE | BVP11: FALSE | BVQ11: FALSE | BVR11: FALSE | BVS11: FALSE | BVT11: FALSE | BVU11: FALSE | BVV11: FALSE | BVW11: FALSE | BVX11: FALSE | BVY11: FALSE | BVZ11: FALSE | BWA11: FALSE | BWB11: FALSE | BWC11: FALSE | BWD11: FALSE | BWE11: FALSE | BWF11: FALSE | BWG11: FALSE | BWH11: FALSE | BWI11: FALSE | BWJ11: FALSE | BWK11: FALSE | BWL11: FALSE | BWM11: FALSE | BWN11: FALSE | BWO11: FALSE | BWP11: FALSE | BWQ11: FALSE | BWR11: FALSE | BWS11: FALSE | BWT11: FALSE | BWU11: FALSE | BWV11: FALSE | BWW11: FALSE | BWX11: FALSE | BWY11: FALSE | BWZ11: FALSE | BXA11: FALSE | BXB11: FALSE | BXC11: FALSE | BXD11: FALSE | BXE11: FALSE | BXF11: FALSE | BXG11: FALSE | BXH11: FALSE | BXI11: FALSE | BXJ11: =ECHO(FALSE) -> FALSE | BXK11: FALSE | BXL11: FALSE | BXM11: FALSE | BXN11: FALSE | BXO11: FALSE | BXP11: FALSE | BXQ11: FALSE | BXR11: FALSE | BXS11: FALSE | BXT11: FALSE | BXU11: FALSE | BXV11: FALSE | BXW11: FALSE | BXX11: FALSE | BXY11: FALSE | BXZ11: FALSE | BYA11: FALSE | BYB11: FALSE | BYC11: FALSE | BYD11: FALSE | BYE11: FALSE | BYF11: FALSE | BYG11: FALSE | BYH11: FALSE | BYI11: FALSE | BYJ11: FALSE | BYK11: FALSE | BYL11: FALSE | BYM11: FALSE | BYN11: FALSE | BYO11: FALSE | BYP11: FALSE | BYQ11: FALSE | BYR11: FALSE | BYS11: FALSE | BYT11: FALSE | BYU11: FALSE | BYV11: FALSE | BYW11: FALSE | BYX11: FALSE | BYY11: FALSE | BYZ11: FALSE | BZA11: FALSE | BZB11: FALSE | BZC11: FALSE | BZD11: FALSE | BZE11: FALSE | BZF11: FALSE | BZG11: FALSE | BZH11: FALSE | BZI11: FALSE | BZJ11: FALSE | BZK11: FALSE | BZL11: FALSE | BZM11: FALSE | BZN11: FALSE | BZO11: FALSE | BZP11: FALSE | BZQ11: FALSE | BZR11: FALSE | BZS11: FALSE | BZT11: FALSE | BZU11: FALSE | BZV11: =ECHO(FALSE) -> FALSE | BZW11: FALSE | BZX11: FALSE | BZY11: FALSE | BZZ11: FALSE | CAA11: FALSE | CAB11: FALSE | CAC11: FALSE | CAD11: FALSE | CAE11: FALSE | CAF11: FALSE | CAG11: FALSE | CAH11: FALSE | CAI11: FALSE | CAJ11: FALSE | CAK11: FALSE | CAL11: FALSE | CAM11: FALSE | CAN11: FALSE | CAO11: FALSE | CAP11: FALSE | CAQ11: FALSE | CAR11: FALSE | CAS11: FALSE | CAT11: FALSE | CAU11: FALSE | CAV11: FALSE | CAW11: FALSE | CAX11: FALSE | CAY11: FALSE | CAZ11: FALSE | CBA11: FALSE | CBB11: FALSE | CBC11: FALSE | CBD11: FALSE | CBE11: FALSE | CBF11: FALSE | CBG11: FALSE | CBH11: FALSE | CBI11: FALSE | CBJ11: FALSE | CBK11: FALSE | CBL11: FALSE | CBM11: FALSE | CBN11: FALSE | CBO11: FALSE | CBP11: FALSE | CBQ11: FALSE | CBR11: FALSE | CBS11: FALSE | CBT11: FALSE | CBU11: FALSE | CBV11: FALSE | CBW11: FALSE | CBX11: FALSE | CBY11: FALSE | CBZ11: FALSE | CCA11: FALSE | CCB11: FALSE | CCC11: FALSE | CCD11: FALSE | CCE11: FALSE | CCF11: FALSE | CCG11: FALSE | CCH11: =ECHO(FALSE) -> FALSE | CCI11: FALSE | CCJ11: FALSE | CCK11: FALSE | CCL11: FALSE | CCM11: FALSE | CCN11: FALSE | CCO11: FALSE | CCP11: FALSE | CCQ11: FALSE | CCR11: FALSE | CCS11: FALSE | CCT11: FALSE | CCU11: FALSE | CCV11: FALSE | CCW11: FALSE | CCX11: FALSE | CCY11: FALSE | CCZ11: FALSE | CDA11: FALSE | CDB11: FALSE | CDC11: FALSE | CDD11: FALSE | CDE11: FALSE | CDF11: FALSE | CDG11: FALSE | CDH11: FALSE | CDI11: FALSE | CDJ11: FALSE | CDK11: FALSE | CDL11: FALSE | CDM11: FALSE | CDN11: FALSE | CDO11: FALSE | CDP11: FALSE | CDQ11: FALSE | CDR11: FALSE | CDS11: FALSE | CDT11: FALSE | CDU11: FALSE | CDV11: FALSE | CDW11: FALSE | CDX11: FALSE | CDY11: FALSE | CDZ11: FALSE | CEA11: FALSE | CEB11: FALSE | CEC11: FALSE | CED11: FALSE | CEE11: FALSE | CEF11: FALSE | CEG11: FALSE | CEH11: FALSE | CEI11: FALSE | CEJ11: FALSE | CEK11: FALSE | CEL11: FALSE | CEM11: FALSE | CEN11: FALSE | CEO11: FALSE | CEP11: FALSE | CEQ11: FALSE | CER11: FALSE | CES11: FALSE | CET11: =ECHO(FALSE) -> FALSE | CEU11: FALSE | CEV11: FALSE | CEW11: FALSE | CEX11: FALSE | CEY11: FALSE | CEZ11: FALSE | CFA11: FALSE | CFB11: FALSE | CFC11: FALSE | CFD11: FALSE | CFE11: FALSE | CFF11: FALSE | CFG11: FALSE | CFH11: FALSE | CFI11: FALSE | CFJ11: FALSE | CFK11: FALSE | CFL11: FALSE | CFM11: FALSE | CFN11: FALSE | CFO11: FALSE | CFP11: FALSE | CFQ11: FALSE | CFR11: FALSE | CFS11: FALSE | CFT11: FALSE | CFU11: FALSE | CFV11: FALSE | CFW11: FALSE | CFX11: FALSE | CFY11: FALSE | CFZ11: FALSE | CGA11: FALSE | CGB11: FALSE | CGC11: FALSE | CGD11: FALSE | CGE11: FALSE | CGF11: FALSE | CGG11: FALSE | CGH11: FALSE | CGI11: FALSE | CGJ11: FALSE | CGK11: FALSE | CGL11: FALSE | CGM11: FALSE | CGN11: FALSE | CGO11: FALSE | CGP11: FALSE | CGQ11: FALSE | CGR11: FALSE | CGS11: FALSE | CGT11: FALSE | CGU11: FALSE | CGV11: FALSE | CGW11: FALSE | CGX11: FALSE | CGY11: FALSE | CGZ11: FALSE | CHA11: FALSE | CHB11: FALSE | CHC11: FALSE | CHD11: FALSE | CHE11: FALSE | CHF11: =ECHO(FALSE) -> FALSE | CHG11: FALSE | CHH11: FALSE | CHI11: FALSE | CHJ11: FALSE | CHK11: FALSE | CHL11: FALSE | CHM11: FALSE | CHN11: FALSE | CHO11: FALSE | CHP11: FALSE | CHQ11: FALSE | CHR11: FALSE | CHS11: FALSE | CHT11: FALSE | CHU11: FALSE | CHV11: FALSE | CHW11: FALSE | CHX11: FALSE | CHY11: FALSE | CHZ11: FALSE | CIA11: FALSE | CIB11: FALSE | CIC11: FALSE | CID11: FALSE | CIE11: FALSE | CIF11: FALSE | CIG11: FALSE | CIH11: FALSE | CII11: FALSE | CIJ11: FALSE | CIK11: FALSE | CIL11: FALSE | CIM11: FALSE | CIN11: FALSE | CIO11: FALSE | CIP11: FALSE | CIQ11: FALSE | CIR11: FALSE | CIS11: FALSE | CIT11: FALSE | CIU11: FALSE | CIV11: FALSE | CIW11: FALSE | CIX11: FALSE | CIY11: FALSE | CIZ11: FALSE | CJA11: FALSE | CJB11: FALSE | CJC11: FALSE | CJD11: FALSE | CJE11: FALSE | CJF11: FALSE | CJG11: FALSE | CJH11: FALSE | CJI11: FALSE | CJJ11: FALSE | CJK11: FALSE | CJL11: FALSE | CJM11: FALSE | CJN11: FALSE | CJO11: FALSE | CJP11: FALSE | CJQ11: FALSE | CJR11: =ECHO(FALSE) -> FALSE | CJS11: FALSE | CJT11: FALSE | CJU11: FALSE | CJV11: FALSE | CJW11: FALSE | CJX11: FALSE | CJY11: FALSE | CJZ11: FALSE | CKA11: FALSE | CKB11: FALSE | CKC11: FALSE | CKD11: FALSE | CKE11: FALSE | CKF11: FALSE | CKG11: FALSE | CKH11: FALSE | CKI11: FALSE | CKJ11: FALSE | CKK11: FALSE | CKL11: FALSE | CKM11: FALSE | CKN11: FALSE | CKO11: FALSE | CKP11: FALSE | CKQ11: FALSE | CKR11: FALSE | CKS11: FALSE | CKT11: FALSE | CKU11: FALSE | CKV11: FALSE | CKW11: FALSE | CKX11: FALSE | CKY11: FALSE | CKZ11: FALSE | CLA11: FALSE | CLB11: FALSE | CLC11: FALSE | CLD11: FALSE | CLE11: FALSE | CLF11: FALSE | CLG11: FALSE | CLH11: FALSE | CLI11: FALSE | CLJ11: FALSE | CLK11: FALSE | CLL11: FALSE | CLM11: FALSE | CLN11: FALSE | CLO11: FALSE | CLP11: FALSE | CLQ11: FALSE | CLR11: FALSE | CLS11: FALSE | CLT11: FALSE | CLU11: FALSE | CLV11: FALSE | CLW11: FALSE | CLX11: FALSE | CLY11: FALSE | CLZ11: FALSE | CMA11: FALSE | CMB11: FALSE | CMC11: FALSE | CMD11: =ECHO(FALSE) -> FALSE | CME11: FALSE | CMF11: FALSE | CMG11: FALSE | CMH11: FALSE | CMI11: FALSE | CMJ11: FALSE | CMK11: FALSE | CML11: FALSE | CMM11: FALSE | CMN11: FALSE | CMO11: FALSE | CMP11: FALSE | CMQ11: FALSE | CMR11: FALSE | CMS11: FALSE | CMT11: FALSE | CMU11: FALSE | CMV11: FALSE | CMW11: FALSE | CMX11: FALSE | CMY11: FALSE | CMZ11: FALSE | CNA11: FALSE | CNB11: FALSE | CNC11: FALSE | CND11: FALSE | CNE11: FALSE | CNF11: FALSE | CNG11: FALSE | CNH11: FALSE | CNI11: FALSE | CNJ11: FALSE | CNK11: FALSE | CNL11: FALSE | CNM11: FALSE | CNN11: FALSE | CNO11: FALSE | CNP11: FALSE | CNQ11: FALSE | CNR11: FALSE | CNS11: FALSE | CNT11: FALSE | CNU11: FALSE | CNV11: FALSE | CNW11: FALSE | CNX11: FALSE | CNY11: FALSE | CNZ11: FALSE | COA11: FALSE | COB11: FALSE | COC11: FALSE | COD11: FALSE | COE11: FALSE | COF11: FALSE | COG11: FALSE | COH11: FALSE | COI11: FALSE | COJ11: FALSE | COK11: FALSE | COL11: FALSE | COM11: FALSE | CON11: FALSE | COO11: FALSE | COP11: =ECHO(FALSE) -> FALSE | COQ11: FALSE | COR11: FALSE | COS11: FALSE | COT11: FALSE | COU11: FALSE | COV11: FALSE | COW11: FALSE | COX11: FALSE | COY11: FALSE | COZ11: FALSE | CPA11: FALSE | CPB11: FALSE | CPC11: FALSE | CPD11: FALSE | CPE11: FALSE | CPF11: FALSE | CPG11: FALSE | CPH11: FALSE | CPI11: FALSE | CPJ11: FALSE | CPK11: FALSE | CPL11: FALSE | CPM11: FALSE | CPN11: FALSE | CPO11: FALSE | CPP11: FALSE | CPQ11: FALSE | CPR11: FALSE | CPS11: FALSE | CPT11: FALSE | CPU11: FALSE | CPV11: FALSE | CPW11: FALSE | CPX11: FALSE | CPY11: FALSE | CPZ11: FALSE | CQA11: FALSE | CQB11: FALSE | CQC11: FALSE | CQD11: FALSE | CQE11: FALSE | CQF11: FALSE | CQG11: FALSE | CQH11: FALSE | CQI11: FALSE | CQJ11: FALSE | CQK11: FALSE | CQL11: FALSE | CQM11: FALSE | CQN11: FALSE | CQO11: FALSE | CQP11: FALSE | CQQ11: FALSE | CQR11: FALSE | CQS11: FALSE | CQT11: FALSE | CQU11: FALSE | CQV11: FALSE | CQW11: FALSE | CQX11: FALSE | CQY11: FALSE | CQZ11: FALSE | CRA11: FALSE | CRB11: =ECHO(FALSE) -> FALSE | CRC11: FALSE | CRD11: FALSE | CRE11: FALSE | CRF11: FALSE | CRG11: FALSE | CRH11: FALSE | CRI11: FALSE | CRJ11: FALSE | CRK11: FALSE | CRL11: FALSE | CRM11: FALSE | CRN11: FALSE | CRO11: FALSE | CRP11: FALSE | CRQ11: FALSE | CRR11: FALSE | CRS11: FALSE | CRT11: FALSE | CRU11: FALSE | CRV11: FALSE | CRW11: FALSE | CRX11: FALSE | CRY11: FALSE | CRZ11: FALSE | CSA11: FALSE | CSB11: FALSE | CSC11: FALSE | CSD11: FALSE | CSE11: FALSE | CSF11: FALSE | CSG11: FALSE | CSH11: FALSE | CSI11: FALSE | CSJ11: FALSE | CSK11: FALSE | CSL11: FALSE | CSM11: FALSE | CSN11: FALSE | CSO11: FALSE | CSP11: FALSE | CSQ11: FALSE | CSR11: FALSE | CSS11: FALSE | CST11: FALSE | CSU11: FALSE | CSV11: FALSE | CSW11: FALSE | CSX11: FALSE | CSY11: FALSE | CSZ11: FALSE | CTA11: FALSE | CTB11: FALSE | CTC11: FALSE | CTD11: FALSE | CTE11: FALSE | CTF11: FALSE | CTG11: FALSE | CTH11: FALSE | CTI11: FALSE | CTJ11: FALSE | CTK11: FALSE | CTL11: FALSE | CTM11: FALSE | CTN11: =ECHO(FALSE) -> FALSE | CTO11: FALSE | CTP11: FALSE | CTQ11: FALSE | CTR11: FALSE | CTS11: FALSE | CTT11: FALSE | CTU11: FALSE | CTV11: FALSE | CTW11: FALSE | CTX11: FALSE | CTY11: FALSE | CTZ11: FALSE | CUA11: FALSE | CUB11: FALSE | CUC11: FALSE | CUD11: FALSE | CUE11: FALSE | CUF11: FALSE | CUG11: FALSE | CUH11: FALSE | CUI11: FALSE | CUJ11: FALSE | CUK11: FALSE | CUL11: FALSE | CUM11: FALSE | CUN11: FALSE | CUO11: FALSE | CUP11: FALSE | CUQ11: FALSE | CUR11: FALSE | CUS11: FALSE | CUT11: FALSE | CUU11: FALSE | CUV11: FALSE | CUW11: FALSE | CUX11: FALSE | CUY11: FALSE | CUZ11: FALSE | CVA11: FALSE | CVB11: FALSE | CVC11: FALSE | CVD11: FALSE | CVE11: FALSE | CVF11: FALSE | CVG11: FALSE | CVH11: FALSE | CVI11: FALSE | CVJ11: FALSE | CVK11: FALSE | CVL11: FALSE | CVM11: FALSE | CVN11: FALSE | CVO11: FALSE | CVP11: FALSE | CVQ11: FALSE | CVR11: FALSE | CVS11: FALSE | CVT11: FALSE | CVU11: FALSE | CVV11: FALSE | CVW11: FALSE | CVX11: FALSE | CVY11: FALSE | CVZ11: =ECHO(FALSE) -> FALSE | CWA11: FALSE | CWB11: FALSE | CWC11: FALSE | CWD11: FALSE | CWE11: FALSE | CWF11: FALSE | CWG11: FALSE | CWH11: FALSE | CWI11: FALSE | CWJ11: FALSE | CWK11: FALSE | CWL11: FALSE | CWM11: FALSE | CWN11: FALSE | CWO11: FALSE | CWP11: FALSE | CWQ11: FALSE | CWR11: FALSE | CWS11: FALSE | CWT11: FALSE | CWU11: FALSE | CWV11: FALSE | CWW11: FALSE | CWX11: FALSE | CWY11: FALSE | CWZ11: FALSE | CXA11: FALSE | CXB11: FALSE | CXC11: FALSE | CXD11: FALSE | CXE11: FALSE | CXF11: FALSE | CXG11: FALSE | CXH11: FALSE | CXI11: FALSE | CXJ11: FALSE | CXK11: FALSE | CXL11: FALSE | CXM11: FALSE | CXN11: FALSE | CXO11: FALSE | CXP11: FALSE | CXQ11: FALSE | CXR11: FALSE | CXS11: FALSE | CXT11: FALSE | CXU11: FALSE | CXV11: FALSE | CXW11: FALSE | CXX11: FALSE | CXY11: FALSE | CXZ11: FALSE | CYA11: FALSE | CYB11: FALSE | CYC11: FALSE | CYD11: FALSE | CYE11: FALSE | CYF11: FALSE | CYG11: FALSE | CYH11: FALSE | CYI11: FALSE | CYJ11: FALSE | CYK11: FALSE | CYL11: =ECHO(FALSE) -> FALSE | CYM11: FALSE | CYN11: FALSE | CYO11: FALSE | CYP11: FALSE | CYQ11: FALSE | CYR11: FALSE | CYS11: FALSE | CYT11: FALSE | CYU11: FALSE | CYV11: FALSE | CYW11: FALSE | CYX11: FALSE | CYY11: FALSE | CYZ11: FALSE | CZA11: FALSE | CZB11: FALSE | CZC11: FALSE | CZD11: FALSE | CZE11: FALSE | CZF11: FALSE | CZG11: FALSE | CZH11: FALSE | CZI11: FALSE | CZJ11: FALSE | CZK11: FALSE | CZL11: FALSE | CZM11: FALSE | CZN11: FALSE | CZO11: FALSE | CZP11: FALSE | CZQ11: FALSE | CZR11: FALSE | CZS11: FALSE | CZT11: FALSE | CZU11: FALSE | CZV11: FALSE | CZW11: FALSE | CZX11: FALSE | CZY11: FALSE | CZZ11: FALSE | DAA11: FALSE | DAB11: FALSE | DAC11: FALSE | DAD11: FALSE | DAE11: FALSE | DAF11: FALSE | DAG11: FALSE | DAH11: FALSE | DAI11: FALSE | DAJ11: FALSE | DAK11: FALSE | DAL11: FALSE | DAM11: FALSE | DAN11: FALSE | DAO11: FALSE | DAP11: FALSE | DAQ11: FALSE | DAR11: FALSE | DAS11: FALSE | DAT11: FALSE | DAU11: FALSE | DAV11: FALSE | DAW11: FALSE | DAX11: =ECHO(FALSE) -> FALSE | DAY11: FALSE | DAZ11: FALSE | DBA11: FALSE | DBB11: FALSE | DBC11: FALSE | DBD11: FALSE | DBE11: FALSE | DBF11: FALSE | DBG11: FALSE | DBH11: FALSE | DBI11: FALSE | DBJ11: FALSE | DBK11: FALSE | DBL11: FALSE | DBM11: FALSE | DBN11: FALSE | DBO11: FALSE | DBP11: FALSE | DBQ11: FALSE | DBR11: FALSE | DBS11: FALSE | DBT11: FALSE | DBU11: FALSE | DBV11: FALSE | DBW11: FALSE | DBX11: FALSE | DBY11: FALSE | DBZ11: FALSE | DCA11: FALSE | DCB11: FALSE | DCC11: FALSE | DCD11: FALSE | DCE11: FALSE | DCF11: FALSE | DCG11: FALSE | DCH11: FALSE | DCI11: FALSE | DCJ11: FALSE | DCK11: FALSE | DCL11: FALSE | DCM11: FALSE | DCN11: FALSE | DCO11: FALSE | DCP11: FALSE | DCQ11: FALSE | DCR11: FALSE | DCS11: FALSE | DCT11: FALSE | DCU11: FALSE | DCV11: FALSE | DCW11: FALSE | DCX11: FALSE | DCY11: FALSE | DCZ11: FALSE | DDA11: FALSE | DDB11: FALSE | DDC11: FALSE | DDD11: FALSE | DDE11: FALSE | DDF11: FALSE | DDG11: FALSE | DDH11: FALSE | DDI11: FALSE | DDJ11: =ECHO(FALSE) -> FALSE | DDK11: FALSE | DDL11: FALSE | DDM11: FALSE | DDN11: FALSE | DDO11: FALSE | DDP11: FALSE | DDQ11: FALSE | DDR11: FALSE | DDS11: FALSE | DDT11: FALSE | DDU11: FALSE | DDV11: FALSE | DDW11: FALSE | DDX11: FALSE | DDY11: FALSE | DDZ11: FALSE | DEA11: FALSE | DEB11: FALSE | DEC11: FALSE | DED11: FALSE | DEE11: FALSE | DEF11: FALSE | DEG11: FALSE | DEH11: FALSE | DEI11: FALSE | DEJ11: FALSE | DEK11: FALSE | DEL11: FALSE | DEM11: FALSE | DEN11: FALSE | DEO11: FALSE | DEP11: FALSE | DEQ11: FALSE | DER11: FALSE | DES11: FALSE | DET11: FALSE | DEU11: FALSE | DEV11: FALSE | DEW11: FALSE | DEX11: FALSE | DEY11: FALSE | DEZ11: FALSE | DFA11: FALSE | DFB11: FALSE | DFC11: FALSE | DFD11: FALSE | DFE11: FALSE | DFF11: FALSE | DFG11: FALSE | DFH11: FALSE | DFI11: FALSE | DFJ11: FALSE | DFK11: FALSE | DFL11: FALSE | DFM11: FALSE | DFN11: FALSE | DFO11: FALSE | DFP11: FALSE | DFQ11: FALSE | DFR11: FALSE | DFS11: FALSE | DFT11: FALSE | DFU11: FALSE | DFV11: =ECHO(FALSE) -> FALSE | DFW11: FALSE | DFX11: FALSE | DFY11: FALSE | DFZ11: FALSE | DGA11: FALSE | DGB11: FALSE | DGC11: FALSE | DGD11: FALSE | DGE11: FALSE | DGF11: FALSE | DGG11: FALSE | DGH11: FALSE | DGI11: FALSE | DGJ11: FALSE | DGK11: FALSE | DGL11: FALSE | DGM11: FALSE | DGN11: FALSE | DGO11: FALSE | DGP11: FALSE | DGQ11: FALSE | DGR11: FALSE | DGS11: FALSE | DGT11: FALSE | DGU11: FALSE | DGV11: FALSE | DGW11: FALSE | DGX11: FALSE | DGY11: FALSE | DGZ11: FALSE | DHA11: FALSE | DHB11: FALSE | DHC11: FALSE | DHD11: FALSE | DHE11: FALSE | DHF11: FALSE | DHG11: FALSE | DHH11: FALSE | DHI11: FALSE | DHJ11: FALSE | DHK11: FALSE | DHL11: FALSE | DHM11: FALSE | DHN11: FALSE | DHO11: FALSE | DHP11: FALSE | DHQ11: FALSE | DHR11: FALSE | DHS11: FALSE | DHT11: FALSE | DHU11: FALSE | DHV11: FALSE | DHW11: FALSE | DHX11: FALSE | DHY11: FALSE | DHZ11: FALSE | DIA11: FALSE | DIB11: FALSE | DIC11: FALSE | DID11: FALSE | DIE11: FALSE | DIF11: FALSE | DIG11: FALSE | DIH11: =ECHO(FALSE) -> FALSE | DII11: FALSE | DIJ11: FALSE | DIK11: FALSE | DIL11: FALSE | DIM11: FALSE | DIN11: FALSE | DIO11: FALSE | DIP11: FALSE | DIQ11: FALSE | DIR11: FALSE | DIS11: FALSE | DIT11: FALSE | DIU11: FALSE | DIV11: FALSE | DIW11: FALSE | DIX11: FALSE | DIY11: FALSE | DIZ11: FALSE | DJA11: FALSE | DJB11: FALSE | DJC11: FALSE | DJD11: FALSE | DJE11: FALSE | DJF11: FALSE | DJG11: FALSE | DJH11: FALSE | DJI11: FALSE | DJJ11: FALSE | DJK11: FALSE | DJL11: FALSE | DJM11: FALSE | DJN11: FALSE | DJO11: FALSE | DJP11: FALSE | DJQ11: FALSE | DJR11: FALSE | DJS11: FALSE | DJT11: FALSE | DJU11: FALSE | DJV11: FALSE | DJW11: FALSE | DJX11: FALSE | DJY11: FALSE | DJZ11: FALSE | DKA11: FALSE | DKB11: FALSE | DKC11: FALSE | DKD11: FALSE | DKE11: FALSE | DKF11: FALSE | DKG11: FALSE | DKH11: FALSE | DKI11: FALSE | DKJ11: FALSE | DKK11: FALSE | DKL11: FALSE | DKM11: FALSE | DKN11: FALSE | DKO11: FALSE | DKP11: FALSE | DKQ11: FALSE | DKR11: FALSE | DKS11: FALSE | DKT11: =ECHO(FALSE) -> FALSE | DKU11: FALSE | DKV11: FALSE | DKW11: FALSE | DKX11: FALSE | DKY11: FALSE | DKZ11: FALSE | DLA11: FALSE | DLB11: FALSE | DLC11: FALSE | DLD11: FALSE | DLE11: FALSE | DLF11: FALSE | DLG11: FALSE | DLH11: FALSE | DLI11: FALSE | DLJ11: FALSE | DLK11: FALSE | DLL11: FALSE | DLM11: FALSE | DLN11: FALSE | DLO11: FALSE | DLP11: FALSE | DLQ11: FALSE | DLR11: FALSE | DLS11: FALSE | DLT11: FALSE | DLU11: FALSE | DLV11: FALSE | DLW11: FALSE | DLX11: FALSE | DLY11: FALSE | DLZ11: FALSE | DMA11: FALSE | DMB11: FALSE | DMC11: FALSE | DMD11: FALSE | DME11: FALSE | DMF11: FALSE | DMG11: FALSE | DMH11: FALSE | DMI11: FALSE | DMJ11: FALSE | DMK11: FALSE | DML11: FALSE | DMM11: FALSE | DMN11: FALSE | DMO11: FALSE | DMP11: FALSE | DMQ11: FALSE | DMR11: FALSE | DMS11: FALSE | DMT11: FALSE | DMU11: FALSE | DMV11: FALSE | DMW11: FALSE | DMX11: FALSE | DMY11: FALSE | DMZ11: FALSE | DNA11: FALSE | DNB11: FALSE | DNC11: FALSE | DND11: FALSE | DNE11: FALSE | DNF11: =ECHO(FALSE) -> FALSE | DNG11: FALSE | DNH11: FALSE | DNI11: FALSE | DNJ11: FALSE | DNK11: FALSE | DNL11: FALSE | DNM11: FALSE | DNN11: FALSE | DNO11: FALSE | DNP11: FALSE | DNQ11: FALSE | DNR11: FALSE | DNS11: FALSE | DNT11: FALSE | DNU11: FALSE | DNV11: FALSE | DNW11: FALSE | DNX11: FALSE | DNY11: FALSE | DNZ11: FALSE | DOA11: FALSE | DOB11: FALSE | DOC11: FALSE | DOD11: FALSE | DOE11: FALSE | DOF11: FALSE | DOG11: FALSE | DOH11: FALSE | DOI11: FALSE | DOJ11: FALSE | DOK11: FALSE | DOL11: FALSE | DOM11: FALSE | DON11: FALSE | DOO11: FALSE | DOP11: FALSE | DOQ11: FALSE | DOR11: FALSE | DOS11: FALSE | DOT11: FALSE | DOU11: FALSE | DOV11: FALSE | DOW11: FALSE | DOX11: FALSE | DOY11: FALSE | DOZ11: FALSE | DPA11: FALSE | DPB11: FALSE | DPC11: FALSE | DPD11: FALSE | DPE11: FALSE | DPF11: FALSE | DPG11: FALSE | DPH11: FALSE | DPI11: FALSE | DPJ11: FALSE | DPK11: FALSE | DPL11: FALSE | DPM11: FALSE | DPN11: FALSE | DPO11: FALSE | DPP11: FALSE | DPQ11: FALSE | DPR11: =ECHO(FALSE) -> FALSE | DPS11: FALSE | DPT11: FALSE | DPU11: FALSE | DPV11: FALSE | DPW11: FALSE | DPX11: FALSE | DPY11: FALSE | DPZ11: FALSE | DQA11: FALSE | DQB11: FALSE | DQC11: FALSE | DQD11: FALSE | DQE11: FALSE | DQF11: FALSE | DQG11: FALSE | DQH11: FALSE | DQI11: FALSE | DQJ11: FALSE | DQK11: FALSE | DQL11: FALSE | DQM11: FALSE | DQN11: FALSE | DQO11: FALSE | DQP11: FALSE | DQQ11: FALSE | DQR11: FALSE | DQS11: FALSE | DQT11: FALSE | DQU11: FALSE | DQV11: FALSE | DQW11: FALSE | DQX11: FALSE | DQY11: FALSE | DQZ11: FALSE | DRA11: FALSE | DRB11: FALSE | DRC11: FALSE | DRD11: FALSE | DRE11: FALSE | DRF11: FALSE | DRG11: FALSE | DRH11: FALSE | DRI11: FALSE | DRJ11: FALSE | DRK11: FALSE | DRL11: FALSE | DRM11: FALSE | DRN11: FALSE | DRO11: FALSE | DRP11: FALSE | DRQ11: FALSE | DRR11: FALSE | DRS11: FALSE | DRT11: FALSE | DRU11: FALSE | DRV11: FALSE | DRW11: FALSE | DRX11: FALSE | DRY11: FALSE | DRZ11: FALSE | DSA11: FALSE | DSB11: FALSE | DSC11: FALSE | DSD11: =ECHO(FALSE) -> FALSE | DSE11: FALSE | DSF11: FALSE | DSG11: FALSE | DSH11: FALSE | DSI11: FALSE | DSJ11: FALSE | DSK11: FALSE | DSL11: FALSE | DSM11: FALSE | DSN11: FALSE | DSO11: FALSE | DSP11: FALSE | DSQ11: FALSE | DSR11: FALSE | DSS11: FALSE | DST11: FALSE | DSU11: FALSE | DSV11: FALSE | DSW11: FALSE | DSX11: FALSE | DSY11: FALSE | DSZ11: FALSE | DTA11: FALSE | DTB11: FALSE | DTC11: FALSE | DTD11: FALSE | DTE11: FALSE | DTF11: FALSE | DTG11: FALSE | DTH11: FALSE | DTI11: FALSE | DTJ11: FALSE | DTK11: FALSE | DTL11: FALSE | DTM11: FALSE | DTN11: FALSE | DTO11: FALSE | DTP11: FALSE | DTQ11: FALSE | DTR11: FALSE | DTS11: FALSE | DTT11: FALSE | DTU11: FALSE | DTV11: FALSE | DTW11: FALSE | DTX11: FALSE | DTY11: FALSE | DTZ11: FALSE | DUA11: FALSE | DUB11: FALSE | DUC11: FALSE | DUD11: FALSE | DUE11: FALSE | DUF11: FALSE | DUG11: FALSE | DUH11: FALSE | DUI11: FALSE | DUJ11: FALSE | DUK11: FALSE | DUL11: FALSE | DUM11: FALSE | DUN11: FALSE | DUO11: FALSE | DUP11: =ECHO(FALSE) -> FALSE | DUQ11: FALSE | DUR11: FALSE | DUS11: FALSE | DUT11: FALSE | DUU11: FALSE | DUV11: FALSE | DUW11: FALSE | DUX11: FALSE | DUY11: FALSE | DUZ11: FALSE | DVA11: FALSE | DVB11: FALSE | DVC11: FALSE | DVD11: FALSE | DVE11: FALSE | DVF11: FALSE | DVG11: FALSE | DVH11: FALSE | DVI11: FALSE | DVJ11: FALSE | DVK11: FALSE | DVL11: FALSE | DVM11: FALSE | DVN11: FALSE | DVO11: FALSE | DVP11: FALSE | DVQ11: FALSE | DVR11: FALSE | DVS11: FALSE | DVT11: FALSE | DVU11: FALSE | DVV11: FALSE | DVW11: FALSE | DVX11: FALSE | DVY11: FALSE | DVZ11: FALSE | DWA11: FALSE | DWB11: FALSE | DWC11: FALSE | DWD11: FALSE | DWE11: FALSE | DWF11: FALSE | DWG11: FALSE | DWH11: FALSE | DWI11: FALSE | DWJ11: FALSE | DWK11: FALSE | DWL11: FALSE | DWM11: FALSE | DWN11: FALSE | DWO11: FALSE | DWP11: FALSE | DWQ11: FALSE | DWR11: FALSE | DWS11: FALSE | DWT11: FALSE | DWU11: FALSE | DWV11: FALSE | DWW11: FALSE | DWX11: FALSE | DWY11: FALSE | DWZ11: FALSE | DXA11: FALSE | DXB11: =ECHO(FALSE) -> FALSE | DXC11: FALSE | DXD11: FALSE | DXE11: FALSE | DXF11: FALSE | DXG11: FALSE | DXH11: FALSE | DXI11: FALSE | DXJ11: FALSE | DXK11: FALSE | DXL11: FALSE | DXM11: FALSE | DXN11: FALSE | DXO11: FALSE | DXP11: FALSE | DXQ11: FALSE | DXR11: FALSE | DXS11: FALSE | DXT11: FALSE | DXU11: FALSE | DXV11: FALSE | DXW11: FALSE | DXX11: FALSE | DXY11: FALSE | DXZ11: FALSE | DYA11: FALSE | DYB11: FALSE | DYC11: FALSE | DYD11: FALSE | DYE11: FALSE | DYF11: FALSE | DYG11: FALSE | DYH11: FALSE | DYI11: FALSE | DYJ11: FALSE | DYK11: FALSE | DYL11: FALSE | DYM11: FALSE | DYN11: FALSE | DYO11: FALSE | DYP11: FALSE | DYQ11: FALSE | DYR11: FALSE | DYS11: FALSE | DYT11: FALSE | DYU11: FALSE | DYV11: FALSE | DYW11: FALSE | DYX11: FALSE | DYY11: FALSE | DYZ11: FALSE | DZA11: FALSE | DZB11: FALSE | DZC11: FALSE | DZD11: FALSE | DZE11: FALSE | DZF11: FALSE | DZG11: FALSE | DZH11: FALSE | DZI11: FALSE | DZJ11: FALSE | DZK11: FALSE | DZL11: FALSE | DZM11: FALSE | DZN11: =ECHO(FALSE) -> FALSE | DZO11: FALSE | DZP11: FALSE | DZQ11: FALSE | DZR11: FALSE | DZS11: FALSE | DZT11: FALSE | DZU11: FALSE | DZV11: FALSE | DZW11: FALSE | DZX11: FALSE | DZY11: FALSE | DZZ11: FALSE | EAA11: FALSE | EAB11: FALSE | EAC11: FALSE | EAD11: FALSE | EAE11: FALSE | EAF11: FALSE | EAG11: FALSE | EAH11: FALSE | EAI11: FALSE | EAJ11: FALSE | EAK11: FALSE | EAL11: FALSE | EAM11: FALSE | EAN11: FALSE | EAO11: FALSE | EAP11: FALSE | EAQ11: FALSE | EAR11: FALSE | EAS11: FALSE | EAT11: FALSE | EAU11: FALSE | EAV11: FALSE | EAW11: FALSE | EAX11: FALSE | EAY11: FALSE | EAZ11: FALSE | EBA11: FALSE | EBB11: FALSE | EBC11: FALSE | EBD11: FALSE | EBE11: FALSE | EBF11: FALSE | EBG11: FALSE | EBH11: FALSE | EBI11: FALSE | EBJ11: FALSE | EBK11: FALSE | EBL11: FALSE | EBM11: FALSE | EBN11: FALSE | EBO11: FALSE | EBP11: FALSE | EBQ11: FALSE | EBR11: FALSE | EBS11: FALSE | EBT11: FALSE | EBU11: FALSE | EBV11: FALSE | EBW11: FALSE | EBX11: FALSE | EBY11: FALSE | EBZ11: =ECHO(FALSE) -> FALSE | ECA11: FALSE | ECB11: FALSE | ECC11: FALSE | ECD11: FALSE | ECE11: FALSE | ECF11: FALSE | ECG11: FALSE | ECH11: FALSE | ECI11: FALSE | ECJ11: FALSE | ECK11: FALSE | ECL11: FALSE | ECM11: FALSE | ECN11: FALSE | ECO11: FALSE | ECP11: FALSE | ECQ11: FALSE | ECR11: FALSE | ECS11: FALSE | ECT11: FALSE | ECU11: FALSE | ECV11: FALSE | ECW11: FALSE | ECX11: FALSE | ECY11: FALSE | ECZ11: FALSE | EDA11: FALSE | EDB11: FALSE | EDC11: FALSE | EDD11: FALSE | EDE11: FALSE | EDF11: FALSE | EDG11: FALSE | EDH11: FALSE | EDI11: FALSE | EDJ11: FALSE | EDK11: FALSE | EDL11: FALSE | EDM11: FALSE | EDN11: FALSE | EDO11: FALSE | EDP11: FALSE | EDQ11: FALSE | EDR11: FALSE | EDS11: FALSE | EDT11: FALSE | EDU11: FALSE | EDV11: FALSE | EDW11: FALSE | EDX11: FALSE | EDY11: FALSE | EDZ11: FALSE | EEA11: FALSE | EEB11: FALSE | EEC11: FALSE | EED11: FALSE | EEE11: FALSE | EEF11: FALSE | EEG11: FALSE | EEH11: FALSE | EEI11: FALSE | EEJ11: FALSE | EEK11: FALSE | EEL11: =ECHO(FALSE) -> FALSE | EEM11: FALSE | EEN11: FALSE | EEO11: FALSE | EEP11: FALSE | EEQ11: FALSE | EER11: FALSE | EES11: FALSE | EET11: FALSE | EEU11: FALSE | EEV11: FALSE | EEW11: FALSE | EEX11: FALSE | EEY11: FALSE | EEZ11: FALSE | EFA11: FALSE | EFB11: FALSE | EFC11: FALSE | EFD11: FALSE | EFE11: FALSE | EFF11: FALSE | EFG11: FALSE | EFH11: FALSE | EFI11: FALSE | EFJ11: FALSE | EFK11: FALSE | EFL11: FALSE | EFM11: FALSE | EFN11: FALSE | EFO11: FALSE | EFP11: FALSE | EFQ11: FALSE | EFR11: FALSE | EFS11: FALSE | EFT11: FALSE | EFU11: FALSE | EFV11: FALSE | EFW11: FALSE | EFX11: FALSE | EFY11: FALSE | EFZ11: FALSE | EGA11: FALSE | EGB11: FALSE | EGC11: FALSE | EGD11: FALSE | EGE11: FALSE | EGF11: FALSE | EGG11: FALSE | EGH11: FALSE | EGI11: FALSE | EGJ11: FALSE | EGK11: FALSE | EGL11: FALSE | EGM11: FALSE | EGN11: FALSE | EGO11: FALSE | EGP11: FALSE | EGQ11: FALSE | EGR11: FALSE | EGS11: FALSE | EGT11: FALSE | EGU11: FALSE | EGV11: FALSE | EGW11: FALSE | EGX11: =ECHO(FALSE) -> FALSE | EGY11: FALSE | EGZ11: FALSE | EHA11: FALSE | EHB11: FALSE | EHC11: FALSE | EHD11: FALSE | EHE11: FALSE | EHF11: FALSE | EHG11: FALSE | EHH11: FALSE | EHI11: FALSE | EHJ11: FALSE | EHK11: FALSE | EHL11: FALSE | EHM11: FALSE | EHN11: FALSE | EHO11: FALSE | EHP11: FALSE | EHQ11: FALSE | EHR11: FALSE | EHS11: FALSE | EHT11: FALSE | EHU11: FALSE | EHV11: FALSE | EHW11: FALSE | EHX11: FALSE | EHY11: FALSE | EHZ11: FALSE | EIA11: FALSE | EIB11: FALSE | EIC11: FALSE | EID11: FALSE | EIE11: FALSE | EIF11: FALSE | EIG11: FALSE | EIH11: FALSE | EII11: FALSE | EIJ11: FALSE | EIK11: FALSE | EIL11: FALSE | EIM11: FALSE | EIN11: FALSE | EIO11: FALSE | EIP11: FALSE | EIQ11: FALSE | EIR11: FALSE | EIS11: FALSE | EIT11: FALSE | EIU11: FALSE | EIV11: FALSE | EIW11: FALSE | EIX11: FALSE | EIY11: FALSE | EIZ11: FALSE | EJA11: FALSE | EJB11: FALSE | EJC11: FALSE | EJD11: FALSE | EJE11: FALSE | EJF11: FALSE | EJG11: FALSE | EJH11: FALSE | EJI11: FALSE | EJJ11: =ECHO(FALSE) -> FALSE | EJK11: FALSE | EJL11: FALSE | EJM11: FALSE | EJN11: FALSE | EJO11: FALSE | EJP11: FALSE | EJQ11: FALSE | EJR11: FALSE | EJS11: FALSE | EJT11: FALSE | EJU11: FALSE | EJV11: FALSE | EJW11: FALSE | EJX11: FALSE | EJY11: FALSE | EJZ11: FALSE | EKA11: FALSE | EKB11: FALSE | EKC11: FALSE | EKD11: FALSE | EKE11: FALSE | EKF11: FALSE | EKG11: FALSE | EKH11: FALSE | EKI11: FALSE | EKJ11: FALSE | EKK11: FALSE | EKL11: FALSE | EKM11: FALSE | EKN11: FALSE | EKO11: FALSE | EKP11: FALSE | EKQ11: FALSE | EKR11: FALSE | EKS11: FALSE | EKT11: FALSE | EKU11: FALSE | EKV11: FALSE | EKW11: FALSE | EKX11: FALSE | EKY11: FALSE | EKZ11: FALSE | ELA11: FALSE | ELB11: FALSE | ELC11: FALSE | ELD11: FALSE | ELE11: FALSE | ELF11: FALSE | ELG11: FALSE | ELH11: FALSE | ELI11: FALSE | ELJ11: FALSE | ELK11: FALSE | ELL11: FALSE | ELM11: FALSE | ELN11: FALSE | ELO11: FALSE | ELP11: FALSE | ELQ11: FALSE | ELR11: FALSE | ELS11: FALSE | ELT11: FALSE | ELU11: FALSE | ELV11: =ECHO(FALSE) -> FALSE | ELW11: FALSE | ELX11: FALSE | ELY11: FALSE | ELZ11: FALSE | EMA11: FALSE | EMB11: FALSE | EMC11: FALSE | EMD11: FALSE | EME11: FALSE | EMF11: FALSE | EMG11: FALSE | EMH11: FALSE | EMI11: FALSE | EMJ11: FALSE | EMK11: FALSE | EML11: FALSE | EMM11: FALSE | EMN11: FALSE | EMO11: FALSE | EMP11: FALSE | EMQ11: FALSE | EMR11: FALSE | EMS11: FALSE | EMT11: FALSE | EMU11: FALSE | EMV11: FALSE | EMW11: FALSE | EMX11: FALSE | EMY11: FALSE | EMZ11: FALSE | ENA11: FALSE | ENB11: FALSE | ENC11: FALSE | END11: FALSE | ENE11: FALSE | ENF11: FALSE | ENG11: FALSE | ENH11: FALSE | ENI11: FALSE | ENJ11: FALSE | ENK11: FALSE | ENL11: FALSE | ENM11: FALSE | ENN11: FALSE | ENO11: FALSE | ENP11: FALSE | ENQ11: FALSE | ENR11: FALSE | ENS11: FALSE | ENT11: FALSE | ENU11: FALSE | ENV11: FALSE | ENW11: FALSE | ENX11: FALSE | ENY11: FALSE | ENZ11: FALSE | EOA11: FALSE | EOB11: FALSE | EOC11: FALSE | EOD11: FALSE | EOE11: FALSE | EOF11: FALSE | EOG11: FALSE | EOH11: =ECHO(FALSE) -> FALSE | EOI11: FALSE | EOJ11: FALSE | EOK11: FALSE | EOL11: FALSE | EOM11: FALSE | EON11: FALSE | EOO11: FALSE | EOP11: FALSE | EOQ11: FALSE | EOR11: FALSE | EOS11: FALSE | EOT11: FALSE | EOU11: FALSE | EOV11: FALSE | EOW11: FALSE | EOX11: FALSE | EOY11: FALSE | EOZ11: FALSE | EPA11: FALSE | EPB11: FALSE | EPC11: FALSE | EPD11: FALSE | EPE11: FALSE | EPF11: FALSE | EPG11: FALSE | EPH11: FALSE | EPI11: FALSE | EPJ11: FALSE | EPK11: FALSE | EPL11: FALSE | EPM11: FALSE | EPN11: FALSE | EPO11: FALSE | EPP11: FALSE | EPQ11: FALSE | EPR11: FALSE | EPS11: FALSE | EPT11: FALSE | EPU11: FALSE | EPV11: FALSE | EPW11: FALSE | EPX11: FALSE | EPY11: FALSE | EPZ11: FALSE | EQA11: FALSE | EQB11: FALSE | EQC11: FALSE | EQD11: FALSE | EQE11: FALSE | EQF11: FALSE | EQG11: FALSE | EQH11: FALSE | EQI11: FALSE | EQJ11: FALSE | EQK11: FALSE | EQL11: FALSE | EQM11: FALSE | EQN11: FALSE | EQO11: FALSE | EQP11: FALSE | EQQ11: FALSE | EQR11: FALSE | EQS11: FALSE | EQT11: =ECHO(FALSE) -> FALSE | EQU11: FALSE | EQV11: FALSE | EQW11: FALSE | EQX11: FALSE | EQY11: FALSE | EQZ11: FALSE | ERA11: FALSE | ERB11: FALSE | ERC11: FALSE | ERD11: FALSE | ERE11: FALSE | ERF11: FALSE | ERG11: FALSE | ERH11: FALSE | ERI11: FALSE | ERJ11: FALSE | ERK11: FALSE | ERL11: FALSE | ERM11: FALSE | ERN11: FALSE | ERO11: FALSE | ERP11: FALSE | ERQ11: FALSE | ERR11: FALSE | ERS11: FALSE | ERT11: FALSE | ERU11: FALSE | ERV11: FALSE | ERW11: FALSE | ERX11: FALSE | ERY11: FALSE | ERZ11: FALSE | ESA11: FALSE | ESB11: FALSE | ESC11: FALSE | ESD11: FALSE | ESE11: FALSE | ESF11: FALSE | ESG11: FALSE | ESH11: FALSE | ESI11: FALSE | ESJ11: FALSE | ESK11: FALSE | ESL11: FALSE | ESM11: FALSE | ESN11: FALSE | ESO11: FALSE | ESP11: FALSE | ESQ11: FALSE | ESR11: FALSE | ESS11: FALSE | EST11: FALSE | ESU11: FALSE | ESV11: FALSE | ESW11: FALSE | ESX11: FALSE | ESY11: FALSE | ESZ11: FALSE | ETA11: FALSE | ETB11: FALSE | ETC11: FALSE | ETD11: FALSE | ETE11: FALSE | ETF11: =ECHO(FALSE) -> FALSE | ETG11: FALSE | ETH11: FALSE | ETI11: FALSE | ETJ11: FALSE | ETK11: FALSE | ETL11: FALSE | ETM11: FALSE | ETN11: FALSE | ETO11: FALSE | ETP11: FALSE | ETQ11: FALSE | ETR11: FALSE | ETS11: FALSE | ETT11: FALSE | ETU11: FALSE | ETV11: FALSE | ETW11: FALSE | ETX11: FALSE | ETY11: FALSE | ETZ11: FALSE | EUA11: FALSE | EUB11: FALSE | EUC11: FALSE | EUD11: FALSE | EUE11: FALSE | EUF11: FALSE | EUG11: FALSE | EUH11: FALSE | EUI11: FALSE | EUJ11: FALSE | EUK11: FALSE | EUL11: FALSE | EUM11: FALSE | EUN11: FALSE | EUO11: FALSE | EUP11: FALSE | EUQ11: FALSE | EUR11: FALSE | EUS11: FALSE | EUT11: FALSE | EUU11: FALSE | EUV11: FALSE | EUW11: FALSE | EUX11: FALSE | EUY11: FALSE | EUZ11: FALSE | EVA11: FALSE | EVB11: FALSE | EVC11: FALSE | EVD11: FALSE | EVE11: FALSE | EVF11: FALSE | EVG11: FALSE | EVH11: FALSE | EVI11: FALSE | EVJ11: FALSE | EVK11: FALSE | EVL11: FALSE | EVM11: FALSE | EVN11: FALSE | EVO11: FALSE | EVP11: FALSE | EVQ11: FALSE | EVR11: =ECHO(FALSE) -> FALSE | EVS11: FALSE | EVT11: FALSE | EVU11: FALSE | EVV11: FALSE | EVW11: FALSE | EVX11: FALSE | EVY11: FALSE | EVZ11: FALSE | EWA11: FALSE | EWB11: FALSE | EWC11: FALSE | EWD11: FALSE | EWE11: FALSE | EWF11: FALSE | EWG11: FALSE | EWH11: FALSE | EWI11: FALSE | EWJ11: FALSE | EWK11: FALSE | EWL11: FALSE | EWM11: FALSE | EWN11: FALSE | EWO11: FALSE | EWP11: FALSE | EWQ11: FALSE | EWR11: FALSE | EWS11: FALSE | EWT11: FALSE | EWU11: FALSE | EWV11: FALSE | EWW11: FALSE | EWX11: FALSE | EWY11: FALSE | EWZ11: FALSE | EXA11: FALSE | EXB11: FALSE | EXC11: FALSE | EXD11: FALSE | EXE11: FALSE | EXF11: FALSE | EXG11: FALSE | EXH11: FALSE | EXI11: FALSE | EXJ11: FALSE | EXK11: FALSE | EXL11: FALSE | EXM11: FALSE | EXN11: FALSE | EXO11: FALSE | EXP11: FALSE | EXQ11: FALSE | EXR11: FALSE | EXS11: FALSE | EXT11: FALSE | EXU11: FALSE | EXV11: FALSE | EXW11: FALSE | EXX11: FALSE | EXY11: FALSE | EXZ11: FALSE | EYA11: FALSE | EYB11: FALSE | EYC11: FALSE | EYD11: =ECHO(FALSE) -> FALSE | EYE11: FALSE | EYF11: FALSE | EYG11: FALSE | EYH11: FALSE | EYI11: FALSE | EYJ11: FALSE | EYK11: FALSE | EYL11: FALSE | EYM11: FALSE | EYN11: FALSE | EYO11: FALSE | EYP11: FALSE | EYQ11: FALSE | EYR11: FALSE | EYS11: FALSE | EYT11: FALSE | EYU11: FALSE | EYV11: FALSE | EYW11: FALSE | EYX11: FALSE | EYY11: FALSE | EYZ11: FALSE | EZA11: FALSE | EZB11: FALSE | EZC11: FALSE | EZD11: FALSE | EZE11: FALSE | EZF11: FALSE | EZG11: FALSE | EZH11: FALSE | EZI11: FALSE | EZJ11: FALSE | EZK11: FALSE | EZL11: FALSE | EZM11: FALSE | EZN11: FALSE | EZO11: FALSE | EZP11: FALSE | EZQ11: FALSE | EZR11: FALSE | EZS11: FALSE | EZT11: FALSE | EZU11: FALSE | EZV11: FALSE | EZW11: FALSE | EZX11: FALSE | EZY11: FALSE | EZZ11: FALSE | FAA11: FALSE | FAB11: FALSE | FAC11: FALSE | FAD11: FALSE | FAE11: FALSE | FAF11: FALSE | FAG11: FALSE | FAH11: FALSE | FAI11: FALSE | FAJ11: FALSE | FAK11: FALSE | FAL11: FALSE | FAM11: FALSE | FAN11: FALSE | FAO11: FALSE | FAP11: =ECHO(FALSE) -> FALSE | FAQ11: FALSE | FAR11: FALSE | FAS11: FALSE | FAT11: FALSE | FAU11: FALSE | FAV11: FALSE | FAW11: FALSE | FAX11: FALSE | FAY11: FALSE | FAZ11: FALSE | FBA11: FALSE | FBB11: FALSE | FBC11: FALSE | FBD11: FALSE | FBE11: FALSE | FBF11: FALSE | FBG11: FALSE | FBH11: FALSE | FBI11: FALSE | FBJ11: FALSE | FBK11: FALSE | FBL11: FALSE | FBM11: FALSE | FBN11: FALSE | FBO11: FALSE | FBP11: FALSE | FBQ11: FALSE | FBR11: FALSE | FBS11: FALSE | FBT11: FALSE | FBU11: FALSE | FBV11: FALSE | FBW11: FALSE | FBX11: FALSE | FBY11: FALSE | FBZ11: FALSE | FCA11: FALSE | FCB11: FALSE | FCC11: FALSE | FCD11: FALSE | FCE11: FALSE | FCF11: FALSE | FCG11: FALSE | FCH11: FALSE | FCI11: FALSE | FCJ11: FALSE | FCK11: FALSE | FCL11: FALSE | FCM11: FALSE | FCN11: FALSE | FCO11: FALSE | FCP11: FALSE | FCQ11: FALSE | FCR11: FALSE | FCS11: FALSE | FCT11: FALSE | FCU11: FALSE | FCV11: FALSE | FCW11: FALSE | FCX11: FALSE | FCY11: FALSE | FCZ11: FALSE | FDA11: FALSE | FDB11: =ECHO(FALSE) -> FALSE | FDC11: FALSE | FDD11: FALSE | FDE11: FALSE | FDF11: FALSE | FDG11: FALSE | FDH11: FALSE | FDI11: FALSE | FDJ11: FALSE | FDK11: FALSE | FDL11: FALSE | FDM11: FALSE | FDN11: FALSE | FDO11: FALSE | FDP11: FALSE | FDQ11: FALSE | FDR11: FALSE | FDS11: FALSE | FDT11: FALSE | FDU11: FALSE | FDV11: FALSE | FDW11: FALSE | FDX11: FALSE | FDY11: FALSE | FDZ11: FALSE | FEA11: FALSE | FEB11: FALSE | FEC11: FALSE | FED11: FALSE | FEE11: FALSE | FEF11: FALSE | FEG11: FALSE | FEH11: FALSE | FEI11: FALSE | FEJ11: FALSE | FEK11: FALSE | FEL11: FALSE | FEM11: FALSE | FEN11: FALSE | FEO11: FALSE | FEP11: FALSE | FEQ11: FALSE | FER11: FALSE | FES11: FALSE | FET11: FALSE | FEU11: FALSE | FEV11: FALSE | FEW11: FALSE | FEX11: FALSE | FEY11: FALSE | FEZ11: FALSE | FFA11: FALSE | FFB11: FALSE | FFC11: FALSE | FFD11: FALSE | FFE11: FALSE | FFF11: FALSE | FFG11: FALSE | FFH11: FALSE | FFI11: FALSE | FFJ11: FALSE | FFK11: FALSE | FFL11: FALSE | FFM11: FALSE | FFN11: =ECHO(FALSE) -> FALSE | FFO11: FALSE | FFP11: FALSE | FFQ11: FALSE | FFR11: FALSE | FFS11: FALSE | FFT11: FALSE | FFU11: FALSE | FFV11: FALSE | FFW11: FALSE | FFX11: FALSE | FFY11: FALSE | FFZ11: FALSE | FGA11: FALSE | FGB11: FALSE | FGC11: FALSE | FGD11: FALSE | FGE11: FALSE | FGF11: FALSE | FGG11: FALSE | FGH11: FALSE | FGI11: FALSE | FGJ11: FALSE | FGK11: FALSE | FGL11: FALSE | FGM11: FALSE | FGN11: FALSE | FGO11: FALSE | FGP11: FALSE | FGQ11: FALSE | FGR11: FALSE | FGS11: FALSE | FGT11: FALSE | FGU11: FALSE | FGV11: FALSE | FGW11: FALSE | FGX11: FALSE | FGY11: FALSE | FGZ11: FALSE | FHA11: FALSE | FHB11: FALSE | FHC11: FALSE | FHD11: FALSE | FHE11: FALSE | FHF11: FALSE | FHG11: FALSE | FHH11: FALSE | FHI11: FALSE | FHJ11: FALSE | FHK11: FALSE | FHL11: FALSE | FHM11: FALSE | FHN11: FALSE | FHO11: FALSE | FHP11: FALSE | FHQ11: FALSE | FHR11: FALSE | FHS11: FALSE | FHT11: FALSE | FHU11: FALSE | FHV11: FALSE | FHW11: FALSE | FHX11: FALSE | FHY11: FALSE | FHZ11: =ECHO(FALSE) -> FALSE | FIA11: FALSE | FIB11: FALSE | FIC11: FALSE | FID11: FALSE | FIE11: FALSE | FIF11: FALSE | FIG11: FALSE | FIH11: FALSE | FII11: FALSE | FIJ11: FALSE | FIK11: FALSE | FIL11: FALSE | FIM11: FALSE | FIN11: FALSE | FIO11: FALSE | FIP11: FALSE | FIQ11: FALSE | FIR11: FALSE | FIS11: FALSE | FIT11: FALSE | FIU11: FALSE | FIV11: FALSE | FIW11: FALSE | FIX11: FALSE | FIY11: FALSE | FIZ11: FALSE | FJA11: FALSE | FJB11: FALSE | FJC11: FALSE | FJD11: FALSE | FJE11: FALSE | FJF11: FALSE | FJG11: FALSE | FJH11: FALSE | FJI11: FALSE | FJJ11: FALSE | FJK11: FALSE | FJL11: FALSE | FJM11: FALSE | FJN11: FALSE | FJO11: FALSE | FJP11: FALSE | FJQ11: FALSE | FJR11: FALSE | FJS11: FALSE | FJT11: FALSE | FJU11: FALSE | FJV11: FALSE | FJW11: FALSE | FJX11: FALSE | FJY11: FALSE | FJZ11: FALSE | FKA11: FALSE | FKB11: FALSE | FKC11: FALSE | FKD11: FALSE | FKE11: FALSE | FKF11: FALSE | FKG11: FALSE | FKH11: FALSE | FKI11: FALSE | FKJ11: FALSE | FKK11: FALSE | FKL11: =ECHO(FALSE) -> FALSE | FKM11: FALSE | FKN11: FALSE | FKO11: FALSE | FKP11: FALSE | FKQ11: FALSE | FKR11: FALSE | FKS11: FALSE | FKT11: FALSE | FKU11: FALSE | FKV11: FALSE | FKW11: FALSE | FKX11: FALSE | FKY11: FALSE | FKZ11: FALSE | FLA11: FALSE | FLB11: FALSE | FLC11: FALSE | FLD11: FALSE | FLE11: FALSE | FLF11: FALSE | FLG11: FALSE | FLH11: FALSE | FLI11: FALSE | FLJ11: FALSE | FLK11: FALSE | FLL11: FALSE | FLM11: FALSE | FLN11: FALSE | FLO11: FALSE | FLP11: FALSE | FLQ11: FALSE | FLR11: FALSE | FLS11: FALSE | FLT11: FALSE | FLU11: FALSE | FLV11: FALSE | FLW11: FALSE | FLX11: FALSE | FLY11: FALSE | FLZ11: FALSE | FMA11: FALSE | FMB11: FALSE | FMC11: FALSE | FMD11: FALSE | FME11: FALSE | FMF11: FALSE | FMG11: FALSE | FMH11: FALSE | FMI11: FALSE | FMJ11: FALSE | FMK11: FALSE | FML11: FALSE | FMM11: FALSE | FMN11: FALSE | FMO11: FALSE | FMP11: FALSE | FMQ11: FALSE | FMR11: FALSE | FMS11: FALSE | FMT11: FALSE | FMU11: FALSE | FMV11: FALSE | FMW11: FALSE | FMX11: =ECHO(FALSE) -> FALSE | FMY11: FALSE | FMZ11: FALSE | FNA11: FALSE | FNB11: FALSE | FNC11: FALSE | FND11: FALSE | FNE11: FALSE | FNF11: FALSE | FNG11: FALSE | FNH11: FALSE | FNI11: FALSE | FNJ11: FALSE | FNK11: FALSE | FNL11: FALSE | FNM11: FALSE | FNN11: FALSE | FNO11: FALSE | FNP11: FALSE | FNQ11: FALSE | FNR11: FALSE | FNS11: FALSE | FNT11: FALSE | FNU11: FALSE | FNV11: FALSE | FNW11: FALSE | FNX11: FALSE | FNY11: FALSE | FNZ11: FALSE | FOA11: FALSE | FOB11: FALSE | FOC11: FALSE | FOD11: FALSE | FOE11: FALSE | FOF11: FALSE | FOG11: FALSE | FOH11: FALSE | FOI11: FALSE | FOJ11: FALSE | FOK11: FALSE | FOL11: FALSE | FOM11: FALSE | FON11: FALSE | FOO11: FALSE | FOP11: FALSE | FOQ11: FALSE | FOR11: FALSE | FOS11: FALSE | FOT11: FALSE | FOU11: FALSE | FOV11: FALSE | FOW11: FALSE | FOX11: FALSE | FOY11: FALSE | FOZ11: FALSE | FPA11: FALSE | FPB11: FALSE | FPC11: FALSE | FPD11: FALSE | FPE11: FALSE | FPF11: FALSE | FPG11: FALSE | FPH11: FALSE | FPI11: FALSE | FPJ11: =ECHO(FALSE) -> FALSE | FPK11: FALSE | FPL11: FALSE | FPM11: FALSE | FPN11: FALSE | FPO11: FALSE | FPP11: FALSE | FPQ11: FALSE | FPR11: FALSE | FPS11: FALSE | FPT11: FALSE | FPU11: FALSE | FPV11: FALSE | FPW11: FALSE | FPX11: FALSE | FPY11: FALSE | FPZ11: FALSE | FQA11: FALSE | FQB11: FALSE | FQC11: FALSE | FQD11: FALSE | FQE11: FALSE | FQF11: FALSE | FQG11: FALSE | FQH11: FALSE | FQI11: FALSE | FQJ11: FALSE | FQK11: FALSE | FQL11: FALSE | FQM11: FALSE | FQN11: FALSE | FQO11: FALSE | FQP11: FALSE | FQQ11: FALSE | FQR11: FALSE | FQS11: FALSE | FQT11: FALSE | FQU11: FALSE | FQV11: FALSE | FQW11: FALSE | FQX11: FALSE | FQY11: FALSE | FQZ11: FALSE | FRA11: FALSE | FRB11: FALSE | FRC11: FALSE | FRD11: FALSE | FRE11: FALSE | FRF11: FALSE | FRG11: FALSE | FRH11: FALSE | FRI11: FALSE | FRJ11: FALSE | FRK11: FALSE | FRL11: FALSE | FRM11: FALSE | FRN11: FALSE | FRO11: FALSE | FRP11: FALSE | FRQ11: FALSE | FRR11: FALSE | FRS11: FALSE | FRT11: FALSE | FRU11: FALSE | FRV11: =ECHO(FALSE) -> FALSE | FRW11: FALSE | FRX11: FALSE | FRY11: FALSE | FRZ11: FALSE | FSA11: FALSE | FSB11: FALSE | FSC11: FALSE | FSD11: FALSE | FSE11: FALSE | FSF11: FALSE | FSG11: FALSE | FSH11: FALSE | FSI11: FALSE | FSJ11: FALSE | FSK11: FALSE | FSL11: FALSE | FSM11: FALSE | FSN11: FALSE | FSO11: FALSE | FSP11: FALSE | FSQ11: FALSE | FSR11: FALSE | FSS11: FALSE | FST11: FALSE | FSU11: FALSE | FSV11: FALSE | FSW11: FALSE | FSX11: FALSE | FSY11: FALSE | FSZ11: FALSE | FTA11: FALSE | FTB11: FALSE | FTC11: FALSE | FTD11: FALSE | FTE11: FALSE | FTF11: FALSE | FTG11: FALSE | FTH11: FALSE | FTI11: FALSE | FTJ11: FALSE | FTK11: FALSE | FTL11: FALSE | FTM11: FALSE | FTN11: FALSE | FTO11: FALSE | FTP11: FALSE | FTQ11: FALSE | FTR11: FALSE | FTS11: FALSE | FTT11: FALSE | FTU11: FALSE | FTV11: FALSE | FTW11: FALSE | FTX11: FALSE | FTY11: FALSE | FTZ11: FALSE | FUA11: FALSE | FUB11: FALSE | FUC11: FALSE | FUD11: FALSE | FUE11: FALSE | FUF11: FALSE | FUG11: FALSE | FUH11: =ECHO(FALSE) -> FALSE | FUI11: FALSE | FUJ11: FALSE | FUK11: FALSE | FUL11: FALSE | FUM11: FALSE | FUN11: FALSE | FUO11: FALSE | FUP11: FALSE | FUQ11: FALSE | FUR11: FALSE | FUS11: FALSE | FUT11: FALSE | FUU11: FALSE | FUV11: FALSE | FUW11: FALSE | FUX11: FALSE | FUY11: FALSE | FUZ11: FALSE | FVA11: FALSE | FVB11: FALSE | FVC11: FALSE | FVD11: FALSE | FVE11: FALSE | FVF11: FALSE | FVG11: FALSE | FVH11: FALSE | FVI11: FALSE | FVJ11: FALSE | FVK11: FALSE | FVL11: FALSE | FVM11: FALSE | FVN11: FALSE | FVO11: FALSE | FVP11: FALSE | FVQ11: FALSE | FVR11: FALSE | FVS11: FALSE | FVT11: FALSE | FVU11: FALSE | FVV11: FALSE | FVW11: FALSE | FVX11: FALSE | FVY11: FALSE | FVZ11: FALSE | FWA11: FALSE | FWB11: FALSE | FWC11: FALSE | FWD11: FALSE | FWE11: FALSE | FWF11: FALSE | FWG11: FALSE | FWH11: FALSE | FWI11: FALSE | FWJ11: FALSE | FWK11: FALSE | FWL11: FALSE | FWM11: FALSE | FWN11: FALSE | FWO11: FALSE | FWP11: FALSE | FWQ11: FALSE | FWR11: FALSE | FWS11: FALSE | FWT11: =ECHO(FALSE) -> FALSE | FWU11: FALSE | FWV11: FALSE | FWW11: FALSE | FWX11: FALSE | FWY11: FALSE | FWZ11: FALSE | FXA11: FALSE | FXB11: FALSE | FXC11: FALSE | FXD11: FALSE | FXE11: FALSE | FXF11: FALSE | FXG11: FALSE | FXH11: FALSE | FXI11: FALSE | FXJ11: FALSE | FXK11: FALSE | FXL11: FALSE | FXM11: FALSE | FXN11: FALSE | FXO11: FALSE | FXP11: FALSE | FXQ11: FALSE | FXR11: FALSE | FXS11: FALSE | FXT11: FALSE | FXU11: FALSE | FXV11: FALSE | FXW11: FALSE | FXX11: FALSE | FXY11: FALSE | FXZ11: FALSE | FYA11: FALSE | FYB11: FALSE | FYC11: FALSE | FYD11: FALSE | FYE11: FALSE | FYF11: FALSE | FYG11: FALSE | FYH11: FALSE | FYI11: FALSE | FYJ11: FALSE | FYK11: FALSE | FYL11: FALSE | FYM11: FALSE | FYN11: FALSE | FYO11: FALSE | FYP11: FALSE | FYQ11: FALSE | FYR11: FALSE | FYS11: FALSE | FYT11: FALSE | FYU11: FALSE | FYV11: FALSE | FYW11: FALSE | FYX11: FALSE | FYY11: FALSE | FYZ11: FALSE | FZA11: FALSE | FZB11: FALSE | FZC11: FALSE | FZD11: FALSE | FZE11: FALSE | FZF11: =ECHO(FALSE) -> FALSE | FZG11: FALSE | FZH11: FALSE | FZI11: FALSE | FZJ11: FALSE | FZK11: FALSE | FZL11: FALSE | FZM11: FALSE | FZN11: FALSE | FZO11: FALSE | FZP11: FALSE | FZQ11: FALSE | FZR11: FALSE | FZS11: FALSE | FZT11: FALSE | FZU11: FALSE | FZV11: FALSE | FZW11: FALSE | FZX11: FALSE | FZY11: FALSE | FZZ11: FALSE | GAA11: FALSE | GAB11: FALSE | GAC11: FALSE | GAD11: FALSE | GAE11: FALSE | GAF11: FALSE | GAG11: FALSE | GAH11: FALSE | GAI11: FALSE | GAJ11: FALSE | GAK11: FALSE | GAL11: FALSE | GAM11: FALSE | GAN11: FALSE | GAO11: FALSE | GAP11: FALSE | GAQ11: FALSE | GAR11: FALSE | GAS11: FALSE | GAT11: FALSE | GAU11: FALSE | GAV11: FALSE | GAW11: FALSE | GAX11: FALSE | GAY11: FALSE | GAZ11: FALSE | GBA11: FALSE | GBB11: FALSE | GBC11: FALSE | GBD11: FALSE | GBE11: FALSE | GBF11: FALSE | GBG11: FALSE | GBH11: FALSE | GBI11: FALSE | GBJ11: FALSE | GBK11: FALSE | GBL11: FALSE | GBM11: FALSE | GBN11: FALSE | GBO11: FALSE | GBP11: FALSE | GBQ11: FALSE | GBR11: =ECHO(FALSE) -> FALSE | GBS11: FALSE | GBT11: FALSE | GBU11: FALSE | GBV11: FALSE | GBW11: FALSE | GBX11: FALSE | GBY11: FALSE | GBZ11: FALSE | GCA11: FALSE | GCB11: FALSE | GCC11: FALSE | GCD11: FALSE | GCE11: FALSE | GCF11: FALSE | GCG11: FALSE | GCH11: FALSE | GCI11: FALSE | GCJ11: FALSE | GCK11: FALSE | GCL11: FALSE | GCM11: FALSE | GCN11: FALSE | GCO11: FALSE | GCP11: FALSE | GCQ11: FALSE | GCR11: FALSE | GCS11: FALSE | GCT11: FALSE | GCU11: FALSE | GCV11: FALSE | GCW11: FALSE | GCX11: FALSE | GCY11: FALSE | GCZ11: FALSE | GDA11: FALSE | GDB11: FALSE | GDC11: FALSE | GDD11: FALSE | GDE11: FALSE | GDF11: FALSE | GDG11: FALSE | GDH11: FALSE | GDI11: FALSE | GDJ11: FALSE | GDK11: FALSE | GDL11: FALSE | GDM11: FALSE | GDN11: FALSE | GDO11: FALSE | GDP11: FALSE | GDQ11: FALSE | GDR11: FALSE | GDS11: FALSE | GDT11: FALSE | GDU11: FALSE | GDV11: FALSE | GDW11: FALSE | GDX11: FALSE | GDY11: FALSE | GDZ11: FALSE | GEA11: FALSE | GEB11: FALSE | GEC11: FALSE | GED11: =ECHO(FALSE) -> FALSE | GEE11: FALSE | GEF11: FALSE | GEG11: FALSE | GEH11: FALSE | GEI11: FALSE | GEJ11: FALSE | GEK11: FALSE | GEL11: FALSE | GEM11: FALSE | GEN11: FALSE | GEO11: FALSE | GEP11: FALSE | GEQ11: FALSE | GER11: FALSE | GES11: FALSE | GET11: FALSE | GEU11: FALSE | GEV11: FALSE | GEW11: FALSE | GEX11: FALSE | GEY11: FALSE | GEZ11: FALSE | GFA11: FALSE | GFB11: FALSE | GFC11: FALSE | GFD11: FALSE | GFE11: FALSE | GFF11: FALSE | GFG11: FALSE | GFH11: FALSE | GFI11: FALSE | GFJ11: FALSE | GFK11: FALSE | GFL11: FALSE | GFM11: FALSE | GFN11: FALSE | GFO11: FALSE | GFP11: FALSE | GFQ11: FALSE | GFR11: FALSE | GFS11: FALSE | GFT11: FALSE | GFU11: FALSE | GFV11: FALSE | GFW11: FALSE | GFX11: FALSE | GFY11: FALSE | GFZ11: FALSE | GGA11: FALSE | GGB11: FALSE | GGC11: FALSE | GGD11: FALSE | GGE11: FALSE | GGF11: FALSE | GGG11: FALSE | GGH11: FALSE | GGI11: FALSE | GGJ11: FALSE | GGK11: FALSE | GGL11: FALSE | GGM11: FALSE | GGN11: FALSE | GGO11: FALSE | GGP11: =ECHO(FALSE) -> FALSE | GGQ11: FALSE | GGR11: FALSE | GGS11: FALSE | GGT11: FALSE | GGU11: FALSE | GGV11: FALSE | GGW11: FALSE | GGX11: FALSE | GGY11: FALSE | GGZ11: FALSE | GHA11: FALSE | GHB11: FALSE | GHC11: FALSE | GHD11: FALSE | GHE11: FALSE | GHF11: FALSE | GHG11: FALSE | GHH11: FALSE | GHI11: FALSE | GHJ11: FALSE | GHK11: FALSE | GHL11: FALSE | GHM11: FALSE | GHN11: FALSE | GHO11: FALSE | GHP11: FALSE | GHQ11: FALSE | GHR11: FALSE | GHS11: FALSE | GHT11: FALSE | GHU11: FALSE | GHV11: FALSE | GHW11: FALSE | GHX11: FALSE | GHY11: FALSE | GHZ11: FALSE | GIA11: FALSE | GIB11: FALSE | GIC11: FALSE | GID11: FALSE | GIE11: FALSE | GIF11: FALSE | GIG11: FALSE | GIH11: FALSE | GII11: FALSE | GIJ11: FALSE | GIK11: FALSE | GIL11: FALSE | GIM11: FALSE | GIN11: FALSE | GIO11: FALSE | GIP11: FALSE | GIQ11: FALSE | GIR11: FALSE | GIS11: FALSE | GIT11: FALSE | GIU11: FALSE | GIV11: FALSE | GIW11: FALSE | GIX11: FALSE | GIY11: FALSE | GIZ11: FALSE | GJA11: FALSE | GJB11: =ECHO(FALSE) -> FALSE | GJC11: FALSE | GJD11: FALSE | GJE11: FALSE | GJF11: FALSE | GJG11: FALSE | GJH11: FALSE | GJI11: FALSE | GJJ11: FALSE | GJK11: FALSE | GJL11: FALSE | GJM11: FALSE | GJN11: FALSE | GJO11: FALSE | GJP11: FALSE | GJQ11: FALSE | GJR11: FALSE | GJS11: FALSE | GJT11: FALSE | GJU11: FALSE | GJV11: FALSE | GJW11: FALSE | GJX11: FALSE | GJY11: FALSE | GJZ11: FALSE | GKA11: FALSE | GKB11: FALSE | GKC11: FALSE | GKD11: FALSE | GKE11: FALSE | GKF11: FALSE | GKG11: FALSE | GKH11: FALSE | GKI11: FALSE | GKJ11: FALSE | GKK11: FALSE | GKL11: FALSE | GKM11: FALSE | GKN11: FALSE | GKO11: FALSE | GKP11: FALSE | GKQ11: FALSE | GKR11: FALSE | GKS11: FALSE | GKT11: FALSE | GKU11: FALSE | GKV11: FALSE | GKW11: FALSE | GKX11: FALSE | GKY11: FALSE | GKZ11: FALSE | GLA11: FALSE | GLB11: FALSE | GLC11: FALSE | GLD11: FALSE | GLE11: FALSE | GLF11: FALSE | GLG11: FALSE | GLH11: FALSE | GLI11: FALSE | GLJ11: FALSE | GLK11: FALSE | GLL11: FALSE | GLM11: FALSE | GLN11: =ECHO(FALSE) -> FALSE | GLO11: FALSE | GLP11: FALSE | GLQ11: FALSE | GLR11: FALSE | GLS11: FALSE | GLT11: FALSE | GLU11: FALSE | GLV11: FALSE | GLW11: FALSE | GLX11: FALSE | GLY11: FALSE | GLZ11: FALSE | GMA11: FALSE | GMB11: FALSE | GMC11: FALSE | GMD11: FALSE | GME11: FALSE | GMF11: FALSE | GMG11: FALSE | GMH11: FALSE | GMI11: FALSE | GMJ11: FALSE | GMK11: FALSE | GML11: FALSE | GMM11: FALSE | GMN11: FALSE | GMO11: FALSE | GMP11: FALSE | GMQ11: FALSE | GMR11: FALSE | GMS11: FALSE | GMT11: FALSE | GMU11: FALSE | GMV11: FALSE | GMW11: FALSE | GMX11: FALSE | GMY11: FALSE | GMZ11: FALSE | GNA11: FALSE | GNB11: FALSE | GNC11: FALSE | GND11: FALSE | GNE11: FALSE | GNF11: FALSE | GNG11: FALSE | GNH11: FALSE | GNI11: FALSE | GNJ11: FALSE | GNK11: FALSE | GNL11: FALSE | GNM11: FALSE | GNN11: FALSE | GNO11: FALSE | GNP11: FALSE | GNQ11: FALSE | GNR11: FALSE | GNS11: FALSE | GNT11: FALSE | GNU11: FALSE | GNV11: FALSE | GNW11: FALSE | GNX11: FALSE | GNY11: FALSE | GNZ11: =ECHO(FALSE) -> FALSE | GOA11: FALSE | GOB11: FALSE | GOC11: FALSE | GOD11: FALSE | GOE11: FALSE | GOF11: FALSE | GOG11: FALSE | GOH11: FALSE | GOI11: FALSE | GOJ11: FALSE | GOK11: FALSE | GOL11: FALSE | GOM11: FALSE | GON11: FALSE | GOO11: FALSE | GOP11: FALSE | GOQ11: FALSE | GOR11: FALSE | GOS11: FALSE | GOT11: FALSE | GOU11: FALSE | GOV11: FALSE | GOW11: FALSE | GOX11: FALSE | GOY11: FALSE | GOZ11: FALSE | GPA11: FALSE | GPB11: FALSE | GPC11: FALSE | GPD11: FALSE | GPE11: FALSE | GPF11: FALSE | GPG11: FALSE | GPH11: FALSE | GPI11: FALSE | GPJ11: FALSE | GPK11: FALSE | GPL11: FALSE | GPM11: FALSE | GPN11: FALSE | GPO11: FALSE | GPP11: FALSE | GPQ11: FALSE | GPR11: FALSE | GPS11: FALSE | GPT11: FALSE | GPU11: FALSE | GPV11: FALSE | GPW11: FALSE | GPX11: FALSE | GPY11: FALSE | GPZ11: FALSE | GQA11: FALSE | GQB11: FALSE | GQC11: FALSE | GQD11: FALSE | GQE11: FALSE | GQF11: FALSE | GQG11: FALSE | GQH11: FALSE | GQI11: FALSE | GQJ11: FALSE | GQK11: FALSE | GQL11: =ECHO(FALSE) -> FALSE | GQM11: FALSE | GQN11: FALSE | GQO11: FALSE | GQP11: FALSE | GQQ11: FALSE | GQR11: FALSE | GQS11: FALSE | GQT11: FALSE | GQU11: FALSE | GQV11: FALSE | GQW11: FALSE | GQX11: FALSE | GQY11: FALSE | GQZ11: FALSE | GRA11: FALSE | GRB11: FALSE | GRC11: FALSE | GRD11: FALSE | GRE11: FALSE | GRF11: FALSE | GRG11: FALSE | GRH11: FALSE | GRI11: FALSE | GRJ11: FALSE | GRK11: FALSE | GRL11: FALSE | GRM11: FALSE | GRN11: FALSE | GRO11: FALSE | GRP11: FALSE | GRQ11: FALSE | GRR11: FALSE | GRS11: FALSE | GRT11: FALSE | GRU11: FALSE | GRV11: FALSE | GRW11: FALSE | GRX11: FALSE | GRY11: FALSE | GRZ11: FALSE | GSA11: FALSE | GSB11: FALSE | GSC11: FALSE | GSD11: FALSE | GSE11: FALSE | GSF11: FALSE | GSG11: FALSE | GSH11: FALSE | GSI11: FALSE | GSJ11: FALSE | GSK11: FALSE | GSL11: FALSE | GSM11: FALSE | GSN11: FALSE | GSO11: FALSE | GSP11: FALSE | GSQ11: FALSE | GSR11: FALSE | GSS11: FALSE | GST11: FALSE | GSU11: FALSE | GSV11: FALSE | GSW11: FALSE | GSX11: =ECHO(FALSE) -> FALSE | GSY11: FALSE | GSZ11: FALSE | GTA11: FALSE | GTB11: FALSE | GTC11: FALSE | GTD11: FALSE | GTE11: FALSE | GTF11: FALSE | GTG11: FALSE | GTH11: FALSE | GTI11: FALSE | GTJ11: FALSE | GTK11: FALSE | GTL11: FALSE | GTM11: FALSE | GTN11: FALSE | GTO11: FALSE | GTP11: FALSE | GTQ11: FALSE | GTR11: FALSE | GTS11: FALSE | GTT11: FALSE | GTU11: FALSE | GTV11: FALSE | GTW11: FALSE | GTX11: FALSE | GTY11: FALSE | GTZ11: FALSE | GUA11: FALSE | GUB11: FALSE | GUC11: FALSE | GUD11: FALSE | GUE11: FALSE | GUF11: FALSE | GUG11: FALSE | GUH11: FALSE | GUI11: FALSE | GUJ11: FALSE | GUK11: FALSE | GUL11: FALSE | GUM11: FALSE | GUN11: FALSE | GUO11: FALSE | GUP11: FALSE | GUQ11: FALSE | GUR11: FALSE | GUS11: FALSE | GUT11: FALSE | GUU11: FALSE | GUV11: FALSE | GUW11: FALSE | GUX11: FALSE | GUY11: FALSE | GUZ11: FALSE | GVA11: FALSE | GVB11: FALSE | GVC11: FALSE | GVD11: FALSE | GVE11: FALSE | GVF11: FALSE | GVG11: FALSE | GVH11: FALSE | GVI11: FALSE | GVJ11: =ECHO(FALSE) -> FALSE | GVK11: FALSE | GVL11: FALSE | GVM11: FALSE | GVN11: FALSE | GVO11: FALSE | GVP11: FALSE | GVQ11: FALSE | GVR11: FALSE | GVS11: FALSE | GVT11: FALSE | GVU11: FALSE | GVV11: FALSE | GVW11: FALSE | GVX11: FALSE | GVY11: FALSE | GVZ11: FALSE | GWA11: FALSE | GWB11: FALSE | GWC11: FALSE | GWD11: FALSE | GWE11: FALSE | GWF11: FALSE | GWG11: FALSE | GWH11: FALSE | GWI11: FALSE | GWJ11: FALSE | GWK11: FALSE | GWL11: FALSE | GWM11: FALSE | GWN11: FALSE | GWO11: FALSE | GWP11: FALSE | GWQ11: FALSE | GWR11: FALSE | GWS11: FALSE | GWT11: FALSE | GWU11: FALSE | GWV11: FALSE | GWW11: FALSE | GWX11: FALSE | GWY11: FALSE | GWZ11: FALSE | GXA11: FALSE | GXB11: FALSE | GXC11: FALSE | GXD11: FALSE | GXE11: FALSE | GXF11: FALSE | GXG11: FALSE | GXH11: FALSE | GXI11: FALSE | GXJ11: FALSE | GXK11: FALSE | GXL11: FALSE | GXM11: FALSE | GXN11: FALSE | GXO11: FALSE | GXP11: FALSE | GXQ11: FALSE | GXR11: FALSE | GXS11: FALSE | GXT11: FALSE | GXU11: FALSE | GXV11: =ECHO(FALSE) -> FALSE | GXW11: FALSE | GXX11: FALSE | GXY11: FALSE | GXZ11: FALSE | GYA11: FALSE | GYB11: FALSE | GYC11: FALSE | GYD11: FALSE | GYE11: FALSE | GYF11: FALSE | GYG11: FALSE | GYH11: FALSE | GYI11: FALSE | GYJ11: FALSE | GYK11: FALSE | GYL11: FALSE | GYM11: FALSE | GYN11: FALSE | GYO11: FALSE | GYP11: FALSE | GYQ11: FALSE | GYR11: FALSE | GYS11: FALSE | GYT11: FALSE | GYU11: FALSE | GYV11: FALSE | GYW11: FALSE | GYX11: FALSE | GYY11: FALSE | GYZ11: FALSE | GZA11: FALSE | GZB11: FALSE | GZC11: FALSE | GZD11: FALSE | GZE11: FALSE | GZF11: FALSE | GZG11: FALSE | GZH11: FALSE | GZI11: FALSE | GZJ11: FALSE | GZK11: FALSE | GZL11: FALSE | GZM11: FALSE | GZN11: FALSE | GZO11: FALSE | GZP11: FALSE | GZQ11: FALSE | GZR11: FALSE | GZS11: FALSE | GZT11: FALSE | GZU11: FALSE | GZV11: FALSE | GZW11: FALSE | GZX11: FALSE | GZY11: FALSE | GZZ11: FALSE | HAA11: FALSE | HAB11: FALSE | HAC11: FALSE | HAD11: FALSE | HAE11: FALSE | HAF11: FALSE | HAG11: FALSE | HAH11: =ECHO(FALSE) -> FALSE | HAI11: FALSE | HAJ11: FALSE | HAK11: FALSE | HAL11: FALSE | HAM11: FALSE | HAN11: FALSE | HAO11: FALSE | HAP11: FALSE | HAQ11: FALSE | HAR11: FALSE | HAS11: FALSE | HAT11: FALSE | HAU11: FALSE | HAV11: FALSE | HAW11: FALSE | HAX11: FALSE | HAY11: FALSE | HAZ11: FALSE | HBA11: FALSE | HBB11: FALSE | HBC11: FALSE | HBD11: FALSE | HBE11: FALSE | HBF11: FALSE | HBG11: FALSE | HBH11: FALSE | HBI11: FALSE | HBJ11: FALSE | HBK11: FALSE | HBL11: FALSE | HBM11: FALSE | HBN11: FALSE | HBO11: FALSE | HBP11: FALSE | HBQ11: FALSE | HBR11: FALSE | HBS11: FALSE | HBT11: FALSE | HBU11: FALSE | HBV11: FALSE | HBW11: FALSE | HBX11: FALSE | HBY11: FALSE | HBZ11: FALSE | HCA11: FALSE | HCB11: FALSE | HCC11: FALSE | HCD11: FALSE | HCE11: FALSE | HCF11: FALSE | HCG11: FALSE | HCH11: FALSE | HCI11: FALSE | HCJ11: FALSE | HCK11: FALSE | HCL11: FALSE | HCM11: FALSE | HCN11: FALSE | HCO11: FALSE | HCP11: FALSE | HCQ11: FALSE | HCR11: FALSE | HCS11: FALSE | HCT11: =ECHO(FALSE) -> FALSE | HCU11: FALSE | HCV11: FALSE | HCW11: FALSE | HCX11: FALSE | HCY11: FALSE | HCZ11: FALSE | HDA11: FALSE | HDB11: FALSE | HDC11: FALSE | HDD11: FALSE | HDE11: FALSE | HDF11: FALSE | HDG11: FALSE | HDH11: FALSE | HDI11: FALSE | HDJ11: FALSE | HDK11: FALSE | HDL11: FALSE | HDM11: FALSE | HDN11: FALSE | HDO11: FALSE | HDP11: FALSE | HDQ11: FALSE | HDR11: FALSE | HDS11: FALSE | HDT11: FALSE | HDU11: FALSE | HDV11: FALSE | HDW11: FALSE | HDX11: FALSE | HDY11: FALSE | HDZ11: FALSE | HEA11: FALSE | HEB11: FALSE | HEC11: FALSE | HED11: FALSE | HEE11: FALSE | HEF11: FALSE | HEG11: FALSE | HEH11: FALSE | HEI11: FALSE | HEJ11: FALSE | HEK11: FALSE | HEL11: FALSE | HEM11: FALSE | HEN11: FALSE | HEO11: FALSE | HEP11: FALSE | HEQ11: FALSE | HER11: FALSE | HES11: FALSE | HET11: FALSE | HEU11: FALSE | HEV11: FALSE | HEW11: FALSE | HEX11: FALSE | HEY11: FALSE | HEZ11: FALSE | HFA11: FALSE | HFB11: FALSE | HFC11: FALSE | HFD11: FALSE | HFE11: FALSE | HFF11: =ECHO(FALSE) -> FALSE | HFG11: FALSE | HFH11: FALSE | HFI11: FALSE | HFJ11: FALSE | HFK11: FALSE | HFL11: FALSE | HFM11: FALSE | HFN11: FALSE | HFO11: FALSE | HFP11: FALSE | HFQ11: FALSE | HFR11: FALSE | HFS11: FALSE | HFT11: FALSE | HFU11: FALSE | HFV11: FALSE | HFW11: FALSE | HFX11: FALSE | HFY11: FALSE | HFZ11: FALSE | HGA11: FALSE | HGB11: FALSE | HGC11: FALSE | HGD11: FALSE | HGE11: FALSE | HGF11: FALSE | HGG11: FALSE | HGH11: FALSE | HGI11: FALSE | HGJ11: FALSE | HGK11: FALSE | HGL11: FALSE | HGM11: FALSE | HGN11: FALSE | HGO11: FALSE | HGP11: FALSE | HGQ11: FALSE | HGR11: FALSE | HGS11: FALSE | HGT11: FALSE | HGU11: FALSE | HGV11: FALSE | HGW11: FALSE | HGX11: FALSE | HGY11: FALSE | HGZ11: FALSE | HHA11: FALSE | HHB11: FALSE | HHC11: FALSE | HHD11: FALSE | HHE11: FALSE | HHF11: FALSE | HHG11: FALSE | HHH11: FALSE | HHI11: FALSE | HHJ11: FALSE | HHK11: FALSE | HHL11: FALSE | HHM11: FALSE | HHN11: FALSE | HHO11: FALSE | HHP11: FALSE | HHQ11: FALSE | HHR11: =ECHO(FALSE) -> FALSE | HHS11: FALSE | HHT11: FALSE | HHU11: FALSE | HHV11: FALSE | HHW11: FALSE | HHX11: FALSE | HHY11: FALSE | HHZ11: FALSE | HIA11: FALSE | HIB11: FALSE | HIC11: FALSE | HID11: FALSE | HIE11: FALSE | HIF11: FALSE | HIG11: FALSE | HIH11: FALSE | HII11: FALSE | HIJ11: FALSE | HIK11: FALSE | HIL11: FALSE | HIM11: FALSE | HIN11: FALSE | HIO11: FALSE | HIP11: FALSE | HIQ11: FALSE | HIR11: FALSE | HIS11: FALSE | HIT11: FALSE | HIU11: FALSE | HIV11: FALSE | HIW11: FALSE | HIX11: FALSE | HIY11: FALSE | HIZ11: FALSE | HJA11: FALSE | HJB11: FALSE | HJC11: FALSE | HJD11: FALSE | HJE11: FALSE | HJF11: FALSE | HJG11: FALSE | HJH11: FALSE | HJI11: FALSE | HJJ11: FALSE | HJK11: FALSE | HJL11: FALSE | HJM11: FALSE | HJN11: FALSE | HJO11: FALSE | HJP11: FALSE | HJQ11: FALSE | HJR11: FALSE | HJS11: FALSE | HJT11: FALSE | HJU11: FALSE | HJV11: FALSE | HJW11: FALSE | HJX11: FALSE | HJY11: FALSE | HJZ11: FALSE | HKA11: FALSE | HKB11: FALSE | HKC11: FALSE | HKD11: =ECHO(FALSE) -> FALSE | HKE11: FALSE | HKF11: FALSE | HKG11: FALSE | HKH11: FALSE | HKI11: FALSE | HKJ11: FALSE | HKK11: FALSE | HKL11: FALSE | HKM11: FALSE | HKN11: FALSE | HKO11: FALSE | HKP11: FALSE | HKQ11: FALSE | HKR11: FALSE | HKS11: FALSE | HKT11: FALSE | HKU11: FALSE | HKV11: FALSE | HKW11: FALSE | HKX11: FALSE | HKY11: FALSE | HKZ11: FALSE | HLA11: FALSE | HLB11: FALSE | HLC11: FALSE | HLD11: FALSE | HLE11: FALSE | HLF11: FALSE | HLG11: FALSE | HLH11: FALSE | HLI11: FALSE | HLJ11: FALSE | HLK11: FALSE | HLL11: FALSE | HLM11: FALSE | HLN11: FALSE | HLO11: FALSE | HLP11: FALSE | HLQ11: FALSE | HLR11: FALSE | HLS11: FALSE | HLT11: FALSE | HLU11: FALSE | HLV11: FALSE | HLW11: FALSE | HLX11: FALSE | HLY11: FALSE | HLZ11: FALSE | HMA11: FALSE | HMB11: FALSE | HMC11: FALSE | HMD11: FALSE | HME11: FALSE | HMF11: FALSE | HMG11: FALSE | HMH11: FALSE | HMI11: FALSE | HMJ11: FALSE | HMK11: FALSE | HML11: FALSE | HMM11: FALSE | HMN11: FALSE | HMO11: FALSE | HMP11: =ECHO(FALSE) -> FALSE | HMQ11: FALSE | HMR11: FALSE | HMS11: FALSE | HMT11: FALSE | HMU11: FALSE | HMV11: FALSE | HMW11: FALSE | HMX11: FALSE | HMY11: FALSE | HMZ11: FALSE | HNA11: FALSE | HNB11: FALSE | HNC11: FALSE | HND11: FALSE | HNE11: FALSE | HNF11: FALSE | HNG11: FALSE | HNH11: FALSE | HNI11: FALSE | HNJ11: FALSE | HNK11: FALSE | HNL11: FALSE | HNM11: FALSE | HNN11: FALSE | HNO11: FALSE | HNP11: FALSE | HNQ11: FALSE | HNR11: FALSE | HNS11: FALSE | HNT11: FALSE | HNU11: FALSE | HNV11: FALSE | HNW11: FALSE | HNX11: FALSE | HNY11: FALSE | HNZ11: FALSE | HOA11: FALSE | HOB11: FALSE | HOC11: FALSE | HOD11: FALSE | HOE11: FALSE | HOF11: FALSE | HOG11: FALSE | HOH11: FALSE | HOI11: FALSE | HOJ11: FALSE | HOK11: FALSE | HOL11: FALSE | HOM11: FALSE | HON11: FALSE | HOO11: FALSE | HOP11: FALSE | HOQ11: FALSE | HOR11: FALSE | HOS11: FALSE | HOT11: FALSE | HOU11: FALSE | HOV11: FALSE | HOW11: FALSE | HOX11: FALSE | HOY11: FALSE | HOZ11: FALSE | HPA11: FALSE | HPB11: =ECHO(FALSE) -> FALSE | HPC11: FALSE | HPD11: FALSE | HPE11: FALSE | HPF11: FALSE | HPG11: FALSE | HPH11: FALSE | HPI11: FALSE | HPJ11: FALSE | HPK11: FALSE | HPL11: FALSE | HPM11: FALSE | HPN11: FALSE | HPO11: FALSE | HPP11: FALSE | HPQ11: FALSE | HPR11: FALSE | HPS11: FALSE | HPT11: FALSE | HPU11: FALSE | HPV11: FALSE | HPW11: FALSE | HPX11: FALSE | HPY11: FALSE | HPZ11: FALSE | HQA11: FALSE | HQB11: FALSE | HQC11: FALSE | HQD11: FALSE | HQE11: FALSE | HQF11: FALSE | HQG11: FALSE | HQH11: FALSE | HQI11: FALSE | HQJ11: FALSE | HQK11: FALSE | HQL11: FALSE | HQM11: FALSE | HQN11: FALSE | HQO11: FALSE | HQP11: FALSE | HQQ11: FALSE | HQR11: FALSE | HQS11: FALSE | HQT11: FALSE | HQU11: FALSE | HQV11: FALSE | HQW11: FALSE | HQX11: FALSE | HQY11: FALSE | HQZ11: FALSE | HRA11: FALSE | HRB11: FALSE | HRC11: FALSE | HRD11: FALSE | HRE11: FALSE | HRF11: FALSE | HRG11: FALSE | HRH11: FALSE | HRI11: FALSE | HRJ11: FALSE | HRK11: FALSE | HRL11: FALSE | HRM11: FALSE | HRN11: =ECHO(FALSE) -> FALSE | HRO11: FALSE | HRP11: FALSE | HRQ11: FALSE | HRR11: FALSE | HRS11: FALSE | HRT11: FALSE | HRU11: FALSE | HRV11: FALSE | HRW11: FALSE | HRX11: FALSE | HRY11: FALSE | HRZ11: FALSE | HSA11: FALSE | HSB11: FALSE | HSC11: FALSE | HSD11: FALSE | HSE11: FALSE | HSF11: FALSE | HSG11: FALSE | HSH11: FALSE | HSI11: FALSE | HSJ11: FALSE | HSK11: FALSE | HSL11: FALSE | HSM11: FALSE | HSN11: FALSE | HSO11: FALSE | HSP11: FALSE | HSQ11: FALSE | HSR11: FALSE | HSS11: FALSE | HST11: FALSE | HSU11: FALSE | HSV11: FALSE | HSW11: FALSE | HSX11: FALSE | HSY11: FALSE | HSZ11: FALSE | HTA11: FALSE | HTB11: FALSE | HTC11: FALSE | HTD11: FALSE | HTE11: FALSE | HTF11: FALSE | HTG11: FALSE | HTH11: FALSE | HTI11: FALSE | HTJ11: FALSE | HTK11: FALSE | HTL11: FALSE | HTM11: FALSE | HTN11: FALSE | HTO11: FALSE | HTP11: FALSE | HTQ11: FALSE | HTR11: FALSE | HTS11: FALSE | HTT11: FALSE | HTU11: FALSE | HTV11: FALSE | HTW11: FALSE | HTX11: FALSE | HTY11: FALSE | HTZ11: =ECHO(FALSE) -> FALSE | HUA11: FALSE | HUB11: FALSE | HUC11: FALSE | HUD11: FALSE | HUE11: FALSE | HUF11: FALSE | HUG11: FALSE | HUH11: FALSE | HUI11: FALSE | HUJ11: FALSE | HUK11: FALSE | HUL11: FALSE | HUM11: FALSE | HUN11: FALSE | HUO11: FALSE | HUP11: FALSE | HUQ11: FALSE | HUR11: FALSE | HUS11: FALSE | HUT11: FALSE | HUU11: FALSE | HUV11: FALSE | HUW11: FALSE | HUX11: FALSE | HUY11: FALSE | HUZ11: FALSE | HVA11: FALSE | HVB11: FALSE | HVC11: FALSE | HVD11: FALSE | HVE11: FALSE | HVF11: FALSE | HVG11: FALSE | HVH11: FALSE | HVI11: FALSE | HVJ11: FALSE | HVK11: FALSE | HVL11: FALSE | HVM11: FALSE | HVN11: FALSE | HVO11: FALSE | HVP11: FALSE | HVQ11: FALSE | HVR11: FALSE | HVS11: FALSE | HVT11: FALSE | HVU11: FALSE | HVV11: FALSE | HVW11: FALSE | HVX11: FALSE | HVY11: FALSE | HVZ11: FALSE | HWA11: FALSE | HWB11: FALSE | HWC11: FALSE | HWD11: FALSE | HWE11: FALSE | HWF11: FALSE | HWG11: FALSE | HWH11: FALSE | HWI11: FALSE | HWJ11: FALSE | HWK11: FALSE | HWL11: =ECHO(FALSE) -> FALSE | HWM11: FALSE | HWN11: FALSE | HWO11: FALSE | HWP11: FALSE | HWQ11: FALSE | HWR11: FALSE | HWS11: FALSE | HWT11: FALSE | HWU11: FALSE | HWV11: FALSE | HWW11: FALSE | HWX11: FALSE | HWY11: FALSE | HWZ11: FALSE | HXA11: FALSE | HXB11: FALSE | HXC11: FALSE | HXD11: FALSE | HXE11: FALSE | HXF11: FALSE | HXG11: FALSE | HXH11: FALSE | HXI11: FALSE | HXJ11: FALSE | HXK11: FALSE | HXL11: FALSE | HXM11: FALSE | HXN11: FALSE | HXO11: FALSE | HXP11: FALSE | HXQ11: FALSE | HXR11: FALSE | HXS11: FALSE | HXT11: FALSE | HXU11: FALSE | HXV11: FALSE | HXW11: FALSE | HXX11: FALSE | HXY11: FALSE | HXZ11: FALSE | HYA11: FALSE | HYB11: FALSE | HYC11: FALSE | HYD11: FALSE | HYE11: FALSE | HYF11: FALSE | HYG11: FALSE | HYH11: FALSE | HYI11: FALSE | HYJ11: FALSE | HYK11: FALSE | HYL11: FALSE | HYM11: FALSE | HYN11: FALSE | HYO11: FALSE | HYP11: FALSE | HYQ11: FALSE | HYR11: FALSE | HYS11: FALSE | HYT11: FALSE | HYU11: FALSE | HYV11: FALSE | HYW11: FALSE | HYX11: =ECHO(FALSE) -> FALSE | HYY11: FALSE | HYZ11: FALSE | HZA11: FALSE | HZB11: FALSE | HZC11: FALSE | HZD11: FALSE | HZE11: FALSE | HZF11: FALSE | HZG11: FALSE | HZH11: FALSE | HZI11: FALSE | HZJ11: FALSE | HZK11: FALSE | HZL11: FALSE | HZM11: FALSE | HZN11: FALSE | HZO11: FALSE | HZP11: FALSE | HZQ11: FALSE | HZR11: FALSE | HZS11: FALSE | HZT11: FALSE | HZU11: FALSE | HZV11: FALSE | HZW11: FALSE | HZX11: FALSE | HZY11: FALSE | HZZ11: FALSE | IAA11: FALSE | IAB11: FALSE | IAC11: FALSE | IAD11: FALSE | IAE11: FALSE | IAF11: FALSE | IAG11: FALSE | IAH11: FALSE | IAI11: FALSE | IAJ11: FALSE | IAK11: FALSE | IAL11: FALSE | IAM11: FALSE | IAN11: FALSE | IAO11: FALSE | IAP11: FALSE | IAQ11: FALSE | IAR11: FALSE | IAS11: FALSE | IAT11: FALSE | IAU11: FALSE | IAV11: FALSE | IAW11: FALSE | IAX11: FALSE | IAY11: FALSE | IAZ11: FALSE | IBA11: FALSE | IBB11: FALSE | IBC11: FALSE | IBD11: FALSE | IBE11: FALSE | IBF11: FALSE | IBG11: FALSE | IBH11: FALSE | IBI11: FALSE | IBJ11: =ECHO(FALSE) -> FALSE | IBK11: FALSE | IBL11: FALSE | IBM11: FALSE | IBN11: FALSE | IBO11: FALSE | IBP11: FALSE | IBQ11: FALSE | IBR11: FALSE | IBS11: FALSE | IBT11: FALSE | IBU11: FALSE | IBV11: FALSE | IBW11: FALSE | IBX11: FALSE | IBY11: FALSE | IBZ11: FALSE | ICA11: FALSE | ICB11: FALSE | ICC11: FALSE | ICD11: FALSE | ICE11: FALSE | ICF11: FALSE | ICG11: FALSE | ICH11: FALSE | ICI11: FALSE | ICJ11: FALSE | ICK11: FALSE | ICL11: FALSE | ICM11: FALSE | ICN11: FALSE | ICO11: FALSE | ICP11: FALSE | ICQ11: FALSE | ICR11: FALSE | ICS11: FALSE | ICT11: FALSE | ICU11: FALSE | ICV11: FALSE | ICW11: FALSE | ICX11: FALSE | ICY11: FALSE | ICZ11: FALSE | IDA11: FALSE | IDB11: FALSE | IDC11: FALSE | IDD11: FALSE | IDE11: FALSE | IDF11: FALSE | IDG11: FALSE | IDH11: FALSE | IDI11: FALSE | IDJ11: FALSE | IDK11: FALSE | IDL11: FALSE | IDM11: FALSE | IDN11: FALSE | IDO11: FALSE | IDP11: FALSE | IDQ11: FALSE | IDR11: FALSE | IDS11: FALSE | IDT11: FALSE | IDU11: FALSE | IDV11: =ECHO(FALSE) -> FALSE | IDW11: FALSE | IDX11: FALSE | IDY11: FALSE | IDZ11: FALSE | IEA11: FALSE | IEB11: FALSE | IEC11: FALSE | IED11: FALSE | IEE11: FALSE | IEF11: FALSE | IEG11: FALSE | IEH11: FALSE | IEI11: FALSE | IEJ11: FALSE | IEK11: FALSE | IEL11: FALSE | IEM11: FALSE | IEN11: FALSE | IEO11: FALSE | IEP11: FALSE | IEQ11: FALSE | IER11: FALSE | IES11: FALSE | IET11: FALSE | IEU11: FALSE | IEV11: FALSE | IEW11: FALSE | IEX11: FALSE | IEY11: FALSE | IEZ11: FALSE | IFA11: FALSE | IFB11: FALSE | IFC11: FALSE | IFD11: FALSE | IFE11: FALSE | IFF11: FALSE | IFG11: FALSE | IFH11: FALSE | IFI11: FALSE | IFJ11: FALSE | IFK11: FALSE | IFL11: FALSE | IFM11: FALSE | IFN11: FALSE | IFO11: FALSE | IFP11: FALSE | IFQ11: FALSE | IFR11: FALSE | IFS11: FALSE | IFT11: FALSE | IFU11: FALSE | IFV11: FALSE | IFW11: FALSE | IFX11: FALSE | IFY11: FALSE | IFZ11: FALSE | IGA11: FALSE | IGB11: FALSE | IGC11: FALSE | IGD11: FALSE | IGE11: FALSE | IGF11: FALSE | IGG11: FALSE | IGH11: =ECHO(FALSE) -> FALSE | IGI11: FALSE | IGJ11: FALSE | IGK11: FALSE | IGL11: FALSE | IGM11: FALSE | IGN11: FALSE | IGO11: FALSE | IGP11: FALSE | IGQ11: FALSE | IGR11: FALSE | IGS11: FALSE | IGT11: FALSE | IGU11: FALSE | IGV11: FALSE | IGW11: FALSE | IGX11: FALSE | IGY11: FALSE | IGZ11: FALSE | IHA11: FALSE | IHB11: FALSE | IHC11: FALSE | IHD11: FALSE | IHE11: FALSE | IHF11: FALSE | IHG11: FALSE | IHH11: FALSE | IHI11: FALSE | IHJ11: FALSE | IHK11: FALSE | IHL11: FALSE | IHM11: FALSE | IHN11: FALSE | IHO11: FALSE | IHP11: FALSE | IHQ11: FALSE | IHR11: FALSE | IHS11: FALSE | IHT11: FALSE | IHU11: FALSE | IHV11: FALSE | IHW11: FALSE | IHX11: FALSE | IHY11: FALSE | IHZ11: FALSE | IIA11: FALSE | IIB11: FALSE | IIC11: FALSE | IID11: FALSE | IIE11: FALSE | IIF11: FALSE | IIG11: FALSE | IIH11: FALSE | III11: FALSE | IIJ11: FALSE | IIK11: FALSE | IIL11: FALSE | IIM11: FALSE | IIN11: FALSE | IIO11: FALSE | IIP11: FALSE | IIQ11: FALSE | IIR11: FALSE | IIS11: FALSE | IIT11: =ECHO(FALSE) -> FALSE | IIU11: FALSE | IIV11: FALSE | IIW11: FALSE | IIX11: FALSE | IIY11: FALSE | IIZ11: FALSE | IJA11: FALSE | IJB11: FALSE | IJC11: FALSE | IJD11: FALSE | IJE11: FALSE | IJF11: FALSE | IJG11: FALSE | IJH11: FALSE | IJI11: FALSE | IJJ11: FALSE | IJK11: FALSE | IJL11: FALSE | IJM11: FALSE | IJN11: FALSE | IJO11: FALSE | IJP11: FALSE | IJQ11: FALSE | IJR11: FALSE | IJS11: FALSE | IJT11: FALSE | IJU11: FALSE | IJV11: FALSE | IJW11: FALSE | IJX11: FALSE | IJY11: FALSE | IJZ11: FALSE | IKA11: FALSE | IKB11: FALSE | IKC11: FALSE | IKD11: FALSE | IKE11: FALSE | IKF11: FALSE | IKG11: FALSE | IKH11: FALSE | IKI11: FALSE | IKJ11: FALSE | IKK11: FALSE | IKL11: FALSE | IKM11: FALSE | IKN11: FALSE | IKO11: FALSE | IKP11: FALSE | IKQ11: FALSE | IKR11: FALSE | IKS11: FALSE | IKT11: FALSE | IKU11: FALSE | IKV11: FALSE | IKW11: FALSE | IKX11: FALSE | IKY11: FALSE | IKZ11: FALSE | ILA11: FALSE | ILB11: FALSE | ILC11: FALSE | ILD11: FALSE | ILE11: FALSE | ILF11: =ECHO(FALSE) -> FALSE | ILG11: FALSE | ILH11: FALSE | ILI11: FALSE | ILJ11: FALSE | ILK11: FALSE | ILL11: FALSE | ILM11: FALSE | ILN11: FALSE | ILO11: FALSE | ILP11: FALSE | ILQ11: FALSE | ILR11: FALSE | ILS11: FALSE | ILT11: FALSE | ILU11: FALSE | ILV11: FALSE | ILW11: FALSE | ILX11: FALSE | ILY11: FALSE | ILZ11: FALSE | IMA11: FALSE | IMB11: FALSE | IMC11: FALSE | IMD11: FALSE | IME11: FALSE | IMF11: FALSE | IMG11: FALSE | IMH11: FALSE | IMI11: FALSE | IMJ11: FALSE | IMK11: FALSE | IML11: FALSE | IMM11: FALSE | IMN11: FALSE | IMO11: FALSE | IMP11: FALSE | IMQ11: FALSE | IMR11: FALSE | IMS11: FALSE | IMT11: FALSE | IMU11: FALSE | IMV11: FALSE | IMW11: FALSE | IMX11: FALSE | IMY11: FALSE | IMZ11: FALSE | INA11: FALSE | INB11: FALSE | INC11: FALSE | IND11: FALSE | INE11: FALSE | INF11: FALSE | ING11: FALSE | INH11: FALSE | INI11: FALSE | INJ11: FALSE | INK11: FALSE | INL11: FALSE | INM11: FALSE | INN11: FALSE | INO11: FALSE | INP11: FALSE | INQ11: FALSE | INR11: =ECHO(FALSE) -> FALSE | INS11: FALSE | INT11: FALSE | INU11: FALSE | INV11: FALSE | INW11: FALSE | INX11: FALSE | INY11: FALSE | INZ11: FALSE | IOA11: FALSE | IOB11: FALSE | IOC11: FALSE | IOD11: FALSE | IOE11: FALSE | IOF11: FALSE | IOG11: FALSE | IOH11: FALSE | IOI11: FALSE | IOJ11: FALSE | IOK11: FALSE | IOL11: FALSE | IOM11: FALSE | ION11: FALSE | IOO11: FALSE | IOP11: FALSE | IOQ11: FALSE | IOR11: FALSE | IOS11: FALSE | IOT11: FALSE | IOU11: FALSE | IOV11: FALSE | IOW11: FALSE | IOX11: FALSE | IOY11: FALSE | IOZ11: FALSE | IPA11: FALSE | IPB11: FALSE | IPC11: FALSE | IPD11: FALSE | IPE11: FALSE | IPF11: FALSE | IPG11: FALSE | IPH11: FALSE | IPI11: FALSE | IPJ11: FALSE | IPK11: FALSE | IPL11: FALSE | IPM11: FALSE | IPN11: FALSE | IPO11: FALSE | IPP11: FALSE | IPQ11: FALSE | IPR11: FALSE | IPS11: FALSE | IPT11: FALSE | IPU11: FALSE | IPV11: FALSE | IPW11: FALSE | IPX11: FALSE | IPY11: FALSE | IPZ11: FALSE | IQA11: FALSE | IQB11: FALSE | IQC11: FALSE | IQD11: =ECHO(FALSE) -> FALSE | IQE11: FALSE | IQF11: FALSE | IQG11: FALSE | IQH11: FALSE | IQI11: FALSE | IQJ11: FALSE | IQK11: FALSE | IQL11: FALSE | IQM11: FALSE | IQN11: FALSE | IQO11: FALSE | IQP11: FALSE | IQQ11: FALSE | IQR11: FALSE | IQS11: FALSE | IQT11: FALSE | IQU11: FALSE | IQV11: FALSE | IQW11: FALSE | IQX11: FALSE | IQY11: FALSE | IQZ11: FALSE | IRA11: FALSE | IRB11: FALSE | IRC11: FALSE | IRD11: FALSE | IRE11: FALSE | IRF11: FALSE | IRG11: FALSE | IRH11: FALSE | IRI11: FALSE | IRJ11: FALSE | IRK11: FALSE | IRL11: FALSE | IRM11: FALSE | IRN11: FALSE | IRO11: FALSE | IRP11: FALSE | IRQ11: FALSE | IRR11: FALSE | IRS11: FALSE | IRT11: FALSE | IRU11: FALSE | IRV11: FALSE | IRW11: FALSE | IRX11: FALSE | IRY11: FALSE | IRZ11: FALSE | ISA11: FALSE | ISB11: FALSE | ISC11: FALSE | ISD11: FALSE | ISE11: FALSE | ISF11: FALSE | ISG11: FALSE | ISH11: FALSE | ISI11: FALSE | ISJ11: FALSE | ISK11: FALSE | ISL11: FALSE | ISM11: FALSE | ISN11: FALSE | ISO11: FALSE | ISP11: =ECHO(FALSE) -> FALSE | ISQ11: FALSE | ISR11: FALSE | ISS11: FALSE | IST11: FALSE | ISU11: FALSE | ISV11: FALSE | ISW11: FALSE | ISX11: FALSE | ISY11: FALSE | ISZ11: FALSE | ITA11: FALSE | ITB11: FALSE | ITC11: FALSE | ITD11: FALSE | ITE11: FALSE | ITF11: FALSE | ITG11: FALSE | ITH11: FALSE | ITI11: FALSE | ITJ11: FALSE | ITK11: FALSE | ITL11: FALSE | ITM11: FALSE | ITN11: FALSE | ITO11: FALSE | ITP11: FALSE | ITQ11: FALSE | ITR11: FALSE | ITS11: FALSE | ITT11: FALSE | ITU11: FALSE | ITV11: FALSE | ITW11: FALSE | ITX11: FALSE | ITY11: FALSE | ITZ11: FALSE | IUA11: FALSE | IUB11: FALSE | IUC11: FALSE | IUD11: FALSE | IUE11: FALSE | IUF11: FALSE | IUG11: FALSE | IUH11: FALSE | IUI11: FALSE | IUJ11: FALSE | IUK11: FALSE | IUL11: FALSE | IUM11: FALSE | IUN11: FALSE | IUO11: FALSE | IUP11: FALSE | IUQ11: FALSE | IUR11: FALSE | IUS11: FALSE | IUT11: FALSE | IUU11: FALSE | IUV11: FALSE | IUW11: FALSE | IUX11: FALSE | IUY11: FALSE | IUZ11: FALSE | IVA11: FALSE | IVB11: =ECHO(FALSE) -> FALSE | IVC11: FALSE | IVD11: FALSE | IVE11: FALSE | IVF11: FALSE | IVG11: FALSE | IVH11: FALSE | IVI11: FALSE | IVJ11: FALSE | IVK11: FALSE | IVL11: FALSE | IVM11: FALSE | IVN11: FALSE | IVO11: FALSE | IVP11: FALSE | IVQ11: FALSE | IVR11: FALSE | IVS11: FALSE | IVT11: FALSE | IVU11: FALSE | IVV11: FALSE | IVW11: FALSE | IVX11: FALSE | IVY11: FALSE | IVZ11: FALSE | IWA11: FALSE | IWB11: FALSE | IWC11: FALSE | IWD11: FALSE | IWE11: FALSE | IWF11: FALSE | IWG11: FALSE | IWH11: FALSE | IWI11: FALSE | IWJ11: FALSE | IWK11: FALSE | IWL11: FALSE | IWM11: FALSE | IWN11: FALSE | IWO11: FALSE | IWP11: FALSE | IWQ11: FALSE | IWR11: FALSE | IWS11: FALSE | IWT11: FALSE | IWU11: FALSE | IWV11: FALSE | IWW11: FALSE | IWX11: FALSE | IWY11: FALSE | IWZ11: FALSE | IXA11: FALSE | IXB11: FALSE | IXC11: FALSE | IXD11: FALSE | IXE11: FALSE | IXF11: FALSE | IXG11: FALSE | IXH11: FALSE | IXI11: FALSE | IXJ11: FALSE | IXK11: FALSE | IXL11: FALSE | IXM11: FALSE | IXN11: =ECHO(FALSE) -> FALSE | IXO11: FALSE | IXP11: FALSE | IXQ11: FALSE | IXR11: FALSE | IXS11: FALSE | IXT11: FALSE | IXU11: FALSE | IXV11: FALSE | IXW11: FALSE | IXX11: FALSE | IXY11: FALSE | IXZ11: FALSE | IYA11: FALSE | IYB11: FALSE | IYC11: FALSE | IYD11: FALSE | IYE11: FALSE | IYF11: FALSE | IYG11: FALSE | IYH11: FALSE | IYI11: FALSE | IYJ11: FALSE | IYK11: FALSE | IYL11: FALSE | IYM11: FALSE | IYN11: FALSE | IYO11: FALSE | IYP11: FALSE | IYQ11: FALSE | IYR11: FALSE | IYS11: FALSE | IYT11: FALSE | IYU11: FALSE | IYV11: FALSE | IYW11: FALSE | IYX11: FALSE | IYY11: FALSE | IYZ11: FALSE | IZA11: FALSE | IZB11: FALSE | IZC11: FALSE | IZD11: FALSE | IZE11: FALSE | IZF11: FALSE | IZG11: FALSE | IZH11: FALSE | IZI11: FALSE | IZJ11: FALSE | IZK11: FALSE | IZL11: FALSE | IZM11: FALSE | IZN11: FALSE | IZO11: FALSE | IZP11: FALSE | IZQ11: FALSE | IZR11: FALSE | IZS11: FALSE | IZT11: FALSE | IZU11: FALSE | IZV11: FALSE | IZW11: FALSE | IZX11: FALSE | IZY11: FALSE | IZZ11: =ECHO(FALSE) -> FALSE | JAA11: FALSE | JAB11: FALSE | JAC11: FALSE | JAD11: FALSE | JAE11: FALSE | JAF11: FALSE | JAG11: FALSE | JAH11: FALSE | JAI11: FALSE | JAJ11: FALSE | JAK11: FALSE | JAL11: FALSE | JAM11: FALSE | JAN11: FALSE | JAO11: FALSE | JAP11: FALSE | JAQ11: FALSE | JAR11: FALSE | JAS11: FALSE | JAT11: FALSE | JAU11: FALSE | JAV11: FALSE | JAW11: FALSE | JAX11: FALSE | JAY11: FALSE | JAZ11: FALSE | JBA11: FALSE | JBB11: FALSE | JBC11: FALSE | JBD11: FALSE | JBE11: FALSE | JBF11: FALSE | JBG11: FALSE | JBH11: FALSE | JBI11: FALSE | JBJ11: FALSE | JBK11: FALSE | JBL11: FALSE | JBM11: FALSE | JBN11: FALSE | JBO11: FALSE | JBP11: FALSE | JBQ11: FALSE | JBR11: FALSE | JBS11: FALSE | JBT11: FALSE | JBU11: FALSE | JBV11: FALSE | JBW11: FALSE | JBX11: FALSE | JBY11: FALSE | JBZ11: FALSE | JCA11: FALSE | JCB11: FALSE | JCC11: FALSE | JCD11: FALSE | JCE11: FALSE | JCF11: FALSE | JCG11: FALSE | JCH11: FALSE | JCI11: FALSE | JCJ11: FALSE | JCK11: FALSE | JCL11: =ECHO(FALSE) -> FALSE | JCM11: FALSE | JCN11: FALSE | JCO11: FALSE | JCP11: FALSE | JCQ11: FALSE | JCR11: FALSE | JCS11: FALSE | JCT11: FALSE | JCU11: FALSE | JCV11: FALSE | JCW11: FALSE | JCX11: FALSE | JCY11: FALSE | JCZ11: FALSE | JDA11: FALSE | JDB11: FALSE | JDC11: FALSE | JDD11: FALSE | JDE11: FALSE | JDF11: FALSE | JDG11: FALSE | JDH11: FALSE | JDI11: FALSE | JDJ11: FALSE | JDK11: FALSE | JDL11: FALSE | JDM11: FALSE | JDN11: FALSE | JDO11: FALSE | JDP11: FALSE | JDQ11: FALSE | JDR11: FALSE | JDS11: FALSE | JDT11: FALSE | JDU11: FALSE | JDV11: FALSE | JDW11: FALSE | JDX11: FALSE | JDY11: FALSE | JDZ11: FALSE | JEA11: FALSE | JEB11: FALSE | JEC11: FALSE | JED11: FALSE | JEE11: FALSE | JEF11: FALSE | JEG11: FALSE | JEH11: FALSE | JEI11: FALSE | JEJ11: FALSE | JEK11: FALSE | JEL11: FALSE | JEM11: FALSE | JEN11: FALSE | JEO11: FALSE | JEP11: FALSE | JEQ11: FALSE | JER11: FALSE | JES11: FALSE | JET11: FALSE | JEU11: FALSE | JEV11: FALSE | JEW11: FALSE | JEX11: =ECHO(FALSE) -> FALSE | JEY11: FALSE | JEZ11: FALSE | JFA11: FALSE | JFB11: FALSE | JFC11: FALSE | JFD11: FALSE | JFE11: FALSE | JFF11: FALSE | JFG11: FALSE | JFH11: FALSE | JFI11: FALSE | JFJ11: FALSE | JFK11: FALSE | JFL11: FALSE | JFM11: FALSE | JFN11: FALSE | JFO11: FALSE | JFP11: FALSE | JFQ11: FALSE | JFR11: FALSE | JFS11: FALSE | JFT11: FALSE | JFU11: FALSE | JFV11: FALSE | JFW11: FALSE | JFX11: FALSE | JFY11: FALSE | JFZ11: FALSE | JGA11: FALSE | JGB11: FALSE | JGC11: FALSE | JGD11: FALSE | JGE11: FALSE | JGF11: FALSE | JGG11: FALSE | JGH11: FALSE | JGI11: FALSE | JGJ11: FALSE | JGK11: FALSE | JGL11: FALSE | JGM11: FALSE | JGN11: FALSE | JGO11: FALSE | JGP11: FALSE | JGQ11: FALSE | JGR11: FALSE | JGS11: FALSE | JGT11: FALSE | JGU11: FALSE | JGV11: FALSE | JGW11: FALSE | JGX11: FALSE | JGY11: FALSE | JGZ11: FALSE | JHA11: FALSE | JHB11: FALSE | JHC11: FALSE | JHD11: FALSE | JHE11: FALSE | JHF11: FALSE | JHG11: FALSE | JHH11: FALSE | JHI11: FALSE | JHJ11: =ECHO(FALSE) -> FALSE | JHK11: FALSE | JHL11: FALSE | JHM11: FALSE | JHN11: FALSE | JHO11: FALSE | JHP11: FALSE | JHQ11: FALSE | JHR11: FALSE | JHS11: FALSE | JHT11: FALSE | JHU11: FALSE | JHV11: FALSE | JHW11: FALSE | JHX11: FALSE | JHY11: FALSE | JHZ11: FALSE | JIA11: FALSE | JIB11: FALSE | JIC11: FALSE | JID11: FALSE | JIE11: FALSE | JIF11: FALSE | JIG11: FALSE | JIH11: FALSE | JII11: FALSE | JIJ11: FALSE | JIK11: FALSE | JIL11: FALSE | JIM11: FALSE | JIN11: FALSE | JIO11: FALSE | JIP11: FALSE | JIQ11: FALSE | JIR11: FALSE | JIS11: FALSE | JIT11: FALSE | JIU11: FALSE | JIV11: FALSE | JIW11: FALSE | JIX11: FALSE | JIY11: FALSE | JIZ11: FALSE | JJA11: FALSE | JJB11: FALSE | JJC11: FALSE | JJD11: FALSE | JJE11: FALSE | JJF11: FALSE | JJG11: FALSE | JJH11: FALSE | JJI11: FALSE | JJJ11: FALSE | JJK11: FALSE | JJL11: FALSE | JJM11: FALSE | JJN11: FALSE | JJO11: FALSE | JJP11: FALSE | JJQ11: FALSE | JJR11: FALSE | JJS11: FALSE | JJT11: FALSE | JJU11: FALSE | JJV11: =ECHO(FALSE) -> FALSE | JJW11: FALSE | JJX11: FALSE | JJY11: FALSE | JJZ11: FALSE | JKA11: FALSE | JKB11: FALSE | JKC11: FALSE | JKD11: FALSE | JKE11: FALSE | JKF11: FALSE | JKG11: FALSE | JKH11: FALSE | JKI11: FALSE | JKJ11: FALSE | JKK11: FALSE | JKL11: FALSE | JKM11: FALSE | JKN11: FALSE | JKO11: FALSE | JKP11: FALSE | JKQ11: FALSE | JKR11: FALSE | JKS11: FALSE | JKT11: FALSE | JKU11: FALSE | JKV11: FALSE | JKW11: FALSE | JKX11: FALSE | JKY11: FALSE | JKZ11: FALSE | JLA11: FALSE | JLB11: FALSE | JLC11: FALSE | JLD11: FALSE | JLE11: FALSE | JLF11: FALSE | JLG11: FALSE | JLH11: FALSE | JLI11: FALSE | JLJ11: FALSE | JLK11: FALSE | JLL11: FALSE | JLM11: FALSE | JLN11: FALSE | JLO11: FALSE | JLP11: FALSE | JLQ11: FALSE | JLR11: FALSE | JLS11: FALSE | JLT11: FALSE | JLU11: FALSE | JLV11: FALSE | JLW11: FALSE | JLX11: FALSE | JLY11: FALSE | JLZ11: FALSE | JMA11: FALSE | JMB11: FALSE | JMC11: FALSE | JMD11: FALSE | JME11: FALSE | JMF11: FALSE | JMG11: FALSE | JMH11: =ECHO(FALSE) -> FALSE | JMI11: FALSE | JMJ11: FALSE | JMK11: FALSE | JML11: FALSE | JMM11: FALSE | JMN11: FALSE | JMO11: FALSE | JMP11: FALSE | JMQ11: FALSE | JMR11: FALSE | JMS11: FALSE | JMT11: FALSE | JMU11: FALSE | JMV11: FALSE | JMW11: FALSE | JMX11: FALSE | JMY11: FALSE | JMZ11: FALSE | JNA11: FALSE | JNB11: FALSE | JNC11: FALSE | JND11: FALSE | JNE11: FALSE | JNF11: FALSE | JNG11: FALSE | JNH11: FALSE | JNI11: FALSE | JNJ11: FALSE | JNK11: FALSE | JNL11: FALSE | JNM11: FALSE | JNN11: FALSE | JNO11: FALSE | JNP11: FALSE | JNQ11: FALSE | JNR11: FALSE | JNS11: FALSE | JNT11: FALSE | JNU11: FALSE | JNV11: FALSE | JNW11: FALSE | JNX11: FALSE | JNY11: FALSE | JNZ11: FALSE | JOA11: FALSE | JOB11: FALSE | JOC11: FALSE | JOD11: FALSE | JOE11: FALSE | JOF11: FALSE | JOG11: FALSE | JOH11: FALSE | JOI11: FALSE | JOJ11: FALSE | JOK11: FALSE | JOL11: FALSE | JOM11: FALSE | JON11: FALSE | JOO11: FALSE | JOP11: FALSE | JOQ11: FALSE | JOR11: FALSE | JOS11: FALSE | JOT11: =ECHO(FALSE) -> FALSE | JOU11: FALSE | JOV11: FALSE | JOW11: FALSE | JOX11: FALSE | JOY11: FALSE | JOZ11: FALSE | JPA11: FALSE | JPB11: FALSE | JPC11: FALSE | JPD11: FALSE | JPE11: FALSE | JPF11: FALSE | JPG11: FALSE | JPH11: FALSE | JPI11: FALSE | JPJ11: FALSE | JPK11: FALSE | JPL11: FALSE | JPM11: FALSE | JPN11: FALSE | JPO11: FALSE | JPP11: FALSE | JPQ11: FALSE | JPR11: FALSE | JPS11: FALSE | JPT11: FALSE | JPU11: FALSE | JPV11: FALSE | JPW11: FALSE | JPX11: FALSE | JPY11: FALSE | JPZ11: FALSE | JQA11: FALSE | JQB11: FALSE | JQC11: FALSE | JQD11: FALSE | JQE11: FALSE | JQF11: FALSE | JQG11: FALSE | JQH11: FALSE | JQI11: FALSE | JQJ11: FALSE | JQK11: FALSE | JQL11: FALSE | JQM11: FALSE | JQN11: FALSE | JQO11: FALSE | JQP11: FALSE | JQQ11: FALSE | JQR11: FALSE | JQS11: FALSE | JQT11: FALSE | JQU11: FALSE | JQV11: FALSE | JQW11: FALSE | JQX11: FALSE | JQY11: FALSE | JQZ11: FALSE | JRA11: FALSE | JRB11: FALSE | JRC11: FALSE | JRD11: FALSE | JRE11: FALSE | JRF11: =ECHO(FALSE) -> FALSE | JRG11: FALSE | JRH11: FALSE | JRI11: FALSE | JRJ11: FALSE | JRK11: FALSE | JRL11: FALSE | JRM11: FALSE | JRN11: FALSE | JRO11: FALSE | JRP11: FALSE | JRQ11: FALSE | JRR11: FALSE | JRS11: FALSE | JRT11: FALSE | JRU11: FALSE | JRV11: FALSE | JRW11: FALSE | JRX11: FALSE | JRY11: FALSE | JRZ11: FALSE | JSA11: FALSE | JSB11: FALSE | JSC11: FALSE | JSD11: FALSE | JSE11: FALSE | JSF11: FALSE | JSG11: FALSE | JSH11: FALSE | JSI11: FALSE | JSJ11: FALSE | JSK11: FALSE | JSL11: FALSE | JSM11: FALSE | JSN11: FALSE | JSO11: FALSE | JSP11: FALSE | JSQ11: FALSE | JSR11: FALSE | JSS11: FALSE | JST11: FALSE | JSU11: FALSE | JSV11: FALSE | JSW11: FALSE | JSX11: FALSE | JSY11: FALSE | JSZ11: FALSE | JTA11: FALSE | JTB11: FALSE | JTC11: FALSE | JTD11: FALSE | JTE11: FALSE | JTF11: FALSE | JTG11: FALSE | JTH11: FALSE | JTI11: FALSE | JTJ11: FALSE | JTK11: FALSE | JTL11: FALSE | JTM11: FALSE | JTN11: FALSE | JTO11: FALSE | JTP11: FALSE | JTQ11: FALSE | JTR11: =ECHO(FALSE) -> FALSE | JTS11: FALSE | JTT11: FALSE | JTU11: FALSE | JTV11: FALSE | JTW11: FALSE | JTX11: FALSE | JTY11: FALSE | JTZ11: FALSE | JUA11: FALSE | JUB11: FALSE | JUC11: FALSE | JUD11: FALSE | JUE11: FALSE | JUF11: FALSE | JUG11: FALSE | JUH11: FALSE | JUI11: FALSE | JUJ11: FALSE | JUK11: FALSE | JUL11: FALSE | JUM11: FALSE | JUN11: FALSE | JUO11: FALSE | JUP11: FALSE | JUQ11: FALSE | JUR11: FALSE | JUS11: FALSE | JUT11: FALSE | JUU11: FALSE | JUV11: FALSE | JUW11: FALSE | JUX11: FALSE | JUY11: FALSE | JUZ11: FALSE | JVA11: FALSE | JVB11: FALSE | JVC11: FALSE | JVD11: FALSE | JVE11: FALSE | JVF11: FALSE | JVG11: FALSE | JVH11: FALSE | JVI11: FALSE | JVJ11: FALSE | JVK11: FALSE | JVL11: FALSE | JVM11: FALSE | JVN11: FALSE | JVO11: FALSE | JVP11: FALSE | JVQ11: FALSE | JVR11: FALSE | JVS11: FALSE | JVT11: FALSE | JVU11: FALSE | JVV11: FALSE | JVW11: FALSE | JVX11: FALSE | JVY11: FALSE | JVZ11: FALSE | JWA11: FALSE | JWB11: FALSE | JWC11: FALSE | JWD11: =ECHO(FALSE) -> FALSE | JWE11: FALSE | JWF11: FALSE | JWG11: FALSE | JWH11: FALSE | JWI11: FALSE | JWJ11: FALSE | JWK11: FALSE | JWL11: FALSE | JWM11: FALSE | JWN11: FALSE | JWO11: FALSE | JWP11: FALSE | JWQ11: FALSE | JWR11: FALSE | JWS11: FALSE | JWT11: FALSE | JWU11: FALSE | JWV11: FALSE | JWW11: FALSE | JWX11: FALSE | JWY11: FALSE | JWZ11: FALSE | JXA11: FALSE | JXB11: FALSE | JXC11: FALSE | JXD11: FALSE | JXE11: FALSE | JXF11: FALSE | JXG11: FALSE | JXH11: FALSE | JXI11: FALSE | JXJ11: FALSE | JXK11: FALSE | JXL11: FALSE | JXM11: FALSE | JXN11: FALSE | JXO11: FALSE | JXP11: FALSE | JXQ11: FALSE | JXR11: FALSE | JXS11: FALSE | JXT11: FALSE | JXU11: FALSE | JXV11: FALSE | JXW11: FALSE | JXX11: FALSE | JXY11: FALSE | JXZ11: FALSE | JYA11: FALSE | JYB11: FALSE | JYC11: FALSE | JYD11: FALSE | JYE11: FALSE | JYF11: FALSE | JYG11: FALSE | JYH11: FALSE | JYI11: FALSE | JYJ11: FALSE | JYK11: FALSE | JYL11: FALSE | JYM11: FALSE | JYN11: FALSE | JYO11: FALSE | JYP11: =ECHO(FALSE) -> FALSE | JYQ11: FALSE | JYR11: FALSE | JYS11: FALSE | JYT11: FALSE | JYU11: FALSE | JYV11: FALSE | JYW11: FALSE | JYX11: FALSE | JYY11: FALSE | JYZ11: FALSE | JZA11: FALSE | JZB11: FALSE | JZC11: FALSE | JZD11: FALSE | JZE11: FALSE | JZF11: FALSE | JZG11: FALSE | JZH11: FALSE | JZI11: FALSE | JZJ11: FALSE | JZK11: FALSE | JZL11: FALSE | JZM11: FALSE | JZN11: FALSE | JZO11: FALSE | JZP11: FALSE | JZQ11: FALSE | JZR11: FALSE | JZS11: FALSE | JZT11: FALSE | JZU11: FALSE | JZV11: FALSE | JZW11: FALSE | JZX11: FALSE | JZY11: FALSE | JZZ11: FALSE | KAA11: FALSE | KAB11: FALSE | KAC11: FALSE | KAD11: FALSE | KAE11: FALSE | KAF11: FALSE | KAG11: FALSE | KAH11: FALSE | KAI11: FALSE | KAJ11: FALSE | KAK11: FALSE | KAL11: FALSE | KAM11: FALSE | KAN11: FALSE | KAO11: FALSE | KAP11: FALSE | KAQ11: FALSE | KAR11: FALSE | KAS11: FALSE | KAT11: FALSE | KAU11: FALSE | KAV11: FALSE | KAW11: FALSE | KAX11: FALSE | KAY11: FALSE | KAZ11: FALSE | KBA11: FALSE | KBB11: =ECHO(FALSE) -> FALSE | KBC11: FALSE | KBD11: FALSE | KBE11: FALSE | KBF11: FALSE | KBG11: FALSE | KBH11: FALSE | KBI11: FALSE | KBJ11: FALSE | KBK11: FALSE | KBL11: FALSE | KBM11: FALSE | KBN11: FALSE | KBO11: FALSE | KBP11: FALSE | KBQ11: FALSE | KBR11: FALSE | KBS11: FALSE | KBT11: FALSE | KBU11: FALSE | KBV11: FALSE | KBW11: FALSE | KBX11: FALSE | KBY11: FALSE | KBZ11: FALSE | KCA11: FALSE | KCB11: FALSE | KCC11: FALSE | KCD11: FALSE | KCE11: FALSE | KCF11: FALSE | KCG11: FALSE | KCH11: FALSE | KCI11: FALSE | KCJ11: FALSE | KCK11: FALSE | KCL11: FALSE | KCM11: FALSE | KCN11: FALSE | KCO11: FALSE | KCP11: FALSE | KCQ11: FALSE | KCR11: FALSE | KCS11: FALSE | KCT11: FALSE | KCU11: FALSE | KCV11: FALSE | KCW11: FALSE | KCX11: FALSE | KCY11: FALSE | KCZ11: FALSE | KDA11: FALSE | KDB11: FALSE | KDC11: FALSE | KDD11: FALSE | KDE11: FALSE | KDF11: FALSE | KDG11: FALSE | KDH11: FALSE | KDI11: FALSE | KDJ11: FALSE | KDK11: FALSE | KDL11: FALSE | KDM11: FALSE | KDN11: =ECHO(FALSE) -> FALSE | KDO11: FALSE | KDP11: FALSE | KDQ11: FALSE | KDR11: FALSE | KDS11: FALSE | KDT11: FALSE | KDU11: FALSE | KDV11: FALSE | KDW11: FALSE | KDX11: FALSE | KDY11: FALSE | KDZ11: FALSE | KEA11: FALSE | KEB11: FALSE | KEC11: FALSE | KED11: FALSE | KEE11: FALSE | KEF11: FALSE | KEG11: FALSE | KEH11: FALSE | KEI11: FALSE | KEJ11: FALSE | KEK11: FALSE | KEL11: FALSE | KEM11: FALSE | KEN11: FALSE | KEO11: FALSE | KEP11: FALSE | KEQ11: FALSE | KER11: FALSE | KES11: FALSE | KET11: FALSE | KEU11: FALSE | KEV11: FALSE | KEW11: FALSE | KEX11: FALSE | KEY11: FALSE | KEZ11: FALSE | KFA11: FALSE | KFB11: FALSE | KFC11: FALSE | KFD11: FALSE | KFE11: FALSE | KFF11: FALSE | KFG11: FALSE | KFH11: FALSE | KFI11: FALSE | KFJ11: FALSE | KFK11: FALSE | KFL11: FALSE | KFM11: FALSE | KFN11: FALSE | KFO11: FALSE | KFP11: FALSE | KFQ11: FALSE | KFR11: FALSE | KFS11: FALSE | KFT11: FALSE | KFU11: FALSE | KFV11: FALSE | KFW11: FALSE | KFX11: FALSE | KFY11: FALSE | KFZ11: =ECHO(FALSE) -> FALSE | KGA11: FALSE | KGB11: FALSE | KGC11: FALSE | KGD11: FALSE | KGE11: FALSE | KGF11: FALSE | KGG11: FALSE | KGH11: FALSE | KGI11: FALSE | KGJ11: FALSE | KGK11: FALSE | KGL11: FALSE | KGM11: FALSE | KGN11: FALSE | KGO11: FALSE | KGP11: FALSE | KGQ11: FALSE | KGR11: FALSE | KGS11: FALSE | KGT11: FALSE | KGU11: FALSE | KGV11: FALSE | KGW11: FALSE | KGX11: FALSE | KGY11: FALSE | KGZ11: FALSE | KHA11: FALSE | KHB11: FALSE | KHC11: FALSE | KHD11: FALSE | KHE11: FALSE | KHF11: FALSE | KHG11: FALSE | KHH11: FALSE | KHI11: FALSE | KHJ11: FALSE | KHK11: FALSE | KHL11: FALSE | KHM11: FALSE | KHN11: FALSE | KHO11: FALSE | KHP11: FALSE | KHQ11: FALSE | KHR11: FALSE | KHS11: FALSE | KHT11: FALSE | KHU11: FALSE | KHV11: FALSE | KHW11: FALSE | KHX11: FALSE | KHY11: FALSE | KHZ11: FALSE | KIA11: FALSE | KIB11: FALSE | KIC11: FALSE | KID11: FALSE | KIE11: FALSE | KIF11: FALSE | KIG11: FALSE | KIH11: FALSE | KII11: FALSE | KIJ11: FALSE | KIK11: FALSE | KIL11: =ECHO(FALSE) -> FALSE | KIM11: FALSE | KIN11: FALSE | KIO11: FALSE | KIP11: FALSE | KIQ11: FALSE | KIR11: FALSE | KIS11: FALSE | KIT11: FALSE | KIU11: FALSE | KIV11: FALSE | KIW11: FALSE | KIX11: FALSE | KIY11: FALSE | KIZ11: FALSE | KJA11: FALSE | KJB11: FALSE | KJC11: FALSE | KJD11: FALSE | KJE11: FALSE | KJF11: FALSE | KJG11: FALSE | KJH11: FALSE | KJI11: FALSE | KJJ11: FALSE | KJK11: FALSE | KJL11: FALSE | KJM11: FALSE | KJN11: FALSE | KJO11: FALSE | KJP11: FALSE | KJQ11: FALSE | KJR11: FALSE | KJS11: FALSE | KJT11: FALSE | KJU11: FALSE | KJV11: FALSE | KJW11: FALSE | KJX11: FALSE | KJY11: FALSE | KJZ11: FALSE | KKA11: FALSE | KKB11: FALSE | KKC11: FALSE | KKD11: FALSE | KKE11: FALSE | KKF11: FALSE | KKG11: FALSE | KKH11: FALSE | KKI11: FALSE | KKJ11: FALSE | KKK11: FALSE | KKL11: FALSE | KKM11: FALSE | KKN11: FALSE | KKO11: FALSE | KKP11: FALSE | KKQ11: FALSE | KKR11: FALSE | KKS11: FALSE | KKT11: FALSE | KKU11: FALSE | KKV11: FALSE | KKW11: FALSE | KKX11: =ECHO(FALSE) -> FALSE | KKY11: FALSE | KKZ11: FALSE | KLA11: FALSE | KLB11: FALSE | KLC11: FALSE | KLD11: FALSE | KLE11: FALSE | KLF11: FALSE | KLG11: FALSE | KLH11: FALSE | KLI11: FALSE | KLJ11: FALSE | KLK11: FALSE | KLL11: FALSE | KLM11: FALSE | KLN11: FALSE | KLO11: FALSE | KLP11: FALSE | KLQ11: FALSE | KLR11: FALSE | KLS11: FALSE | KLT11: FALSE | KLU11: FALSE | KLV11: FALSE | KLW11: FALSE | KLX11: FALSE | KLY11: FALSE | KLZ11: FALSE | KMA11: FALSE | KMB11: FALSE | KMC11: FALSE | KMD11: FALSE | KME11: FALSE | KMF11: FALSE | KMG11: FALSE | KMH11: FALSE | KMI11: FALSE | KMJ11: FALSE | KMK11: FALSE | KML11: FALSE | KMM11: FALSE | KMN11: FALSE | KMO11: FALSE | KMP11: FALSE | KMQ11: FALSE | KMR11: FALSE | KMS11: FALSE | KMT11: FALSE | KMU11: FALSE | KMV11: FALSE | KMW11: FALSE | KMX11: FALSE | KMY11: FALSE | KMZ11: FALSE | KNA11: FALSE | KNB11: FALSE | KNC11: FALSE | KND11: FALSE | KNE11: FALSE | KNF11: FALSE | KNG11: FALSE | KNH11: FALSE | KNI11: FALSE | KNJ11: =ECHO(FALSE) -> FALSE | KNK11: FALSE | KNL11: FALSE | KNM11: FALSE | KNN11: FALSE | KNO11: FALSE | KNP11: FALSE | KNQ11: FALSE | KNR11: FALSE | KNS11: FALSE | KNT11: FALSE | KNU11: FALSE | KNV11: FALSE | KNW11: FALSE | KNX11: FALSE | KNY11: FALSE | KNZ11: FALSE | KOA11: FALSE | KOB11: FALSE | KOC11: FALSE | KOD11: FALSE | KOE11: FALSE | KOF11: FALSE | KOG11: FALSE | KOH11: FALSE | KOI11: FALSE | KOJ11: FALSE | KOK11: FALSE | KOL11: FALSE | KOM11: FALSE | KON11: FALSE | KOO11: FALSE | KOP11: FALSE | KOQ11: FALSE | KOR11: FALSE | KOS11: FALSE | KOT11: FALSE | KOU11: FALSE | KOV11: FALSE | KOW11: FALSE | KOX11: FALSE | KOY11: FALSE | KOZ11: FALSE | KPA11: FALSE | KPB11: FALSE | KPC11: FALSE | KPD11: FALSE | KPE11: FALSE | KPF11: FALSE | KPG11: FALSE | KPH11: FALSE | KPI11: FALSE | KPJ11: FALSE | KPK11: FALSE | KPL11: FALSE | KPM11: FALSE | KPN11: FALSE | KPO11: FALSE | KPP11: FALSE | KPQ11: FALSE | KPR11: FALSE | KPS11: FALSE | KPT11: FALSE | KPU11: FALSE | KPV11: =ECHO(FALSE) -> FALSE | KPW11: FALSE | KPX11: FALSE | KPY11: FALSE | KPZ11: FALSE | KQA11: FALSE | KQB11: FALSE | KQC11: FALSE | KQD11: FALSE | KQE11: FALSE | KQF11: FALSE | KQG11: FALSE | KQH11: FALSE | KQI11: FALSE | KQJ11: FALSE | KQK11: FALSE | KQL11: FALSE | KQM11: FALSE | KQN11: FALSE | KQO11: FALSE | KQP11: FALSE | KQQ11: FALSE | KQR11: FALSE | KQS11: FALSE | KQT11: FALSE | KQU11: FALSE | KQV11: FALSE | KQW11: FALSE | KQX11: FALSE | KQY11: FALSE | KQZ11: FALSE | KRA11: FALSE | KRB11: FALSE | KRC11: FALSE | KRD11: FALSE | KRE11: FALSE | KRF11: FALSE | KRG11: FALSE | KRH11: FALSE | KRI11: FALSE | KRJ11: FALSE | KRK11: FALSE | KRL11: FALSE | KRM11: FALSE | KRN11: FALSE | KRO11: FALSE | KRP11: FALSE | KRQ11: FALSE | KRR11: FALSE | KRS11: FALSE | KRT11: FALSE | KRU11: FALSE | KRV11: FALSE | KRW11: FALSE | KRX11: FALSE | KRY11: FALSE | KRZ11: FALSE | KSA11: FALSE | KSB11: FALSE | KSC11: FALSE | KSD11: FALSE | KSE11: FALSE | KSF11: FALSE | KSG11: FALSE | KSH11: =ECHO(FALSE) -> FALSE | KSI11: FALSE | KSJ11: FALSE | KSK11: FALSE | KSL11: FALSE | KSM11: FALSE | KSN11: FALSE | KSO11: FALSE | KSP11: FALSE | KSQ11: FALSE | KSR11: FALSE | KSS11: FALSE | KST11: FALSE | KSU11: FALSE | KSV11: FALSE | KSW11: FALSE | KSX11: FALSE | KSY11: FALSE | KSZ11: FALSE | KTA11: FALSE | KTB11: FALSE | KTC11: FALSE | KTD11: FALSE | KTE11: FALSE | KTF11: FALSE | KTG11: FALSE | KTH11: FALSE | KTI11: FALSE | KTJ11: FALSE | KTK11: FALSE | KTL11: FALSE | KTM11: FALSE | KTN11: FALSE | KTO11: FALSE | KTP11: FALSE | KTQ11: FALSE | KTR11: FALSE | KTS11: FALSE | KTT11: FALSE | KTU11: FALSE | KTV11: FALSE | KTW11: FALSE | KTX11: FALSE | KTY11: FALSE | KTZ11: FALSE | KUA11: FALSE | KUB11: FALSE | KUC11: FALSE | KUD11: FALSE | KUE11: FALSE | KUF11: FALSE | KUG11: FALSE | KUH11: FALSE | KUI11: FALSE | KUJ11: FALSE | KUK11: FALSE | KUL11: FALSE | KUM11: FALSE | KUN11: FALSE | KUO11: FALSE | KUP11: FALSE | KUQ11: FALSE | KUR11: FALSE | KUS11: FALSE | KUT11: =ECHO(FALSE) -> FALSE | KUU11: FALSE | KUV11: FALSE | KUW11: FALSE | KUX11: FALSE | KUY11: FALSE | KUZ11: FALSE | KVA11: FALSE | KVB11: FALSE | KVC11: FALSE | KVD11: FALSE | KVE11: FALSE | KVF11: FALSE | KVG11: FALSE | KVH11: FALSE | KVI11: FALSE | KVJ11: FALSE | KVK11: FALSE | KVL11: FALSE | KVM11: FALSE | KVN11: FALSE | KVO11: FALSE | KVP11: FALSE | KVQ11: FALSE | KVR11: FALSE | KVS11: FALSE | KVT11: FALSE | KVU11: FALSE | KVV11: FALSE | KVW11: FALSE | KVX11: FALSE | KVY11: FALSE | KVZ11: FALSE | KWA11: FALSE | KWB11: FALSE | KWC11: FALSE | KWD11: FALSE | KWE11: FALSE | KWF11: FALSE | KWG11: FALSE | KWH11: FALSE | KWI11: FALSE | KWJ11: FALSE | KWK11: FALSE | KWL11: FALSE | KWM11: FALSE | KWN11: FALSE | KWO11: FALSE | KWP11: FALSE | KWQ11: FALSE | KWR11: FALSE | KWS11: FALSE | KWT11: FALSE | KWU11: FALSE | KWV11: FALSE | KWW11: FALSE | KWX11: FALSE | KWY11: FALSE | KWZ11: FALSE | KXA11: FALSE | KXB11: FALSE | KXC11: FALSE | KXD11: FALSE | KXE11: FALSE | KXF11: =ECHO(FALSE) -> FALSE | KXG11: FALSE | KXH11: FALSE | KXI11: FALSE | KXJ11: FALSE | KXK11: FALSE | KXL11: FALSE | KXM11: FALSE | KXN11: FALSE | KXO11: FALSE | KXP11: FALSE | KXQ11: FALSE | KXR11: FALSE | KXS11: FALSE | KXT11: FALSE | KXU11: FALSE | KXV11: FALSE | KXW11: FALSE | KXX11: FALSE | KXY11: FALSE | KXZ11: FALSE | KYA11: FALSE | KYB11: FALSE | KYC11: FALSE | KYD11: FALSE | KYE11: FALSE | KYF11: FALSE | KYG11: FALSE | KYH11: FALSE | KYI11: FALSE | KYJ11: FALSE | KYK11: FALSE | KYL11: FALSE | KYM11: FALSE | KYN11: FALSE | KYO11: FALSE | KYP11: FALSE | KYQ11: FALSE | KYR11: FALSE | KYS11: FALSE | KYT11: FALSE | KYU11: FALSE | KYV11: FALSE | KYW11: FALSE | KYX11: FALSE | KYY11: FALSE | KYZ11: FALSE | KZA11: FALSE | KZB11: FALSE | KZC11: FALSE | KZD11: FALSE | KZE11: FALSE | KZF11: FALSE | KZG11: FALSE | KZH11: FALSE | KZI11: FALSE | KZJ11: FALSE | KZK11: FALSE | KZL11: FALSE | KZM11: FALSE | KZN11: FALSE | KZO11: FALSE | KZP11: FALSE | KZQ11: FALSE | KZR11: =ECHO(FALSE) -> FALSE | KZS11: FALSE | KZT11: FALSE | KZU11: FALSE | KZV11: FALSE | KZW11: FALSE | KZX11: FALSE | KZY11: FALSE | KZZ11: FALSE | LAA11: FALSE | LAB11: FALSE | LAC11: FALSE | LAD11: FALSE | LAE11: FALSE | LAF11: FALSE | LAG11: FALSE | LAH11: FALSE | LAI11: FALSE | LAJ11: FALSE | LAK11: FALSE | LAL11: FALSE | LAM11: FALSE | LAN11: FALSE | LAO11: FALSE | LAP11: FALSE | LAQ11: FALSE | LAR11: FALSE | LAS11: FALSE | LAT11: FALSE | LAU11: FALSE | LAV11: FALSE | LAW11: FALSE | LAX11: FALSE | LAY11: FALSE | LAZ11: FALSE | LBA11: FALSE | LBB11: FALSE | LBC11: FALSE | LBD11: FALSE | LBE11: FALSE | LBF11: FALSE | LBG11: FALSE | LBH11: FALSE | LBI11: FALSE | LBJ11: FALSE | LBK11: FALSE | LBL11: FALSE | LBM11: FALSE | LBN11: FALSE | LBO11: FALSE | LBP11: FALSE | LBQ11: FALSE | LBR11: FALSE | LBS11: FALSE | LBT11: FALSE | LBU11: FALSE | LBV11: FALSE | LBW11: FALSE | LBX11: FALSE | LBY11: FALSE | LBZ11: FALSE | LCA11: FALSE | LCB11: FALSE | LCC11: FALSE | LCD11: =ECHO(FALSE) -> FALSE | LCE11: FALSE | LCF11: FALSE | LCG11: FALSE | LCH11: FALSE | LCI11: FALSE | LCJ11: FALSE | LCK11: FALSE | LCL11: FALSE | LCM11: FALSE | LCN11: FALSE | LCO11: FALSE | LCP11: FALSE | LCQ11: FALSE | LCR11: FALSE | LCS11: FALSE | LCT11: FALSE | LCU11: FALSE | LCV11: FALSE | LCW11: FALSE | LCX11: FALSE | LCY11: FALSE | LCZ11: FALSE | LDA11: FALSE | LDB11: FALSE | LDC11: FALSE | LDD11: FALSE | LDE11: FALSE | LDF11: FALSE | LDG11: FALSE | LDH11: FALSE | LDI11: FALSE | LDJ11: FALSE | LDK11: FALSE | LDL11: FALSE | LDM11: FALSE | LDN11: FALSE | LDO11: FALSE | LDP11: FALSE | LDQ11: FALSE | LDR11: FALSE | LDS11: FALSE | LDT11: FALSE | LDU11: FALSE | LDV11: FALSE | LDW11: FALSE | LDX11: FALSE | LDY11: FALSE | LDZ11: FALSE | LEA11: FALSE | LEB11: FALSE | LEC11: FALSE | LED11: FALSE | LEE11: FALSE | LEF11: FALSE | LEG11: FALSE | LEH11: FALSE | LEI11: FALSE | LEJ11: FALSE | LEK11: FALSE | LEL11: FALSE | LEM11: FALSE | LEN11: FALSE | LEO11: FALSE | LEP11: =ECHO(FALSE) -> FALSE | LEQ11: FALSE | LER11: FALSE | LES11: FALSE | LET11: FALSE | LEU11: FALSE | LEV11: FALSE | LEW11: FALSE | LEX11: FALSE | LEY11: FALSE | LEZ11: FALSE | LFA11: FALSE | LFB11: FALSE | LFC11: FALSE | LFD11: FALSE | LFE11: FALSE | LFF11: FALSE | LFG11: FALSE | LFH11: FALSE | LFI11: FALSE | LFJ11: FALSE | LFK11: FALSE | LFL11: FALSE | LFM11: FALSE | LFN11: FALSE | LFO11: FALSE | LFP11: FALSE | LFQ11: FALSE | LFR11: FALSE | LFS11: FALSE | LFT11: FALSE | LFU11: FALSE | LFV11: FALSE | LFW11: FALSE | LFX11: FALSE | LFY11: FALSE | LFZ11: FALSE | LGA11: FALSE | LGB11: FALSE | LGC11: FALSE | LGD11: FALSE | LGE11: FALSE | LGF11: FALSE | LGG11: FALSE | LGH11: FALSE | LGI11: FALSE | LGJ11: FALSE | LGK11: FALSE | LGL11: FALSE | LGM11: FALSE | LGN11: FALSE | LGO11: FALSE | LGP11: FALSE | LGQ11: FALSE | LGR11: FALSE | LGS11: FALSE | LGT11: FALSE | LGU11: FALSE | LGV11: FALSE | LGW11: FALSE | LGX11: FALSE | LGY11: FALSE | LGZ11: FALSE | LHA11: FALSE | LHB11: =ECHO(FALSE) -> FALSE | LHC11: FALSE | LHD11: FALSE | LHE11: FALSE | LHF11: FALSE | LHG11: FALSE | LHH11: FALSE | LHI11: FALSE | LHJ11: FALSE | LHK11: FALSE | LHL11: FALSE | LHM11: FALSE | LHN11: FALSE | LHO11: FALSE | LHP11: FALSE | LHQ11: FALSE | LHR11: FALSE | LHS11: FALSE | LHT11: FALSE | LHU11: FALSE | LHV11: FALSE | LHW11: FALSE | LHX11: FALSE | LHY11: FALSE | LHZ11: FALSE | LIA11: FALSE | LIB11: FALSE | LIC11: FALSE | LID11: FALSE | LIE11: FALSE | LIF11: FALSE | LIG11: FALSE | LIH11: FALSE | LII11: FALSE | LIJ11: FALSE | LIK11: FALSE | LIL11: FALSE | LIM11: FALSE | LIN11: FALSE | LIO11: FALSE | LIP11: FALSE | LIQ11: FALSE | LIR11: FALSE | LIS11: FALSE | LIT11: FALSE | LIU11: FALSE | LIV11: FALSE | LIW11: FALSE | LIX11: FALSE | LIY11: FALSE | LIZ11: FALSE | LJA11: FALSE | LJB11: FALSE | LJC11: FALSE | LJD11: FALSE | LJE11: FALSE | LJF11: FALSE | LJG11: FALSE | LJH11: FALSE | LJI11: FALSE | LJJ11: FALSE | LJK11: FALSE | LJL11: FALSE | LJM11: FALSE | LJN11: =ECHO(FALSE) -> FALSE | LJO11: FALSE | LJP11: FALSE | LJQ11: FALSE | LJR11: FALSE | LJS11: FALSE | LJT11: FALSE | LJU11: FALSE | LJV11: FALSE | LJW11: FALSE | LJX11: FALSE | LJY11: FALSE | LJZ11: FALSE | LKA11: FALSE | LKB11: FALSE | LKC11: FALSE | LKD11: FALSE | LKE11: FALSE | LKF11: FALSE | LKG11: FALSE | LKH11: FALSE | LKI11: FALSE | LKJ11: FALSE | LKK11: FALSE | LKL11: FALSE | LKM11: FALSE | LKN11: FALSE | LKO11: FALSE | LKP11: FALSE | LKQ11: FALSE | LKR11: FALSE | LKS11: FALSE | LKT11: FALSE | LKU11: FALSE | LKV11: FALSE | LKW11: FALSE | LKX11: FALSE | LKY11: FALSE | LKZ11: FALSE | LLA11: FALSE | LLB11: FALSE | LLC11: FALSE | LLD11: FALSE | LLE11: FALSE | LLF11: FALSE | LLG11: FALSE | LLH11: FALSE | LLI11: FALSE | LLJ11: FALSE | LLK11: FALSE | LLL11: FALSE | LLM11: FALSE | LLN11: FALSE | LLO11: FALSE | LLP11: FALSE | LLQ11: FALSE | LLR11: FALSE | LLS11: FALSE | LLT11: FALSE | LLU11: FALSE | LLV11: FALSE | LLW11: FALSE | LLX11: FALSE | LLY11: FALSE | LLZ11: =ECHO(FALSE) -> FALSE | LMA11: FALSE | LMB11: FALSE | LMC11: FALSE | LMD11: FALSE | LME11: FALSE | LMF11: FALSE | LMG11: FALSE | LMH11: FALSE | LMI11: FALSE | LMJ11: FALSE | LMK11: FALSE | LML11: FALSE | LMM11: FALSE | LMN11: FALSE | LMO11: FALSE | LMP11: FALSE | LMQ11: FALSE | LMR11: FALSE | LMS11: FALSE | LMT11: FALSE | LMU11: FALSE | LMV11: FALSE | LMW11: FALSE | LMX11: FALSE | LMY11: FALSE | LMZ11: FALSE | LNA11: FALSE | LNB11: FALSE | LNC11: FALSE | LND11: FALSE | LNE11: FALSE | LNF11: FALSE | LNG11: FALSE | LNH11: FALSE | LNI11: FALSE | LNJ11: FALSE | LNK11: FALSE | LNL11: FALSE | LNM11: FALSE | LNN11: FALSE | LNO11: FALSE | LNP11: FALSE | LNQ11: FALSE | LNR11: FALSE | LNS11: FALSE | LNT11: FALSE | LNU11: FALSE | LNV11: FALSE | LNW11: FALSE | LNX11: FALSE | LNY11: FALSE | LNZ11: FALSE | LOA11: FALSE | LOB11: FALSE | LOC11: FALSE | LOD11: FALSE | LOE11: FALSE | LOF11: FALSE | LOG11: FALSE | LOH11: FALSE | LOI11: FALSE | LOJ11: FALSE | LOK11: FALSE | LOL11: =ECHO(FALSE) -> FALSE | LOM11: FALSE | LON11: FALSE | LOO11: FALSE | LOP11: FALSE | LOQ11: FALSE | LOR11: FALSE | LOS11: FALSE | LOT11: FALSE | LOU11: FALSE | LOV11: FALSE | LOW11: FALSE | LOX11: FALSE | LOY11: FALSE | LOZ11: FALSE | LPA11: FALSE | LPB11: FALSE | LPC11: FALSE | LPD11: FALSE | LPE11: FALSE | LPF11: FALSE | LPG11: FALSE | LPH11: FALSE | LPI11: FALSE | LPJ11: FALSE | LPK11: FALSE | LPL11: FALSE | LPM11: FALSE | LPN11: FALSE | LPO11: FALSE | LPP11: FALSE | LPQ11: FALSE | LPR11: FALSE | LPS11: FALSE | LPT11: FALSE | LPU11: FALSE | LPV11: FALSE | LPW11: FALSE | LPX11: FALSE | LPY11: FALSE | LPZ11: FALSE | LQA11: FALSE | LQB11: FALSE | LQC11: FALSE | LQD11: FALSE | LQE11: FALSE | LQF11: FALSE | LQG11: FALSE | LQH11: FALSE | LQI11: FALSE | LQJ11: FALSE | LQK11: FALSE | LQL11: FALSE | LQM11: FALSE | LQN11: FALSE | LQO11: FALSE | LQP11: FALSE | LQQ11: FALSE | LQR11: FALSE | LQS11: FALSE | LQT11: FALSE | LQU11: FALSE | LQV11: FALSE | LQW11: FALSE | LQX11: =ECHO(FALSE) -> FALSE | LQY11: FALSE | LQZ11: FALSE | LRA11: FALSE | LRB11: FALSE | LRC11: FALSE | LRD11: FALSE | LRE11: FALSE | LRF11: FALSE | LRG11: FALSE | LRH11: FALSE | LRI11: FALSE | LRJ11: FALSE | LRK11: FALSE | LRL11: FALSE | LRM11: FALSE | LRN11: FALSE | LRO11: FALSE | LRP11: FALSE | LRQ11: FALSE | LRR11: FALSE | LRS11: FALSE | LRT11: FALSE | LRU11: FALSE | LRV11: FALSE | LRW11: FALSE | LRX11: FALSE | LRY11: FALSE | LRZ11: FALSE | LSA11: FALSE | LSB11: FALSE | LSC11: FALSE | LSD11: FALSE | LSE11: FALSE | LSF11: FALSE | LSG11: FALSE | LSH11: FALSE | LSI11: FALSE | LSJ11: FALSE | LSK11: FALSE | LSL11: FALSE | LSM11: FALSE | LSN11: FALSE | LSO11: FALSE | LSP11: FALSE | LSQ11: FALSE | LSR11: FALSE | LSS11: FALSE | LST11: FALSE | LSU11: FALSE | LSV11: FALSE | LSW11: FALSE | LSX11: FALSE | LSY11: FALSE | LSZ11: FALSE | LTA11: FALSE | LTB11: FALSE | LTC11: FALSE | LTD11: FALSE | LTE11: FALSE | LTF11: FALSE | LTG11: FALSE | LTH11: FALSE | LTI11: FALSE | LTJ11: =ECHO(FALSE) -> FALSE | LTK11: FALSE | LTL11: FALSE | LTM11: FALSE | LTN11: FALSE | LTO11: FALSE | LTP11: FALSE | LTQ11: FALSE | LTR11: FALSE | LTS11: FALSE | LTT11: FALSE | LTU11: FALSE | LTV11: FALSE | LTW11: FALSE | LTX11: FALSE | LTY11: FALSE | LTZ11: FALSE | LUA11: FALSE | LUB11: FALSE | LUC11: FALSE | LUD11: FALSE | LUE11: FALSE | LUF11: FALSE | LUG11: FALSE | LUH11: FALSE | LUI11: FALSE | LUJ11: FALSE | LUK11: FALSE | LUL11: FALSE | LUM11: FALSE | LUN11: FALSE | LUO11: FALSE | LUP11: FALSE | LUQ11: FALSE | LUR11: FALSE | LUS11: FALSE | LUT11: FALSE | LUU11: FALSE | LUV11: FALSE | LUW11: FALSE | LUX11: FALSE | LUY11: FALSE | LUZ11: FALSE | LVA11: FALSE | LVB11: FALSE | LVC11: FALSE | LVD11: FALSE | LVE11: FALSE | LVF11: FALSE | LVG11: FALSE | LVH11: FALSE | LVI11: FALSE | LVJ11: FALSE | LVK11: FALSE | LVL11: FALSE | LVM11: FALSE | LVN11: FALSE | LVO11: FALSE | LVP11: FALSE | LVQ11: FALSE | LVR11: FALSE | LVS11: FALSE | LVT11: FALSE | LVU11: FALSE | LVV11: =ECHO(FALSE) -> FALSE | LVW11: FALSE | LVX11: FALSE | LVY11: FALSE | LVZ11: FALSE | LWA11: FALSE | LWB11: FALSE | LWC11: FALSE | LWD11: FALSE | LWE11: FALSE | LWF11: FALSE | LWG11: FALSE | LWH11: FALSE | LWI11: FALSE | LWJ11: FALSE | LWK11: FALSE | LWL11: FALSE | LWM11: FALSE | LWN11: FALSE | LWO11: FALSE | LWP11: FALSE | LWQ11: FALSE | LWR11: FALSE | LWS11: FALSE | LWT11: FALSE | LWU11: FALSE | LWV11: FALSE | LWW11: FALSE | LWX11: FALSE | LWY11: FALSE | LWZ11: FALSE | LXA11: FALSE | LXB11: FALSE | LXC11: FALSE | LXD11: FALSE | LXE11: FALSE | LXF11: FALSE | LXG11: FALSE | LXH11: FALSE | LXI11: FALSE | LXJ11: FALSE | LXK11: FALSE | LXL11: FALSE | LXM11: FALSE | LXN11: FALSE | LXO11: FALSE | LXP11: FALSE | LXQ11: FALSE | LXR11: FALSE | LXS11: FALSE | LXT11: FALSE | LXU11: FALSE | LXV11: FALSE | LXW11: FALSE | LXX11: FALSE | LXY11: FALSE | LXZ11: FALSE | LYA11: FALSE | LYB11: FALSE | LYC11: FALSE | LYD11: FALSE | LYE11: FALSE | LYF11: FALSE | LYG11: FALSE | LYH11: =ECHO(FALSE) -> FALSE | LYI11: FALSE | LYJ11: FALSE | LYK11: FALSE | LYL11: FALSE | LYM11: FALSE | LYN11: FALSE | LYO11: FALSE | LYP11: FALSE | LYQ11: FALSE | LYR11: FALSE | LYS11: FALSE | LYT11: FALSE | LYU11: FALSE | LYV11: FALSE | LYW11: FALSE | LYX11: FALSE | LYY11: FALSE | LYZ11: FALSE | LZA11: FALSE | LZB11: FALSE | LZC11: FALSE | LZD11: FALSE | LZE11: FALSE | LZF11: FALSE | LZG11: FALSE | LZH11: FALSE | LZI11: FALSE | LZJ11: FALSE | LZK11: FALSE | LZL11: FALSE | LZM11: FALSE | LZN11: FALSE | LZO11: FALSE | LZP11: FALSE | LZQ11: FALSE | LZR11: FALSE | LZS11: FALSE | LZT11: FALSE | LZU11: FALSE | LZV11: FALSE | LZW11: FALSE | LZX11: FALSE | LZY11: FALSE | LZZ11: FALSE | MAA11: FALSE | MAB11: FALSE | MAC11: FALSE | MAD11: FALSE | MAE11: FALSE | MAF11: FALSE | MAG11: FALSE | MAH11: FALSE | MAI11: FALSE | MAJ11: FALSE | MAK11: FALSE | MAL11: FALSE | MAM11: FALSE | MAN11: FALSE | MAO11: FALSE | MAP11: FALSE | MAQ11: FALSE | MAR11: FALSE | MAS11: FALSE | MAT11: =ECHO(FALSE) -> FALSE | MAU11: FALSE | MAV11: FALSE | MAW11: FALSE | MAX11: FALSE | MAY11: FALSE | MAZ11: FALSE | MBA11: FALSE | MBB11: FALSE | MBC11: FALSE | MBD11: FALSE | MBE11: FALSE | MBF11: FALSE | MBG11: FALSE | MBH11: FALSE | MBI11: FALSE | MBJ11: FALSE | MBK11: FALSE | MBL11: FALSE | MBM11: FALSE | MBN11: FALSE | MBO11: FALSE | MBP11: FALSE | MBQ11: FALSE | MBR11: FALSE | MBS11: FALSE | MBT11: FALSE | MBU11: FALSE | MBV11: FALSE | MBW11: FALSE | MBX11: FALSE | MBY11: FALSE | MBZ11: FALSE | MCA11: FALSE | MCB11: FALSE | MCC11: FALSE | MCD11: FALSE | MCE11: FALSE | MCF11: FALSE | MCG11: FALSE | MCH11: FALSE | MCI11: FALSE | MCJ11: FALSE | MCK11: FALSE | MCL11: FALSE | MCM11: FALSE | MCN11: FALSE | MCO11: FALSE | MCP11: FALSE | MCQ11: FALSE | MCR11: FALSE | MCS11: FALSE | MCT11: FALSE | MCU11: FALSE | MCV11: FALSE | MCW11: FALSE | MCX11: FALSE | MCY11: FALSE | MCZ11: FALSE | MDA11: FALSE | MDB11: FALSE | MDC11: FALSE | MDD11: FALSE | MDE11: FALSE | MDF11: =ECHO(FALSE) -> FALSE | MDG11: FALSE | MDH11: FALSE | MDI11: FALSE | MDJ11: FALSE | MDK11: FALSE | MDL11: FALSE | MDM11: FALSE | MDN11: FALSE | MDO11: FALSE | MDP11: FALSE | MDQ11: FALSE | MDR11: FALSE | MDS11: FALSE | MDT11: FALSE | MDU11: FALSE | MDV11: FALSE | MDW11: FALSE | MDX11: FALSE | MDY11: FALSE | MDZ11: FALSE | MEA11: FALSE | MEB11: FALSE | MEC11: FALSE | MED11: FALSE | MEE11: FALSE | MEF11: FALSE | MEG11: FALSE | MEH11: FALSE | MEI11: FALSE | MEJ11: FALSE | MEK11: FALSE | MEL11: FALSE | MEM11: FALSE | MEN11: FALSE | MEO11: FALSE | MEP11: FALSE | MEQ11: FALSE | MER11: FALSE | MES11: FALSE | MET11: FALSE | MEU11: FALSE | MEV11: FALSE | MEW11: FALSE | MEX11: FALSE | MEY11: FALSE | MEZ11: FALSE | MFA11: FALSE | MFB11: FALSE | MFC11: FALSE | MFD11: FALSE | MFE11: FALSE | MFF11: FALSE | MFG11: FALSE | MFH11: FALSE | MFI11: FALSE | MFJ11: FALSE | MFK11: FALSE | MFL11: FALSE | MFM11: FALSE | MFN11: FALSE | MFO11: FALSE | MFP11: FALSE | MFQ11: FALSE | MFR11: =ECHO(FALSE) -> FALSE | MFS11: FALSE | MFT11: FALSE | MFU11: FALSE | MFV11: FALSE | MFW11: FALSE | MFX11: FALSE | MFY11: FALSE | MFZ11: FALSE | MGA11: FALSE | MGB11: FALSE | MGC11: FALSE | MGD11: FALSE | MGE11: FALSE | MGF11: FALSE | MGG11: FALSE | MGH11: FALSE | MGI11: FALSE | MGJ11: FALSE | MGK11: FALSE | MGL11: FALSE | MGM11: FALSE | MGN11: FALSE | MGO11: FALSE | MGP11: FALSE | MGQ11: FALSE | MGR11: FALSE | MGS11: FALSE | MGT11: FALSE | MGU11: FALSE | MGV11: FALSE | MGW11: FALSE | MGX11: FALSE | MGY11: FALSE | MGZ11: FALSE | MHA11: FALSE | MHB11: FALSE | MHC11: FALSE | MHD11: FALSE | MHE11: FALSE | MHF11: FALSE | MHG11: FALSE | MHH11: FALSE | MHI11: FALSE | MHJ11: FALSE | MHK11: FALSE | MHL11: FALSE | MHM11: FALSE | MHN11: FALSE | MHO11: FALSE | MHP11: FALSE | MHQ11: FALSE | MHR11: FALSE | MHS11: FALSE | MHT11: FALSE | MHU11: FALSE | MHV11: FALSE | MHW11: FALSE | MHX11: FALSE | MHY11: FALSE | MHZ11: FALSE | MIA11: FALSE | MIB11: FALSE | MIC11: FALSE | MID11: =ECHO(FALSE) -> FALSE | MIE11: FALSE | MIF11: FALSE | MIG11: FALSE | MIH11: FALSE | MII11: FALSE | MIJ11: FALSE | MIK11: FALSE | MIL11: FALSE | MIM11: FALSE | MIN11: FALSE | MIO11: FALSE | MIP11: FALSE | MIQ11: FALSE | MIR11: FALSE | MIS11: FALSE | MIT11: FALSE | MIU11: FALSE | MIV11: FALSE | MIW11: FALSE | MIX11: FALSE | MIY11: FALSE | MIZ11: FALSE | MJA11: FALSE | MJB11: FALSE | MJC11: FALSE | MJD11: FALSE | MJE11: FALSE | MJF11: FALSE | MJG11: FALSE | MJH11: FALSE | MJI11: FALSE | MJJ11: FALSE | MJK11: FALSE | MJL11: FALSE | MJM11: FALSE | MJN11: FALSE | MJO11: FALSE | MJP11: FALSE | MJQ11: FALSE | MJR11: FALSE | MJS11: FALSE | MJT11: FALSE | MJU11: FALSE | MJV11: FALSE | MJW11: FALSE | MJX11: FALSE | MJY11: FALSE | MJZ11: FALSE | MKA11: FALSE | MKB11: FALSE | MKC11: FALSE | MKD11: FALSE | MKE11: FALSE | MKF11: FALSE | MKG11: FALSE | MKH11: FALSE | MKI11: FALSE | MKJ11: FALSE | MKK11: FALSE | MKL11: FALSE | MKM11: FALSE | MKN11: FALSE | MKO11: FALSE | MKP11: =ECHO(FALSE) -> FALSE | MKQ11: FALSE | MKR11: FALSE | MKS11: FALSE | MKT11: FALSE | MKU11: FALSE | MKV11: FALSE | MKW11: FALSE | MKX11: FALSE | MKY11: FALSE | MKZ11: FALSE | MLA11: FALSE | MLB11: FALSE | MLC11: FALSE | MLD11: FALSE | MLE11: FALSE | MLF11: FALSE | MLG11: FALSE | MLH11: FALSE | MLI11: FALSE | MLJ11: FALSE | MLK11: FALSE | MLL11: FALSE | MLM11: FALSE | MLN11: FALSE | MLO11: FALSE | MLP11: FALSE | MLQ11: FALSE | MLR11: FALSE | MLS11: FALSE | MLT11: FALSE | MLU11: FALSE | MLV11: FALSE | MLW11: FALSE | MLX11: FALSE | MLY11: FALSE | MLZ11: FALSE | MMA11: FALSE | MMB11: FALSE | MMC11: FALSE | MMD11: FALSE | MME11: FALSE | MMF11: FALSE | MMG11: FALSE | MMH11: FALSE | MMI11: FALSE | MMJ11: FALSE | MMK11: FALSE | MML11: FALSE | MMM11: FALSE | MMN11: FALSE | MMO11: FALSE | MMP11: FALSE | MMQ11: FALSE | MMR11: FALSE | MMS11: FALSE | MMT11: FALSE | MMU11: FALSE | MMV11: FALSE | MMW11: FALSE | MMX11: FALSE | MMY11: FALSE | MMZ11: FALSE | MNA11: FALSE | MNB11: =ECHO(FALSE) -> FALSE | MNC11: FALSE | MND11: FALSE | MNE11: FALSE | MNF11: FALSE | MNG11: FALSE | MNH11: FALSE | MNI11: FALSE | MNJ11: FALSE | MNK11: FALSE | MNL11: FALSE | MNM11: FALSE | MNN11: FALSE | MNO11: FALSE | MNP11: FALSE | MNQ11: FALSE | MNR11: FALSE | MNS11: FALSE | MNT11: FALSE | MNU11: FALSE | MNV11: FALSE | MNW11: FALSE | MNX11: FALSE | MNY11: FALSE | MNZ11: FALSE | MOA11: FALSE | MOB11: FALSE | MOC11: FALSE | MOD11: FALSE | MOE11: FALSE | MOF11: FALSE | MOG11: FALSE | MOH11: FALSE | MOI11: FALSE | MOJ11: FALSE | MOK11: FALSE | MOL11: FALSE | MOM11: FALSE | MON11: FALSE | MOO11: FALSE | MOP11: FALSE | MOQ11: FALSE | MOR11: FALSE | MOS11: FALSE | MOT11: FALSE | MOU11: FALSE | MOV11: FALSE | MOW11: FALSE | MOX11: FALSE | MOY11: FALSE | MOZ11: FALSE | MPA11: FALSE | MPB11: FALSE | MPC11: FALSE | MPD11: FALSE | MPE11: FALSE | MPF11: FALSE | MPG11: FALSE | MPH11: FALSE | MPI11: FALSE | MPJ11: FALSE | MPK11: FALSE | MPL11: FALSE | MPM11: FALSE | MPN11: =ECHO(FALSE) -> FALSE | MPO11: FALSE | MPP11: FALSE | MPQ11: FALSE | MPR11: FALSE | MPS11: FALSE | MPT11: FALSE | MPU11: FALSE | MPV11: FALSE | MPW11: FALSE | MPX11: FALSE | MPY11: FALSE | MPZ11: FALSE | MQA11: FALSE | MQB11: FALSE | MQC11: FALSE | MQD11: FALSE | MQE11: FALSE | MQF11: FALSE | MQG11: FALSE | MQH11: FALSE | MQI11: FALSE | MQJ11: FALSE | MQK11: FALSE | MQL11: FALSE | MQM11: FALSE | MQN11: FALSE | MQO11: FALSE | MQP11: FALSE | MQQ11: FALSE | MQR11: FALSE | MQS11: FALSE | MQT11: FALSE | MQU11: FALSE | MQV11: FALSE | MQW11: FALSE | MQX11: FALSE | MQY11: FALSE | MQZ11: FALSE | MRA11: FALSE | MRB11: FALSE | MRC11: FALSE | MRD11: FALSE | MRE11: FALSE | MRF11: FALSE | MRG11: FALSE | MRH11: FALSE | MRI11: FALSE | MRJ11: FALSE | MRK11: FALSE | MRL11: FALSE | MRM11: FALSE | MRN11: FALSE | MRO11: FALSE | MRP11: FALSE | MRQ11: FALSE | MRR11: FALSE | MRS11: FALSE | MRT11: FALSE | MRU11: FALSE | MRV11: FALSE | MRW11: FALSE | MRX11: FALSE | MRY11: FALSE | MRZ11: =ECHO(FALSE) -> FALSE | MSA11: FALSE | MSB11: FALSE | MSC11: FALSE | MSD11: FALSE | MSE11: FALSE | MSF11: FALSE | MSG11: FALSE | MSH11: FALSE | MSI11: FALSE | MSJ11: FALSE | MSK11: FALSE | MSL11: FALSE | MSM11: FALSE | MSN11: FALSE | MSO11: FALSE | MSP11: FALSE | MSQ11: FALSE | MSR11: FALSE | MSS11: FALSE | MST11: FALSE | MSU11: FALSE | MSV11: FALSE | MSW11: FALSE | MSX11: FALSE | MSY11: FALSE | MSZ11: FALSE | MTA11: FALSE | MTB11: FALSE | MTC11: FALSE | MTD11: FALSE | MTE11: FALSE | MTF11: FALSE | MTG11: FALSE | MTH11: FALSE | MTI11: FALSE | MTJ11: FALSE | MTK11: FALSE | MTL11: FALSE | MTM11: FALSE | MTN11: FALSE | MTO11: FALSE | MTP11: FALSE | MTQ11: FALSE | MTR11: FALSE | MTS11: FALSE | MTT11: FALSE | MTU11: FALSE | MTV11: FALSE | MTW11: FALSE | MTX11: FALSE | MTY11: FALSE | MTZ11: FALSE | MUA11: FALSE | MUB11: FALSE | MUC11: FALSE | MUD11: FALSE | MUE11: FALSE | MUF11: FALSE | MUG11: FALSE | MUH11: FALSE | MUI11: FALSE | MUJ11: FALSE | MUK11: FALSE | MUL11: =ECHO(FALSE) -> FALSE | MUM11: FALSE | MUN11: FALSE | MUO11: FALSE | MUP11: FALSE | MUQ11: FALSE | MUR11: FALSE | MUS11: FALSE | MUT11: FALSE | MUU11: FALSE | MUV11: FALSE | MUW11: FALSE | MUX11: FALSE | MUY11: FALSE | MUZ11: FALSE | MVA11: FALSE | MVB11: FALSE | MVC11: FALSE | MVD11: FALSE | MVE11: FALSE | MVF11: FALSE | MVG11: FALSE | MVH11: FALSE | MVI11: FALSE | MVJ11: FALSE | MVK11: FALSE | MVL11: FALSE | MVM11: FALSE | MVN11: FALSE | MVO11: FALSE | MVP11: FALSE | MVQ11: FALSE | MVR11: FALSE | MVS11: FALSE | MVT11: FALSE | MVU11: FALSE | MVV11: FALSE | MVW11: FALSE | MVX11: FALSE | MVY11: FALSE | MVZ11: FALSE | MWA11: FALSE | MWB11: FALSE | MWC11: FALSE | MWD11: FALSE | MWE11: FALSE | MWF11: FALSE | MWG11: FALSE | MWH11: FALSE | MWI11: FALSE | MWJ11: FALSE | MWK11: FALSE | MWL11: FALSE | MWM11: FALSE | MWN11: FALSE | MWO11: FALSE | MWP11: FALSE | MWQ11: FALSE | MWR11: FALSE | MWS11: FALSE | MWT11: FALSE | MWU11: FALSE | MWV11: FALSE | MWW11: FALSE | MWX11: =ECHO(FALSE) -> FALSE | MWY11: FALSE | MWZ11: FALSE | MXA11: FALSE | MXB11: FALSE | MXC11: FALSE | MXD11: FALSE | MXE11: FALSE | MXF11: FALSE | MXG11: FALSE | MXH11: FALSE | MXI11: FALSE | MXJ11: FALSE | MXK11: FALSE | MXL11: FALSE | MXM11: FALSE | MXN11: FALSE | MXO11: FALSE | MXP11: FALSE | MXQ11: FALSE | MXR11: FALSE | MXS11: FALSE | MXT11: FALSE | MXU11: FALSE | MXV11: FALSE | MXW11: FALSE | MXX11: FALSE | MXY11: FALSE | MXZ11: FALSE | MYA11: FALSE | MYB11: FALSE | MYC11: FALSE | MYD11: FALSE | MYE11: FALSE | MYF11: FALSE | MYG11: FALSE | MYH11: FALSE | MYI11: FALSE | MYJ11: FALSE | MYK11: FALSE | MYL11: FALSE | MYM11: FALSE | MYN11: FALSE | MYO11: FALSE | MYP11: FALSE | MYQ11: FALSE | MYR11: FALSE | MYS11: FALSE | MYT11: FALSE | MYU11: FALSE | MYV11: FALSE | MYW11: FALSE | MYX11: FALSE | MYY11: FALSE | MYZ11: FALSE | MZA11: FALSE | MZB11: FALSE | MZC11: FALSE | MZD11: FALSE | MZE11: FALSE | MZF11: FALSE | MZG11: FALSE | MZH11: FALSE | MZI11: FALSE | MZJ11: =ECHO(FALSE) -> FALSE | MZK11: FALSE | MZL11: FALSE | MZM11: FALSE | MZN11: FALSE | MZO11: FALSE | MZP11: FALSE | MZQ11: FALSE | MZR11: FALSE | MZS11: FALSE | MZT11: FALSE | MZU11: FALSE | MZV11: FALSE | MZW11: FALSE | MZX11: FALSE | MZY11: FALSE | MZZ11: FALSE | NAA11: FALSE | NAB11: FALSE | NAC11: FALSE | NAD11: FALSE | NAE11: FALSE | NAF11: FALSE | NAG11: FALSE | NAH11: FALSE | NAI11: FALSE | NAJ11: FALSE | NAK11: FALSE | NAL11: FALSE | NAM11: FALSE | NAN11: FALSE | NAO11: FALSE | NAP11: FALSE | NAQ11: FALSE | NAR11: FALSE | NAS11: FALSE | NAT11: FALSE | NAU11: FALSE | NAV11: FALSE | NAW11: FALSE | NAX11: FALSE | NAY11: FALSE | NAZ11: FALSE | NBA11: FALSE | NBB11: FALSE | NBC11: FALSE | NBD11: FALSE | NBE11: FALSE | NBF11: FALSE | NBG11: FALSE | NBH11: FALSE | NBI11: FALSE | NBJ11: FALSE | NBK11: FALSE | NBL11: FALSE | NBM11: FALSE | NBN11: FALSE | NBO11: FALSE | NBP11: FALSE | NBQ11: FALSE | NBR11: FALSE | NBS11: FALSE | NBT11: FALSE | NBU11: FALSE | NBV11: =ECHO(FALSE) -> FALSE | NBW11: FALSE | NBX11: FALSE | NBY11: FALSE | NBZ11: FALSE | NCA11: FALSE | NCB11: FALSE | NCC11: FALSE | NCD11: FALSE | NCE11: FALSE | NCF11: FALSE | NCG11: FALSE | NCH11: FALSE | NCI11: FALSE | NCJ11: FALSE | NCK11: FALSE | NCL11: FALSE | NCM11: FALSE | NCN11: FALSE | NCO11: FALSE | NCP11: FALSE | NCQ11: FALSE | NCR11: FALSE | NCS11: FALSE | NCT11: FALSE | NCU11: FALSE | NCV11: FALSE | NCW11: FALSE | NCX11: FALSE | NCY11: FALSE | NCZ11: FALSE | NDA11: FALSE | NDB11: FALSE | NDC11: FALSE | NDD11: FALSE | NDE11: FALSE | NDF11: FALSE | NDG11: FALSE | NDH11: FALSE | NDI11: FALSE | NDJ11: FALSE | NDK11: FALSE | NDL11: FALSE | NDM11: FALSE | NDN11: FALSE | NDO11: FALSE | NDP11: FALSE | NDQ11: FALSE | NDR11: FALSE | NDS11: FALSE | NDT11: FALSE | NDU11: FALSE | NDV11: FALSE | NDW11: FALSE | NDX11: FALSE | NDY11: FALSE | NDZ11: FALSE | NEA11: FALSE | NEB11: FALSE | NEC11: FALSE | NED11: FALSE | NEE11: FALSE | NEF11: FALSE | NEG11: FALSE | NEH11: =ECHO(FALSE) -> FALSE | NEI11: FALSE | NEJ11: FALSE | NEK11: FALSE | NEL11: FALSE | NEM11: FALSE | NEN11: FALSE | NEO11: FALSE | NEP11: FALSE | NEQ11: FALSE | NER11: FALSE | NES11: FALSE | NET11: FALSE | NEU11: FALSE | NEV11: FALSE | NEW11: FALSE | NEX11: FALSE | NEY11: FALSE | NEZ11: FALSE | NFA11: FALSE | NFB11: FALSE | NFC11: FALSE | NFD11: FALSE | NFE11: FALSE | NFF11: FALSE | NFG11: FALSE | NFH11: FALSE | NFI11: FALSE | NFJ11: FALSE | NFK11: FALSE | NFL11: FALSE | NFM11: FALSE | NFN11: FALSE | NFO11: FALSE | NFP11: FALSE | NFQ11: FALSE | NFR11: FALSE | NFS11: FALSE | NFT11: FALSE | NFU11: FALSE | NFV11: FALSE | NFW11: FALSE | NFX11: FALSE | NFY11: FALSE | NFZ11: FALSE | NGA11: FALSE | NGB11: FALSE | NGC11: FALSE | NGD11: FALSE | NGE11: FALSE | NGF11: FALSE | NGG11: FALSE | NGH11: FALSE | NGI11: FALSE | NGJ11: FALSE | NGK11: FALSE | NGL11: FALSE | NGM11: FALSE | NGN11: FALSE | NGO11: FALSE | NGP11: FALSE | NGQ11: FALSE | NGR11: FALSE | NGS11: FALSE | NGT11: =ECHO(FALSE) -> FALSE | NGU11: FALSE | NGV11: FALSE | NGW11: FALSE | NGX11: FALSE | NGY11: FALSE | NGZ11: FALSE | NHA11: FALSE | NHB11: FALSE | NHC11: FALSE | NHD11: FALSE | NHE11: FALSE | NHF11: FALSE | NHG11: FALSE | NHH11: FALSE | NHI11: FALSE | NHJ11: FALSE | NHK11: FALSE | NHL11: FALSE | NHM11: FALSE | NHN11: FALSE | NHO11: FALSE | NHP11: FALSE | NHQ11: FALSE | NHR11: FALSE | NHS11: FALSE | NHT11: FALSE | NHU11: FALSE | NHV11: FALSE | NHW11: FALSE | NHX11: FALSE | NHY11: FALSE | NHZ11: FALSE | NIA11: FALSE | NIB11: FALSE | NIC11: FALSE | NID11: FALSE | NIE11: FALSE | NIF11: FALSE | NIG11: FALSE | NIH11: FALSE | NII11: FALSE | NIJ11: FALSE | NIK11: FALSE | NIL11: FALSE | NIM11: FALSE | NIN11: FALSE | NIO11: FALSE | NIP11: FALSE | NIQ11: FALSE | NIR11: FALSE | NIS11: FALSE | NIT11: FALSE | NIU11: FALSE | NIV11: FALSE | NIW11: FALSE | NIX11: FALSE | NIY11: FALSE | NIZ11: FALSE | NJA11: FALSE | NJB11: FALSE | NJC11: FALSE | NJD11: FALSE | NJE11: FALSE | NJF11: =ECHO(FALSE) -> FALSE | NJG11: FALSE | NJH11: FALSE | NJI11: FALSE | NJJ11: FALSE | NJK11: FALSE | NJL11: FALSE | NJM11: FALSE | NJN11: FALSE | NJO11: FALSE | NJP11: FALSE | NJQ11: FALSE | NJR11: FALSE | NJS11: FALSE | NJT11: FALSE | NJU11: FALSE | NJV11: FALSE | NJW11: FALSE | NJX11: FALSE | NJY11: FALSE | NJZ11: FALSE | NKA11: FALSE | NKB11: FALSE | NKC11: FALSE | NKD11: FALSE | NKE11: FALSE | NKF11: FALSE | NKG11: FALSE | NKH11: FALSE | NKI11: FALSE | NKJ11: FALSE | NKK11: FALSE | NKL11: FALSE | NKM11: FALSE | NKN11: FALSE | NKO11: FALSE | NKP11: FALSE | NKQ11: FALSE | NKR11: FALSE | NKS11: FALSE | NKT11: FALSE | NKU11: FALSE | NKV11: FALSE | NKW11: FALSE | NKX11: FALSE | NKY11: FALSE | NKZ11: FALSE | NLA11: FALSE | NLB11: FALSE | NLC11: FALSE | NLD11: FALSE | NLE11: FALSE | NLF11: FALSE | NLG11: FALSE | NLH11: FALSE | NLI11: FALSE | NLJ11: FALSE | NLK11: FALSE | NLL11: FALSE | NLM11: FALSE | NLN11: FALSE | NLO11: FALSE | NLP11: FALSE | NLQ11: FALSE | NLR11: =ECHO(FALSE) -> FALSE | NLS11: FALSE | NLT11: FALSE | NLU11: FALSE | NLV11: FALSE | NLW11: FALSE | NLX11: FALSE | NLY11: FALSE | NLZ11: FALSE | NMA11: FALSE | NMB11: FALSE | NMC11: FALSE | NMD11: FALSE | NME11: FALSE | NMF11: FALSE | NMG11: FALSE | NMH11: FALSE | NMI11: FALSE | NMJ11: FALSE | NMK11: FALSE | NML11: FALSE | NMM11: FALSE | NMN11: FALSE | NMO11: FALSE | NMP11: FALSE | NMQ11: FALSE | NMR11: FALSE | NMS11: FALSE | NMT11: FALSE | NMU11: FALSE | NMV11: FALSE | NMW11: FALSE | NMX11: FALSE | NMY11: FALSE | NMZ11: FALSE | NNA11: FALSE | NNB11: FALSE | NNC11: FALSE | NND11: FALSE | NNE11: FALSE | NNF11: FALSE | NNG11: FALSE | NNH11: FALSE | NNI11: FALSE | NNJ11: FALSE | NNK11: FALSE | NNL11: FALSE | NNM11: FALSE | NNN11: FALSE | NNO11: FALSE | NNP11: FALSE | NNQ11: FALSE | NNR11: FALSE | NNS11: FALSE | NNT11: FALSE | NNU11: FALSE | NNV11: FALSE | NNW11: FALSE | NNX11: FALSE | NNY11: FALSE | NNZ11: FALSE | NOA11: FALSE | NOB11: FALSE | NOC11: FALSE | NOD11: =ECHO(FALSE) -> FALSE | NOE11: FALSE | NOF11: FALSE | NOG11: FALSE | NOH11: FALSE | NOI11: FALSE | NOJ11: FALSE | NOK11: FALSE | NOL11: FALSE | NOM11: FALSE | NON11: FALSE | NOO11: FALSE | NOP11: FALSE | NOQ11: FALSE | NOR11: FALSE | NOS11: FALSE | NOT11: FALSE | NOU11: FALSE | NOV11: FALSE | NOW11: FALSE | NOX11: FALSE | NOY11: FALSE | NOZ11: FALSE | NPA11: FALSE | NPB11: FALSE | NPC11: FALSE | NPD11: FALSE | NPE11: FALSE | NPF11: FALSE | NPG11: FALSE | NPH11: FALSE | NPI11: FALSE | NPJ11: FALSE | NPK11: FALSE | NPL11: FALSE | NPM11: FALSE | NPN11: FALSE | NPO11: FALSE | NPP11: FALSE | NPQ11: FALSE | NPR11: FALSE | NPS11: FALSE | NPT11: FALSE | NPU11: FALSE | NPV11: FALSE | NPW11: FALSE | NPX11: FALSE | NPY11: FALSE | NPZ11: FALSE | NQA11: FALSE | NQB11: FALSE | NQC11: FALSE | NQD11: FALSE | NQE11: FALSE | NQF11: FALSE | NQG11: FALSE | NQH11: FALSE | NQI11: FALSE | NQJ11: FALSE | NQK11: FALSE | NQL11: FALSE | NQM11: FALSE | NQN11: FALSE | NQO11: FALSE | NQP11: =ECHO(FALSE) -> FALSE | NQQ11: FALSE | NQR11: FALSE | NQS11: FALSE | NQT11: FALSE | NQU11: FALSE | NQV11: FALSE | NQW11: FALSE | NQX11: FALSE | NQY11: FALSE | NQZ11: FALSE | NRA11: FALSE | NRB11: FALSE | NRC11: FALSE | NRD11: FALSE | NRE11: FALSE | NRF11: FALSE | NRG11: FALSE | NRH11: FALSE | NRI11: FALSE | NRJ11: FALSE | NRK11: FALSE | NRL11: FALSE | NRM11: FALSE | NRN11: FALSE | NRO11: FALSE | NRP11: FALSE | NRQ11: FALSE | NRR11: FALSE | NRS11: FALSE | NRT11: FALSE | NRU11: FALSE | NRV11: FALSE | NRW11: FALSE | NRX11: FALSE | NRY11: FALSE | NRZ11: FALSE | NSA11: FALSE | NSB11: FALSE | NSC11: FALSE | NSD11: FALSE | NSE11: FALSE | NSF11: FALSE | NSG11: FALSE | NSH11: FALSE | NSI11: FALSE | NSJ11: FALSE | NSK11: FALSE | NSL11: FALSE | NSM11: FALSE | NSN11: FALSE | NSO11: FALSE | NSP11: FALSE | NSQ11: FALSE | NSR11: FALSE | NSS11: FALSE | NST11: FALSE | NSU11: FALSE | NSV11: FALSE | NSW11: FALSE | NSX11: FALSE | NSY11: FALSE | NSZ11: FALSE | NTA11: FALSE | NTB11: =ECHO(FALSE) -> FALSE | NTC11: FALSE | NTD11: FALSE | NTE11: FALSE | NTF11: FALSE | NTG11: FALSE | NTH11: FALSE | NTI11: FALSE | NTJ11: FALSE | NTK11: FALSE | NTL11: FALSE | NTM11: FALSE | NTN11: FALSE | NTO11: FALSE | NTP11: FALSE | NTQ11: FALSE | NTR11: FALSE | NTS11: FALSE | NTT11: FALSE | NTU11: FALSE | NTV11: FALSE | NTW11: FALSE | NTX11: FALSE | NTY11: FALSE | NTZ11: FALSE | NUA11: FALSE | NUB11: FALSE | NUC11: FALSE | NUD11: FALSE | NUE11: FALSE | NUF11: FALSE | NUG11: FALSE | NUH11: FALSE | NUI11: FALSE | NUJ11: FALSE | NUK11: FALSE | NUL11: FALSE | NUM11: FALSE | NUN11: FALSE | NUO11: FALSE | NUP11: FALSE | NUQ11: FALSE | NUR11: FALSE | NUS11: FALSE | NUT11: FALSE | NUU11: FALSE | NUV11: FALSE | NUW11: FALSE | NUX11: FALSE | NUY11: FALSE | NUZ11: FALSE | NVA11: FALSE | NVB11: FALSE | NVC11: FALSE | NVD11: FALSE | NVE11: FALSE | NVF11: FALSE | NVG11: FALSE | NVH11: FALSE | NVI11: FALSE | NVJ11: FALSE | NVK11: FALSE | NVL11: FALSE | NVM11: FALSE | NVN11: =ECHO(FALSE) -> FALSE | NVO11: FALSE | NVP11: FALSE | NVQ11: FALSE | NVR11: FALSE | NVS11: FALSE | NVT11: FALSE | NVU11: FALSE | NVV11: FALSE | NVW11: FALSE | NVX11: FALSE | NVY11: FALSE | NVZ11: FALSE | NWA11: FALSE | NWB11: FALSE | NWC11: FALSE | NWD11: FALSE | NWE11: FALSE | NWF11: FALSE | NWG11: FALSE | NWH11: FALSE | NWI11: FALSE | NWJ11: FALSE | NWK11: FALSE | NWL11: FALSE | NWM11: FALSE | NWN11: FALSE | NWO11: FALSE | NWP11: FALSE | NWQ11: FALSE | NWR11: FALSE | NWS11: FALSE | NWT11: FALSE | NWU11: FALSE | NWV11: FALSE | NWW11: FALSE | NWX11: FALSE | NWY11: FALSE | NWZ11: FALSE | NXA11: FALSE | NXB11: FALSE | NXC11: FALSE | NXD11: FALSE | NXE11: FALSE | NXF11: FALSE | NXG11: FALSE | NXH11: FALSE | NXI11: FALSE | NXJ11: FALSE | NXK11: FALSE | NXL11: FALSE | NXM11: FALSE | NXN11: FALSE | NXO11: FALSE | NXP11: FALSE | NXQ11: FALSE | NXR11: FALSE | NXS11: FALSE | NXT11: FALSE | NXU11: FALSE | NXV11: FALSE | NXW11: FALSE | NXX11: FALSE | NXY11: FALSE | NXZ11: =ECHO(FALSE) -> FALSE | NYA11: FALSE | NYB11: FALSE | NYC11: FALSE | NYD11: FALSE | NYE11: FALSE | NYF11: FALSE | NYG11: FALSE | NYH11: FALSE | NYI11: FALSE | NYJ11: FALSE | NYK11: FALSE | NYL11: FALSE | NYM11: FALSE | NYN11: FALSE | NYO11: FALSE | NYP11: FALSE | NYQ11: FALSE | NYR11: FALSE | NYS11: FALSE | NYT11: FALSE | NYU11: FALSE | NYV11: FALSE | NYW11: FALSE | NYX11: FALSE | NYY11: FALSE | NYZ11: FALSE | NZA11: FALSE | NZB11: FALSE | NZC11: FALSE | NZD11: FALSE | NZE11: FALSE | NZF11: FALSE | NZG11: FALSE | NZH11: FALSE | NZI11: FALSE | NZJ11: FALSE | NZK11: FALSE | NZL11: FALSE | NZM11: FALSE | NZN11: FALSE | NZO11: FALSE | NZP11: FALSE | NZQ11: FALSE | NZR11: FALSE | NZS11: FALSE | NZT11: FALSE | NZU11: FALSE | NZV11: FALSE | NZW11: FALSE | NZX11: FALSE | NZY11: FALSE | NZZ11: FALSE | OAA11: FALSE | OAB11: FALSE | OAC11: FALSE | OAD11: FALSE | OAE11: FALSE | OAF11: FALSE | OAG11: FALSE | OAH11: FALSE | OAI11: FALSE | OAJ11: FALSE | OAK11: FALSE | OAL11: =ECHO(FALSE) -> FALSE | OAM11: FALSE | OAN11: FALSE | OAO11: FALSE | OAP11: FALSE | OAQ11: FALSE | OAR11: FALSE | OAS11: FALSE | OAT11: FALSE | OAU11: FALSE | OAV11: FALSE | OAW11: FALSE | OAX11: FALSE | OAY11: FALSE | OAZ11: FALSE | OBA11: FALSE | OBB11: FALSE | OBC11: FALSE | OBD11: FALSE | OBE11: FALSE | OBF11: FALSE | OBG11: FALSE | OBH11: FALSE | OBI11: FALSE | OBJ11: FALSE | OBK11: FALSE | OBL11: FALSE | OBM11: FALSE | OBN11: FALSE | OBO11: FALSE | OBP11: FALSE | OBQ11: FALSE | OBR11: FALSE | OBS11: FALSE | OBT11: FALSE | OBU11: FALSE | OBV11: FALSE | OBW11: FALSE | OBX11: FALSE | OBY11: FALSE | OBZ11: FALSE | OCA11: FALSE | OCB11: FALSE | OCC11: FALSE | OCD11: FALSE | OCE11: FALSE | OCF11: FALSE | OCG11: FALSE | OCH11: FALSE | OCI11: FALSE | OCJ11: FALSE | OCK11: FALSE | OCL11: FALSE | OCM11: FALSE | OCN11: FALSE | OCO11: FALSE | OCP11: FALSE | OCQ11: FALSE | OCR11: FALSE | OCS11: FALSE | OCT11: FALSE | OCU11: FALSE | OCV11: FALSE | OCW11: FALSE | OCX11: =ECHO(FALSE) -> FALSE | OCY11: FALSE | OCZ11: FALSE | ODA11: FALSE | ODB11: FALSE | ODC11: FALSE | ODD11: FALSE | ODE11: FALSE | ODF11: FALSE | ODG11: FALSE | ODH11: FALSE | ODI11: FALSE | ODJ11: FALSE | ODK11: FALSE | ODL11: FALSE | ODM11: FALSE | ODN11: FALSE | ODO11: FALSE | ODP11: FALSE | ODQ11: FALSE | ODR11: FALSE | ODS11: FALSE | ODT11: FALSE | ODU11: FALSE | ODV11: FALSE | ODW11: FALSE | ODX11: FALSE | ODY11: FALSE | ODZ11: FALSE | OEA11: FALSE | OEB11: FALSE | OEC11: FALSE | OED11: FALSE | OEE11: FALSE | OEF11: FALSE | OEG11: FALSE | OEH11: FALSE | OEI11: FALSE | OEJ11: FALSE | OEK11: FALSE | OEL11: FALSE | OEM11: FALSE | OEN11: FALSE | OEO11: FALSE | OEP11: FALSE | OEQ11: FALSE | OER11: FALSE | OES11: FALSE | OET11: FALSE | OEU11: FALSE | OEV11: FALSE | OEW11: FALSE | OEX11: FALSE | OEY11: FALSE | OEZ11: FALSE | OFA11: FALSE | OFB11: FALSE | OFC11: FALSE | OFD11: FALSE | OFE11: FALSE | OFF11: FALSE | OFG11: FALSE | OFH11: FALSE | OFI11: FALSE | OFJ11: =ECHO(FALSE) -> FALSE | OFK11: FALSE | OFL11: FALSE | OFM11: FALSE | OFN11: FALSE | OFO11: FALSE | OFP11: FALSE | OFQ11: FALSE | OFR11: FALSE | OFS11: FALSE | OFT11: FALSE | OFU11: FALSE | OFV11: FALSE | OFW11: FALSE | OFX11: FALSE | OFY11: FALSE | OFZ11: FALSE | OGA11: FALSE | OGB11: FALSE | OGC11: FALSE | OGD11: FALSE | OGE11: FALSE | OGF11: FALSE | OGG11: FALSE | OGH11: FALSE | OGI11: FALSE | OGJ11: FALSE | OGK11: FALSE | OGL11: FALSE | OGM11: FALSE | OGN11: FALSE | OGO11: FALSE | OGP11: FALSE | OGQ11: FALSE | OGR11: FALSE | OGS11: FALSE | OGT11: FALSE | OGU11: FALSE | OGV11: FALSE | OGW11: FALSE | OGX11: FALSE | OGY11: FALSE | OGZ11: FALSE | OHA11: FALSE | OHB11: FALSE | OHC11: FALSE | OHD11: FALSE | OHE11: FALSE | OHF11: FALSE | OHG11: FALSE | OHH11: FALSE | OHI11: FALSE | OHJ11: FALSE | OHK11: FALSE | OHL11: FALSE | OHM11: FALSE | OHN11: FALSE | OHO11: FALSE | OHP11: FALSE | OHQ11: FALSE | OHR11: FALSE | OHS11: FALSE | OHT11: FALSE | OHU11: FALSE | OHV11: =ECHO(FALSE) -> FALSE | OHW11: FALSE | OHX11: FALSE | OHY11: FALSE | OHZ11: FALSE | OIA11: FALSE | OIB11: FALSE | OIC11: FALSE | OID11: FALSE | OIE11: FALSE | OIF11: FALSE | OIG11: FALSE | OIH11: FALSE | OII11: FALSE | OIJ11: FALSE | OIK11: FALSE | OIL11: FALSE | OIM11: FALSE | OIN11: FALSE | OIO11: FALSE | OIP11: FALSE | OIQ11: FALSE | OIR11: FALSE | OIS11: FALSE | OIT11: FALSE | OIU11: FALSE | OIV11: FALSE | OIW11: FALSE | OIX11: FALSE | OIY11: FALSE | OIZ11: FALSE | OJA11: FALSE | OJB11: FALSE | OJC11: FALSE | OJD11: FALSE | OJE11: FALSE | OJF11: FALSE | OJG11: FALSE | OJH11: FALSE | OJI11: FALSE | OJJ11: FALSE | OJK11: FALSE | OJL11: FALSE | OJM11: FALSE | OJN11: FALSE | OJO11: FALSE | OJP11: FALSE | OJQ11: FALSE | OJR11: FALSE | OJS11: FALSE | OJT11: FALSE | OJU11: FALSE | OJV11: FALSE | OJW11: FALSE | OJX11: FALSE | OJY11: FALSE | OJZ11: FALSE | OKA11: FALSE | OKB11: FALSE | OKC11: FALSE | OKD11: FALSE | OKE11: FALSE | OKF11: FALSE | OKG11: FALSE | OKH11: =ECHO(FALSE) -> FALSE | OKI11: FALSE | OKJ11: FALSE | OKK11: FALSE | OKL11: FALSE | OKM11: FALSE | OKN11: FALSE | OKO11: FALSE | OKP11: FALSE | OKQ11: FALSE | OKR11: FALSE | OKS11: FALSE | OKT11: FALSE | OKU11: FALSE | OKV11: FALSE | OKW11: FALSE | OKX11: FALSE | OKY11: FALSE | OKZ11: FALSE | OLA11: FALSE | OLB11: FALSE | OLC11: FALSE | OLD11: FALSE | OLE11: FALSE | OLF11: FALSE | OLG11: FALSE | OLH11: FALSE | OLI11: FALSE | OLJ11: FALSE | OLK11: FALSE | OLL11: FALSE | OLM11: FALSE | OLN11: FALSE | OLO11: FALSE | OLP11: FALSE | OLQ11: FALSE | OLR11: FALSE | OLS11: FALSE | OLT11: FALSE | OLU11: FALSE | OLV11: FALSE | OLW11: FALSE | OLX11: FALSE | OLY11: FALSE | OLZ11: FALSE | OMA11: FALSE | OMB11: FALSE | OMC11: FALSE | OMD11: FALSE | OME11: FALSE | OMF11: FALSE | OMG11: FALSE | OMH11: FALSE | OMI11: FALSE | OMJ11: FALSE | OMK11: FALSE | OML11: FALSE | OMM11: FALSE | OMN11: FALSE | OMO11: FALSE | OMP11: FALSE | OMQ11: FALSE | OMR11: FALSE | OMS11: FALSE | OMT11: =ECHO(FALSE) -> FALSE | OMU11: FALSE | OMV11: FALSE | OMW11: FALSE | OMX11: FALSE | OMY11: FALSE | OMZ11: FALSE | ONA11: FALSE | ONB11: FALSE | ONC11: FALSE | OND11: FALSE | ONE11: FALSE | ONF11: FALSE | ONG11: FALSE | ONH11: FALSE | ONI11: FALSE | ONJ11: FALSE | ONK11: FALSE | ONL11: FALSE | ONM11: FALSE | ONN11: FALSE | ONO11: FALSE | ONP11: FALSE | ONQ11: FALSE | ONR11: FALSE | ONS11: FALSE | ONT11: FALSE | ONU11: FALSE | ONV11: FALSE | ONW11: FALSE | ONX11: FALSE | ONY11: FALSE | ONZ11: FALSE | OOA11: FALSE | OOB11: FALSE | OOC11: FALSE | OOD11: FALSE | OOE11: FALSE | OOF11: FALSE | OOG11: FALSE | OOH11: FALSE | OOI11: FALSE | OOJ11: FALSE | OOK11: FALSE | OOL11: FALSE | OOM11: FALSE | OON11: FALSE | OOO11: FALSE | OOP11: FALSE | OOQ11: FALSE | OOR11: FALSE | OOS11: FALSE | OOT11: FALSE | OOU11: FALSE | OOV11: FALSE | OOW11: FALSE | OOX11: FALSE | OOY11: FALSE | OOZ11: FALSE | OPA11: FALSE | OPB11: FALSE | OPC11: FALSE | OPD11: FALSE | OPE11: FALSE | OPF11: =ECHO(FALSE) -> FALSE | OPG11: FALSE | OPH11: FALSE | OPI11: FALSE | OPJ11: FALSE | OPK11: FALSE | OPL11: FALSE | OPM11: FALSE | OPN11: FALSE | OPO11: FALSE | OPP11: FALSE | OPQ11: FALSE | OPR11: FALSE | OPS11: FALSE | OPT11: FALSE | OPU11: FALSE | OPV11: FALSE | OPW11: FALSE | OPX11: FALSE | OPY11: FALSE | OPZ11: FALSE | OQA11: FALSE | OQB11: FALSE | OQC11: FALSE | OQD11: FALSE | OQE11: FALSE | OQF11: FALSE | OQG11: FALSE | OQH11: FALSE | OQI11: FALSE | OQJ11: FALSE | OQK11: FALSE | OQL11: FALSE | OQM11: FALSE | OQN11: FALSE | OQO11: FALSE | OQP11: FALSE | OQQ11: FALSE | OQR11: FALSE | OQS11: FALSE | OQT11: FALSE | OQU11: FALSE | OQV11: FALSE | OQW11: FALSE | OQX11: FALSE | OQY11: FALSE | OQZ11: FALSE | ORA11: FALSE | ORB11: FALSE | ORC11: FALSE | ORD11: FALSE | ORE11: FALSE | ORF11: FALSE | ORG11: FALSE | ORH11: FALSE | ORI11: FALSE | ORJ11: FALSE | ORK11: FALSE | ORL11: FALSE | ORM11: FALSE | ORN11: FALSE | ORO11: FALSE | ORP11: FALSE | ORQ11: FALSE | ORR11: =ECHO(FALSE) -> FALSE | ORS11: FALSE | ORT11: FALSE | ORU11: FALSE | ORV11: FALSE | ORW11: FALSE | ORX11: FALSE | ORY11: FALSE | ORZ11: FALSE | OSA11: FALSE | OSB11: FALSE | OSC11: FALSE | OSD11: FALSE | OSE11: FALSE | OSF11: FALSE | OSG11: FALSE | OSH11: FALSE | OSI11: FALSE | OSJ11: FALSE | OSK11: FALSE | OSL11: FALSE | OSM11: FALSE | OSN11: FALSE | OSO11: FALSE | OSP11: FALSE | OSQ11: FALSE | OSR11: FALSE | OSS11: FALSE | OST11: FALSE | OSU11: FALSE | OSV11: FALSE | OSW11: FALSE | OSX11: FALSE | OSY11: FALSE | OSZ11: FALSE | OTA11: FALSE | OTB11: FALSE | OTC11: FALSE | OTD11: FALSE | OTE11: FALSE | OTF11: FALSE | OTG11: FALSE | OTH11: FALSE | OTI11: FALSE | OTJ11: FALSE | OTK11: FALSE | OTL11: FALSE | OTM11: FALSE | OTN11: FALSE | OTO11: FALSE | OTP11: FALSE | OTQ11: FALSE | OTR11: FALSE | OTS11: FALSE | OTT11: FALSE | OTU11: FALSE | OTV11: FALSE | OTW11: FALSE | OTX11: FALSE | OTY11: FALSE | OTZ11: FALSE | OUA11: FALSE | OUB11: FALSE | OUC11: FALSE | OUD11: =ECHO(FALSE) -> FALSE | OUE11: FALSE | OUF11: FALSE | OUG11: FALSE | OUH11: FALSE | OUI11: FALSE | OUJ11: FALSE | OUK11: FALSE | OUL11: FALSE | OUM11: FALSE | OUN11: FALSE | OUO11: FALSE | OUP11: FALSE | OUQ11: FALSE | OUR11: FALSE | OUS11: FALSE | OUT11: FALSE | OUU11: FALSE | OUV11: FALSE | OUW11: FALSE | OUX11: FALSE | OUY11: FALSE | OUZ11: FALSE | OVA11: FALSE | OVB11: FALSE | OVC11: FALSE | OVD11: FALSE | OVE11: FALSE | OVF11: FALSE | OVG11: FALSE | OVH11: FALSE | OVI11: FALSE | OVJ11: FALSE | OVK11: FALSE | OVL11: FALSE | OVM11: FALSE | OVN11: FALSE | OVO11: FALSE | OVP11: FALSE | OVQ11: FALSE | OVR11: FALSE | OVS11: FALSE | OVT11: FALSE | OVU11: FALSE | OVV11: FALSE | OVW11: FALSE | OVX11: FALSE | OVY11: FALSE | OVZ11: FALSE | OWA11: FALSE | OWB11: FALSE | OWC11: FALSE | OWD11: FALSE | OWE11: FALSE | OWF11: FALSE | OWG11: FALSE | OWH11: FALSE | OWI11: FALSE | OWJ11: FALSE | OWK11: FALSE | OWL11: FALSE | OWM11: FALSE | OWN11: FALSE | OWO11: FALSE | OWP11: =ECHO(FALSE) -> FALSE | OWQ11: FALSE | OWR11: FALSE | OWS11: FALSE | OWT11: FALSE | OWU11: FALSE | OWV11: FALSE | OWW11: FALSE | OWX11: FALSE | OWY11: FALSE | OWZ11: FALSE | OXA11: FALSE | OXB11: FALSE | OXC11: FALSE | OXD11: FALSE | OXE11: FALSE | OXF11: FALSE | OXG11: FALSE | OXH11: FALSE | OXI11: FALSE | OXJ11: FALSE | OXK11: FALSE | OXL11: FALSE | OXM11: FALSE | OXN11: FALSE | OXO11: FALSE | OXP11: FALSE | OXQ11: FALSE | OXR11: FALSE | OXS11: FALSE | OXT11: FALSE | OXU11: FALSE | OXV11: FALSE | OXW11: FALSE | OXX11: FALSE | OXY11: FALSE | OXZ11: FALSE | OYA11: FALSE | OYB11: FALSE | OYC11: FALSE | OYD11: FALSE | OYE11: FALSE | OYF11: FALSE | OYG11: FALSE | OYH11: FALSE | OYI11: FALSE | OYJ11: FALSE | OYK11: FALSE | OYL11: FALSE | OYM11: FALSE | OYN11: FALSE | OYO11: FALSE | OYP11: FALSE | OYQ11: FALSE | OYR11: FALSE | OYS11: FALSE | OYT11: FALSE | OYU11: FALSE | OYV11: FALSE | OYW11: FALSE | OYX11: FALSE | OYY11: FALSE | OYZ11: FALSE | OZA11: FALSE | OZB11: =ECHO(FALSE) -> FALSE | OZC11: FALSE | OZD11: FALSE | OZE11: FALSE | OZF11: FALSE | OZG11: FALSE | OZH11: FALSE | OZI11: FALSE | OZJ11: FALSE | OZK11: FALSE | OZL11: FALSE | OZM11: FALSE | OZN11: FALSE | OZO11: FALSE | OZP11: FALSE | OZQ11: FALSE | OZR11: FALSE | OZS11: FALSE | OZT11: FALSE | OZU11: FALSE | OZV11: FALSE | OZW11: FALSE | OZX11: FALSE | OZY11: FALSE | OZZ11: FALSE | PAA11: FALSE | PAB11: FALSE | PAC11: FALSE | PAD11: FALSE | PAE11: FALSE | PAF11: FALSE | PAG11: FALSE | PAH11: FALSE | PAI11: FALSE | PAJ11: FALSE | PAK11: FALSE | PAL11: FALSE | PAM11: FALSE | PAN11: FALSE | PAO11: FALSE | PAP11: FALSE | PAQ11: FALSE | PAR11: FALSE | PAS11: FALSE | PAT11: FALSE | PAU11: FALSE | PAV11: FALSE | PAW11: FALSE | PAX11: FALSE | PAY11: FALSE | PAZ11: FALSE | PBA11: FALSE | PBB11: FALSE | PBC11: FALSE | PBD11: FALSE | PBE11: FALSE | PBF11: FALSE | PBG11: FALSE | PBH11: FALSE | PBI11: FALSE | PBJ11: FALSE | PBK11: FALSE | PBL11: FALSE | PBM11: FALSE | PBN11: =ECHO(FALSE) -> FALSE | PBO11: FALSE | PBP11: FALSE | PBQ11: FALSE | PBR11: FALSE | PBS11: FALSE | PBT11: FALSE | PBU11: FALSE | PBV11: FALSE | PBW11: FALSE | PBX11: FALSE | PBY11: FALSE | PBZ11: FALSE | PCA11: FALSE | PCB11: FALSE | PCC11: FALSE | PCD11: FALSE | PCE11: FALSE | PCF11: FALSE | PCG11: FALSE | PCH11: FALSE | PCI11: FALSE | PCJ11: FALSE | PCK11: FALSE | PCL11: FALSE | PCM11: FALSE | PCN11: FALSE | PCO11: FALSE | PCP11: FALSE | PCQ11: FALSE | PCR11: FALSE | PCS11: FALSE | PCT11: FALSE | PCU11: FALSE | PCV11: FALSE | PCW11: FALSE | PCX11: FALSE | PCY11: FALSE | PCZ11: FALSE | PDA11: FALSE | PDB11: FALSE | PDC11: FALSE | PDD11: FALSE | PDE11: FALSE | PDF11: FALSE | PDG11: FALSE | PDH11: FALSE | PDI11: FALSE | PDJ11: FALSE | PDK11: FALSE | PDL11: FALSE | PDM11: FALSE | PDN11: FALSE | PDO11: FALSE | PDP11: FALSE | PDQ11: FALSE | PDR11: FALSE | PDS11: FALSE | PDT11: FALSE | PDU11: FALSE | PDV11: FALSE | PDW11: FALSE | PDX11: FALSE | PDY11: FALSE | PDZ11: =ECHO(FALSE) -> FALSE | PEA11: FALSE | PEB11: FALSE | PEC11: FALSE | PED11: FALSE | PEE11: FALSE | PEF11: FALSE | PEG11: FALSE | PEH11: FALSE | PEI11: FALSE | PEJ11: FALSE | PEK11: FALSE | PEL11: FALSE | PEM11: FALSE | PEN11: FALSE | PEO11: FALSE | PEP11: FALSE | PEQ11: FALSE | PER11: FALSE | PES11: FALSE | PET11: FALSE | PEU11: FALSE | PEV11: FALSE | PEW11: FALSE | PEX11: FALSE | PEY11: FALSE | PEZ11: FALSE | PFA11: FALSE | PFB11: FALSE | PFC11: FALSE | PFD11: FALSE | PFE11: FALSE | PFF11: FALSE | PFG11: FALSE | PFH11: FALSE | PFI11: FALSE | PFJ11: FALSE | PFK11: FALSE | PFL11: FALSE | PFM11: FALSE | PFN11: FALSE | PFO11: FALSE | PFP11: FALSE | PFQ11: FALSE | PFR11: FALSE | PFS11: FALSE | PFT11: FALSE | PFU11: FALSE | PFV11: FALSE | PFW11: FALSE | PFX11: FALSE | PFY11: FALSE | PFZ11: FALSE | PGA11: FALSE | PGB11: FALSE | PGC11: FALSE | PGD11: FALSE | PGE11: FALSE | PGF11: FALSE | PGG11: FALSE | PGH11: FALSE | PGI11: FALSE | PGJ11: FALSE | PGK11: FALSE | PGL11: =ECHO(FALSE) -> FALSE | PGM11: FALSE | PGN11: FALSE | PGO11: FALSE | PGP11: FALSE | PGQ11: FALSE | PGR11: FALSE | PGS11: FALSE | PGT11: FALSE | PGU11: FALSE | PGV11: FALSE | PGW11: FALSE | PGX11: FALSE | PGY11: FALSE | PGZ11: FALSE | PHA11: FALSE | PHB11: FALSE | PHC11: FALSE | PHD11: FALSE | PHE11: FALSE | PHF11: FALSE | PHG11: FALSE | PHH11: FALSE | PHI11: FALSE | PHJ11: FALSE | PHK11: FALSE | PHL11: FALSE | PHM11: FALSE | PHN11: FALSE | PHO11: FALSE | PHP11: FALSE | PHQ11: FALSE | PHR11: FALSE | PHS11: FALSE | PHT11: FALSE | PHU11: FALSE | PHV11: FALSE | PHW11: FALSE | PHX11: FALSE | PHY11: FALSE | PHZ11: FALSE | PIA11: FALSE | PIB11: FALSE | PIC11: FALSE | PID11: FALSE | PIE11: FALSE | PIF11: FALSE | PIG11: FALSE | PIH11: FALSE | PII11: FALSE | PIJ11: FALSE | PIK11: FALSE | PIL11: FALSE | PIM11: FALSE | PIN11: FALSE | PIO11: FALSE | PIP11: FALSE | PIQ11: FALSE | PIR11: FALSE | PIS11: FALSE | PIT11: FALSE | PIU11: FALSE | PIV11: FALSE | PIW11: FALSE | PIX11: =ECHO(FALSE) -> FALSE | PIY11: FALSE | PIZ11: FALSE | PJA11: FALSE | PJB11: FALSE | PJC11: FALSE | PJD11: FALSE | PJE11: FALSE | PJF11: FALSE | PJG11: FALSE | PJH11: FALSE | PJI11: FALSE | PJJ11: FALSE | PJK11: FALSE | PJL11: FALSE | PJM11: FALSE | PJN11: FALSE | PJO11: FALSE | PJP11: FALSE | PJQ11: FALSE | PJR11: FALSE | PJS11: FALSE | PJT11: FALSE | PJU11: FALSE | PJV11: FALSE | PJW11: FALSE | PJX11: FALSE | PJY11: FALSE | PJZ11: FALSE | PKA11: FALSE | PKB11: FALSE | PKC11: FALSE | PKD11: FALSE | PKE11: FALSE | PKF11: FALSE | PKG11: FALSE | PKH11: FALSE | PKI11: FALSE | PKJ11: FALSE | PKK11: FALSE | PKL11: FALSE | PKM11: FALSE | PKN11: FALSE | PKO11: FALSE | PKP11: FALSE | PKQ11: FALSE | PKR11: FALSE | PKS11: FALSE | PKT11: FALSE | PKU11: FALSE | PKV11: FALSE | PKW11: FALSE | PKX11: FALSE | PKY11: FALSE | PKZ11: FALSE | PLA11: FALSE | PLB11: FALSE | PLC11: FALSE | PLD11: FALSE | PLE11: FALSE | PLF11: FALSE | PLG11: FALSE | PLH11: FALSE | PLI11: FALSE | PLJ11: =ECHO(FALSE) -> FALSE | PLK11: FALSE | PLL11: FALSE | PLM11: FALSE | PLN11: FALSE | PLO11: FALSE | PLP11: FALSE | PLQ11: FALSE | PLR11: FALSE | PLS11: FALSE | PLT11: FALSE | PLU11: FALSE | PLV11: FALSE | PLW11: FALSE | PLX11: FALSE | PLY11: FALSE | PLZ11: FALSE | PMA11: FALSE | PMB11: FALSE | PMC11: FALSE | PMD11: FALSE | PME11: FALSE | PMF11: FALSE | PMG11: FALSE | PMH11: FALSE | PMI11: FALSE | PMJ11: FALSE | PMK11: FALSE | PML11: FALSE | PMM11: FALSE | PMN11: FALSE | PMO11: FALSE | PMP11: FALSE | PMQ11: FALSE | PMR11: FALSE | PMS11: FALSE | PMT11: FALSE | PMU11: FALSE | PMV11: FALSE | PMW11: FALSE | PMX11: FALSE | PMY11: FALSE | PMZ11: FALSE | PNA11: FALSE | PNB11: FALSE | PNC11: FALSE | PND11: FALSE | PNE11: FALSE | PNF11: FALSE | PNG11: FALSE | PNH11: FALSE | PNI11: FALSE | PNJ11: FALSE | PNK11: FALSE | PNL11: FALSE | PNM11: FALSE | PNN11: FALSE | PNO11: FALSE | PNP11: FALSE | PNQ11: FALSE | PNR11: FALSE | PNS11: FALSE | PNT11: FALSE | PNU11: FALSE | PNV11: =ECHO(FALSE) -> FALSE | PNW11: FALSE | PNX11: FALSE | PNY11: FALSE | PNZ11: FALSE | POA11: FALSE | POB11: FALSE | POC11: FALSE | POD11: FALSE | POE11: FALSE | POF11: FALSE | POG11: FALSE | POH11: FALSE | POI11: FALSE | POJ11: FALSE | POK11: FALSE | POL11: FALSE | POM11: FALSE | PON11: FALSE | POO11: FALSE | POP11: FALSE | POQ11: FALSE | POR11: FALSE | POS11: FALSE | POT11: FALSE | POU11: FALSE | POV11: FALSE | POW11: FALSE | POX11: FALSE | POY11: FALSE | POZ11: FALSE | PPA11: FALSE | PPB11: FALSE | PPC11: FALSE | PPD11: FALSE | PPE11: FALSE | PPF11: FALSE | PPG11: FALSE | PPH11: FALSE | PPI11: FALSE | PPJ11: FALSE | PPK11: FALSE | PPL11: FALSE | PPM11: FALSE | PPN11: FALSE | PPO11: FALSE | PPP11: FALSE | PPQ11: FALSE | PPR11: FALSE | PPS11: FALSE | PPT11: FALSE | PPU11: FALSE | PPV11: FALSE | PPW11: FALSE | PPX11: FALSE | PPY11: FALSE | PPZ11: FALSE | PQA11: FALSE | PQB11: FALSE | PQC11: FALSE | PQD11: FALSE | PQE11: FALSE | PQF11: FALSE | PQG11: FALSE | PQH11: =ECHO(FALSE) -> FALSE | PQI11: FALSE | PQJ11: FALSE | PQK11: FALSE | PQL11: FALSE | PQM11: FALSE | PQN11: FALSE | PQO11: FALSE | PQP11: FALSE | PQQ11: FALSE | PQR11: FALSE | PQS11: FALSE | PQT11: FALSE | PQU11: FALSE | PQV11: FALSE | PQW11: FALSE | PQX11: FALSE | PQY11: FALSE | PQZ11: FALSE | PRA11: FALSE | PRB11: FALSE | PRC11: FALSE | PRD11: FALSE | PRE11: FALSE | PRF11: FALSE | PRG11: FALSE | PRH11: FALSE | PRI11: FALSE | PRJ11: FALSE | PRK11: FALSE | PRL11: FALSE | PRM11: FALSE | PRN11: FALSE | PRO11: FALSE | PRP11: FALSE | PRQ11: FALSE | PRR11: FALSE | PRS11: FALSE | PRT11: FALSE | PRU11: FALSE | PRV11: FALSE | PRW11: FALSE | PRX11: FALSE | PRY11: FALSE | PRZ11: FALSE | PSA11: FALSE | PSB11: FALSE | PSC11: FALSE | PSD11: FALSE | PSE11: FALSE | PSF11: FALSE | PSG11: FALSE | PSH11: FALSE | PSI11: FALSE | PSJ11: FALSE | PSK11: FALSE | PSL11: FALSE | PSM11: FALSE | PSN11: FALSE | PSO11: FALSE | PSP11: FALSE | PSQ11: FALSE | PSR11: FALSE | PSS11: FALSE | PST11: =ECHO(FALSE) -> FALSE | PSU11: FALSE | PSV11: FALSE | PSW11: FALSE | PSX11: FALSE | PSY11: FALSE | PSZ11: FALSE | PTA11: FALSE | PTB11: FALSE | PTC11: FALSE | PTD11: FALSE | PTE11: FALSE | PTF11: FALSE | PTG11: FALSE | PTH11: FALSE | PTI11: FALSE | PTJ11: FALSE | PTK11: FALSE | PTL11: FALSE | PTM11: FALSE | PTN11: FALSE | PTO11: FALSE | PTP11: FALSE | PTQ11: FALSE | PTR11: FALSE | PTS11: FALSE | PTT11: FALSE | PTU11: FALSE | PTV11: FALSE | PTW11: FALSE | PTX11: FALSE | PTY11: FALSE | PTZ11: FALSE | PUA11: FALSE | PUB11: FALSE | PUC11: FALSE | PUD11: FALSE | PUE11: FALSE | PUF11: FALSE | PUG11: FALSE | PUH11: FALSE | PUI11: FALSE | PUJ11: FALSE | PUK11: FALSE | PUL11: FALSE | PUM11: FALSE | PUN11: FALSE | PUO11: FALSE | PUP11: FALSE | PUQ11: FALSE | PUR11: FALSE | PUS11: FALSE | PUT11: FALSE | PUU11: FALSE | PUV11: FALSE | PUW11: FALSE | PUX11: FALSE | PUY11: FALSE | PUZ11: FALSE | PVA11: FALSE | PVB11: FALSE | PVC11: FALSE | PVD11: FALSE | PVE11: FALSE | PVF11: =ECHO(FALSE) -> FALSE | PVG11: FALSE | PVH11: FALSE | PVI11: FALSE | PVJ11: FALSE | PVK11: FALSE | PVL11: FALSE | PVM11: FALSE | PVN11: FALSE | PVO11: FALSE | PVP11: FALSE | PVQ11: FALSE | PVR11: FALSE | PVS11: FALSE | PVT11: FALSE | PVU11: FALSE | PVV11: FALSE | PVW11: FALSE | PVX11: FALSE | PVY11: FALSE | PVZ11: FALSE | PWA11: FALSE | PWB11: FALSE | PWC11: FALSE | PWD11: FALSE | PWE11: FALSE | PWF11: FALSE | PWG11: FALSE | PWH11: FALSE | PWI11: FALSE | PWJ11: FALSE | PWK11: FALSE | PWL11: FALSE | PWM11: FALSE | PWN11: FALSE | PWO11: FALSE | PWP11: FALSE | PWQ11: FALSE | PWR11: FALSE | PWS11: FALSE | PWT11: FALSE | PWU11: FALSE | PWV11: FALSE | PWW11: FALSE | PWX11: FALSE | PWY11: FALSE | PWZ11: FALSE | PXA11: FALSE | PXB11: FALSE | PXC11: FALSE | PXD11: FALSE | PXE11: FALSE | PXF11: FALSE | PXG11: FALSE | PXH11: FALSE | PXI11: FALSE | PXJ11: FALSE | PXK11: FALSE | PXL11: FALSE | PXM11: FALSE | PXN11: FALSE | PXO11: FALSE | PXP11: FALSE | PXQ11: FALSE | PXR11: =ECHO(FALSE) -> FALSE | PXS11: FALSE | PXT11: FALSE | PXU11: FALSE | PXV11: FALSE | PXW11: FALSE | PXX11: FALSE | PXY11: FALSE | PXZ11: FALSE | PYA11: FALSE | PYB11: FALSE | PYC11: FALSE | PYD11: FALSE | PYE11: FALSE | PYF11: FALSE | PYG11: FALSE | PYH11: FALSE | PYI11: FALSE | PYJ11: FALSE | PYK11: FALSE | PYL11: FALSE | PYM11: FALSE | PYN11: FALSE | PYO11: FALSE | PYP11: FALSE | PYQ11: FALSE | PYR11: FALSE | PYS11: FALSE | PYT11: FALSE | PYU11: FALSE | PYV11: FALSE | PYW11: FALSE | PYX11: FALSE | PYY11: FALSE | PYZ11: FALSE | PZA11: FALSE | PZB11: FALSE | PZC11: FALSE | PZD11: FALSE | PZE11: FALSE | PZF11: FALSE | PZG11: FALSE | PZH11: FALSE | PZI11: FALSE | PZJ11: FALSE | PZK11: FALSE | PZL11: FALSE | PZM11: FALSE | PZN11: FALSE | PZO11: FALSE | PZP11: FALSE | PZQ11: FALSE | PZR11: FALSE | PZS11: FALSE | PZT11: FALSE | PZU11: FALSE | PZV11: FALSE | PZW11: FALSE | PZX11: FALSE | PZY11: FALSE | PZZ11: FALSE | QAA11: FALSE | QAB11: FALSE | QAC11: FALSE | QAD11: =ECHO(FALSE) -> FALSE | QAE11: FALSE | QAF11: FALSE | QAG11: FALSE | QAH11: FALSE | QAI11: FALSE | QAJ11: FALSE | QAK11: FALSE | QAL11: FALSE | QAM11: FALSE | QAN11: FALSE | QAO11: FALSE | QAP11: FALSE | QAQ11: FALSE | QAR11: FALSE | QAS11: FALSE | QAT11: FALSE | QAU11: FALSE | QAV11: FALSE | QAW11: FALSE | QAX11: FALSE | QAY11: FALSE | QAZ11: FALSE | QBA11: FALSE | QBB11: FALSE | QBC11: FALSE | QBD11: FALSE | QBE11: FALSE | QBF11: FALSE | QBG11: FALSE | QBH11: FALSE | QBI11: FALSE | QBJ11: FALSE | QBK11: FALSE | QBL11: FALSE | QBM11: FALSE | QBN11: FALSE | QBO11: FALSE | QBP11: FALSE | QBQ11: FALSE | QBR11: FALSE | QBS11: FALSE | QBT11: FALSE | QBU11: FALSE | QBV11: FALSE | QBW11: FALSE | QBX11: FALSE | QBY11: FALSE | QBZ11: FALSE | QCA11: FALSE | QCB11: FALSE | QCC11: FALSE | QCD11: FALSE | QCE11: FALSE | QCF11: FALSE | QCG11: FALSE | QCH11: FALSE | QCI11: FALSE | QCJ11: FALSE | QCK11: FALSE | QCL11: FALSE | QCM11: FALSE | QCN11: FALSE | QCO11: FALSE | QCP11: =ECHO(FALSE) -> FALSE | QCQ11: FALSE | QCR11: FALSE | QCS11: FALSE | QCT11: FALSE | QCU11: FALSE | QCV11: FALSE | QCW11: FALSE | QCX11: FALSE | QCY11: FALSE | QCZ11: FALSE | QDA11: FALSE | QDB11: FALSE | QDC11: FALSE | QDD11: FALSE | QDE11: FALSE | QDF11: FALSE | QDG11: FALSE | QDH11: FALSE | QDI11: FALSE | QDJ11: FALSE | QDK11: FALSE | QDL11: FALSE | QDM11: FALSE | QDN11: FALSE | QDO11: FALSE | QDP11: FALSE | QDQ11: FALSE | QDR11: FALSE | QDS11: FALSE | QDT11: FALSE | QDU11: FALSE | QDV11: FALSE | QDW11: FALSE | QDX11: FALSE | QDY11: FALSE | QDZ11: FALSE | QEA11: FALSE | QEB11: FALSE | QEC11: FALSE | QED11: FALSE | QEE11: FALSE | QEF11: FALSE | QEG11: FALSE | QEH11: FALSE | QEI11: FALSE | QEJ11: FALSE | QEK11: FALSE | QEL11: FALSE | QEM11: FALSE | QEN11: FALSE | QEO11: FALSE | QEP11: FALSE | QEQ11: FALSE | QER11: FALSE | QES11: FALSE | QET11: FALSE | QEU11: FALSE | QEV11: FALSE | QEW11: FALSE | QEX11: FALSE | QEY11: FALSE | QEZ11: FALSE | QFA11: FALSE | QFB11: =ECHO(FALSE) -> FALSE | QFC11: FALSE | QFD11: FALSE | QFE11: FALSE | QFF11: FALSE | QFG11: FALSE | QFH11: FALSE | QFI11: FALSE | QFJ11: FALSE | QFK11: FALSE | QFL11: FALSE | QFM11: FALSE | QFN11: FALSE | QFO11: FALSE | QFP11: FALSE | QFQ11: FALSE | QFR11: FALSE | QFS11: FALSE | QFT11: FALSE | QFU11: FALSE | QFV11: FALSE | QFW11: FALSE | QFX11: FALSE | QFY11: FALSE | QFZ11: FALSE | QGA11: FALSE | QGB11: FALSE | QGC11: FALSE | QGD11: FALSE | QGE11: FALSE | QGF11: FALSE | QGG11: FALSE | QGH11: FALSE | QGI11: FALSE | QGJ11: FALSE | QGK11: FALSE | QGL11: FALSE | QGM11: FALSE | QGN11: FALSE | QGO11: FALSE | QGP11: FALSE | QGQ11: FALSE | QGR11: FALSE | QGS11: FALSE | QGT11: FALSE | QGU11: FALSE | QGV11: FALSE | QGW11: FALSE | QGX11: FALSE | QGY11: FALSE | QGZ11: FALSE | QHA11: FALSE | QHB11: FALSE | QHC11: FALSE | QHD11: FALSE | QHE11: FALSE | QHF11: FALSE | QHG11: FALSE | QHH11: FALSE | QHI11: FALSE | QHJ11: FALSE | QHK11: FALSE | QHL11: FALSE | QHM11: FALSE | QHN11: =ECHO(FALSE) -> FALSE | QHO11: FALSE | QHP11: FALSE | QHQ11: FALSE | QHR11: FALSE | QHS11: FALSE | QHT11: FALSE | QHU11: FALSE | QHV11: FALSE | QHW11: FALSE | QHX11: FALSE | QHY11: FALSE | QHZ11: FALSE | QIA11: FALSE | QIB11: FALSE | QIC11: FALSE | QID11: FALSE | QIE11: FALSE | QIF11: FALSE | QIG11: FALSE | QIH11: FALSE | QII11: FALSE | QIJ11: FALSE | QIK11: FALSE | QIL11: FALSE | QIM11: FALSE | QIN11: FALSE | QIO11: FALSE | QIP11: FALSE | QIQ11: FALSE | QIR11: FALSE | QIS11: FALSE | QIT11: FALSE | QIU11: FALSE | QIV11: FALSE | QIW11: FALSE | QIX11: FALSE | QIY11: FALSE | QIZ11: FALSE | QJA11: FALSE | QJB11: FALSE | QJC11: FALSE | QJD11: FALSE | QJE11: FALSE | QJF11: FALSE | QJG11: FALSE | QJH11: FALSE | QJI11: FALSE | QJJ11: FALSE | QJK11: FALSE | QJL11: FALSE | QJM11: FALSE | QJN11: FALSE | QJO11: FALSE | QJP11: FALSE | QJQ11: FALSE | QJR11: FALSE | QJS11: FALSE | QJT11: FALSE | QJU11: FALSE | QJV11: FALSE | QJW11: FALSE | QJX11: FALSE | QJY11: FALSE | QJZ11: =ECHO(FALSE) -> FALSE | QKA11: FALSE | QKB11: FALSE | QKC11: FALSE | QKD11: FALSE | QKE11: FALSE | QKF11: FALSE | QKG11: FALSE | QKH11: FALSE | QKI11: FALSE | QKJ11: FALSE | QKK11: FALSE | QKL11: FALSE | QKM11: FALSE | QKN11: FALSE | QKO11: FALSE | QKP11: FALSE | QKQ11: FALSE | QKR11: FALSE | QKS11: FALSE | QKT11: FALSE | QKU11: FALSE | QKV11: FALSE | QKW11: FALSE | QKX11: FALSE | QKY11: FALSE | QKZ11: FALSE | QLA11: FALSE | QLB11: FALSE | QLC11: FALSE | QLD11: FALSE | QLE11: FALSE | QLF11: FALSE | QLG11: FALSE | QLH11: FALSE | QLI11: FALSE | QLJ11: FALSE | QLK11: FALSE | QLL11: FALSE | QLM11: FALSE | QLN11: FALSE | QLO11: FALSE | QLP11: FALSE | QLQ11: FALSE | QLR11: FALSE | QLS11: FALSE | QLT11: FALSE | QLU11: FALSE | QLV11: FALSE | QLW11: FALSE | QLX11: FALSE | QLY11: FALSE | QLZ11: FALSE | QMA11: FALSE | QMB11: FALSE | QMC11: FALSE | QMD11: FALSE | QME11: FALSE | QMF11: FALSE | QMG11: FALSE | QMH11: FALSE | QMI11: FALSE | QMJ11: FALSE | QMK11: FALSE | QML11: =ECHO(FALSE) -> FALSE | QMM11: FALSE | QMN11: FALSE | QMO11: FALSE | QMP11: FALSE | QMQ11: FALSE | QMR11: FALSE | QMS11: FALSE | QMT11: FALSE | QMU11: FALSE | QMV11: FALSE | QMW11: FALSE | QMX11: FALSE | QMY11: FALSE | QMZ11: FALSE | QNA11: FALSE | QNB11: FALSE | QNC11: FALSE | QND11: FALSE | QNE11: FALSE | QNF11: FALSE | QNG11: FALSE | QNH11: FALSE | QNI11: FALSE | QNJ11: FALSE | QNK11: FALSE | QNL11: FALSE | QNM11: FALSE | QNN11: FALSE | QNO11: FALSE | QNP11: FALSE | QNQ11: FALSE | QNR11: FALSE | QNS11: FALSE | QNT11: FALSE | QNU11: FALSE | QNV11: FALSE | QNW11: FALSE | QNX11: FALSE | QNY11: FALSE | QNZ11: FALSE | QOA11: FALSE | QOB11: FALSE | QOC11: FALSE | QOD11: FALSE | QOE11: FALSE | QOF11: FALSE | QOG11: FALSE | QOH11: FALSE | QOI11: FALSE | QOJ11: FALSE | QOK11: FALSE | QOL11: FALSE | QOM11: FALSE | QON11: FALSE | QOO11: FALSE | QOP11: FALSE | QOQ11: FALSE | QOR11: FALSE | QOS11: FALSE | QOT11: FALSE | QOU11: FALSE | QOV11: FALSE | QOW11: FALSE | QOX11: =ECHO(FALSE) -> FALSE | QOY11: FALSE | QOZ11: FALSE | QPA11: FALSE | QPB11: FALSE | QPC11: FALSE | QPD11: FALSE | QPE11: FALSE | QPF11: FALSE | QPG11: FALSE | QPH11: FALSE | QPI11: FALSE | QPJ11: FALSE | QPK11: FALSE | QPL11: FALSE | QPM11: FALSE | QPN11: FALSE | QPO11: FALSE | QPP11: FALSE | QPQ11: FALSE | QPR11: FALSE | QPS11: FALSE | QPT11: FALSE | QPU11: FALSE | QPV11: FALSE | QPW11: FALSE | QPX11: FALSE | QPY11: FALSE | QPZ11: FALSE | QQA11: FALSE | QQB11: FALSE | QQC11: FALSE | QQD11: FALSE | QQE11: FALSE | QQF11: FALSE | QQG11: FALSE | QQH11: FALSE | QQI11: FALSE | QQJ11: FALSE | QQK11: FALSE | QQL11: FALSE | QQM11: FALSE | QQN11: FALSE | QQO11: FALSE | QQP11: FALSE | QQQ11: FALSE | QQR11: FALSE | QQS11: FALSE | QQT11: FALSE | QQU11: FALSE | QQV11: FALSE | QQW11: FALSE | QQX11: FALSE | QQY11: FALSE | QQZ11: FALSE | QRA11: FALSE | QRB11: FALSE | QRC11: FALSE | QRD11: FALSE | QRE11: FALSE | QRF11: FALSE | QRG11: FALSE | QRH11: FALSE | QRI11: FALSE | QRJ11: =ECHO(FALSE) -> FALSE | QRK11: FALSE | QRL11: FALSE | QRM11: FALSE | QRN11: FALSE | QRO11: FALSE | QRP11: FALSE | QRQ11: FALSE | QRR11: FALSE | QRS11: FALSE | QRT11: FALSE | QRU11: FALSE | QRV11: FALSE | QRW11: FALSE | QRX11: FALSE | QRY11: FALSE | QRZ11: FALSE | QSA11: FALSE | QSB11: FALSE | QSC11: FALSE | QSD11: FALSE | QSE11: FALSE | QSF11: FALSE | QSG11: FALSE | QSH11: FALSE | QSI11: FALSE | QSJ11: FALSE | QSK11: FALSE | QSL11: FALSE | QSM11: FALSE | QSN11: FALSE | QSO11: FALSE | QSP11: FALSE | QSQ11: FALSE | QSR11: FALSE | QSS11: FALSE | QST11: FALSE | QSU11: FALSE | QSV11: FALSE | QSW11: FALSE | QSX11: FALSE | QSY11: FALSE | QSZ11: FALSE | QTA11: FALSE | QTB11: FALSE | QTC11: FALSE | QTD11: FALSE | QTE11: FALSE | QTF11: FALSE | QTG11: FALSE | QTH11: FALSE | QTI11: FALSE | QTJ11: FALSE | QTK11: FALSE | QTL11: FALSE | QTM11: FALSE | QTN11: FALSE | QTO11: FALSE | QTP11: FALSE | QTQ11: FALSE | QTR11: FALSE | QTS11: FALSE | QTT11: FALSE | QTU11: FALSE | QTV11: =ECHO(FALSE) -> FALSE | QTW11: FALSE | QTX11: FALSE | QTY11: FALSE | QTZ11: FALSE | QUA11: FALSE | QUB11: FALSE | QUC11: FALSE | QUD11: FALSE | QUE11: FALSE | QUF11: FALSE | QUG11: FALSE | QUH11: FALSE | QUI11: FALSE | QUJ11: FALSE | QUK11: FALSE | QUL11: FALSE | QUM11: FALSE | QUN11: FALSE | QUO11: FALSE | QUP11: FALSE | QUQ11: FALSE | QUR11: FALSE | QUS11: FALSE | QUT11: FALSE | QUU11: FALSE | QUV11: FALSE | QUW11: FALSE | QUX11: FALSE | QUY11: FALSE | QUZ11: FALSE | QVA11: FALSE | QVB11: FALSE | QVC11: FALSE | QVD11: FALSE | QVE11: FALSE | QVF11: FALSE | QVG11: FALSE | QVH11: FALSE | QVI11: FALSE | QVJ11: FALSE | QVK11: FALSE | QVL11: FALSE | QVM11: FALSE | QVN11: FALSE | QVO11: FALSE | QVP11: FALSE | QVQ11: FALSE | QVR11: FALSE | QVS11: FALSE | QVT11: FALSE | QVU11: FALSE | QVV11: FALSE | QVW11: FALSE | QVX11: FALSE | QVY11: FALSE | QVZ11: FALSE | QWA11: FALSE | QWB11: FALSE | QWC11: FALSE | QWD11: FALSE | QWE11: FALSE | QWF11: FALSE | QWG11: FALSE | QWH11: =ECHO(FALSE) -> FALSE | QWI11: FALSE | QWJ11: FALSE | QWK11: FALSE | QWL11: FALSE | QWM11: FALSE | QWN11: FALSE | QWO11: FALSE | QWP11: FALSE | QWQ11: FALSE | QWR11: FALSE | QWS11: FALSE | QWT11: FALSE | QWU11: FALSE | QWV11: FALSE | QWW11: FALSE | QWX11: FALSE | QWY11: FALSE | QWZ11: FALSE | QXA11: FALSE | QXB11: FALSE | QXC11: FALSE | QXD11: FALSE | QXE11: FALSE | QXF11: FALSE | QXG11: FALSE | QXH11: FALSE | QXI11: FALSE | QXJ11: FALSE | QXK11: FALSE | QXL11: FALSE | QXM11: FALSE | QXN11: FALSE | QXO11: FALSE | QXP11: FALSE | QXQ11: FALSE | QXR11: FALSE | QXS11: FALSE | QXT11: FALSE | QXU11: FALSE | QXV11: FALSE | QXW11: FALSE | QXX11: FALSE | QXY11: FALSE | QXZ11: FALSE | QYA11: FALSE | QYB11: FALSE | QYC11: FALSE | QYD11: FALSE | QYE11: FALSE | QYF11: FALSE | QYG11: FALSE | QYH11: FALSE | QYI11: FALSE | QYJ11: FALSE | QYK11: FALSE | QYL11: FALSE | QYM11: FALSE | QYN11: FALSE | QYO11: FALSE | QYP11: FALSE | QYQ11: FALSE | QYR11: FALSE | QYS11: FALSE | QYT11: =ECHO(FALSE) -> FALSE | QYU11: FALSE | QYV11: FALSE | QYW11: FALSE | QYX11: FALSE | QYY11: FALSE | QYZ11: FALSE | QZA11: FALSE | QZB11: FALSE | QZC11: FALSE | QZD11: FALSE | QZE11: FALSE | QZF11: FALSE | QZG11: FALSE | QZH11: FALSE | QZI11: FALSE | QZJ11: FALSE | QZK11: FALSE | QZL11: FALSE | QZM11: FALSE | QZN11: FALSE | QZO11: FALSE | QZP11: FALSE | QZQ11: FALSE | QZR11: FALSE | QZS11: FALSE | QZT11: FALSE | QZU11: FALSE | QZV11: FALSE | QZW11: FALSE | QZX11: FALSE | QZY11: FALSE | QZZ11: FALSE | RAA11: FALSE | RAB11: FALSE | RAC11: FALSE | RAD11: FALSE | RAE11: FALSE | RAF11: FALSE | RAG11: FALSE | RAH11: FALSE | RAI11: FALSE | RAJ11: FALSE | RAK11: FALSE | RAL11: FALSE | RAM11: FALSE | RAN11: FALSE | RAO11: FALSE | RAP11: FALSE | RAQ11: FALSE | RAR11: FALSE | RAS11: FALSE | RAT11: FALSE | RAU11: FALSE | RAV11: FALSE | RAW11: FALSE | RAX11: FALSE | RAY11: FALSE | RAZ11: FALSE | RBA11: FALSE | RBB11: FALSE | RBC11: FALSE | RBD11: FALSE | RBE11: FALSE | RBF11: =ECHO(FALSE) -> FALSE | RBG11: FALSE | RBH11: FALSE | RBI11: FALSE | RBJ11: FALSE | RBK11: FALSE | RBL11: FALSE | RBM11: FALSE | RBN11: FALSE | RBO11: FALSE | RBP11: FALSE | RBQ11: FALSE | RBR11: FALSE | RBS11: FALSE | RBT11: FALSE | RBU11: FALSE | RBV11: FALSE | RBW11: FALSE | RBX11: FALSE | RBY11: FALSE | RBZ11: FALSE | RCA11: FALSE | RCB11: FALSE | RCC11: FALSE | RCD11: FALSE | RCE11: FALSE | RCF11: FALSE | RCG11: FALSE | RCH11: FALSE | RCI11: FALSE | RCJ11: FALSE | RCK11: FALSE | RCL11: FALSE | RCM11: FALSE | RCN11: FALSE | RCO11: FALSE | RCP11: FALSE | RCQ11: FALSE | RCR11: FALSE | RCS11: FALSE | RCT11: FALSE | RCU11: FALSE | RCV11: FALSE | RCW11: FALSE | RCX11: FALSE | RCY11: FALSE | RCZ11: FALSE | RDA11: FALSE | RDB11: FALSE | RDC11: FALSE | RDD11: FALSE | RDE11: FALSE | RDF11: FALSE | RDG11: FALSE | RDH11: FALSE | RDI11: FALSE | RDJ11: FALSE | RDK11: FALSE | RDL11: FALSE | RDM11: FALSE | RDN11: FALSE | RDO11: FALSE | RDP11: FALSE | RDQ11: FALSE | RDR11: =ECHO(FALSE) -> FALSE | RDS11: FALSE | RDT11: FALSE | RDU11: FALSE | RDV11: FALSE | RDW11: FALSE | RDX11: FALSE | RDY11: FALSE | RDZ11: FALSE | REA11: FALSE | REB11: FALSE | REC11: FALSE | RED11: FALSE | REE11: FALSE | REF11: FALSE | REG11: FALSE | REH11: FALSE | REI11: FALSE | REJ11: FALSE | REK11: FALSE | REL11: FALSE | REM11: FALSE | REN11: FALSE | REO11: FALSE | REP11: FALSE | REQ11: FALSE | RER11: FALSE | RES11: FALSE | RET11: FALSE | REU11: FALSE | REV11: FALSE | REW11: FALSE | REX11: FALSE | REY11: FALSE | REZ11: FALSE | RFA11: FALSE | RFB11: FALSE | RFC11: FALSE | RFD11: FALSE | RFE11: FALSE | RFF11: FALSE | RFG11: FALSE | RFH11: FALSE | RFI11: FALSE | RFJ11: FALSE | RFK11: FALSE | RFL11: FALSE | RFM11: FALSE | RFN11: FALSE | RFO11: FALSE | RFP11: FALSE | RFQ11: FALSE | RFR11: FALSE | RFS11: FALSE | RFT11: FALSE | RFU11: FALSE | RFV11: FALSE | RFW11: FALSE | RFX11: FALSE | RFY11: FALSE | RFZ11: FALSE | RGA11: FALSE | RGB11: FALSE | RGC11: FALSE | RGD11: =ECHO(FALSE) -> FALSE | RGE11: FALSE | RGF11: FALSE | RGG11: FALSE | RGH11: FALSE | RGI11: FALSE | RGJ11: FALSE | RGK11: FALSE | RGL11: FALSE | RGM11: FALSE | RGN11: FALSE | RGO11: FALSE | RGP11: FALSE | RGQ11: FALSE | RGR11: FALSE | RGS11: FALSE | RGT11: FALSE | RGU11: FALSE | RGV11: FALSE | RGW11: FALSE | RGX11: FALSE | RGY11: FALSE | RGZ11: FALSE | RHA11: FALSE | RHB11: FALSE | RHC11: FALSE | RHD11: FALSE | RHE11: FALSE | RHF11: FALSE | RHG11: FALSE | RHH11: FALSE | RHI11: FALSE | RHJ11: FALSE | RHK11: FALSE | RHL11: FALSE | RHM11: FALSE | RHN11: FALSE | RHO11: FALSE | RHP11: FALSE | RHQ11: FALSE | RHR11: FALSE | RHS11: FALSE | RHT11: FALSE | RHU11: FALSE | RHV11: FALSE | RHW11: FALSE | RHX11: FALSE | RHY11: FALSE | RHZ11: FALSE | RIA11: FALSE | RIB11: FALSE | RIC11: FALSE | RID11: FALSE | RIE11: FALSE | RIF11: FALSE | RIG11: FALSE | RIH11: FALSE | RII11: FALSE | RIJ11: FALSE | RIK11: FALSE | RIL11: FALSE | RIM11: FALSE | RIN11: FALSE | RIO11: FALSE | RIP11: =ECHO(FALSE) -> FALSE | RIQ11: FALSE | RIR11: FALSE | RIS11: FALSE | RIT11: FALSE | RIU11: FALSE | RIV11: FALSE | RIW11: FALSE | RIX11: FALSE | RIY11: FALSE | RIZ11: FALSE | RJA11: FALSE | RJB11: FALSE | RJC11: FALSE | RJD11: FALSE | RJE11: FALSE | RJF11: FALSE | RJG11: FALSE | RJH11: FALSE | RJI11: FALSE | RJJ11: FALSE | RJK11: FALSE | RJL11: FALSE | RJM11: FALSE | RJN11: FALSE | RJO11: FALSE | RJP11: FALSE | RJQ11: FALSE | RJR11: FALSE | RJS11: FALSE | RJT11: FALSE | RJU11: FALSE | RJV11: FALSE | RJW11: FALSE | RJX11: FALSE | RJY11: FALSE | RJZ11: FALSE | RKA11: FALSE | RKB11: FALSE | RKC11: FALSE | RKD11: FALSE | RKE11: FALSE | RKF11: FALSE | RKG11: FALSE | RKH11: FALSE | RKI11: FALSE | RKJ11: FALSE | RKK11: FALSE | RKL11: FALSE | RKM11: FALSE | RKN11: FALSE | RKO11: FALSE | RKP11: FALSE | RKQ11: FALSE | RKR11: FALSE | RKS11: FALSE | RKT11: FALSE | RKU11: FALSE | RKV11: FALSE | RKW11: FALSE | RKX11: FALSE | RKY11: FALSE | RKZ11: FALSE | RLA11: FALSE | RLB11: =ECHO(FALSE) -> FALSE | RLC11: FALSE | RLD11: FALSE | RLE11: FALSE | RLF11: FALSE | RLG11: FALSE | RLH11: FALSE | RLI11: FALSE | RLJ11: FALSE | RLK11: FALSE | RLL11: FALSE | RLM11: FALSE | RLN11: FALSE | RLO11: FALSE | RLP11: FALSE | RLQ11: FALSE | RLR11: FALSE | RLS11: FALSE | RLT11: FALSE | RLU11: FALSE | RLV11: FALSE | RLW11: FALSE | RLX11: FALSE | RLY11: FALSE | RLZ11: FALSE | RMA11: FALSE | RMB11: FALSE | RMC11: FALSE | RMD11: FALSE | RME11: FALSE | RMF11: FALSE | RMG11: FALSE | RMH11: FALSE | RMI11: FALSE | RMJ11: FALSE | RMK11: FALSE | RML11: FALSE | RMM11: FALSE | RMN11: FALSE | RMO11: FALSE | RMP11: FALSE | RMQ11: FALSE | RMR11: FALSE | RMS11: FALSE | RMT11: FALSE | RMU11: FALSE | RMV11: FALSE | RMW11: FALSE | RMX11: FALSE | RMY11: FALSE | RMZ11: FALSE | RNA11: FALSE | RNB11: FALSE | RNC11: FALSE | RND11: FALSE | RNE11: FALSE | RNF11: FALSE | RNG11: FALSE | RNH11: FALSE | RNI11: FALSE | RNJ11: FALSE | RNK11: FALSE | RNL11: FALSE | RNM11: FALSE | RNN11: =ECHO(FALSE) -> FALSE | RNO11: FALSE | RNP11: FALSE | RNQ11: FALSE | RNR11: FALSE | RNS11: FALSE | RNT11: FALSE | RNU11: FALSE | RNV11: FALSE | RNW11: FALSE | RNX11: FALSE | RNY11: FALSE | RNZ11: FALSE | ROA11: FALSE | ROB11: FALSE | ROC11: FALSE | ROD11: FALSE | ROE11: FALSE | ROF11: FALSE | ROG11: FALSE | ROH11: FALSE | ROI11: FALSE | ROJ11: FALSE | ROK11: FALSE | ROL11: FALSE | ROM11: FALSE | RON11: FALSE | ROO11: FALSE | ROP11: FALSE | ROQ11: FALSE | ROR11: FALSE | ROS11: FALSE | ROT11: FALSE | ROU11: FALSE | ROV11: FALSE | ROW11: FALSE | ROX11: FALSE | ROY11: FALSE | ROZ11: FALSE | RPA11: FALSE | RPB11: FALSE | RPC11: FALSE | RPD11: FALSE | RPE11: FALSE | RPF11: FALSE | RPG11: FALSE | RPH11: FALSE | RPI11: FALSE | RPJ11: FALSE | RPK11: FALSE | RPL11: FALSE | RPM11: FALSE | RPN11: FALSE | RPO11: FALSE | RPP11: FALSE | RPQ11: FALSE | RPR11: FALSE | RPS11: FALSE | RPT11: FALSE | RPU11: FALSE | RPV11: FALSE | RPW11: FALSE | RPX11: FALSE | RPY11: FALSE | RPZ11: =ECHO(FALSE) -> FALSE | RQA11: FALSE | RQB11: FALSE | RQC11: FALSE | RQD11: FALSE | RQE11: FALSE | RQF11: FALSE | RQG11: FALSE | RQH11: FALSE | RQI11: FALSE | RQJ11: FALSE | RQK11: FALSE | RQL11: FALSE | RQM11: FALSE | RQN11: FALSE | RQO11: FALSE | RQP11: FALSE | RQQ11: FALSE | RQR11: FALSE | RQS11: FALSE | RQT11: FALSE | RQU11: FALSE | RQV11: FALSE | RQW11: FALSE | RQX11: FALSE | RQY11: FALSE | RQZ11: FALSE | RRA11: FALSE | RRB11: FALSE | RRC11: FALSE | RRD11: FALSE | RRE11: FALSE | RRF11: FALSE | RRG11: FALSE | RRH11: FALSE | RRI11: FALSE | RRJ11: FALSE | RRK11: FALSE | RRL11: FALSE | RRM11: FALSE | RRN11: FALSE | RRO11: FALSE | RRP11: FALSE | RRQ11: FALSE | RRR11: FALSE | RRS11: FALSE | RRT11: FALSE | RRU11: FALSE | RRV11: FALSE | RRW11: FALSE | RRX11: FALSE | RRY11: FALSE | RRZ11: FALSE | RSA11: FALSE | RSB11: FALSE | RSC11: FALSE | RSD11: FALSE | RSE11: FALSE | RSF11: FALSE | RSG11: FALSE | RSH11: FALSE | RSI11: FALSE | RSJ11: FALSE | RSK11: FALSE | RSL11: =ECHO(FALSE) -> FALSE | RSM11: FALSE | RSN11: FALSE | RSO11: FALSE | RSP11: FALSE | RSQ11: FALSE | RSR11: FALSE | RSS11: FALSE | RST11: FALSE | RSU11: FALSE | RSV11: FALSE | RSW11: FALSE | RSX11: FALSE | RSY11: FALSE | RSZ11: FALSE | RTA11: FALSE | RTB11: FALSE | RTC11: FALSE | RTD11: FALSE | RTE11: FALSE | RTF11: FALSE | RTG11: FALSE | RTH11: FALSE | RTI11: FALSE | RTJ11: FALSE | RTK11: FALSE | RTL11: FALSE | RTM11: FALSE | RTN11: FALSE | RTO11: FALSE | RTP11: FALSE | RTQ11: FALSE | RTR11: FALSE | RTS11: FALSE | RTT11: FALSE | RTU11: FALSE | RTV11: FALSE | RTW11: FALSE | RTX11: FALSE | RTY11: FALSE | RTZ11: FALSE | RUA11: FALSE | RUB11: FALSE | RUC11: FALSE | RUD11: FALSE | RUE11: FALSE | RUF11: FALSE | RUG11: FALSE | RUH11: FALSE | RUI11: FALSE | RUJ11: FALSE | RUK11: FALSE | RUL11: FALSE | RUM11: FALSE | RUN11: FALSE | RUO11: FALSE | RUP11: FALSE | RUQ11: FALSE | RUR11: FALSE | RUS11: FALSE | RUT11: FALSE | RUU11: FALSE | RUV11: FALSE | RUW11: FALSE | RUX11: =ECHO(FALSE) -> FALSE | RUY11: FALSE | RUZ11: FALSE | RVA11: FALSE | RVB11: FALSE | RVC11: FALSE | RVD11: FALSE | RVE11: FALSE | RVF11: FALSE | RVG11: FALSE | RVH11: FALSE | RVI11: FALSE | RVJ11: FALSE | RVK11: FALSE | RVL11: FALSE | RVM11: FALSE | RVN11: FALSE | RVO11: FALSE | RVP11: FALSE | RVQ11: FALSE | RVR11: FALSE | RVS11: FALSE | RVT11: FALSE | RVU11: FALSE | RVV11: FALSE | RVW11: FALSE | RVX11: FALSE | RVY11: FALSE | RVZ11: FALSE | RWA11: FALSE | RWB11: FALSE | RWC11: FALSE | RWD11: FALSE | RWE11: FALSE | RWF11: FALSE | RWG11: FALSE | RWH11: FALSE | RWI11: FALSE | RWJ11: FALSE | RWK11: FALSE | RWL11: FALSE | RWM11: FALSE | RWN11: FALSE | RWO11: FALSE | RWP11: FALSE | RWQ11: FALSE | RWR11: FALSE | RWS11: FALSE | RWT11: FALSE | RWU11: FALSE | RWV11: FALSE | RWW11: FALSE | RWX11: FALSE | RWY11: FALSE | RWZ11: FALSE | RXA11: FALSE | RXB11: FALSE | RXC11: FALSE | RXD11: FALSE | RXE11: FALSE | RXF11: FALSE | RXG11: FALSE | RXH11: FALSE | RXI11: FALSE | RXJ11: =ECHO(FALSE) -> FALSE | RXK11: FALSE | RXL11: FALSE | RXM11: FALSE | RXN11: FALSE | RXO11: FALSE | RXP11: FALSE | RXQ11: FALSE | RXR11: FALSE | RXS11: FALSE | RXT11: FALSE | RXU11: FALSE | RXV11: FALSE | RXW11: FALSE | RXX11: FALSE | RXY11: FALSE | RXZ11: FALSE | RYA11: FALSE | RYB11: FALSE | RYC11: FALSE | RYD11: FALSE | RYE11: FALSE | RYF11: FALSE | RYG11: FALSE | RYH11: FALSE | RYI11: FALSE | RYJ11: FALSE | RYK11: FALSE | RYL11: FALSE | RYM11: FALSE | RYN11: FALSE | RYO11: FALSE | RYP11: FALSE | RYQ11: FALSE | RYR11: FALSE | RYS11: FALSE | RYT11: FALSE | RYU11: FALSE | RYV11: FALSE | RYW11: FALSE | RYX11: FALSE | RYY11: FALSE | RYZ11: FALSE | RZA11: FALSE | RZB11: FALSE | RZC11: FALSE | RZD11: FALSE | RZE11: FALSE | RZF11: FALSE | RZG11: FALSE | RZH11: FALSE | RZI11: FALSE | RZJ11: FALSE | RZK11: FALSE | RZL11: FALSE | RZM11: FALSE | RZN11: FALSE | RZO11: FALSE | RZP11: FALSE | RZQ11: FALSE | RZR11: FALSE | RZS11: FALSE | RZT11: FALSE | RZU11: FALSE | RZV11: =ECHO(FALSE) -> FALSE | RZW11: FALSE | RZX11: FALSE | RZY11: FALSE | RZZ11: FALSE | SAA11: FALSE | SAB11: FALSE | SAC11: FALSE | SAD11: FALSE | SAE11: FALSE | SAF11: FALSE | SAG11: FALSE | SAH11: FALSE | SAI11: FALSE | SAJ11: FALSE | SAK11: FALSE | SAL11: FALSE | SAM11: FALSE | SAN11: FALSE | SAO11: FALSE | SAP11: FALSE | SAQ11: FALSE | SAR11: FALSE | SAS11: FALSE | SAT11: FALSE | SAU11: FALSE | SAV11: FALSE | SAW11: FALSE | SAX11: FALSE | SAY11: FALSE | SAZ11: FALSE | SBA11: FALSE | SBB11: FALSE | SBC11: FALSE | SBD11: FALSE | SBE11: FALSE | SBF11: FALSE | SBG11: FALSE | SBH11: FALSE | SBI11: FALSE | SBJ11: FALSE | SBK11: FALSE | SBL11: FALSE | SBM11: FALSE | SBN11: FALSE | SBO11: FALSE | SBP11: FALSE | SBQ11: FALSE | SBR11: FALSE | SBS11: FALSE | SBT11: FALSE | SBU11: FALSE | SBV11: FALSE | SBW11: FALSE | SBX11: FALSE | SBY11: FALSE | SBZ11: FALSE | SCA11: FALSE | SCB11: FALSE | SCC11: FALSE | SCD11: FALSE | SCE11: FALSE | SCF11: FALSE | SCG11: FALSE | SCH11: =ECHO(FALSE) -> FALSE | SCI11: FALSE | SCJ11: FALSE | SCK11: FALSE | SCL11: FALSE | SCM11: FALSE | SCN11: FALSE | SCO11: FALSE | SCP11: FALSE | SCQ11: FALSE | SCR11: FALSE | SCS11: FALSE | SCT11: FALSE | SCU11: FALSE | SCV11: FALSE | SCW11: FALSE | SCX11: FALSE | SCY11: FALSE | SCZ11: FALSE | SDA11: FALSE | SDB11: FALSE | SDC11: FALSE | SDD11: FALSE | SDE11: FALSE | SDF11: FALSE | SDG11: FALSE | SDH11: FALSE | SDI11: FALSE | SDJ11: FALSE | SDK11: FALSE | SDL11: FALSE | SDM11: FALSE | SDN11: FALSE | SDO11: FALSE | SDP11: FALSE | SDQ11: FALSE | SDR11: FALSE | SDS11: FALSE | SDT11: FALSE | SDU11: FALSE | SDV11: FALSE | SDW11: FALSE | SDX11: FALSE | SDY11: FALSE | SDZ11: FALSE | SEA11: FALSE | SEB11: FALSE | SEC11: FALSE | SED11: FALSE | SEE11: FALSE | SEF11: FALSE | SEG11: FALSE | SEH11: FALSE | SEI11: FALSE | SEJ11: FALSE | SEK11: FALSE | SEL11: FALSE | SEM11: FALSE | SEN11: FALSE | SEO11: FALSE | SEP11: FALSE | SEQ11: FALSE | SER11: FALSE | SES11: FALSE | SET11: =ECHO(FALSE) -> FALSE | SEU11: FALSE | SEV11: FALSE | SEW11: FALSE | SEX11: FALSE | SEY11: FALSE | SEZ11: FALSE | SFA11: FALSE | SFB11: FALSE | SFC11: FALSE | SFD11: FALSE | SFE11: FALSE | SFF11: FALSE | SFG11: FALSE | SFH11: FALSE | SFI11: FALSE | SFJ11: FALSE | SFK11: FALSE | SFL11: FALSE | SFM11: FALSE | SFN11: FALSE | SFO11: FALSE | SFP11: FALSE | SFQ11: FALSE | SFR11: FALSE | SFS11: FALSE | SFT11: FALSE | SFU11: FALSE | SFV11: FALSE | SFW11: FALSE | SFX11: FALSE | SFY11: FALSE | SFZ11: FALSE | SGA11: FALSE | SGB11: FALSE | SGC11: FALSE | SGD11: FALSE | SGE11: FALSE | SGF11: FALSE | SGG11: FALSE | SGH11: FALSE | SGI11: FALSE | SGJ11: FALSE | SGK11: FALSE | SGL11: FALSE | SGM11: FALSE | SGN11: FALSE | SGO11: FALSE | SGP11: FALSE | SGQ11: FALSE | SGR11: FALSE | SGS11: FALSE | SGT11: FALSE | SGU11: FALSE | SGV11: FALSE | SGW11: FALSE | SGX11: FALSE | SGY11: FALSE | SGZ11: FALSE | SHA11: FALSE | SHB11: FALSE | SHC11: FALSE | SHD11: FALSE | SHE11: FALSE | SHF11: =ECHO(FALSE) -> FALSE | SHG11: FALSE | SHH11: FALSE | SHI11: FALSE | SHJ11: FALSE | SHK11: FALSE | SHL11: FALSE | SHM11: FALSE | SHN11: FALSE | SHO11: FALSE | SHP11: FALSE | SHQ11: FALSE | SHR11: FALSE | SHS11: FALSE | SHT11: FALSE | SHU11: FALSE | SHV11: FALSE | SHW11: FALSE | SHX11: FALSE | SHY11: FALSE | SHZ11: FALSE | SIA11: FALSE | SIB11: FALSE | SIC11: FALSE | SID11: FALSE | SIE11: FALSE | SIF11: FALSE | SIG11: FALSE | SIH11: FALSE | SII11: FALSE | SIJ11: FALSE | SIK11: FALSE | SIL11: FALSE | SIM11: FALSE | SIN11: FALSE | SIO11: FALSE | SIP11: FALSE | SIQ11: FALSE | SIR11: FALSE | SIS11: FALSE | SIT11: FALSE | SIU11: FALSE | SIV11: FALSE | SIW11: FALSE | SIX11: FALSE | SIY11: FALSE | SIZ11: FALSE | SJA11: FALSE | SJB11: FALSE | SJC11: FALSE | SJD11: FALSE | SJE11: FALSE | SJF11: FALSE | SJG11: FALSE | SJH11: FALSE | SJI11: FALSE | SJJ11: FALSE | SJK11: FALSE | SJL11: FALSE | SJM11: FALSE | SJN11: FALSE | SJO11: FALSE | SJP11: FALSE | SJQ11: FALSE | SJR11: =ECHO(FALSE) -> FALSE | SJS11: FALSE | SJT11: FALSE | SJU11: FALSE | SJV11: FALSE | SJW11: FALSE | SJX11: FALSE | SJY11: FALSE | SJZ11: FALSE | SKA11: FALSE | SKB11: FALSE | SKC11: FALSE | SKD11: FALSE | SKE11: FALSE | SKF11: FALSE | SKG11: FALSE | SKH11: FALSE | SKI11: FALSE | SKJ11: FALSE | SKK11: FALSE | SKL11: FALSE | SKM11: FALSE | SKN11: FALSE | SKO11: FALSE | SKP11: FALSE | SKQ11: FALSE | SKR11: FALSE | SKS11: FALSE | SKT11: FALSE | SKU11: FALSE | SKV11: FALSE | SKW11: FALSE | SKX11: FALSE | SKY11: FALSE | SKZ11: FALSE | SLA11: FALSE | SLB11: FALSE | SLC11: FALSE | SLD11: FALSE | SLE11: FALSE | SLF11: FALSE | SLG11: FALSE | SLH11: FALSE | SLI11: FALSE | SLJ11: FALSE | SLK11: FALSE | SLL11: FALSE | SLM11: FALSE | SLN11: FALSE | SLO11: FALSE | SLP11: FALSE | SLQ11: FALSE | SLR11: FALSE | SLS11: FALSE | SLT11: FALSE | SLU11: FALSE | SLV11: FALSE | SLW11: FALSE | SLX11: FALSE | SLY11: FALSE | SLZ11: FALSE | SMA11: FALSE | SMB11: FALSE | SMC11: FALSE | SMD11: =ECHO(FALSE) -> FALSE | SME11: FALSE | SMF11: FALSE | SMG11: FALSE | SMH11: FALSE | SMI11: FALSE | SMJ11: FALSE | SMK11: FALSE | SML11: FALSE | SMM11: FALSE | SMN11: FALSE | SMO11: FALSE | SMP11: FALSE | SMQ11: FALSE | SMR11: FALSE | SMS11: FALSE | SMT11: FALSE | SMU11: FALSE | SMV11: FALSE | SMW11: FALSE | SMX11: FALSE | SMY11: FALSE | SMZ11: FALSE | SNA11: FALSE | SNB11: FALSE | SNC11: FALSE | SND11: FALSE | SNE11: FALSE | SNF11: FALSE | SNG11: FALSE | SNH11: FALSE | SNI11: FALSE | SNJ11: FALSE | SNK11: FALSE | SNL11: FALSE | SNM11: FALSE | SNN11: FALSE | SNO11: FALSE | SNP11: FALSE | SNQ11: FALSE | SNR11: FALSE | SNS11: FALSE | SNT11: FALSE | SNU11: FALSE | SNV11: FALSE | SNW11: FALSE | SNX11: FALSE | SNY11: FALSE | SNZ11: FALSE | SOA11: FALSE | SOB11: FALSE | SOC11: FALSE | SOD11: FALSE | SOE11: FALSE | SOF11: FALSE | SOG11: FALSE | SOH11: FALSE | SOI11: FALSE | SOJ11: FALSE | SOK11: FALSE | SOL11: FALSE | SOM11: FALSE | SON11: FALSE | SOO11: FALSE | SOP11: =ECHO(FALSE) -> FALSE | SOQ11: FALSE | SOR11: FALSE | SOS11: FALSE | SOT11: FALSE | SOU11: FALSE | SOV11: FALSE | SOW11: FALSE | SOX11: FALSE | SOY11: FALSE | SOZ11: FALSE | SPA11: FALSE | SPB11: FALSE | SPC11: FALSE | SPD11: FALSE | SPE11: FALSE | SPF11: FALSE | SPG11: FALSE | SPH11: FALSE | SPI11: FALSE | SPJ11: FALSE | SPK11: FALSE | SPL11: FALSE | SPM11: FALSE | SPN11: FALSE | SPO11: FALSE | SPP11: FALSE | SPQ11: FALSE | SPR11: FALSE | SPS11: FALSE | SPT11: FALSE | SPU11: FALSE | SPV11: FALSE | SPW11: FALSE | SPX11: FALSE | SPY11: FALSE | SPZ11: FALSE | SQA11: FALSE | SQB11: FALSE | SQC11: FALSE | SQD11: FALSE | SQE11: FALSE | SQF11: FALSE | SQG11: FALSE | SQH11: FALSE | SQI11: FALSE | SQJ11: FALSE | SQK11: FALSE | SQL11: FALSE | SQM11: FALSE | SQN11: FALSE | SQO11: FALSE | SQP11: FALSE | SQQ11: FALSE | SQR11: FALSE | SQS11: FALSE | SQT11: FALSE | SQU11: FALSE | SQV11: FALSE | SQW11: FALSE | SQX11: FALSE | SQY11: FALSE | SQZ11: FALSE | SRA11: FALSE | SRB11: =ECHO(FALSE) -> FALSE | SRC11: FALSE | SRD11: FALSE | SRE11: FALSE | SRF11: FALSE | SRG11: FALSE | SRH11: FALSE | SRI11: FALSE | SRJ11: FALSE | SRK11: FALSE | SRL11: FALSE | SRM11: FALSE | SRN11: FALSE | SRO11: FALSE | SRP11: FALSE | SRQ11: FALSE | SRR11: FALSE | SRS11: FALSE | SRT11: FALSE | SRU11: FALSE | SRV11: FALSE | SRW11: FALSE | SRX11: FALSE | SRY11: FALSE | SRZ11: FALSE | SSA11: FALSE | SSB11: FALSE | SSC11: FALSE | SSD11: FALSE | SSE11: FALSE | SSF11: FALSE | SSG11: FALSE | SSH11: FALSE | SSI11: FALSE | SSJ11: FALSE | SSK11: FALSE | SSL11: FALSE | SSM11: FALSE | SSN11: FALSE | SSO11: FALSE | SSP11: FALSE | SSQ11: FALSE | SSR11: FALSE | SSS11: FALSE | SST11: FALSE | SSU11: FALSE | SSV11: FALSE | SSW11: FALSE | SSX11: FALSE | SSY11: FALSE | SSZ11: FALSE | STA11: FALSE | STB11: FALSE | STC11: FALSE | STD11: FALSE | STE11: FALSE | STF11: FALSE | STG11: FALSE | STH11: FALSE | STI11: FALSE | STJ11: FALSE | STK11: FALSE | STL11: FALSE | STM11: FALSE | STN11: =ECHO(FALSE) -> FALSE | STO11: FALSE | STP11: FALSE | STQ11: FALSE | STR11: FALSE | STS11: FALSE | STT11: FALSE | STU11: FALSE | STV11: FALSE | STW11: FALSE | STX11: FALSE | STY11: FALSE | STZ11: FALSE | SUA11: FALSE | SUB11: FALSE | SUC11: FALSE | SUD11: FALSE | SUE11: FALSE | SUF11: FALSE | SUG11: FALSE | SUH11: FALSE | SUI11: FALSE | SUJ11: FALSE | SUK11: FALSE | SUL11: FALSE | SUM11: FALSE | SUN11: FALSE | SUO11: FALSE | SUP11: FALSE | SUQ11: FALSE | SUR11: FALSE | SUS11: FALSE | SUT11: FALSE | SUU11: FALSE | SUV11: FALSE | SUW11: FALSE | SUX11: FALSE | SUY11: FALSE | SUZ11: FALSE | SVA11: FALSE | SVB11: FALSE | SVC11: FALSE | SVD11: FALSE | SVE11: FALSE | SVF11: FALSE | SVG11: FALSE | SVH11: FALSE | SVI11: FALSE | SVJ11: FALSE | SVK11: FALSE | SVL11: FALSE | SVM11: FALSE | SVN11: FALSE | SVO11: FALSE | SVP11: FALSE | SVQ11: FALSE | SVR11: FALSE | SVS11: FALSE | SVT11: FALSE | SVU11: FALSE | SVV11: FALSE | SVW11: FALSE | SVX11: FALSE | SVY11: FALSE | SVZ11: =ECHO(FALSE) -> FALSE | SWA11: FALSE | SWB11: FALSE | SWC11: FALSE | SWD11: FALSE | SWE11: FALSE | SWF11: FALSE | SWG11: FALSE | SWH11: FALSE | SWI11: FALSE | SWJ11: FALSE | SWK11: FALSE | SWL11: FALSE | SWM11: FALSE | SWN11: FALSE | SWO11: FALSE | SWP11: FALSE | SWQ11: FALSE | SWR11: FALSE | SWS11: FALSE | SWT11: FALSE | SWU11: FALSE | SWV11: FALSE | SWW11: FALSE | SWX11: FALSE | SWY11: FALSE | SWZ11: FALSE | SXA11: FALSE | SXB11: FALSE | SXC11: FALSE | SXD11: FALSE | SXE11: FALSE | SXF11: FALSE | SXG11: FALSE | SXH11: FALSE | SXI11: FALSE | SXJ11: FALSE | SXK11: FALSE | SXL11: FALSE | SXM11: FALSE | SXN11: FALSE | SXO11: FALSE | SXP11: FALSE | SXQ11: FALSE | SXR11: FALSE | SXS11: FALSE | SXT11: FALSE | SXU11: FALSE | SXV11: FALSE | SXW11: FALSE | SXX11: FALSE | SXY11: FALSE | SXZ11: FALSE | SYA11: FALSE | SYB11: FALSE | SYC11: FALSE | SYD11: FALSE | SYE11: FALSE | SYF11: FALSE | SYG11: FALSE | SYH11: FALSE | SYI11: FALSE | SYJ11: FALSE | SYK11: FALSE | SYL11: =ECHO(FALSE) -> FALSE | SYM11: FALSE | SYN11: FALSE | SYO11: FALSE | SYP11: FALSE | SYQ11: FALSE | SYR11: FALSE | SYS11: FALSE | SYT11: FALSE | SYU11: FALSE | SYV11: FALSE | SYW11: FALSE | SYX11: FALSE | SYY11: FALSE | SYZ11: FALSE | SZA11: FALSE | SZB11: FALSE | SZC11: FALSE | SZD11: FALSE | SZE11: FALSE | SZF11: FALSE | SZG11: FALSE | SZH11: FALSE | SZI11: FALSE | SZJ11: FALSE | SZK11: FALSE | SZL11: FALSE | SZM11: FALSE | SZN11: FALSE | SZO11: FALSE | SZP11: FALSE | SZQ11: FALSE | SZR11: FALSE | SZS11: FALSE | SZT11: FALSE | SZU11: FALSE | SZV11: FALSE | SZW11: FALSE | SZX11: FALSE | SZY11: FALSE | SZZ11: FALSE | TAA11: FALSE | TAB11: FALSE | TAC11: FALSE | TAD11: FALSE | TAE11: FALSE | TAF11: FALSE | TAG11: FALSE | TAH11: FALSE | TAI11: FALSE | TAJ11: FALSE | TAK11: FALSE | TAL11: FALSE | TAM11: FALSE | TAN11: FALSE | TAO11: FALSE | TAP11: FALSE | TAQ11: FALSE | TAR11: FALSE | TAS11: FALSE | TAT11: FALSE | TAU11: FALSE | TAV11: FALSE | TAW11: FALSE | TAX11: =ECHO(FALSE) -> FALSE | TAY11: FALSE | TAZ11: FALSE | TBA11: FALSE | TBB11: FALSE | TBC11: FALSE | TBD11: FALSE | TBE11: FALSE | TBF11: FALSE | TBG11: FALSE | TBH11: FALSE | TBI11: FALSE | TBJ11: FALSE | TBK11: FALSE | TBL11: FALSE | TBM11: FALSE | TBN11: FALSE | TBO11: FALSE | TBP11: FALSE | TBQ11: FALSE | TBR11: FALSE | TBS11: FALSE | TBT11: FALSE | TBU11: FALSE | TBV11: FALSE | TBW11: FALSE | TBX11: FALSE | TBY11: FALSE | TBZ11: FALSE | TCA11: FALSE | TCB11: FALSE | TCC11: FALSE | TCD11: FALSE | TCE11: FALSE | TCF11: FALSE | TCG11: FALSE | TCH11: FALSE | TCI11: FALSE | TCJ11: FALSE | TCK11: FALSE | TCL11: FALSE | TCM11: FALSE | TCN11: FALSE | TCO11: FALSE | TCP11: FALSE | TCQ11: FALSE | TCR11: FALSE | TCS11: FALSE | TCT11: FALSE | TCU11: FALSE | TCV11: FALSE | TCW11: FALSE | TCX11: FALSE | TCY11: FALSE | TCZ11: FALSE | TDA11: FALSE | TDB11: FALSE | TDC11: FALSE | TDD11: FALSE | TDE11: FALSE | TDF11: FALSE | TDG11: FALSE | TDH11: FALSE | TDI11: FALSE | TDJ11: =ECHO(FALSE) -> FALSE | TDK11: FALSE | TDL11: FALSE | TDM11: FALSE | TDN11: FALSE | TDO11: FALSE | TDP11: FALSE | TDQ11: FALSE | TDR11: FALSE | TDS11: FALSE | TDT11: FALSE | TDU11: FALSE | TDV11: FALSE | TDW11: FALSE | TDX11: FALSE | TDY11: FALSE | TDZ11: FALSE | TEA11: FALSE | TEB11: FALSE | TEC11: FALSE | TED11: FALSE | TEE11: FALSE | TEF11: FALSE | TEG11: FALSE | TEH11: FALSE | TEI11: FALSE | TEJ11: FALSE | TEK11: FALSE | TEL11: FALSE | TEM11: FALSE | TEN11: FALSE | TEO11: FALSE | TEP11: FALSE | TEQ11: FALSE | TER11: FALSE | TES11: FALSE | TET11: FALSE | TEU11: FALSE | TEV11: FALSE | TEW11: FALSE | TEX11: FALSE | TEY11: FALSE | TEZ11: FALSE | TFA11: FALSE | TFB11: FALSE | TFC11: FALSE | TFD11: FALSE | TFE11: FALSE | TFF11: FALSE | TFG11: FALSE | TFH11: FALSE | TFI11: FALSE | TFJ11: FALSE | TFK11: FALSE | TFL11: FALSE | TFM11: FALSE | TFN11: FALSE | TFO11: FALSE | TFP11: FALSE | TFQ11: FALSE | TFR11: FALSE | TFS11: FALSE | TFT11: FALSE | TFU11: FALSE | TFV11: =ECHO(FALSE) -> FALSE | TFW11: FALSE | TFX11: FALSE | TFY11: FALSE | TFZ11: FALSE | TGA11: FALSE | TGB11: FALSE | TGC11: FALSE | TGD11: FALSE | TGE11: FALSE | TGF11: FALSE | TGG11: FALSE | TGH11: FALSE | TGI11: FALSE | TGJ11: FALSE | TGK11: FALSE | TGL11: FALSE | TGM11: FALSE | TGN11: FALSE | TGO11: FALSE | TGP11: FALSE | TGQ11: FALSE | TGR11: FALSE | TGS11: FALSE | TGT11: FALSE | TGU11: FALSE | TGV11: FALSE | TGW11: FALSE | TGX11: FALSE | TGY11: FALSE | TGZ11: FALSE | THA11: FALSE | THB11: FALSE | THC11: FALSE | THD11: FALSE | THE11: FALSE | THF11: FALSE | THG11: FALSE | THH11: FALSE | THI11: FALSE | THJ11: FALSE | THK11: FALSE | THL11: FALSE | THM11: FALSE | THN11: FALSE | THO11: FALSE | THP11: FALSE | THQ11: FALSE | THR11: FALSE | THS11: FALSE | THT11: FALSE | THU11: FALSE | THV11: FALSE | THW11: FALSE | THX11: FALSE | THY11: FALSE | THZ11: FALSE | TIA11: FALSE | TIB11: FALSE | TIC11: FALSE | TID11: FALSE | TIE11: FALSE | TIF11: FALSE | TIG11: FALSE | TIH11: =ECHO(FALSE) -> FALSE | TII11: FALSE | TIJ11: FALSE | TIK11: FALSE | TIL11: FALSE | TIM11: FALSE | TIN11: FALSE | TIO11: FALSE | TIP11: FALSE | TIQ11: FALSE | TIR11: FALSE | TIS11: FALSE | TIT11: FALSE | TIU11: FALSE | TIV11: FALSE | TIW11: FALSE | TIX11: FALSE | TIY11: FALSE | TIZ11: FALSE | TJA11: FALSE | TJB11: FALSE | TJC11: FALSE | TJD11: FALSE | TJE11: FALSE | TJF11: FALSE | TJG11: FALSE | TJH11: FALSE | TJI11: FALSE | TJJ11: FALSE | TJK11: FALSE | TJL11: FALSE | TJM11: FALSE | TJN11: FALSE | TJO11: FALSE | TJP11: FALSE | TJQ11: FALSE | TJR11: FALSE | TJS11: FALSE | TJT11: FALSE | TJU11: FALSE | TJV11: FALSE | TJW11: FALSE | TJX11: FALSE | TJY11: FALSE | TJZ11: FALSE | TKA11: FALSE | TKB11: FALSE | TKC11: FALSE | TKD11: FALSE | TKE11: FALSE | TKF11: FALSE | TKG11: FALSE | TKH11: FALSE | TKI11: FALSE | TKJ11: FALSE | TKK11: FALSE | TKL11: FALSE | TKM11: FALSE | TKN11: FALSE | TKO11: FALSE | TKP11: FALSE | TKQ11: FALSE | TKR11: FALSE | TKS11: FALSE | TKT11: =ECHO(FALSE) -> FALSE | TKU11: FALSE | TKV11: FALSE | TKW11: FALSE | TKX11: FALSE | TKY11: FALSE | TKZ11: FALSE | TLA11: FALSE | TLB11: FALSE | TLC11: FALSE | TLD11: FALSE | TLE11: FALSE | TLF11: FALSE | TLG11: FALSE | TLH11: FALSE | TLI11: FALSE | TLJ11: FALSE | TLK11: FALSE | TLL11: FALSE | TLM11: FALSE | TLN11: FALSE | TLO11: FALSE | TLP11: FALSE | TLQ11: FALSE | TLR11: FALSE | TLS11: FALSE | TLT11: FALSE | TLU11: FALSE | TLV11: FALSE | TLW11: FALSE | TLX11: FALSE | TLY11: FALSE | TLZ11: FALSE | TMA11: FALSE | TMB11: FALSE | TMC11: FALSE | TMD11: FALSE | TME11: FALSE | TMF11: FALSE | TMG11: FALSE | TMH11: FALSE | TMI11: FALSE | TMJ11: FALSE | TMK11: FALSE | TML11: FALSE | TMM11: FALSE | TMN11: FALSE | TMO11: FALSE | TMP11: FALSE | TMQ11: FALSE | TMR11: FALSE | TMS11: FALSE | TMT11: FALSE | TMU11: FALSE | TMV11: FALSE | TMW11: FALSE | TMX11: FALSE | TMY11: FALSE | TMZ11: FALSE | TNA11: FALSE | TNB11: FALSE | TNC11: FALSE | TND11: FALSE | TNE11: FALSE | TNF11: =ECHO(FALSE) -> FALSE | TNG11: FALSE | TNH11: FALSE | TNI11: FALSE | TNJ11: FALSE | TNK11: FALSE | TNL11: FALSE | TNM11: FALSE | TNN11: FALSE | TNO11: FALSE | TNP11: FALSE | TNQ11: FALSE | TNR11: FALSE | TNS11: FALSE | TNT11: FALSE | TNU11: FALSE | TNV11: FALSE | TNW11: FALSE | TNX11: FALSE | TNY11: FALSE | TNZ11: FALSE | TOA11: FALSE | TOB11: FALSE | TOC11: FALSE | TOD11: FALSE | TOE11: FALSE | TOF11: FALSE | TOG11: FALSE | TOH11: FALSE | TOI11: FALSE | TOJ11: FALSE | TOK11: FALSE | TOL11: FALSE | TOM11: FALSE | TON11: FALSE | TOO11: FALSE | TOP11: FALSE | TOQ11: FALSE | TOR11: FALSE | TOS11: FALSE | TOT11: FALSE | TOU11: FALSE | TOV11: FALSE | TOW11: FALSE | TOX11: FALSE | TOY11: FALSE | TOZ11: FALSE | TPA11: FALSE | TPB11: FALSE | TPC11: FALSE | TPD11: FALSE | TPE11: FALSE | TPF11: FALSE | TPG11: FALSE | TPH11: FALSE | TPI11: FALSE | TPJ11: FALSE | TPK11: FALSE | TPL11: FALSE | TPM11: FALSE | TPN11: FALSE | TPO11: FALSE | TPP11: FALSE | TPQ11: FALSE | TPR11: =ECHO(FALSE) -> FALSE | TPS11: FALSE | TPT11: FALSE | TPU11: FALSE | TPV11: FALSE | TPW11: FALSE | TPX11: FALSE | TPY11: FALSE | TPZ11: FALSE | TQA11: FALSE | TQB11: FALSE | TQC11: FALSE | TQD11: FALSE | TQE11: FALSE | TQF11: FALSE | TQG11: FALSE | TQH11: FALSE | TQI11: FALSE | TQJ11: FALSE | TQK11: FALSE | TQL11: FALSE | TQM11: FALSE | TQN11: FALSE | TQO11: FALSE | TQP11: FALSE | TQQ11: FALSE | TQR11: FALSE | TQS11: FALSE | TQT11: FALSE | TQU11: FALSE | TQV11: FALSE | TQW11: FALSE | TQX11: FALSE | TQY11: FALSE | TQZ11: FALSE | TRA11: FALSE | TRB11: FALSE | TRC11: FALSE | TRD11: FALSE | TRE11: FALSE | TRF11: FALSE | TRG11: FALSE | TRH11: FALSE | TRI11: FALSE | TRJ11: FALSE | TRK11: FALSE | TRL11: FALSE | TRM11: FALSE | TRN11: FALSE | TRO11: FALSE | TRP11: FALSE | TRQ11: FALSE | TRR11: FALSE | TRS11: FALSE | TRT11: FALSE | TRU11: FALSE | TRV11: FALSE | TRW11: FALSE | TRX11: FALSE | TRY11: FALSE | TRZ11: FALSE | TSA11: FALSE | TSB11: FALSE | TSC11: FALSE | TSD11: =ECHO(FALSE) -> FALSE | TSE11: FALSE | TSF11: FALSE | TSG11: FALSE | TSH11: FALSE | TSI11: FALSE | TSJ11: FALSE | TSK11: FALSE | TSL11: FALSE | TSM11: FALSE | TSN11: FALSE | TSO11: FALSE | TSP11: FALSE | TSQ11: FALSE | TSR11: FALSE | TSS11: FALSE | TST11: FALSE | TSU11: FALSE | TSV11: FALSE | TSW11: FALSE | TSX11: FALSE | TSY11: FALSE | TSZ11: FALSE | TTA11: FALSE | TTB11: FALSE | TTC11: FALSE | TTD11: FALSE | TTE11: FALSE | TTF11: FALSE | TTG11: FALSE | TTH11: FALSE | TTI11: FALSE | TTJ11: FALSE | TTK11: FALSE | TTL11: FALSE | TTM11: FALSE | TTN11: FALSE | TTO11: FALSE | TTP11: FALSE | TTQ11: FALSE | TTR11: FALSE | TTS11: FALSE | TTT11: FALSE | TTU11: FALSE | TTV11: FALSE | TTW11: FALSE | TTX11: FALSE | TTY11: FALSE | TTZ11: FALSE | TUA11: FALSE | TUB11: FALSE | TUC11: FALSE | TUD11: FALSE | TUE11: FALSE | TUF11: FALSE | TUG11: FALSE | TUH11: FALSE | TUI11: FALSE | TUJ11: FALSE | TUK11: FALSE | TUL11: FALSE | TUM11: FALSE | TUN11: FALSE | TUO11: FALSE | TUP11: =ECHO(FALSE) -> FALSE | TUQ11: FALSE | TUR11: FALSE | TUS11: FALSE | TUT11: FALSE | TUU11: FALSE | TUV11: FALSE | TUW11: FALSE | TUX11: FALSE | TUY11: FALSE | TUZ11: FALSE | TVA11: FALSE | TVB11: FALSE | TVC11: FALSE | TVD11: FALSE | TVE11: FALSE | TVF11: FALSE | TVG11: FALSE | TVH11: FALSE | TVI11: FALSE | TVJ11: FALSE | TVK11: FALSE | TVL11: FALSE | TVM11: FALSE | TVN11: FALSE | TVO11: FALSE | TVP11: FALSE | TVQ11: FALSE | TVR11: FALSE | TVS11: FALSE | TVT11: FALSE | TVU11: FALSE | TVV11: FALSE | TVW11: FALSE | TVX11: FALSE | TVY11: FALSE | TVZ11: FALSE | TWA11: FALSE | TWB11: FALSE | TWC11: FALSE | TWD11: FALSE | TWE11: FALSE | TWF11: FALSE | TWG11: FALSE | TWH11: FALSE | TWI11: FALSE | TWJ11: FALSE | TWK11: FALSE | TWL11: FALSE | TWM11: FALSE | TWN11: FALSE | TWO11: FALSE | TWP11: FALSE | TWQ11: FALSE | TWR11: FALSE | TWS11: FALSE | TWT11: FALSE | TWU11: FALSE | TWV11: FALSE | TWW11: FALSE | TWX11: FALSE | TWY11: FALSE | TWZ11: FALSE | TXA11: FALSE | TXB11: =ECHO(FALSE) -> FALSE | TXC11: FALSE | TXD11: FALSE | TXE11: FALSE | TXF11: FALSE | TXG11: FALSE | TXH11: FALSE | TXI11: FALSE | TXJ11: FALSE | TXK11: FALSE | TXL11: FALSE | TXM11: FALSE | TXN11: FALSE | TXO11: FALSE | TXP11: FALSE | TXQ11: FALSE | TXR11: FALSE | TXS11: FALSE | TXT11: FALSE | TXU11: FALSE | TXV11: FALSE | TXW11: FALSE | TXX11: FALSE | TXY11: FALSE | TXZ11: FALSE | TYA11: FALSE | TYB11: FALSE | TYC11: FALSE | TYD11: FALSE | TYE11: FALSE | TYF11: FALSE | TYG11: FALSE | TYH11: FALSE | TYI11: FALSE | TYJ11: FALSE | TYK11: FALSE | TYL11: FALSE | TYM11: FALSE | TYN11: FALSE | TYO11: FALSE | TYP11: FALSE | TYQ11: FALSE | TYR11: FALSE | TYS11: FALSE | TYT11: FALSE | TYU11: FALSE | TYV11: FALSE | TYW11: FALSE | TYX11: FALSE | TYY11: FALSE | TYZ11: FALSE | TZA11: FALSE | TZB11: FALSE | TZC11: FALSE | TZD11: FALSE | TZE11: FALSE | TZF11: FALSE | TZG11: FALSE | TZH11: FALSE | TZI11: FALSE | TZJ11: FALSE | TZK11: FALSE | TZL11: FALSE | TZM11: FALSE | TZN11: =ECHO(FALSE) -> FALSE | TZO11: FALSE | TZP11: FALSE | TZQ11: FALSE | TZR11: FALSE | TZS11: FALSE | TZT11: FALSE | TZU11: FALSE | TZV11: FALSE | TZW11: FALSE | TZX11: FALSE | TZY11: FALSE | TZZ11: FALSE | UAA11: FALSE | UAB11: FALSE | UAC11: FALSE | UAD11: FALSE | UAE11: FALSE | UAF11: FALSE | UAG11: FALSE | UAH11: FALSE | UAI11: FALSE | UAJ11: FALSE | UAK11: FALSE | UAL11: FALSE | UAM11: FALSE | UAN11: FALSE | UAO11: FALSE | UAP11: FALSE | UAQ11: FALSE | UAR11: FALSE | UAS11: FALSE | UAT11: FALSE | UAU11: FALSE | UAV11: FALSE | UAW11: FALSE | UAX11: FALSE | UAY11: FALSE | UAZ11: FALSE | UBA11: FALSE | UBB11: FALSE | UBC11: FALSE | UBD11: FALSE | UBE11: FALSE | UBF11: FALSE | UBG11: FALSE | UBH11: FALSE | UBI11: FALSE | UBJ11: FALSE | UBK11: FALSE | UBL11: FALSE | UBM11: FALSE | UBN11: FALSE | UBO11: FALSE | UBP11: FALSE | UBQ11: FALSE | UBR11: FALSE | UBS11: FALSE | UBT11: FALSE | UBU11: FALSE | UBV11: FALSE | UBW11: FALSE | UBX11: FALSE | UBY11: FALSE | UBZ11: =ECHO(FALSE) -> FALSE | UCA11: FALSE | UCB11: FALSE | UCC11: FALSE | UCD11: FALSE | UCE11: FALSE | UCF11: FALSE | UCG11: FALSE | UCH11: FALSE | UCI11: FALSE | UCJ11: FALSE | UCK11: FALSE | UCL11: FALSE | UCM11: FALSE | UCN11: FALSE | UCO11: FALSE | UCP11: FALSE | UCQ11: FALSE | UCR11: FALSE | UCS11: FALSE | UCT11: FALSE | UCU11: FALSE | UCV11: FALSE | UCW11: FALSE | UCX11: FALSE | UCY11: FALSE | UCZ11: FALSE | UDA11: FALSE | UDB11: FALSE | UDC11: FALSE | UDD11: FALSE | UDE11: FALSE | UDF11: FALSE | UDG11: FALSE | UDH11: FALSE | UDI11: FALSE | UDJ11: FALSE | UDK11: FALSE | UDL11: FALSE | UDM11: FALSE | UDN11: FALSE | UDO11: FALSE | UDP11: FALSE | UDQ11: FALSE | UDR11: FALSE | UDS11: FALSE | UDT11: FALSE | UDU11: FALSE | UDV11: FALSE | UDW11: FALSE | UDX11: FALSE | UDY11: FALSE | UDZ11: FALSE | UEA11: FALSE | UEB11: FALSE | UEC11: FALSE | UED11: FALSE | UEE11: FALSE | UEF11: FALSE | UEG11: FALSE | UEH11: FALSE | UEI11: FALSE | UEJ11: FALSE | UEK11: FALSE | UEL11: =ECHO(FALSE) -> FALSE | UEM11: FALSE | UEN11: FALSE | UEO11: FALSE | UEP11: FALSE | UEQ11: FALSE | UER11: FALSE | UES11: FALSE | UET11: FALSE | UEU11: FALSE | UEV11: FALSE | UEW11: FALSE | UEX11: FALSE | UEY11: FALSE | UEZ11: FALSE | UFA11: FALSE | UFB11: FALSE | UFC11: FALSE | UFD11: FALSE | UFE11: FALSE | UFF11: FALSE | UFG11: FALSE | UFH11: FALSE | UFI11: FALSE | UFJ11: FALSE | UFK11: FALSE | UFL11: FALSE | UFM11: FALSE | UFN11: FALSE | UFO11: FALSE | UFP11: FALSE | UFQ11: FALSE | UFR11: FALSE | UFS11: FALSE | UFT11: FALSE | UFU11: FALSE | UFV11: FALSE | UFW11: FALSE | UFX11: FALSE | UFY11: FALSE | UFZ11: FALSE | UGA11: FALSE | UGB11: FALSE | UGC11: FALSE | UGD11: FALSE | UGE11: FALSE | UGF11: FALSE | UGG11: FALSE | UGH11: FALSE | UGI11: FALSE | UGJ11: FALSE | UGK11: FALSE | UGL11: FALSE | UGM11: FALSE | UGN11: FALSE | UGO11: FALSE | UGP11: FALSE | UGQ11: FALSE | UGR11: FALSE | UGS11: FALSE | UGT11: FALSE | UGU11: FALSE | UGV11: FALSE | UGW11: FALSE | UGX11: =ECHO(FALSE) -> FALSE | UGY11: FALSE | UGZ11: FALSE | UHA11: FALSE | UHB11: FALSE | UHC11: FALSE | UHD11: FALSE | UHE11: FALSE | UHF11: FALSE | UHG11: FALSE | UHH11: FALSE | UHI11: FALSE | UHJ11: FALSE | UHK11: FALSE | UHL11: FALSE | UHM11: FALSE | UHN11: FALSE | UHO11: FALSE | UHP11: FALSE | UHQ11: FALSE | UHR11: FALSE | UHS11: FALSE | UHT11: FALSE | UHU11: FALSE | UHV11: FALSE | UHW11: FALSE | UHX11: FALSE | UHY11: FALSE | UHZ11: FALSE | UIA11: FALSE | UIB11: FALSE | UIC11: FALSE | UID11: FALSE | UIE11: FALSE | UIF11: FALSE | UIG11: FALSE | UIH11: FALSE | UII11: FALSE | UIJ11: FALSE | UIK11: FALSE | UIL11: FALSE | UIM11: FALSE | UIN11: FALSE | UIO11: FALSE | UIP11: FALSE | UIQ11: FALSE | UIR11: FALSE | UIS11: FALSE | UIT11: FALSE | UIU11: FALSE | UIV11: FALSE | UIW11: FALSE | UIX11: FALSE | UIY11: FALSE | UIZ11: FALSE | UJA11: FALSE | UJB11: FALSE | UJC11: FALSE | UJD11: FALSE | UJE11: FALSE | UJF11: FALSE | UJG11: FALSE | UJH11: FALSE | UJI11: FALSE | UJJ11: =ECHO(FALSE) -> FALSE | UJK11: FALSE | UJL11: FALSE | UJM11: FALSE | UJN11: FALSE | UJO11: FALSE | UJP11: FALSE | UJQ11: FALSE | UJR11: FALSE | UJS11: FALSE | UJT11: FALSE | UJU11: FALSE | UJV11: FALSE | UJW11: FALSE | UJX11: FALSE | UJY11: FALSE | UJZ11: FALSE | UKA11: FALSE | UKB11: FALSE | UKC11: FALSE | UKD11: FALSE | UKE11: FALSE | UKF11: FALSE | UKG11: FALSE | UKH11: FALSE | UKI11: FALSE | UKJ11: FALSE | UKK11: FALSE | UKL11: FALSE | UKM11: FALSE | UKN11: FALSE | UKO11: FALSE | UKP11: FALSE | UKQ11: FALSE | UKR11: FALSE | UKS11: FALSE | UKT11: FALSE | UKU11: FALSE | UKV11: FALSE | UKW11: FALSE | UKX11: FALSE | UKY11: FALSE | UKZ11: FALSE | ULA11: FALSE | ULB11: FALSE | ULC11: FALSE | ULD11: FALSE | ULE11: FALSE | ULF11: FALSE | ULG11: FALSE | ULH11: FALSE | ULI11: FALSE | ULJ11: FALSE | ULK11: FALSE | ULL11: FALSE | ULM11: FALSE | ULN11: FALSE | ULO11: FALSE | ULP11: FALSE | ULQ11: FALSE | ULR11: FALSE | ULS11: FALSE | ULT11: FALSE | ULU11: FALSE | ULV11: =ECHO(FALSE) -> FALSE | ULW11: FALSE | ULX11: FALSE | ULY11: FALSE | ULZ11: FALSE | UMA11: FALSE | UMB11: FALSE | UMC11: FALSE | UMD11: FALSE | UME11: FALSE | UMF11: FALSE | UMG11: FALSE | UMH11: FALSE | UMI11: FALSE | UMJ11: FALSE | UMK11: FALSE | UML11: FALSE | UMM11: FALSE | UMN11: FALSE | UMO11: FALSE | UMP11: FALSE | UMQ11: FALSE | UMR11: FALSE | UMS11: FALSE | UMT11: FALSE | UMU11: FALSE | UMV11: FALSE | UMW11: FALSE | UMX11: FALSE | UMY11: FALSE | UMZ11: FALSE | UNA11: FALSE | UNB11: FALSE | UNC11: FALSE | UND11: FALSE | UNE11: FALSE | UNF11: FALSE | UNG11: FALSE | UNH11: FALSE | UNI11: FALSE | UNJ11: FALSE | UNK11: FALSE | UNL11: FALSE | UNM11: FALSE | UNN11: FALSE | UNO11: FALSE | UNP11: FALSE | UNQ11: FALSE | UNR11: FALSE | UNS11: FALSE | UNT11: FALSE | UNU11: FALSE | UNV11: FALSE | UNW11: FALSE | UNX11: FALSE | UNY11: FALSE | UNZ11: FALSE | UOA11: FALSE | UOB11: FALSE | UOC11: FALSE | UOD11: FALSE | UOE11: FALSE | UOF11: FALSE | UOG11: FALSE | UOH11: =ECHO(FALSE) -> FALSE | UOI11: FALSE | UOJ11: FALSE | UOK11: FALSE | UOL11: FALSE | UOM11: FALSE | UON11: FALSE | UOO11: FALSE | UOP11: FALSE | UOQ11: FALSE | UOR11: FALSE | UOS11: FALSE | UOT11: FALSE | UOU11: FALSE | UOV11: FALSE | UOW11: FALSE | UOX11: FALSE | UOY11: FALSE | UOZ11: FALSE | UPA11: FALSE | UPB11: FALSE | UPC11: FALSE | UPD11: FALSE | UPE11: FALSE | UPF11: FALSE | UPG11: FALSE | UPH11: FALSE | UPI11: FALSE | UPJ11: FALSE | UPK11: FALSE | UPL11: FALSE | UPM11: FALSE | UPN11: FALSE | UPO11: FALSE | UPP11: FALSE | UPQ11: FALSE | UPR11: FALSE | UPS11: FALSE | UPT11: FALSE | UPU11: FALSE | UPV11: FALSE | UPW11: FALSE | UPX11: FALSE | UPY11: FALSE | UPZ11: FALSE | UQA11: FALSE | UQB11: FALSE | UQC11: FALSE | UQD11: FALSE | UQE11: FALSE | UQF11: FALSE | UQG11: FALSE | UQH11: FALSE | UQI11: FALSE | UQJ11: FALSE | UQK11: FALSE | UQL11: FALSE | UQM11: FALSE | UQN11: FALSE | UQO11: FALSE | UQP11: FALSE | UQQ11: FALSE | UQR11: FALSE | UQS11: FALSE | UQT11: =ECHO(FALSE) -> FALSE | UQU11: FALSE | UQV11: FALSE | UQW11: FALSE | UQX11: FALSE | UQY11: FALSE | UQZ11: FALSE | URA11: FALSE | URB11: FALSE | URC11: FALSE | URD11: FALSE | URE11: FALSE | URF11: FALSE | URG11: FALSE | URH11: FALSE | URI11: FALSE | URJ11: FALSE | URK11: FALSE | URL11: FALSE | URM11: FALSE | URN11: FALSE | URO11: FALSE | URP11: FALSE | URQ11: FALSE | URR11: FALSE | URS11: FALSE | URT11: FALSE | URU11: FALSE | URV11: FALSE | URW11: FALSE | URX11: FALSE | URY11: FALSE | URZ11: FALSE | USA11: FALSE | USB11: FALSE | USC11: FALSE | USD11: FALSE | USE11: FALSE | USF11: FALSE | USG11: FALSE | USH11: FALSE | USI11: FALSE | USJ11: FALSE | USK11: FALSE | USL11: FALSE | USM11: FALSE | USN11: FALSE | USO11: FALSE | USP11: FALSE | USQ11: FALSE | USR11: FALSE | USS11: FALSE | UST11: FALSE | USU11: FALSE | USV11: FALSE | USW11: FALSE | USX11: FALSE | USY11: FALSE | USZ11: FALSE | UTA11: FALSE | UTB11: FALSE | UTC11: FALSE | UTD11: FALSE | UTE11: FALSE | UTF11: =ECHO(FALSE) -> FALSE | UTG11: FALSE | UTH11: FALSE | UTI11: FALSE | UTJ11: FALSE | UTK11: FALSE | UTL11: FALSE | UTM11: FALSE | UTN11: FALSE | UTO11: FALSE | UTP11: FALSE | UTQ11: FALSE | UTR11: FALSE | UTS11: FALSE | UTT11: FALSE | UTU11: FALSE | UTV11: FALSE | UTW11: FALSE | UTX11: FALSE | UTY11: FALSE | UTZ11: FALSE | UUA11: FALSE | UUB11: FALSE | UUC11: FALSE | UUD11: FALSE | UUE11: FALSE | UUF11: FALSE | UUG11: FALSE | UUH11: FALSE | UUI11: FALSE | UUJ11: FALSE | UUK11: FALSE | UUL11: FALSE | UUM11: FALSE | UUN11: FALSE | UUO11: FALSE | UUP11: FALSE | UUQ11: FALSE | UUR11: FALSE | UUS11: FALSE | UUT11: FALSE | UUU11: FALSE | UUV11: FALSE | UUW11: FALSE | UUX11: FALSE | UUY11: FALSE | UUZ11: FALSE | UVA11: FALSE | UVB11: FALSE | UVC11: FALSE | UVD11: FALSE | UVE11: FALSE | UVF11: FALSE | UVG11: FALSE | UVH11: FALSE | UVI11: FALSE | UVJ11: FALSE | UVK11: FALSE | UVL11: FALSE | UVM11: FALSE | UVN11: FALSE | UVO11: FALSE | UVP11: FALSE | UVQ11: FALSE | UVR11: =ECHO(FALSE) -> FALSE | UVS11: FALSE | UVT11: FALSE | UVU11: FALSE | UVV11: FALSE | UVW11: FALSE | UVX11: FALSE | UVY11: FALSE | UVZ11: FALSE | UWA11: FALSE | UWB11: FALSE | UWC11: FALSE | UWD11: FALSE | UWE11: FALSE | UWF11: FALSE | UWG11: FALSE | UWH11: FALSE | UWI11: FALSE | UWJ11: FALSE | UWK11: FALSE | UWL11: FALSE | UWM11: FALSE | UWN11: FALSE | UWO11: FALSE | UWP11: FALSE | UWQ11: FALSE | UWR11: FALSE | UWS11: FALSE | UWT11: FALSE | UWU11: FALSE | UWV11: FALSE | UWW11: FALSE | UWX11: FALSE | UWY11: FALSE | UWZ11: FALSE | UXA11: FALSE | UXB11: FALSE | UXC11: FALSE | UXD11: FALSE | UXE11: FALSE | UXF11: FALSE | UXG11: FALSE | UXH11: FALSE | UXI11: FALSE | UXJ11: FALSE | UXK11: FALSE | UXL11: FALSE | UXM11: FALSE | UXN11: FALSE | UXO11: FALSE | UXP11: FALSE | UXQ11: FALSE | UXR11: FALSE | UXS11: FALSE | UXT11: FALSE | UXU11: FALSE | UXV11: FALSE | UXW11: FALSE | UXX11: FALSE | UXY11: FALSE | UXZ11: FALSE | UYA11: FALSE | UYB11: FALSE | UYC11: FALSE | UYD11: =ECHO(FALSE) -> FALSE | UYE11: FALSE | UYF11: FALSE | UYG11: FALSE | UYH11: FALSE | UYI11: FALSE | UYJ11: FALSE | UYK11: FALSE | UYL11: FALSE | UYM11: FALSE | UYN11: FALSE | UYO11: FALSE | UYP11: FALSE | UYQ11: FALSE | UYR11: FALSE | UYS11: FALSE | UYT11: FALSE | UYU11: FALSE | UYV11: FALSE | UYW11: FALSE | UYX11: FALSE | UYY11: FALSE | UYZ11: FALSE | UZA11: FALSE | UZB11: FALSE | UZC11: FALSE | UZD11: FALSE | UZE11: FALSE | UZF11: FALSE | UZG11: FALSE | UZH11: FALSE | UZI11: FALSE | UZJ11: FALSE | UZK11: FALSE | UZL11: FALSE | UZM11: FALSE | UZN11: FALSE | UZO11: FALSE | UZP11: FALSE | UZQ11: FALSE | UZR11: FALSE | UZS11: FALSE | UZT11: FALSE | UZU11: FALSE | UZV11: FALSE | UZW11: FALSE | UZX11: FALSE | UZY11: FALSE | UZZ11: FALSE | VAA11: FALSE | VAB11: FALSE | VAC11: FALSE | VAD11: FALSE | VAE11: FALSE | VAF11: FALSE | VAG11: FALSE | VAH11: FALSE | VAI11: FALSE | VAJ11: FALSE | VAK11: FALSE | VAL11: FALSE | VAM11: FALSE | VAN11: FALSE | VAO11: FALSE | VAP11: =ECHO(FALSE) -> FALSE | VAQ11: FALSE | VAR11: FALSE | VAS11: FALSE | VAT11: FALSE | VAU11: FALSE | VAV11: FALSE | VAW11: FALSE | VAX11: FALSE | VAY11: FALSE | VAZ11: FALSE | VBA11: FALSE | VBB11: FALSE | VBC11: FALSE | VBD11: FALSE | VBE11: FALSE | VBF11: FALSE | VBG11: FALSE | VBH11: FALSE | VBI11: FALSE | VBJ11: FALSE | VBK11: FALSE | VBL11: FALSE | VBM11: FALSE | VBN11: FALSE | VBO11: FALSE | VBP11: FALSE | VBQ11: FALSE | VBR11: FALSE | VBS11: FALSE | VBT11: FALSE | VBU11: FALSE | VBV11: FALSE | VBW11: FALSE | VBX11: FALSE | VBY11: FALSE | VBZ11: FALSE | VCA11: FALSE | VCB11: FALSE | VCC11: FALSE | VCD11: FALSE | VCE11: FALSE | VCF11: FALSE | VCG11: FALSE | VCH11: FALSE | VCI11: FALSE | VCJ11: FALSE | VCK11: FALSE | VCL11: FALSE | VCM11: FALSE | VCN11: FALSE | VCO11: FALSE | VCP11: FALSE | VCQ11: FALSE | VCR11: FALSE | VCS11: FALSE | VCT11: FALSE | VCU11: FALSE | VCV11: FALSE | VCW11: FALSE | VCX11: FALSE | VCY11: FALSE | VCZ11: FALSE | VDA11: FALSE | VDB11: =ECHO(FALSE) -> FALSE | VDC11: FALSE | VDD11: FALSE | VDE11: FALSE | VDF11: FALSE | VDG11: FALSE | VDH11: FALSE | VDI11: FALSE | VDJ11: FALSE | VDK11: FALSE | VDL11: FALSE | VDM11: FALSE | VDN11: FALSE | VDO11: FALSE | VDP11: FALSE | VDQ11: FALSE | VDR11: FALSE | VDS11: FALSE | VDT11: FALSE | VDU11: FALSE | VDV11: FALSE | VDW11: FALSE | VDX11: FALSE | VDY11: FALSE | VDZ11: FALSE | VEA11: FALSE | VEB11: FALSE | VEC11: FALSE | VED11: FALSE | VEE11: FALSE | VEF11: FALSE | VEG11: FALSE | VEH11: FALSE | VEI11: FALSE | VEJ11: FALSE | VEK11: FALSE | VEL11: FALSE | VEM11: FALSE | VEN11: FALSE | VEO11: FALSE | VEP11: FALSE | VEQ11: FALSE | VER11: FALSE | VES11: FALSE | VET11: FALSE | VEU11: FALSE | VEV11: FALSE | VEW11: FALSE | VEX11: FALSE | VEY11: FALSE | VEZ11: FALSE | VFA11: FALSE | VFB11: FALSE | VFC11: FALSE | VFD11: FALSE | VFE11: FALSE | VFF11: FALSE | VFG11: FALSE | VFH11: FALSE | VFI11: FALSE | VFJ11: FALSE | VFK11: FALSE | VFL11: FALSE | VFM11: FALSE | VFN11: =ECHO(FALSE) -> FALSE | VFO11: FALSE | VFP11: FALSE | VFQ11: FALSE | VFR11: FALSE | VFS11: FALSE | VFT11: FALSE | VFU11: FALSE | VFV11: FALSE | VFW11: FALSE | VFX11: FALSE | VFY11: FALSE | VFZ11: FALSE | VGA11: FALSE | VGB11: FALSE | VGC11: FALSE | VGD11: FALSE | VGE11: FALSE | VGF11: FALSE | VGG11: FALSE | VGH11: FALSE | VGI11: FALSE | VGJ11: FALSE | VGK11: FALSE | VGL11: FALSE | VGM11: FALSE | VGN11: FALSE | VGO11: FALSE | VGP11: FALSE | VGQ11: FALSE | VGR11: FALSE | VGS11: FALSE | VGT11: FALSE | VGU11: FALSE | VGV11: FALSE | VGW11: FALSE | VGX11: FALSE | VGY11: FALSE | VGZ11: FALSE | VHA11: FALSE | VHB11: FALSE | VHC11: FALSE | VHD11: FALSE | VHE11: FALSE | VHF11: FALSE | VHG11: FALSE | VHH11: FALSE | VHI11: FALSE | VHJ11: FALSE | VHK11: FALSE | VHL11: FALSE | VHM11: FALSE | VHN11: FALSE | VHO11: FALSE | VHP11: FALSE | VHQ11: FALSE | VHR11: FALSE | VHS11: FALSE | VHT11: FALSE | VHU11: FALSE | VHV11: FALSE | VHW11: FALSE | VHX11: FALSE | VHY11: FALSE | VHZ11: =ECHO(FALSE) -> FALSE | VIA11: FALSE | VIB11: FALSE | VIC11: FALSE | VID11: FALSE | VIE11: FALSE | VIF11: FALSE | VIG11: FALSE | VIH11: FALSE | VII11: FALSE | VIJ11: FALSE | VIK11: FALSE | VIL11: FALSE | VIM11: FALSE | VIN11: FALSE | VIO11: FALSE | VIP11: FALSE | VIQ11: FALSE | VIR11: FALSE | VIS11: FALSE | VIT11: FALSE | VIU11: FALSE | VIV11: FALSE | VIW11: FALSE | VIX11: FALSE | VIY11: FALSE | VIZ11: FALSE | VJA11: FALSE | VJB11: FALSE | VJC11: FALSE | VJD11: FALSE | VJE11: FALSE | VJF11: FALSE | VJG11: FALSE | VJH11: FALSE | VJI11: FALSE | VJJ11: FALSE | VJK11: FALSE | VJL11: FALSE | VJM11: FALSE | VJN11: FALSE | VJO11: FALSE | VJP11: FALSE | VJQ11: FALSE | VJR11: FALSE | VJS11: FALSE | VJT11: FALSE | VJU11: FALSE | VJV11: FALSE | VJW11: FALSE | VJX11: FALSE | VJY11: FALSE | VJZ11: FALSE | VKA11: FALSE | VKB11: FALSE | VKC11: FALSE | VKD11: FALSE | VKE11: FALSE | VKF11: FALSE | VKG11: FALSE | VKH11: FALSE | VKI11: FALSE | VKJ11: FALSE | VKK11: FALSE | VKL11: =ECHO(FALSE) -> FALSE | VKM11: FALSE | VKN11: FALSE | VKO11: FALSE | VKP11: FALSE | VKQ11: FALSE | VKR11: FALSE | VKS11: FALSE | VKT11: FALSE | VKU11: FALSE | VKV11: FALSE | VKW11: FALSE | VKX11: FALSE | VKY11: FALSE | VKZ11: FALSE | VLA11: FALSE | VLB11: FALSE | VLC11: FALSE | VLD11: FALSE | VLE11: FALSE | VLF11: FALSE | VLG11: FALSE | VLH11: FALSE | VLI11: FALSE | VLJ11: FALSE | VLK11: FALSE | VLL11: FALSE | VLM11: FALSE | VLN11: FALSE | VLO11: FALSE | VLP11: FALSE | VLQ11: FALSE | VLR11: FALSE | VLS11: FALSE | VLT11: FALSE | VLU11: FALSE | VLV11: FALSE | VLW11: FALSE | VLX11: FALSE | VLY11: FALSE | VLZ11: FALSE | VMA11: FALSE | VMB11: FALSE | VMC11: FALSE | VMD11: FALSE | VME11: FALSE | VMF11: FALSE | VMG11: FALSE | VMH11: FALSE | VMI11: FALSE | VMJ11: FALSE | VMK11: FALSE | VML11: FALSE | VMM11: FALSE | VMN11: FALSE | VMO11: FALSE | VMP11: FALSE | VMQ11: FALSE | VMR11: FALSE | VMS11: FALSE | VMT11: FALSE | VMU11: FALSE | VMV11: FALSE | VMW11: FALSE | VMX11: =ECHO(FALSE) -> FALSE | VMY11: FALSE | VMZ11: FALSE | VNA11: FALSE | VNB11: FALSE | VNC11: FALSE | VND11: FALSE | VNE11: FALSE | VNF11: FALSE | VNG11: FALSE | VNH11: FALSE | VNI11: FALSE | VNJ11: FALSE | VNK11: FALSE | VNL11: FALSE | VNM11: FALSE | VNN11: FALSE | VNO11: FALSE | VNP11: FALSE | VNQ11: FALSE | VNR11: FALSE | VNS11: FALSE | VNT11: FALSE | VNU11: FALSE | VNV11: FALSE | VNW11: FALSE | VNX11: FALSE | VNY11: FALSE | VNZ11: FALSE | VOA11: FALSE | VOB11: FALSE | VOC11: FALSE | VOD11: FALSE | VOE11: FALSE | VOF11: FALSE | VOG11: FALSE | VOH11: FALSE | VOI11: FALSE | VOJ11: FALSE | VOK11: FALSE | VOL11: FALSE | VOM11: FALSE | VON11: FALSE | VOO11: FALSE | VOP11: FALSE | VOQ11: FALSE | VOR11: FALSE | VOS11: FALSE | VOT11: FALSE | VOU11: FALSE | VOV11: FALSE | VOW11: FALSE | VOX11: FALSE | VOY11: FALSE | VOZ11: FALSE | VPA11: FALSE | VPB11: FALSE | VPC11: FALSE | VPD11: FALSE | VPE11: FALSE | VPF11: FALSE | VPG11: FALSE | VPH11: FALSE | VPI11: FALSE | VPJ11: =ECHO(FALSE) -> FALSE | VPK11: FALSE | VPL11: FALSE | VPM11: FALSE | VPN11: FALSE | VPO11: FALSE | VPP11: FALSE | VPQ11: FALSE | VPR11: FALSE | VPS11: FALSE | VPT11: FALSE | VPU11: FALSE | VPV11: FALSE | VPW11: FALSE | VPX11: FALSE | VPY11: FALSE | VPZ11: FALSE | VQA11: FALSE | VQB11: FALSE | VQC11: FALSE | VQD11: FALSE | VQE11: FALSE | VQF11: FALSE | VQG11: FALSE | VQH11: FALSE | VQI11: FALSE | VQJ11: FALSE | VQK11: FALSE | VQL11: FALSE | VQM11: FALSE | VQN11: FALSE | VQO11: FALSE | VQP11: FALSE | VQQ11: FALSE | VQR11: FALSE | VQS11: FALSE | VQT11: FALSE | VQU11: FALSE | VQV11: FALSE | VQW11: FALSE | VQX11: FALSE | VQY11: FALSE | VQZ11: FALSE | VRA11: FALSE | VRB11: FALSE | VRC11: FALSE | VRD11: FALSE | VRE11: FALSE | VRF11: FALSE | VRG11: FALSE | VRH11: FALSE | VRI11: FALSE | VRJ11: FALSE | VRK11: FALSE | VRL11: FALSE | VRM11: FALSE | VRN11: FALSE | VRO11: FALSE | VRP11: FALSE | VRQ11: FALSE | VRR11: FALSE | VRS11: FALSE | VRT11: FALSE | VRU11: FALSE | VRV11: =ECHO(FALSE) -> FALSE | VRW11: FALSE | VRX11: FALSE | VRY11: FALSE | VRZ11: FALSE | VSA11: FALSE | VSB11: FALSE | VSC11: FALSE | VSD11: FALSE | VSE11: FALSE | VSF11: FALSE | VSG11: FALSE | VSH11: FALSE | VSI11: FALSE | VSJ11: FALSE | VSK11: FALSE | VSL11: FALSE | VSM11: FALSE | VSN11: FALSE | VSO11: FALSE | VSP11: FALSE | VSQ11: FALSE | VSR11: FALSE | VSS11: FALSE | VST11: FALSE | VSU11: FALSE | VSV11: FALSE | VSW11: FALSE | VSX11: FALSE | VSY11: FALSE | VSZ11: FALSE | VTA11: FALSE | VTB11: FALSE | VTC11: FALSE | VTD11: FALSE | VTE11: FALSE | VTF11: FALSE | VTG11: FALSE | VTH11: FALSE | VTI11: FALSE | VTJ11: FALSE | VTK11: FALSE | VTL11: FALSE | VTM11: FALSE | VTN11: FALSE | VTO11: FALSE | VTP11: FALSE | VTQ11: FALSE | VTR11: FALSE | VTS11: FALSE | VTT11: FALSE | VTU11: FALSE | VTV11: FALSE | VTW11: FALSE | VTX11: FALSE | VTY11: FALSE | VTZ11: FALSE | VUA11: FALSE | VUB11: FALSE | VUC11: FALSE | VUD11: FALSE | VUE11: FALSE | VUF11: FALSE | VUG11: FALSE | VUH11: =ECHO(FALSE) -> FALSE | VUI11: FALSE | VUJ11: FALSE | VUK11: FALSE | VUL11: FALSE | VUM11: FALSE | VUN11: FALSE | VUO11: FALSE | VUP11: FALSE | VUQ11: FALSE | VUR11: FALSE | VUS11: FALSE | VUT11: FALSE | VUU11: FALSE | VUV11: FALSE | VUW11: FALSE | VUX11: FALSE | VUY11: FALSE | VUZ11: FALSE | VVA11: FALSE | VVB11: FALSE | VVC11: FALSE | VVD11: FALSE | VVE11: FALSE | VVF11: FALSE | VVG11: FALSE | VVH11: FALSE | VVI11: FALSE | VVJ11: FALSE | VVK11: FALSE | VVL11: FALSE | VVM11: FALSE | VVN11: FALSE | VVO11: FALSE | VVP11: FALSE | VVQ11: FALSE | VVR11: FALSE | VVS11: FALSE | VVT11: FALSE | VVU11: FALSE | VVV11: FALSE | VVW11: FALSE | VVX11: FALSE | VVY11: FALSE | VVZ11: FALSE | VWA11: FALSE | VWB11: FALSE | VWC11: FALSE | VWD11: FALSE | VWE11: FALSE | VWF11: FALSE | VWG11: FALSE | VWH11: FALSE | VWI11: FALSE | VWJ11: FALSE | VWK11: FALSE | VWL11: FALSE | VWM11: FALSE | VWN11: FALSE | VWO11: FALSE | VWP11: FALSE | VWQ11: FALSE | VWR11: FALSE | VWS11: FALSE | VWT11: =ECHO(FALSE) -> FALSE | VWU11: FALSE | VWV11: FALSE | VWW11: FALSE | VWX11: FALSE | VWY11: FALSE | VWZ11: FALSE | VXA11: FALSE | VXB11: FALSE | VXC11: FALSE | VXD11: FALSE | VXE11: FALSE | VXF11: FALSE | VXG11: FALSE | VXH11: FALSE | VXI11: FALSE | VXJ11: FALSE | VXK11: FALSE | VXL11: FALSE | VXM11: FALSE | VXN11: FALSE | VXO11: FALSE | VXP11: FALSE | VXQ11: FALSE | VXR11: FALSE | VXS11: FALSE | VXT11: FALSE | VXU11: FALSE | VXV11: FALSE | VXW11: FALSE | VXX11: FALSE | VXY11: FALSE | VXZ11: FALSE | VYA11: FALSE | VYB11: FALSE | VYC11: FALSE | VYD11: FALSE | VYE11: FALSE | VYF11: FALSE | VYG11: FALSE | VYH11: FALSE | VYI11: FALSE | VYJ11: FALSE | VYK11: FALSE | VYL11: FALSE | VYM11: FALSE | VYN11: FALSE | VYO11: FALSE | VYP11: FALSE | VYQ11: FALSE | VYR11: FALSE | VYS11: FALSE | VYT11: FALSE | VYU11: FALSE | VYV11: FALSE | VYW11: FALSE | VYX11: FALSE | VYY11: FALSE | VYZ11: FALSE | VZA11: FALSE | VZB11: FALSE | VZC11: FALSE | VZD11: FALSE | VZE11: FALSE | VZF11: =ECHO(FALSE) -> FALSE | VZG11: FALSE | VZH11: FALSE | VZI11: FALSE | VZJ11: FALSE | VZK11: FALSE | VZL11: FALSE | VZM11: FALSE | VZN11: FALSE | VZO11: FALSE | VZP11: FALSE | VZQ11: FALSE | VZR11: FALSE | VZS11: FALSE | VZT11: FALSE | VZU11: FALSE | VZV11: FALSE | VZW11: FALSE | VZX11: FALSE | VZY11: FALSE | VZZ11: FALSE | WAA11: FALSE | WAB11: FALSE | WAC11: FALSE | WAD11: FALSE | WAE11: FALSE | WAF11: FALSE | WAG11: FALSE | WAH11: FALSE | WAI11: FALSE | WAJ11: FALSE | WAK11: FALSE | WAL11: FALSE | WAM11: FALSE | WAN11: FALSE | WAO11: FALSE | WAP11: FALSE | WAQ11: FALSE | WAR11: FALSE | WAS11: FALSE | WAT11: FALSE | WAU11: FALSE | WAV11: FALSE | WAW11: FALSE | WAX11: FALSE | WAY11: FALSE | WAZ11: FALSE | WBA11: FALSE | WBB11: FALSE | WBC11: FALSE | WBD11: FALSE | WBE11: FALSE | WBF11: FALSE | WBG11: FALSE | WBH11: FALSE | WBI11: FALSE | WBJ11: FALSE | WBK11: FALSE | WBL11: FALSE | WBM11: FALSE | WBN11: FALSE | WBO11: FALSE | WBP11: FALSE | WBQ11: FALSE | WBR11: =ECHO(FALSE) -> FALSE | WBS11: FALSE | WBT11: FALSE | WBU11: FALSE | WBV11: FALSE | WBW11: FALSE | WBX11: FALSE | WBY11: FALSE | WBZ11: FALSE | WCA11: FALSE | WCB11: FALSE | WCC11: FALSE | WCD11: FALSE | WCE11: FALSE | WCF11: FALSE | WCG11: FALSE | WCH11: FALSE | WCI11: FALSE | WCJ11: FALSE | WCK11: FALSE | WCL11: FALSE | WCM11: FALSE | WCN11: FALSE | WCO11: FALSE | WCP11: FALSE | WCQ11: FALSE | WCR11: FALSE | WCS11: FALSE | WCT11: FALSE | WCU11: FALSE | WCV11: FALSE | WCW11: FALSE | WCX11: FALSE | WCY11: FALSE | WCZ11: FALSE | WDA11: FALSE | WDB11: FALSE | WDC11: FALSE | WDD11: FALSE | WDE11: FALSE | WDF11: FALSE | WDG11: FALSE | WDH11: FALSE | WDI11: FALSE | WDJ11: FALSE | WDK11: FALSE | WDL11: FALSE | WDM11: FALSE | WDN11: FALSE | WDO11: FALSE | WDP11: FALSE | WDQ11: FALSE | WDR11: FALSE | WDS11: FALSE | WDT11: FALSE | WDU11: FALSE | WDV11: FALSE | WDW11: FALSE | WDX11: FALSE | WDY11: FALSE | WDZ11: FALSE | WEA11: FALSE | WEB11: FALSE | WEC11: FALSE | WED11: =ECHO(FALSE) -> FALSE | WEE11: FALSE | WEF11: FALSE | WEG11: FALSE | WEH11: FALSE | WEI11: FALSE | WEJ11: FALSE | WEK11: FALSE | WEL11: FALSE | WEM11: FALSE | WEN11: FALSE | WEO11: FALSE | WEP11: FALSE | WEQ11: FALSE | WER11: FALSE | WES11: FALSE | WET11: FALSE | WEU11: FALSE | WEV11: FALSE | WEW11: FALSE | WEX11: FALSE | WEY11: FALSE | WEZ11: FALSE | WFA11: FALSE | WFB11: FALSE | WFC11: FALSE | WFD11: FALSE | WFE11: FALSE | WFF11: FALSE | WFG11: FALSE | WFH11: FALSE | WFI11: FALSE | WFJ11: FALSE | WFK11: FALSE | WFL11: FALSE | WFM11: FALSE | WFN11: FALSE | WFO11: FALSE | WFP11: FALSE | WFQ11: FALSE | WFR11: FALSE | WFS11: FALSE | WFT11: FALSE | WFU11: FALSE | WFV11: FALSE | WFW11: FALSE | WFX11: FALSE | WFY11: FALSE | WFZ11: FALSE | WGA11: FALSE | WGB11: FALSE | WGC11: FALSE | WGD11: FALSE | WGE11: FALSE | WGF11: FALSE | WGG11: FALSE | WGH11: FALSE | WGI11: FALSE | WGJ11: FALSE | WGK11: FALSE | WGL11: FALSE | WGM11: FALSE | WGN11: FALSE | WGO11: FALSE | WGP11: =ECHO(FALSE) -> FALSE | WGQ11: FALSE | WGR11: FALSE | WGS11: FALSE | WGT11: FALSE | WGU11: FALSE | WGV11: FALSE | WGW11: FALSE | WGX11: FALSE | WGY11: FALSE | WGZ11: FALSE | WHA11: FALSE | WHB11: FALSE | WHC11: FALSE | WHD11: FALSE | WHE11: FALSE | WHF11: FALSE | WHG11: FALSE | WHH11: FALSE | WHI11: FALSE | WHJ11: FALSE | WHK11: FALSE | WHL11: FALSE | WHM11: FALSE | WHN11: FALSE | WHO11: FALSE | WHP11: FALSE | WHQ11: FALSE | WHR11: FALSE | WHS11: FALSE | WHT11: FALSE | WHU11: FALSE | WHV11: FALSE | WHW11: FALSE | WHX11: FALSE | WHY11: FALSE | WHZ11: FALSE | WIA11: FALSE | WIB11: FALSE | WIC11: FALSE | WID11: FALSE | WIE11: FALSE | WIF11: FALSE | WIG11: FALSE | WIH11: FALSE | WII11: FALSE | WIJ11: FALSE | WIK11: FALSE | WIL11: FALSE | WIM11: FALSE | WIN11: FALSE | WIO11: FALSE | WIP11: FALSE | WIQ11: FALSE | WIR11: FALSE | WIS11: FALSE | WIT11: FALSE | WIU11: FALSE | WIV11: FALSE | WIW11: FALSE | WIX11: FALSE | WIY11: FALSE | WIZ11: FALSE | WJA11: FALSE | WJB11: =ECHO(FALSE) -> FALSE | WJC11: FALSE | WJD11: FALSE | WJE11: FALSE | WJF11: FALSE | WJG11: FALSE | WJH11: FALSE | WJI11: FALSE | WJJ11: FALSE | WJK11: FALSE | WJL11: FALSE | WJM11: FALSE | WJN11: FALSE | WJO11: FALSE | WJP11: FALSE | WJQ11: FALSE | WJR11: FALSE | WJS11: FALSE | WJT11: FALSE | WJU11: FALSE | WJV11: FALSE | WJW11: FALSE | WJX11: FALSE | WJY11: FALSE | WJZ11: FALSE | WKA11: FALSE | WKB11: FALSE | WKC11: FALSE | WKD11: FALSE | WKE11: FALSE | WKF11: FALSE | WKG11: FALSE | WKH11: FALSE | WKI11: FALSE | WKJ11: FALSE | WKK11: FALSE | WKL11: FALSE | WKM11: FALSE | WKN11: FALSE | WKO11: FALSE | WKP11: FALSE | WKQ11: FALSE | WKR11: FALSE | WKS11: FALSE | WKT11: FALSE | WKU11: FALSE | WKV11: FALSE | WKW11: FALSE | WKX11: FALSE | WKY11: FALSE | WKZ11: FALSE | WLA11: FALSE | WLB11: FALSE | WLC11: FALSE | WLD11: FALSE | WLE11: FALSE | WLF11: FALSE | WLG11: FALSE | WLH11: FALSE | WLI11: FALSE | WLJ11: FALSE | WLK11: FALSE | WLL11: FALSE | WLM11: FALSE | WLN11: =ECHO(FALSE) -> FALSE | WLO11: FALSE | WLP11: FALSE | WLQ11: FALSE | WLR11: FALSE | WLS11: FALSE | WLT11: FALSE | WLU11: FALSE | WLV11: FALSE | WLW11: FALSE | WLX11: FALSE | WLY11: FALSE | WLZ11: FALSE | WMA11: FALSE | WMB11: FALSE | WMC11: FALSE | WMD11: FALSE | WME11: FALSE | WMF11: FALSE | WMG11: FALSE | WMH11: FALSE | WMI11: FALSE | WMJ11: FALSE | WMK11: FALSE | WML11: FALSE | WMM11: FALSE | WMN11: FALSE | WMO11: FALSE | WMP11: FALSE | WMQ11: FALSE | WMR11: FALSE | WMS11: FALSE | WMT11: FALSE | WMU11: FALSE | WMV11: FALSE | WMW11: FALSE | WMX11: FALSE | WMY11: FALSE | WMZ11: FALSE | WNA11: FALSE | WNB11: FALSE | WNC11: FALSE | WND11: FALSE | WNE11: FALSE | WNF11: FALSE | WNG11: FALSE | WNH11: FALSE | WNI11: FALSE | WNJ11: FALSE | WNK11: FALSE | WNL11: FALSE | WNM11: FALSE | WNN11: FALSE | WNO11: FALSE | WNP11: FALSE | WNQ11: FALSE | WNR11: FALSE | WNS11: FALSE | WNT11: FALSE | WNU11: FALSE | WNV11: FALSE | WNW11: FALSE | WNX11: FALSE | WNY11: FALSE | WNZ11: =ECHO(FALSE) -> FALSE | WOA11: FALSE | WOB11: FALSE | WOC11: FALSE | WOD11: FALSE | WOE11: FALSE | WOF11: FALSE | WOG11: FALSE | WOH11: FALSE | WOI11: FALSE | WOJ11: FALSE | WOK11: FALSE | WOL11: FALSE | WOM11: FALSE | WON11: FALSE | WOO11: FALSE | WOP11: FALSE | WOQ11: FALSE | WOR11: FALSE | WOS11: FALSE | WOT11: FALSE | WOU11: FALSE | WOV11: FALSE | WOW11: FALSE | WOX11: FALSE | WOY11: FALSE | WOZ11: FALSE | WPA11: FALSE | WPB11: FALSE | WPC11: FALSE | WPD11: FALSE | WPE11: FALSE | WPF11: FALSE | WPG11: FALSE | WPH11: FALSE | WPI11: FALSE | WPJ11: FALSE | WPK11: FALSE | WPL11: FALSE | WPM11: FALSE | WPN11: FALSE | WPO11: FALSE | WPP11: FALSE | WPQ11: FALSE | WPR11: FALSE | WPS11: FALSE | WPT11: FALSE | WPU11: FALSE | WPV11: FALSE | WPW11: FALSE | WPX11: FALSE | WPY11: FALSE | WPZ11: FALSE | WQA11: FALSE | WQB11: FALSE | WQC11: FALSE | WQD11: FALSE | WQE11: FALSE | WQF11: FALSE | WQG11: FALSE | WQH11: FALSE | WQI11: FALSE | WQJ11: FALSE | WQK11: FALSE | WQL11: =ECHO(FALSE) -> FALSE | WQM11: FALSE | WQN11: FALSE | WQO11: FALSE | WQP11: FALSE | WQQ11: FALSE | WQR11: FALSE | WQS11: FALSE | WQT11: FALSE | WQU11: FALSE | WQV11: FALSE | WQW11: FALSE | WQX11: FALSE | WQY11: FALSE | WQZ11: FALSE | WRA11: FALSE | WRB11: FALSE | WRC11: FALSE | WRD11: FALSE | WRE11: FALSE | WRF11: FALSE | WRG11: FALSE | WRH11: FALSE | WRI11: FALSE | WRJ11: FALSE | WRK11: FALSE | WRL11: FALSE | WRM11: FALSE | WRN11: FALSE | WRO11: FALSE | WRP11: FALSE | WRQ11: FALSE | WRR11: FALSE | WRS11: FALSE | WRT11: FALSE | WRU11: FALSE | WRV11: FALSE | WRW11: FALSE | WRX11: FALSE | WRY11: FALSE | WRZ11: FALSE | WSA11: FALSE | WSB11: FALSE | WSC11: FALSE | WSD11: FALSE | WSE11: FALSE | WSF11: FALSE | WSG11: FALSE | WSH11: FALSE | WSI11: FALSE | WSJ11: FALSE | WSK11: FALSE | WSL11: FALSE | WSM11: FALSE | WSN11: FALSE | WSO11: FALSE | WSP11: FALSE | WSQ11: FALSE | WSR11: FALSE | WSS11: FALSE | WST11: FALSE | WSU11: FALSE | WSV11: FALSE | WSW11: FALSE | WSX11: =ECHO(FALSE) -> FALSE | WSY11: FALSE | WSZ11: FALSE | WTA11: FALSE | WTB11: FALSE | WTC11: FALSE | WTD11: FALSE | WTE11: FALSE | WTF11: FALSE | WTG11: FALSE | WTH11: FALSE | WTI11: FALSE | WTJ11: FALSE | WTK11: FALSE | WTL11: FALSE | WTM11: FALSE | WTN11: FALSE | WTO11: FALSE | WTP11: FALSE | WTQ11: FALSE | WTR11: FALSE | WTS11: FALSE | WTT11: FALSE | WTU11: FALSE | WTV11: FALSE | WTW11: FALSE | WTX11: FALSE | WTY11: FALSE | WTZ11: FALSE | WUA11: FALSE | WUB11: FALSE | WUC11: FALSE | WUD11: FALSE | WUE11: FALSE | WUF11: FALSE | WUG11: FALSE | WUH11: FALSE | WUI11: FALSE | WUJ11: FALSE | WUK11: FALSE | WUL11: FALSE | WUM11: FALSE | WUN11: FALSE | WUO11: FALSE | WUP11: FALSE | WUQ11: FALSE | WUR11: FALSE | WUS11: FALSE | WUT11: FALSE | WUU11: FALSE | WUV11: FALSE | WUW11: FALSE | WUX11: FALSE | WUY11: FALSE | WUZ11: FALSE | WVA11: FALSE | WVB11: FALSE | WVC11: FALSE | WVD11: FALSE | WVE11: FALSE | WVF11: FALSE | WVG11: FALSE | WVH11: FALSE | WVI11: FALSE | WVJ11: =ECHO(FALSE) -> FALSE | WVK11: FALSE | WVL11: FALSE | WVM11: FALSE | WVN11: FALSE | WVO11: FALSE | WVP11: FALSE | WVQ11: FALSE | WVR11: FALSE | WVS11: FALSE | WVT11: FALSE | WVU11: FALSE | WVV11: FALSE | WVW11: FALSE | WVX11: FALSE | WVY11: FALSE | WVZ11: FALSE | WWA11: FALSE | WWB11: FALSE | WWC11: FALSE | WWD11: FALSE | WWE11: FALSE | WWF11: FALSE | WWG11: FALSE | WWH11: FALSE | WWI11: FALSE | WWJ11: FALSE | WWK11: FALSE | WWL11: FALSE | WWM11: FALSE | WWN11: FALSE | WWO11: FALSE | WWP11: FALSE | WWQ11: FALSE | WWR11: FALSE | WWS11: FALSE | WWT11: FALSE | WWU11: FALSE | WWV11: FALSE | WWW11: FALSE | WWX11: FALSE | WWY11: FALSE | WWZ11: FALSE | WXA11: FALSE | WXB11: FALSE | WXC11: FALSE | WXD11: FALSE | WXE11: FALSE | WXF11: FALSE | WXG11: FALSE | WXH11: FALSE | WXI11: FALSE | WXJ11: FALSE | WXK11: FALSE | WXL11: FALSE | WXM11: FALSE | WXN11: FALSE | WXO11: FALSE | WXP11: FALSE | WXQ11: FALSE | WXR11: FALSE | WXS11: FALSE | WXT11: FALSE | WXU11: FALSE | WXV11: =ECHO(FALSE) -> FALSE | WXW11: FALSE | WXX11: FALSE | WXY11: FALSE | WXZ11: FALSE | WYA11: FALSE | WYB11: FALSE | WYC11: FALSE | WYD11: FALSE | WYE11: FALSE | WYF11: FALSE | WYG11: FALSE | WYH11: FALSE | WYI11: FALSE | WYJ11: FALSE | WYK11: FALSE | WYL11: FALSE | WYM11: FALSE | WYN11: FALSE | WYO11: FALSE | WYP11: FALSE | WYQ11: FALSE | WYR11: FALSE | WYS11: FALSE | WYT11: FALSE | WYU11: FALSE | WYV11: FALSE | WYW11: FALSE | WYX11: FALSE | WYY11: FALSE | WYZ11: FALSE | WZA11: FALSE | WZB11: FALSE | WZC11: FALSE | WZD11: FALSE | WZE11: FALSE | WZF11: FALSE | WZG11: FALSE | WZH11: FALSE | WZI11: FALSE | WZJ11: FALSE | WZK11: FALSE | WZL11: FALSE | WZM11: FALSE | WZN11: FALSE | WZO11: FALSE | WZP11: FALSE | WZQ11: FALSE | WZR11: FALSE | WZS11: FALSE | WZT11: FALSE | WZU11: FALSE | WZV11: FALSE | WZW11: FALSE | WZX11: FALSE | WZY11: FALSE | WZZ11: FALSE | XAA11: FALSE | XAB11: FALSE | XAC11: FALSE | XAD11: FALSE | XAE11: FALSE | XAF11: FALSE | XAG11: FALSE | XAH11: =ECHO(FALSE) -> FALSE | XAI11: FALSE | XAJ11: FALSE | XAK11: FALSE | XAL11: FALSE | XAM11: FALSE | XAN11: FALSE | XAO11: FALSE | XAP11: FALSE | XAQ11: FALSE | XAR11: FALSE | XAS11: FALSE | XAT11: FALSE | XAU11: FALSE | XAV11: FALSE | XAW11: FALSE | XAX11: FALSE | XAY11: FALSE | XAZ11: FALSE | XBA11: FALSE | XBB11: FALSE | XBC11: FALSE | XBD11: FALSE | XBE11: FALSE | XBF11: FALSE | XBG11: FALSE | XBH11: FALSE | XBI11: FALSE | XBJ11: FALSE | XBK11: FALSE | XBL11: FALSE | XBM11: FALSE | XBN11: FALSE | XBO11: FALSE | XBP11: FALSE | XBQ11: FALSE | XBR11: FALSE | XBS11: FALSE | XBT11: FALSE | XBU11: FALSE | XBV11: FALSE | XBW11: FALSE | XBX11: FALSE | XBY11: FALSE | XBZ11: FALSE | XCA11: FALSE | XCB11: FALSE | XCC11: FALSE | XCD11: FALSE | XCE11: FALSE | XCF11: FALSE | XCG11: FALSE | XCH11: FALSE | XCI11: FALSE | XCJ11: FALSE | XCK11: FALSE | XCL11: FALSE | XCM11: FALSE | XCN11: FALSE | XCO11: FALSE | XCP11: FALSE | XCQ11: FALSE | XCR11: FALSE | XCS11: FALSE | XCT11: =ECHO(FALSE) -> FALSE | XCU11: FALSE | XCV11: FALSE | XCW11: FALSE | XCX11: FALSE | XCY11: FALSE | XCZ11: FALSE | XDA11: FALSE | XDB11: FALSE | XDC11: FALSE | XDD11: FALSE | XDE11: FALSE | XDF11: FALSE | XDG11: FALSE | XDH11: FALSE | XDI11: FALSE | XDJ11: FALSE | XDK11: FALSE | XDL11: FALSE | XDM11: FALSE | XDN11: FALSE | XDO11: FALSE | XDP11: FALSE | XDQ11: FALSE | XDR11: FALSE | XDS11: FALSE | XDT11: FALSE | XDU11: FALSE | XDV11: FALSE | XDW11: FALSE | XDX11: FALSE | XDY11: FALSE | XDZ11: FALSE | XEA11: FALSE | XEB11: FALSE | XEC11: FALSE | XED11: FALSE | XEE11: FALSE | XEF11: FALSE | XEG11: FALSE | XEH11: FALSE | XEI11: FALSE | XEJ11: FALSE | XEK11: FALSE | XEL11: FALSE | XEM11: FALSE | XEN11: FALSE | XEO11: FALSE | XEP11: FALSE | XEQ11: FALSE | XER11: FALSE | XES11: FALSE | XET11: FALSE | XEU11: FALSE | XEV11: FALSE | XEW11: FALSE | XEX11: FALSE | XEY11: FALSE | XEZ11: FALSE | XFA11: FALSE | XFB11: FALSE | XFC11: FALSE | XFD11: FALSE
A12: =SELECT("L1C3") -> TRUE
A13: =ECHO(TRUE) -> TRUE
A14: =RETURN() -> TRUE
A16: Macro_Effacer_Saisie
A17: =IF(ALERT("Cette Macro va effacer les données contenues dans un onglet 'saisie' Voulez-vous continuer ?",1)=FALSE,GOTO(A27)) -> FALSE
A18: =ECHO(FALSE) -> TRUE
A19: =PROTECT.DOCUMENT(FALSE,,"",FALSE) -> TRUE
A20: =SELECT("L3C5:L3C12") -> TRUE
A21: =CLEAR(3) -> TRUE
A22: =FOR("i",1,20) -> TRUE
A23: =SELECT("L"&(i-1)*10+(i*1)+8&"C5:L"&(i-1)*10+(i*1)+13&"C6;L"&(i-1)*10+(i*1)+8&"C8:L"&(i-1)*10+(i*1)+13&"C14;L"&(i-1)*10+(i*1)+8&"C16:L"&(i-1)*10+(i*1)+13&"C22;L"&(i-1)*10+(i*1)+8&"C24:L"&(i-1)*10+(i*1)+13&"C30;L"&(i-1)*10+(i*1)+8&"C32:L"&(i-1)*10+(i*1)+13&"C38") -> TRUE
